Workbook

Sheet Notes
A1: EhlersPairsRotation.xlsm; Traders Tip spreadsheet created for the July 2022 Issue
A2: Coded beginning 2022-May-06 by Ronald McAllister (rpmac_xltt@sprynet.com)
A4: This Workbook demonstrates an EXCEL version of the ideas presented
A5: by John Ehlers in an article titled "Pairs Rotation With Ehlers Loops - pt 2", which originally appeared in the July 2022 issue of
A6: "Technical Analysis of Stocks and Commodities" magazine.
A8: Development Notes:
A9: The visual requrement was there in the Part 1 article, but I just missed the implications.
A10: So full sized LoopCharts produced in the Part1 spreadsheet (June 2022) tend to be badly skewed.
A11: Attempts to plot a square with the June 2022 spreadsheet will result in the display of a rectangle almost twice as wide as it is tall.
A13: Working with the pairs rotation here in the Part 2 spreadsheet made it very apparent that a LoopChart
A14: should display with an aspect ratio as close to 1:1 as possible.
A15: That is, a 1 unit square should appear to the eye to be a square rather than a rectangle.
A16: Otherwise your eye will mislead you as to the strength of vertical moves relative to the strength of horizontal moves.
A18: With that in mind, I have corrected the X and Y axis scaling logic so that when the LoopChart is the only chart showing
A19: a square plotted on the LoopChart will look as close as possible to a proper square.
A21: All bets are off when any other charts are showing at the same time as the LoopChart.
A22: The set of charts on display have to be squished down to fit in the vertical space available.
A24: * * * * * * * * * * * * * * * *
A25: March 15 2022 - for the May 2022 traders tip
A26: Built an alternative method to show/hide a series on a chart. This is driven by a user check box settings in the
A27: clutter control area and uses the "visible" property of a given series.
A28: Check box labels change on the fly to reflect changes to indicator parameters as the changes happen.
A29: Set up parallel price charts to contrast indicator settings as Mr. Apirine has done in the May 2022 article.
A30: Chart visibilities controlled by check box settings.
A31: Changed chart window shade logic to show all of the Volume Chart or overlay the upper portion of the
A32: volume chart to provide more vertical space for other charts. This partial overlay leaves the volume chart
A33: date labels visible so that no other chart needs to have labels providing more vertical space of actual charting.
A34: Refined my dynamic horizontal Tick interval and Tick Label placement settings logic.
A36: January 18 2022 - Random "Name of Company" Retrieval Errors
A37: For the last couple of months my data retrievals would randomly get a soft error on the company name.
A38: By soft I mean that the HTML Get request for a summary for the InputPriceData tab target symbol would have a good return code but the company name field would contain garbage.
A39: Simply clicking the get data button on the InputPriceData tab to rerun the data retrieval would fix" it.
A40: Remarkably, the historical pricing data is always retrieved and is correct.
A42: Sunday (Jan 16) while working on this spreadsheet, five out of six tries for the same symbol displayed junk in the company name.
A43: So I set a trap to copy the HTML text to disc for the bad return and the good return so that I could compare them.
A44: (for those with a technical bent Notepad++ has a really nice Compare add in)
A45: As it turns out the correct required data is present in both versions.
A46: But the formatting of the new version does not contain the landmarks I was using to parse out what was needed.
A48: I think Yahoo Finance is experimenting with a new/upgraded HTML generator and perhaps does not have it installed on all of their servers.
A49: So the randomness of the "failure" is probably an artifact of which server answered my HTML request.
A51: The result is that I spent the last day and a half comparing the two formats and have come up with a new set of landmarks
A52: that are common to both formats. It requires a few extra steps to ignore minor internal differences in these landmarks and the result is
A53: code that does not care which HTML format is returned.
A55: The fix - What Changed:
A56: Complete rewrite of:
A57: VBA Procedure: ExtractCompanyIdFromSummaryText as found in VBA Module: InputPriceDataLoader
A59: Retrofitting to older Traders Tips spreadsheets:
A60: For those of you with some familiarity with the EXCEL VBA editor, you can try the following copy and paste steps.
A62: First we need to grab a copy of the corrected ExtractCompanyIdFromSummaryText Sub.
A63: Open the VBA editor in this spreadsheet and navigate to module InputPriceDataLoader and then to procedure ExtractCompanyIdFromSummaryText
A64: Copy all of procedure ExtractCompanyIdFromSummaryText from the beginning Sub statement to and including the closing End Sub statement to a new Notepad or Notepad++ text document.
A65: Close this workbook, but do not close the Notepad or Notepad++ document.
A67: Now for the target of your retrofit attempt.
A68: Make a backup copy of this retrofit target spreadsheet in case you have a problem and need to start over with a fresh copy.
A69: Open the retrofit target.
A70: Open the VBA editor in this target spreadsheet and navigate to module InputPriceDataLoader and then to procedure ExtractCompanyIdFromSummaryText
A72: Delete all of the ExtractCompanyIdFromSummaryText procedure starting with the begining Sub statement to and including the closing End Sub statement.
A74: Do not close the VBA editor or the spread sheet.
A76: Navigate (Alt-Tab) to your Notepad or Notepad++ instance and select all of the text (Ctrl-a). Then Copy the selected text (Ctrl-c).
A77: Navigate (Alt-Tab) back to the VBA editor window. The VBA editor cursor should still be on the line where you just deleted the old version of ExtractCompanyIdFromSummaryText.
A78: This is probably a blank line just above a line that reads "Sub FormatPriceHistory(..."
A79: If there is no blank line above the "Sub FormatPriceHistory(..." line then click on the "S" of Sub and press enter to insert a blank line.
A80: Move your mouse cursor to this blank line and left-click to be sure of the VBA cursor location.
A81: Then (Ctrl-v) to paste the new version of ExtractCompanyIdFromSummaryText that you copied from the Notepad or Notepad++ text document.
A83: You are done with the tricky part. Close the VBA editor and save the now retrofitted spreadsheet.
A85: Go to the inputPriceData tab and retrieve some data to verify that nothing is broken.
A86: Easter egg time: (Curious minds want to know...)
A87: If the data retrieval encounters a new format HTML response, the company name this code will display will have an asterisk(*) as a prefix.
A89: Foot Note: Today (Jan 19 2022) I have not encountered a single instance of the new format HTML while testing this spreadsheet for submission to the editors.
A90: So maybe YahooFinance is not test/using the new version right now?
A92: New for May 2021
A93: Upgraded the data download logic to do a better job of catching the common data download errors and provide a more graceful resolution.
A94: This includes better user notification of the nature of the error and some user control over how the error should be handled.
A95: User notification comes in the form of a MSGbox display that includes the (sometimes cryptic) description of the error and offers the user three options.
A97: Abort - If I could customize the title, I would rename this button to "Debug"
A98: This choice places you in Debug mode at the failing VBA statement.
A99: Unless you are feeling good about your VBA (and Network) debugging skills, this is probably not for you.
A101: Retry
A102: Lets the code retry the failed download request.
A103: This is a reasonable option if the download request timed out (similar to video buffering) or your network connection has dropped out..
A104: Probably a good idea to make sure your internet connection is alive and well before you select Retry.
A106: Ignore
A107: Lets the code fall thru to a (hopefully) graceful error completion with the error indicated at the top of the InputPriceData tab
A109: New for August 2020
A110: Restructured my Symbol-Not-Found detection and now stop further processing in the not found case
A112: New with the May 2020 version of my T-Tips template: VBA to implement a "Perpetual" U.S. Markets Closed Holiday Calendar.
A114: Why we need one: The Yahoo Finance recently has begun having occasional filtration problems where bars for U.S. Market Closed Holidays
A115: make their way onto the Historical Data web page and into the Historical Data download.
A117: While testing this May 2020 spreadsheet with different symbols, I found that I sometimes had bars with the text "null" in the price fields.
A118: My code always translates the "null" text price values to zeros.
A119: The resulting zeros cause real problems with indicator computations and the amount of blank space below price candles on the price chart.
A121: "null" price bars can be valid for very lightly traded penny sheet symbols which may not trade every day the markets are open.
A122: But is definitely not normal for symbols on the big boards.
A124: A closer look determined that these "bars" were for holiday dates when the US markets are normally closed.
A125: I found it interesting that some times the next download for the same symbol would not contain any of these "holiday" bars. Weird!
A127: My approach here was to write code to determine if the DATE on a null price values bar falls on one of the 9 market closed U.S. Holidays.
A128: If the bar date corresponds to one of these market closed holidays, I drop the bar before it reaches the InputPriceData tab.
A129: If the date is not a holiday, I let the bar through with the resulting zero values.
A131: No messy tables to update over the years as there are good solid rules that can be used in VBA or any other programming language to determine
A132: the dates for U.S. Market Closed Holidays for any given calendar year.
A134: This workbook contains and uses VBA macros and may take advantage of user defined VBA Class structures.
A135: Input Data:
A136: The data in this workbook is sorted date-descending (most recent date at the top). All cell formulas and
A137: VBA routines are built assuming this date sequence.
A139: ERROR 9 (already fixed in this spreadsheet)
A140: On or about Jan 29, 2020 Yahoo Finance changed the format of the split factor expression used their historical data downloads.
A141: The Split expression went from using "/" as in "New Share Number/Old Share Number",
A142: to using ":" as in "New Share Number:Old Share Number".
A143: This caused the then current version of my VBA code to fail with a "Runtime Error '9': subscript out of range".
A145: Fix for this ERROR 9
A146: For T-Tip spreadsheets from September 2018 up to present:
A147: Selecting the Debug option takes one into the VBA at the code line which causes the failure:
A148: CellArray(C_A_RowNdx, C_A_ColNdx + 1) = SplitFactors(1)
A149: Two lines above the failing VBA line is a line that reads:
A150: SplitFactors = Split(CsvColumns(CsvColNdx), "/")
A151: Change the / to a :
A152: The corrected line should now read
A153: SplitFactors = Split(CsvColumns(CsvColNdx), ":")
A155: If you are fixing several spreadsheets and do not want to use the failure to find the fix location,
A156: you can use VBA’s FIND dialog (Ctrl F) to look for the substring
A157: SplitFactors =
A158: Do include one space and the equal sign in your FIND string
A159: Select the "Current Project" option
A160: There should only be one instance.
A162: T-Tip spreadsheets prior to the September 2018 spreadsheet do not hard fail.
A164: They just get weird results in the split columns of the Input Price Data tab (soft fail).
A165: These older spreadsheets used different data retrieval and formatting logic.
A167: To fix these older spreadsheets:
A168: In the VBA editor, use find (CTRL-F).
A169: Select the "Current Project" option, and search for the following:
A170: OtherChar:="/"
A171: You are looking for a hit in a line reading:
A172: Other:=True, OtherChar:="/", _
A173: This line is part of a multiline block of code starting with a line that reads:
A174: SplitRange.Offset(0, 1).Resize(SpRows, 1).TextToColumns
A175: Change the / to a : so that the line reads
A176: Other:=True, OtherChar:=":", _
A179: 2019-04-04 Finally came up with a mechanism to align the left location and overall length of the cursor scroll bar so that the left most and right most
A180: scroll bar thumb positions visually align reasonably well with the left and right ends of the price chart horizontal axis.
A181: Makes it a little easier to visually align the Thumb and thus the cursor with points of interest on the charts.
A183: Older:
B184: My sincere apologies to our Macintosh based readers: Neither MSXML nor WinHttpRequest are supported in your environment. So as it stands this version of the spreadsheet will not work for you.
B185: See "Why this approach does not work for Macintosh" below.
B186: I am investigating cURL as a non-Querytable based approach for the Macintosh environment.
A188: The new Yahoo Finance history download interface has changed rather radically. The biggest hurdle being a pseudo-security requirement of adding a
B189: crumb character string to any URL requesting any type of history download. That crumb must match up (by way of some sort of hash algorithm) with
B190: the Yahoo Finance cookie that must also be sent with any request to the new Yahoo History down load interface.
B192: A crumb value is returned, buried in the HTML for any of what I call the "entry level" Yahoo Finance web pages (no crumb security requirement for entry level pages).
B193: A crumb may come with other Yahoo Finance pages. A crumb may even accompany some of the secured pages as well. I have not checked.
B195: Entry level pages are the top level pages of the various Yahoo Finance dialogs and include: Quote Lookup, Stock Summary Quote, and any of the pages
B196: with links in the horizontal row with the "Summary" link on the quote summary page such as Options, Historical Data, and the rest.
B198: To date I have found no way to get at this crumb value using any native EXCEL capabilities.
B200: So this crumb requirement effectively shuts out any solution that attempts to exclusively use built-in facilities of EXCEL, which is to say a purely Querytables solution.
B202: The approach built for this Traders Tip spreadsheet uses WINHTTP calls to Load the InputPriceData worksheet.
B204: First I call to get the HTML text for the Yahoo Summary Quote page using the requested symbol. From this HTML text I extract the full company name,
B205: the market it trades, the market status and time stamp, and finally the associated crumb string. There is a bunch of other useful bits buried in this HTML
B206: text that do not necessarily appear on the web page your browser presents. Perhaps some day I will go after and build a worksheet with these other bits.
B208: Next I add the freshly extracted crumb string to the URLs I use in three separate WINHTTP calls to retrieve Price history, Split history, and Dividend history respectively.
B210: From there VBA code proceeds as in the past to fill in the cell formulas and formatting that make the "prettied up" InputPriceData sheet.
A212: Why this approach works for Windows:
B213: WINHTTP maintains a temporary computer memory cache where cookies are maintained for as long as the WINHTTP object is instantiated.
B214: WINHTTP updates this cache any time a "set cookie" header accompanies a web response.
B215: Subsequent WINHTTP calls automatically search this cache for cookies and add any "appropriate" cookies to the headers
B216: of any web requests that get sent out.
B217: This cookie handling automation means that even if the response to our WINHTTP call for the Summary web page includes a new version of
B218: the Yahoo Finance cookie, the imbedded Crumb value will always match the cookie newly installed in the cache!
A221: Why this approach does not work for Macintosh:
B222: For what it is worth, the Macintosh version of the MS Office suite of products do in fact maintain a special, shared amongst themselves only, cookie cache.
B223: They automate cookie handling into and from this cache JUST for the Office products and any Querytable activity they might originate.
B225: This cache is not tied to, nor shared with, any browser that might be installed on the MAC. And I have not found anything with HTTP capabilities similar to
B226: MSXML that can work with that Office product cookie cache.
B228: When working in the MAC EXCEL environment, I have not yet become conversant with a Mac based WINHTTP like capability.
B229: So l currently have no mechanism to replicate the non-Querytable data retrieval process I am using in Windows environments.
B230: A software product called CURL has been suggested as providing this capability in the MAC environment.
B231: A version of CURL is available for the Windows So some day I may explore its capabilities and how to access those capabilities from VBA.
A233: Calculation and Chart Worksheet Usage Comments:
C234: In General, Items in Bolded BLUE are items you may freely change to play what-if games.
C235: Be sure to have a backup copy of the spreadsheet before you alter anything else.
A237: Features carried forward from the June 2016 version of my T-Tips Template
A238: Added a pair of buttons near cell F12 that will allow the user to step the charting window forward or backward one bar for each click.
A239: I find this to be a good way to test my understanding of the author's ideas as I step through the evolution of the price behavior and the indicators.
B241: First: In the "Help! I would like to plot data" area.
B242: Added button to resolve #NA problems by locating the bar in the input data with a slightly more recent date than what the user actually requested.
B243: I find this particularly useful when I have a general idea of where I want to be date wise. Now I can pick a set of dates "out of the air".
B244: If either (or both) of my date specifications fall between dates that are available in the price history,
B245: this button will resolve them to the dates of the nearest, slightly more recent input bars.
B246: I can then refine my data interval search as necessary from there.
B247: Really great when working with Weekly or Monthly studies!
C248: 2016Jun11 - added logic to the "I would like to chart.." button to detect #N/A values and terminate
C249: gracefully with a message instead of blowing up in the charting logic.
B251: Second: In the "Price Chart Windowing Controls" area. (A11 and A12)
B252: When retrieving data for a new symbol or when changing from daily to weekly or monthly data, there was the possibility that the
B253: residual settings in A11 and A12 would fall outside of the number bars available on the input data tab after the new data retrieval.
B254: In certain combinations, this could create a serious error in the chart sizing logic and crash the spreadsheet.
B255: I have taken this opportunity to update the validity checking logic used in the chart sizing macros
B256: to adjust these values as necessary so that they fall within the boundaries of the newly retrieved input data.
A257: Features carried forward from the October 2015 Traders Tips Template
B258: Improved automation: changes to any of the following will automatically initiate calculations appropriate to reflect a change.
C259: Changing either of cells A11 (pan) or A12 (zoom) will automatically initiate the same chart sizing macros that the manual
C260: "Set Chart" button uses.

Sheet InputPriceData
A1: Raytheon Technologies Corporation (RTX) -NYSE (Daily)
M2: To retrieve data for symbols traded on non US Exchanges, | II2: 241.79
A3: Request Online Yahoo History for: | F3: Market State == > | G3: As of | H3: 11:49:00 | I3: EDT. Market open. | M3: you will need to append the dot-suffix for the exchange to the symbol.
A4: Symbol | B4: RTX | D4: Valid | I4: =OFFSET(I4,-2,0,1,1) -> 0 | M4: The following links provide a description of how to use the exchange suffix
A5: From | B5: 1950-10-01 | D5: Data | M5: along with a list of suffixes for the major world exchanges. | AD5: Trailing 12 Div return (Cur Close)
A6: To | B6: =NOW() -> 2022-05-18T11:51:54.280 | D6: Types | E6: =VLOOKUP(B7,D7:E10,2,FALSE) -> d | M6: https://help.yahoo.com/kb/finance/SLN2310.html
A7: Data Type | B7: Daily | D7: Daily | E7: d | M7: And
A8: Crumb | B8: Lj6dV4qgeYH | D8: Weekly | E8: w | M8: https://www.stockmarketeye.com/users-guide/ticker-symbols-and-data-providers/data-providers.html
A9: Available Data | D9: Monthly | E9: m
A10: Bar Count: | B10: 15137 | M10: You may search on “exchange suffixes” for additional discussions | AD10: =OFFSET(AC15,1,0,1,1)/OFFSET(N15,1,0,1,1) -> 0.02176464312
A11: From: | B11: =IF(B10<=0,"",OFFSET(B15,B10,IF(HistReqDataType="v",1,0),1,1)) -> 1962-04-02 | W11: Trailing 12 Month Dividend Returns
A12: To: | B12: =IF(B10<=0,"",IF(HistReqDataType="v",OFFSET(B15,2,1,1,1),OFFSET(B15,1,0,1,1))) -> 2022-05-18 | W12: Raw Close price on Dividend date | X12: Div Year and Month | Y12: Looking for year ago Div Year and Month | Z12: Year ago Div Date we found | AA12: row offset to year ago div Date | AB12: Same month flag | AC12: Trailing 12 Div Total | AD12: Trailing 12 Div return
Q13: Split History | S13: 7 | T13: Running | U13: Dividend History
B14: Raw Data Values | H14: Adjusted | I14: Price Adjust | J14: Vol Adjust | K14: Adjusted Values | P14: Last | Q14: Effective | R14: Shares | T14: Vol Adjust | V14: 239
A15: RelRow | B15: Date | C15: Open | D15: High | E15: Low | F15: Close | G15: Volume | H15: Close | I15: Factor | J15: Factor | K15: Open | L15: High | M15: Low | N15: Close | O15: Volume | P15: Trade | Q15: 44700 | R15: New | S15: Old | T15: 1 | U15: Date | V15: $ / Share
A16: 1 | B16: 2022-05-18 | C16: 94.330002 | D16: 95.199997 | E16: 93.370003 | F16: 93.730003 | G16: 1264143 | H16: 93.730003 | I16: =IF(F16=0,1,H16/F16) -> 1 | J16: =INDEX(OFFSET($T$15,0,0,$S$13+1,1),MATCH(B16,OFFSET($Q$15,0,0,$S$13+1,1),-1)) -> 1 | K16: =ROUND($I16*C16,2) -> 94.33 | L16: =ROUND($I16*D16,2) -> 95.2 | M16: 93.37 | N16: 93.73 | O16: =G16*J16 -> 1264143 | Q16: 2020-04-03 | R16: 15890 | S16: 10000 | T16: 1.589 | U16: 2022-02-24 | V16: 0.51 | W16: =(INDEX(OFFSET($F$15,1,0,$B$10,1),MATCH(U16,OFFSET($B$15,1,0,$B$10,1),-1))) -> 94.25 | X16: =YEAR(U16)&RIGHT("0"&MONTH(U16),2) -> 202202 | Y16: =YEAR(U16)-1&RIGHT("0"&MONTH(U16),2) -> 202102 | Z16: =OFFSET(U15,AA16,0,1,1) -> 2021-02-25 | AA16: =MATCH(Y16,OFFSET($X$15,A16,0,$V$14+1-A16,1),-1) -> 5 | AB16: =IF(OR(AND(YEAR(U16)=YEAR(Z16),MONTH(U16)=MONTH(Z16)),MONTH(U16)=MONTH(Z16)),1,0) -> 1 | AC16: =(V16+IF(AA16-AB16=0,0,IFERROR(SUM(OFFSET(V16,1,0,AA16-AB16-1,1)),0))) -> 2.04 | AD16: =AC16/(INDEX(OFFSET($F$15,1,0,$B$10,1),MATCH(U16,OFFSET($B$15,1,0,$B$10,1),-1))) -> 0.02164456233
A17: 2 | B17: 2022-05-17 | C17: 94.330002 | D17: 95.139999 | E17: 93.5 | F17: 94.949997 | G17: 4446300 | H17: 94.949997 | I17: =IF(F17=0,1,H17/F17) -> 1 | J17: =INDEX(OFFSET($T$15,0,0,$S$13+1,1),MATCH(B17,OFFSET($Q$15,0,0,$S$13+1,1),-1)) -> 1 | K17: =ROUND($I17*C17,2) -> 94.33 | L17: =ROUND($I17*D17,2) -> 95.14 | M17: =ROUND($I17*E17,2) -> 93.5 | N17: =ROUND($I17*F17,2) -> 94.95 | O17: =G17*J17 -> 4446300 | Q17: 2005-06-13 | R17: 2 | S17: 1 | T17: 3.178 | U17: 2021-11-18 | V17: 0.51 | W17: =(INDEX(OFFSET($F$15,1,0,$B$10,1),MATCH(U17,OFFSET($B$15,1,0,$B$10,1),-1))) -> 86.910004 | X17: =YEAR(U17)&RIGHT("0"&MONTH(U17),2) -> 202111 | Y17: =YEAR(U17)-1&RIGHT("0"&MONTH(U17),2) -> 202011 | Z17: =OFFSET(U16,AA17,0,1,1) -> 2020-11-12 | AA17: =MATCH(Y17,OFFSET($X$15,A17,0,$V$14+1-A17,1),-1) -> 5 | AB17: =IF(OR(AND(YEAR(U17)=YEAR(Z17),MONTH(U17)=MONTH(Z17)),MONTH(U17)=MONTH(Z17)),1,0) -> 1 | AC17: =(V17+IF(AA17-AB17=0,0,IFERROR(SUM(OFFSET(V17,1,0,AA17-AB17-1,1)),0))) -> 2.005 | AD17: =AC17/(INDEX(OFFSET($F$15,1,0,$B$10,1),MATCH(U17,OFFSET($B$15,1,0,$B$10,1),-1))) -> 0.0230698413
A18: 3 | B18: 2022-05-16 | C18: 91.849998 | D18: 93.540001 | E18: 91.809998 | F18: 92.480003 | G18: 5158500 | H18: 92.480003 | I18: 1 | J18: 1 | K18: 91.85 | L18: 93.54 | M18: 91.81 | N18: 92.48 | O18: 5158500 | Q18: 1999-05-18 | R18: 2 | S18: 1 | T18: 6.356 | U18: 2021-08-19 | V18: 0.51 | W18: 83.349998 | X18: 202108 | Y18: 202008 | Z18: 2020-08-13 | AA18: 5 | AB18: 1 | AC18: 1.97 | AD18: 0.02363527351
A19: 4 | B19: 2022-05-13 | C19: 92.050003 | D19: 92.610001 | E19: 91.089996 | F19: 91.919998 | G19: 5465000 | H19: 91.919998 | I19: 1 | J19: 1 | K19: 92.05 | L19: 92.61 | M19: 91.09 | N19: 91.92 | O19: 5465000 | Q19: 1996-12-11 | R19: 2 | S19: 1 | T19: 12.712 | U19: 2021-05-20 | V19: 0.51 | W19: 85.230003 | X19: 202105 | Y19: 202005 | Z19: 2020-05-14 | AA19: 5 | AB19: 1 | AC19: 1.935 | AD19: 0.0227032727
A20: 5 | B20: 2022-05-12 | C20: 90.849998 | D20: 92.470001 | E20: 89.940002 | F20: 91.480003 | G20: 6356200 | H20: 91.480003 | I20: 1 | J20: 1 | K20: 90.85 | L20: 92.47 | M20: 89.94 | N20: 91.48 | O20: 6356200 | Q20: 1984-06-11 | R20: 2 | S20: 1 | T20: 25.424 | U20: 2021-02-25 | V20: 0.475 | W20: 73.32 | X20: 202102 | Y20: 202002 | Z20: 2020-02-13 | AA20: 5 | AB20: 1 | AC20: 1.9 | AD20: 0.02591380251
A21: 6 | B21: 2022-05-11 | C21: 91.269997 | D21: 94.129997 | E21: 90.809998 | F21: 91 | G21: 6493900 | H21: 91 | I21: 1 | J21: 1 | K21: 91.27 | L21: 94.13 | M21: 90.81 | N21: 91 | O21: 6493900 | Q21: 1976-05-19 | R21: 2 | S21: 1 | T21: 50.848 | U21: 2020-11-12 | V21: 0.475 | W21: 63.990002 | X21: 202011 | Y21: 201911 | Z21: 2019-11-14 | AA21: 5 | AB21: 1 | AC21: 1.887555 | AD21: 0.02949765496
A22: 7 | B22: 2022-05-10 | C22: 92.440002 | D22: 93.860001 | E22: 91.360001 | F22: 91.690002 | G22: 7526300 | H22: 91.690002 | I22: 1 | J22: 1 | K22: 92.44 | L22: 93.86 | M22: 91.36 | N22: 91.69 | O22: 7526300 | Q22: 1965-11-01 | R22: 3 | S22: 2 | T22: 76.272 | U22: 2020-08-13 | V22: 0.475 | W22: 63.299999 | X22: 202008 | Y22: 201908 | Z22: 2019-08-15 | AA22: 5 | AB22: 1 | AC22: 1.87511 | AD22: 0.02962259131
A23: 8 | B23: 2022-05-09 | C23: 94.529999 | D23: 94.790001 | E23: 91.25 | F23: 91.75 | G23: 6071900 | H23: 91.75 | I23: 1 | J23: 1 | K23: 94.53 | L23: 94.79 | M23: 91.25 | N23: 91.75 | O23: 6071900 | U23: 2020-05-14 | V23: 0.475 | W23: 53.860001 | X23: 202005 | Y23: 201905 | Z23: 2019-05-16 | AA23: 5 | AB23: 1 | AC23: 1.862665 | AD23: 0.03458345647
A24: 9 | B24: 2022-05-06 | C24: 95.709999 | D24: 96.050003 | E24: 93.720001 | F24: 95.300003 | G24: 5294200 | H24: 95.300003 | I24: 1 | J24: 1 | K24: 95.71 | L24: 96.05 | M24: 93.72 | N24: 95.3 | O24: 5294200 | U24: 2020-02-13 | V24: 0.462555 | W24: 96.32473 | X24: 202002 | Y24: 201902 | Z24: 2019-02-14 | AA24: 5 | AB24: 1 | AC24: 1.85022 | AD24: 0.01920815143
A25: 10 | B25: 2022-05-05 | C25: 97.800003 | D25: 98.199997 | E25: 95.410004 | F25: 96.32 | G25: 5906500 | H25: 96.32 | I25: 1 | J25: 1 | K25: 97.8 | L25: 98.2 | M25: 95.41 | N25: 96.32 | O25: 5906500 | U25: 2019-11-14 | V25: 0.462555 | W25: 93.209564 | X25: 201911 | Y25: 201811 | Z25: 2018-11-15 | AA25: 5 | AB25: 1 | AC25: 1.85022 | AD25: 0.01985010894
A26: 11 | B26: 2022-05-04 | C26: 94.989998 | D26: 98.019997 | E26: 94.949997 | F26: 97.760002 | G26: 6160800 | H26: 97.760002 | I26: 1 | J26: 1 | K26: 94.99 | L26: 98.02 | M26: 94.95 | N26: 97.76 | O26: 6160800 | U26: 2019-08-15 | V26: 0.462555 | W26: 77.872879 | X26: 201908 | Y26: 201808 | Z26: 2018-08-16 | AA26: 5 | AB26: 1 | AC26: 1.85022 | AD26: 0.02375949141
A27: 12 | B27: 2022-05-03 | C27: 95.18 | D27: 96.129997 | E27: 94.32 | F27: 95.400002 | G27: 5612200 | H27: 95.400002 | I27: 1 | J27: 1 | K27: 95.18 | L27: 96.13 | M27: 94.32 | N27: 95.4 | O27: 5612200 | U27: 2019-05-16 | V27: 0.462555 | W27: 85.116425 | X27: 201905 | Y27: 201805 | Z27: 2018-05-17 | AA27: 5 | AB27: 1 | AC27: 1.828194 | AD27: 0.02147874514
A28: 13 | B28: 2022-05-02 | C28: 94.510002 | D28: 95.330002 | E28: 92.400002 | F28: 94.220001 | G28: 7870600 | H28: 94.220001 | I28: 1 | J28: 1 | K28: 94.51 | L28: 95.33 | M28: 92.4 | N28: 94.22 | O28: 7870600 | U28: 2019-02-14 | V28: 0.462555 | W28: 78.118317 | X28: 201902 | Y28: 201802 | Z28: 2018-02-15 | AA28: 5 | AB28: 1 | AC28: 1.806168 | AD28: 0.02312092822
A29: 14 | B29: 2022-04-29 | C29: 98.470001 | D29: 98.889999 | E29: 94.610001 | F29: 94.910004 | G29: 5881300 | H29: 94.910004 | I29: 1 | J29: 1 | K29: 98.47 | L29: 98.89 | M29: 94.61 | N29: 94.91 | O29: 5881300 | U29: 2018-11-15 | V29: 0.462555 | W29: 81.64254 | X29: 201811 | Y29: 201711 | Z29: 2017-11-16 | AA29: 5 | AB29: 1 | AC29: 1.784142 | AD29: 0.02185309276
A30: 15 | B30: 2022-04-28 | C30: 99 | D30: 99.260002 | E30: 96.900002 | F30: 98.080002 | G30: 6544200 | H30: 98.080002 | I30: 1 | J30: 1 | K30: 99 | L30: 99.26 | M30: 96.9 | N30: 98.08 | O30: 6544200 | U30: 2018-08-16 | V30: 0.440529 | W30: 83.895531 | X30: 201808 | Y30: 201708 | Z30: 2017-08-16 | AA30: 5 | AB30: 1 | AC30: 1.762116 | AD30: 0.02100369327
A31: 16 | B31: 2022-04-27 | C31: 99.220001 | D31: 99.910004 | E31: 97.599998 | F31: 98.839996 | G31: 6632100 | H31: 98.839996 | I31: 1 | J31: 1 | K31: 99.22 | L31: 99.91 | M31: 97.6 | N31: 98.84 | O31: 6632100 | U31: 2018-05-17 | V31: 0.440529 | W31: 78.420387 | X31: 201805 | Y31: 201705 | Z31: 2017-05-17 | AA31: 5 | AB31: 1 | AC31: 1.762116 | AD31: 0.0224701263
A32: 17 | B32: 2022-04-26 | C32: 96.900002 | D32: 100.949997 | E32: 96.779999 | F32: 99.190002 | G32: 7199200 | H32: 99.190002 | I32: 1 | J32: 1 | K32: 96.9 | L32: 100.95 | M32: 96.78 | N32: 99.19 | O32: 7199200 | U32: 2018-02-15 | V32: 0.440529 | W32: 81.812462 | X32: 201802 | Y32: 201702 | Z32: 2017-02-15 | AA32: 5 | AB32: 1 | AC32: 1.736943 | AD32: 0.02123078755
A33: 18 | B33: 2022-04-25 | C33: 99.849998 | D33: 99.919998 | E33: 97.57 | F33: 99.610001 | G33: 5612500 | H33: 99.610001 | I33: 1 | J33: 1 | K33: 99.85 | L33: 99.92 | M33: 97.57 | N33: 99.61 | O33: 5612500 | U33: 2017-11-16 | V33: 0.440529 | W33: 74.191315 | X33: 201711 | Y33: 201611 | Z33: 2016-11-16 | AA33: 5 | AB33: 1 | AC33: 1.71177 | AD33: 0.02307237714
A34: 19 | B34: 2022-04-22 | C34: 101.449997 | D34: 102.559998 | E34: 100.370003 | F34: 100.489998 | G34: 4683300 | H34: 100.489998 | I34: 1 | J34: 1 | K34: 101.45 | L34: 102.56 | M34: 100.37 | N34: 100.49 | O34: 4683300 | U34: 2017-08-16 | V34: 0.440529 | W34: 74.260544 | X34: 201708 | Y34: 201608 | Z34: 2016-08-17 | AA34: 5 | AB34: 1 | AC34: 1.686597 | AD34: 0.02271188587
A35: 20 | B35: 2022-04-21 | C35: 105.849998 | D35: 106.019997 | E35: 101.400002 | F35: 101.730003 | G35: 5795300 | H35: 101.730003 | I35: 1 | J35: 1 | K35: 105.85 | L35: 106.02 | M35: 101.4 | N35: 101.73 | O35: 5795300 | U35: 2017-05-17 | V35: 0.415356 | W35: 75.254875 | X35: 201705 | Y35: 201605 | Z35: 2016-05-18 | AA35: 5 | AB35: 1 | AC35: 1.661424 | AD35: 0.022077294
A36: 21 | B36: 2022-04-20 | C36: 105.68 | D36: 106.019997 | E36: 104.279999 | F36: 104.970001 | G36: 4232200 | H36: 104.970001 | I36: 1 | J36: 1 | K36: 105.68 | L36: 106.02 | M36: 104.28 | N36: 104.97 | O36: 4232200 | U36: 2017-02-15 | V36: 0.415356 | W36: 70.42794 | X36: 201702 | Y36: 201602 | Z36: 2016-02-17 | AA36: 5 | AB36: 1 | AC36: 1.661424 | AD36: 0.02359041028
A37: 22 | B37: 2022-04-19 | C37: 104.440002 | D37: 105.660004 | E37: 104.160004 | F37: 104.550003 | G37: 4572800 | H37: 104.550003 | I37: 1 | J37: 1 | K37: 104.44 | L37: 105.66 | M37: 104.16 | N37: 104.55 | O37: 4572800 | U37: 2016-11-16 | V37: 0.415356 | W37: 67.312775 | X37: 201611 | Y37: 201511 | Z37: 2015-11-10 | AA37: 5 | AB37: 1 | AC37: 1.648837 | AD37: 0.02449515712
A38: 23 | B38: 2022-04-18 | C38: 104.260002 | D38: 105.459999 | E38: 103.910004 | F38: 104.300003 | G38: 3873300 | H38: 104.300003 | I38: 1 | J38: 1 | K38: 104.26 | L38: 105.46 | M38: 103.91 | N38: 104.3 | O38: 3873300 | U38: 2016-08-17 | V38: 0.415356 | W38: 68.558846 | X38: 201608 | Y38: 201508 | Z38: 2015-08-12 | AA38: 5 | AB38: 1 | AC38: 1.63625 | AD38: 0.02386635854
A39: 24 | B39: 2022-04-14 | C39: 103.889999 | D39: 104.980003 | E39: 103.669998 | F39: 104.269997 | G39: 4027400 | H39: 104.269997 | I39: 1 | J39: 1 | K39: 103.89 | L39: 104.98 | M39: 103.67 | N39: 104.27 | O39: 4027400 | U39: 2016-05-18 | V39: 0.415356 | W39: 62.48584 | X39: 201605 | Y39: 201505 | Z39: 2015-05-13 | AA39: 5 | AB39: 1 | AC39: 1.623663 | AD39: 0.02598449505
A40: 25 | B40: 2022-04-13 | C40: 103.32 | D40: 104.449997 | E40: 102.639999 | F40: 103.370003 | G40: 5351900 | H40: 103.370003 | I40: 1 | J40: 1 | K40: 103.32 | L40: 104.45 | M40: 102.64 | N40: 103.37 | O40: 5351900 | U40: 2016-02-17 | V40: 0.402769 | W40: 55.456261 | X40: 201602 | Y40: 201502 | Z40: 2015-02-11 | AA40: 5 | AB40: 1 | AC40: 1.611076 | AD40: 0.02905129143
A41: 26 | B41: 2022-04-12 | C41: 102.18 | D41: 103.980003 | E41: 102.07 | F41: 102.599998 | G41: 4839200 | H41: 102.599998 | I41: 1 | J41: 1 | K41: 102.18 | L41: 103.98 | M41: 102.07 | N41: 102.6 | O41: 4839200 | U41: 2015-11-10 | V41: 0.402769 | W41: 62.101952 | X41: 201511 | Y41: 201411 | Z41: 2014-11-12 | AA41: 5 | AB41: 1 | AC41: 1.611076 | AD41: 0.02594243736
A42: 27 | B42: 2022-04-11 | C42: 100.639999 | D42: 102.949997 | E42: 100.639999 | F42: 102.110001 | G42: 5707600 | H42: 102.110001 | I42: 1 | J42: 1 | K42: 100.64 | L42: 102.95 | M42: 100.64 | N42: 102.11 | O42: 5707600 | U42: 2015-08-12 | V42: 0.402769 | W42: 62.108246 | X42: 201508 | Y42: 201408 | Z42: 2014-08-13 | AA42: 5 | AB42: 1 | AC42: 1.57961 | AD42: 0.02543317678
A43: 28 | B43: 2022-04-08 | C43: 101.980003 | D43: 102.739998 | E43: 100.07 | F43: 100.400002 | G43: 4811400 | H43: 100.400002 | I43: 1 | J43: 1 | K43: 101.98 | L43: 102.74 | M43: 100.07 | N43: 100.4 | O43: 4811400 | U43: 2015-05-13 | V43: 0.402769 | W43: 73.864067 | X43: 201505 | Y43: 201405 | Z43: 2014-05-14 | AA43: 5 | AB43: 1 | AC43: 1.548144 | AD43: 0.0209593658
A44: 29 | B44: 2022-04-07 | C44: 98.25 | D44: 101.269997 | E44: 97.900002 | F44: 100.980003 | G44: 6151500 | H44: 100.980003 | I44: 1 | J44: 1 | K44: 98.25 | L44: 101.27 | M44: 97.9 | N44: 100.98 | O44: 6151500 | U44: 2015-02-11 | V44: 0.402769 | W44: 74.694778 | X44: 201502 | Y44: 201402 | Z44: 2014-02-12 | AA44: 5 | AB44: 1 | AC44: 1.516678 | AD44: 0.02030500713
A45: 30 | B45: 2022-04-06 | C45: 98.32 | D45: 99.279999 | E45: 98.129997 | F45: 98.459999 | G45: 5260800 | H45: 98.459999 | I45: 1 | J45: 1 | K45: 98.32 | L45: 99.28 | M45: 98.13 | N45: 98.46 | O45: 5260800 | U45: 2014-11-12 | V45: 0.371303 | W45: 68.055382 | X45: 201411 | Y45: 201311 | Z45: 2013-11-13 | AA45: 5 | AB45: 1 | AC45: 1.485212 | AD45: 0.02182357892
A46: 31 | B46: 2022-04-05 | C46: 99.480003 | D46: 100.510002 | E46: 98.610001 | F46: 98.809998 | G46: 4217100 | H46: 98.809998 | I46: 1 | J46: 1 | K46: 99.48 | L46: 100.51 | M46: 98.61 | N46: 98.81 | O46: 4217100 | U46: 2014-08-13 | V46: 0.371303 | W46: 66.431717 | X46: 201408 | Y46: 201308 | Z46: 2013-08-14 | AA46: 5 | AB46: 1 | AC46: 1.485212 | AD46: 0.02235697144
A47: 32 | B47: 2022-04-04 | C47: 100.120003 | D47: 100.400002 | E47: 98.559998 | F47: 99.300003 | G47: 3812300 | H47: 99.300003 | I47: 1 | J47: 1 | K47: 100.12 | L47: 100.4 | M47: 98.56 | N47: 99.3 | O47: 3812300 | U47: 2014-05-14 | V47: 0.371303 | W47: 73.832596 | X47: 201405 | Y47: 201305 | Z47: 2013-05-15 | AA47: 5 | AB47: 1 | AC47: 1.450599 | AD47: 0.01964713526
A48: 33 | B48: 2022-04-01 | C48: 99.760002 | D48: 100.449997 | E48: 98.980003 | F48: 100.169998 | G48: 3608600 | H48: 100.169998 | I48: 1 | J48: 1 | K48: 99.76 | L48: 100.45 | M48: 98.98 | N48: 100.17 | O48: 3608600 | U48: 2014-02-12 | V48: 0.371303 | W48: 70.975456 | X48: 201402 | Y48: 201302 | Z48: 2013-02-13 | AA48: 5 | AB48: 1 | AC48: 1.415986 | AD48: 0.01995036143
A49: 34 | B49: 2022-03-31 | C49: 99.279999 | D49: 100.910004 | E49: 99 | F49: 99.07 | G49: 5505600 | H49: 99.07 | I49: 1 | J49: 1 | K49: 99.28 | L49: 100.91 | M49: 99 | N49: 99.07 | O49: 5505600 | U49: 2013-11-13 | V49: 0.371303 | W49: 67.627441 | X49: 201311 | Y49: 201211 | Z49: 2012-11-14 | AA49: 5 | AB49: 1 | AC49: 1.381373 | AD49: 0.02042622018
A50: 35 | B50: 2022-03-30 | C50: 101.629997 | D50: 102.379997 | E50: 99.760002 | F50: 100.830002 | G50: 5168100 | H50: 100.830002 | I50: 1 | J50: 1 | K50: 101.63 | L50: 102.38 | M50: 99.76 | N50: 100.83 | O50: 5168100 | U50: 2013-08-14 | V50: 0.33669 | W50: 66.117058 | X50: 201308 | Y50: 201208 | Z50: 2012-08-15 | AA50: 5 | AB50: 1 | AC50: 1.34676 | AD50: 0.02036932738
A51: 36 | B51: 2022-03-29 | C51: 100.849998 | D51: 101.400002 | E51: 99.370003 | F51: 101.080002 | G51: 5038200 | H51: 101.080002 | I51: 1 | J51: 1 | K51: 100.85 | L51: 101.4 | M51: 99.37 | N51: 101.08 | O51: 5038200 | U51: 2013-05-15 | V51: 0.33669 | W51: 60.295784 | X51: 201305 | Y51: 201205 | Z51: 2012-05-16 | AA51: 5 | AB51: 1 | AC51: 1.34676 | AD51: 0.02233589002
A52: 37 | B52: 2022-03-28 | C52: 101.669998 | D52: 102.160004 | E52: 100.919998 | F52: 101.589996 | G52: 4053300 | H52: 101.589996 | I52: 1 | J52: 1 | K52: 101.67 | L52: 102.16 | M52: 100.92 | N52: 101.59 | O52: 4053300 | U52: 2013-02-13 | V52: 0.33669 | W52: 56.324734 | X52: 201302 | Y52: 201202 | Z52: 2012-02-15 | AA52: 5 | AB52: 1 | AC52: 1.312147 | AD52: 0.02329610647
A53: 38 | B53: 2022-03-25 | C53: 102 | D53: 102.970001 | E53: 101.919998 | F53: 102.43 | G53: 3521400 | H53: 102.43 | I53: 1 | J53: 1 | K53: 102 | L53: 102.97 | M53: 101.92 | N53: 102.43 | O53: 3521400 | U53: 2012-11-14 | V53: 0.33669 | W53: 46.979233 | X53: 201211 | Y53: 201111 | Z53: 2011-11-16 | AA53: 5 | AB53: 1 | AC53: 1.277534 | AD53: 0.02719358998
A54: 39 | B54: 2022-03-24 | C54: 101.660004 | D54: 102.199997 | E54: 101.129997 | F54: 101.709999 | G54: 3894600 | H54: 101.709999 | I54: 1 | J54: 1 | K54: 101.66 | L54: 102.2 | M54: 101.13 | N54: 101.71 | O54: 3894600 | U54: 2012-08-15 | V54: 0.33669 | W54: 49.081184 | X54: 201208 | Y54: 201108 | Z54: 2011-08-17 | AA54: 5 | AB54: 1 | AC54: 1.242921 | AD54: 0.02532377785
A55: 40 | B55: 2022-03-23 | C55: 101.160004 | D55: 102.480003 | E55: 101.110001 | F55: 101.230003 | G55: 4471800 | H55: 101.230003 | I55: 1 | J55: 1 | K55: 101.16 | L55: 102.48 | M55: 101.11 | N55: 101.23 | O55: 4471800 | U55: 2012-05-16 | V55: 0.302077 | W55: 47.0107 | X55: 201205 | Y55: 201105 | Z55: 2011-05-18 | AA55: 5 | AB55: 1 | AC55: 1.208308 | AD55: 0.02570282936
A56: 41 | B56: 2022-03-22 | C56: 99.800003 | D56: 101.629997 | E56: 98.910004 | F56: 101.379997 | G56: 6048300 | H56: 101.379997 | I56: 1 | J56: 1 | K56: 99.8 | L56: 101.63 | M56: 98.91 | N56: 101.38 | O56: 6048300 | U56: 2012-02-15 | V56: 0.302077 | W56: 51.98238 | X56: 201202 | Y56: 201102 | Z56: 2011-02-16 | AA56: 5 | AB56: 1 | AC56: 1.208308 | AD56: 0.02324456864
A57: 42 | B57: 2022-03-21 | C57: 97.839996 | D57: 100.82 | E57: 97.800003 | F57: 99.940002 | G57: 6673700 | H57: 99.940002 | I57: 1 | J57: 1 | K57: 97.84 | L57: 100.82 | M57: 97.8 | N57: 99.94 | O57: 6673700 | U57: 2011-11-16 | V57: 0.302077 | W57: 48.741348 | X57: 201111 | Y57: 201011 | Z57: 2010-11-17 | AA57: 5 | AB57: 1 | AC57: 1.173695 | AD57: 0.02408006853
A58: 43 | B58: 2022-03-18 | C58: 98 | D58: 98.279999 | E58: 96.330002 | F58: 97.519997 | G58: 10438500 | H58: 97.519997 | I58: 1 | J58: 1 | K58: 98 | L58: 98.28 | M58: 96.33 | N58: 97.52 | O58: 10438500 | U58: 2011-08-17 | V58: 0.302077 | W58: 45.342983 | X58: 201108 | Y58: 201008 | Z58: 2010-08-18 | AA58: 5 | AB58: 1 | AC58: 1.139082 | AD58: 0.02512146146
A59: 44 | B59: 2022-03-17 | C59: 96.599998 | D59: 97.790001 | E59: 95.830002 | F59: 97.75 | G59: 6537200 | H59: 97.75 | I59: 1 | J59: 1 | K59: 96.6 | L59: 97.79 | M59: 95.83 | N59: 97.75 | O59: 6537200 | U59: 2011-05-18 | V59: 0.302077 | W59: 54.845814 | X59: 201105 | Y59: 201005 | Z59: 2010-05-12 | AA59: 5 | AB59: 1 | AC59: 1.104469 | AD59: 0.02013770823
A60: 45 | B60: 2022-03-16 | C60: 97.040001 | D60: 97.639999 | E60: 94.07 | F60: 95.800003 | G60: 8813000 | H60: 95.800003 | I60: 1 | J60: 1 | K60: 97.04 | L60: 97.64 | M60: 94.07 | N60: 95.8 | O60: 8813000 | U60: 2011-02-16 | V60: 0.267464 | W60: 53.530521 | X60: 201102 | Y60: 201002 | Z60: 2010-02-17 | AA60: 5 | AB60: 1 | AC60: 1.069856 | AD60: 0.01998590673
A61: 46 | B61: 2022-03-15 | C61: 97.879997 | D61: 98.099998 | E61: 96.57 | F61: 97.620003 | G61: 5417600 | H61: 97.620003 | I61: 1 | J61: 1 | K61: 97.88 | L61: 98.1 | M61: 96.57 | N61: 97.62 | O61: 5417600 | U61: 2010-11-17 | V61: 0.267464 | W61: 46.343613 | X61: 201011 | Y61: 200911 | Z61: 2009-11-18 | AA61: 5 | AB61: 1 | AC61: 1.069856 | AD61: 0.02308529549
A62: 47 | B62: 2022-03-14 | C62: 97.169998 | D62: 97.660004 | E62: 95.410004 | F62: 97.040001 | G62: 5581700 | H62: 97.040001 | I62: 1 | J62: 1 | K62: 97.17 | L62: 97.66 | M62: 95.41 | N62: 97.04 | O62: 5581700 | U62: 2010-08-18 | V62: 0.267464 | W62: 44.008812 | X62: 201008 | Y62: 200908 | Z62: 2009-08-19 | AA62: 5 | AB62: 1 | AC62: 1.044683 | AD62: 0.02373804137
A63: 48 | B63: 2022-03-11 | C63: 98.779999 | D63: 99.75 | E63: 96.800003 | F63: 96.919998 | G63: 4354300 | H63: 96.919998 | I63: 1 | J63: 1 | K63: 98.78 | L63: 99.75 | M63: 96.8 | N63: 96.92 | O63: 4354300 | U63: 2010-05-12 | V63: 0.267464 | W63: 46.03524 | X63: 201005 | Y63: 200905 | Z63: 2009-05-13 | AA63: 5 | AB63: 1 | AC63: 1.01951 | AD63: 0.02214629488
A64: 49 | B64: 2022-03-10 | C64: 98.169998 | D64: 99.800003 | E64: 97.660004 | F64: 98.510002 | G64: 5118400 | H64: 98.510002 | I64: 1 | J64: 1 | K64: 98.17 | L64: 99.8 | M64: 97.66 | N64: 98.51 | O64: 5118400 | U64: 2010-02-17 | V64: 0.267464 | W64: 42.385147 | X64: 201002 | Y64: 200902 | Z64: 2009-02-18 | AA64: 5 | AB64: 1 | AC64: 0.994337 | AD64: 0.02345956238
A65: 50 | B65: 2022-03-09 | C65: 95.25 | D65: 99.080002 | E65: 95.25 | F65: 98.519997 | G65: 7100500 | H65: 98.519997 | I65: 1 | J65: 1 | K65: 95.25 | L65: 99.08 | M65: 95.25 | N65: 98.52 | O65: 7100500 | U65: 2009-11-18 | V65: 0.242291 | W65: 43.303967 | X65: 200911 | Y65: 200811 | Z65: 2008-11-12 | AA65: 5 | AB65: 1 | AC65: 0.969164 | AD65: 0.02238048999
A66: 51 | B66: 2022-03-08 | C66: 98.010002 | D66: 98.400002 | E66: 94.690002 | F66: 94.849998 | G66: 9410600 | H66: 94.849998 | I66: 1 | J66: 1 | K66: 98.01 | L66: 98.4 | M66: 94.69 | N66: 94.85 | O66: 9410600 | U66: 2009-08-19 | V66: 0.242291 | W66: 35.24229 | X66: 200908 | Y66: 200808 | Z66: 2008-08-13 | AA66: 5 | AB66: 1 | AC66: 0.969164 | AD66: 0.02750002908
A67: 52 | B67: 2022-03-07 | C67: 101.290001 | D67: 103.099998 | E67: 98.120003 | F67: 98.190002 | G67: 12759000 | H67: 98.190002 | I67: 1 | J67: 1 | K67: 101.29 | L67: 103.1 | M67: 98.12 | N67: 98.19 | O67: 12759000 | U67: 2009-05-13 | V67: 0.242291 | W67: 31.85022 | X67: 200905 | Y67: 200805 | Z67: 2008-05-14 | AA67: 5 | AB67: 1 | AC67: 0.928258 | AD67: 0.02914447687
A68: 53 | B68: 2022-03-04 | C68: 99.949997 | D68: 99.949997 | E68: 98.230003 | F68: 99.589996 | G68: 8627200 | H68: 99.589996 | I68: 1 | J68: 1 | K68: 99.95 | L68: 99.95 | M68: 98.23 | N68: 99.59 | O68: 8627200 | U68: 2009-02-18 | V68: 0.242291 | W68: 28.2253 | X68: 200902 | Y68: 200802 | Z68: 2008-02-13 | AA68: 5 | AB68: 1 | AC68: 0.887352 | AD68: 0.03143817781
A69: 54 | B69: 2022-03-03 | C69: 101.059998 | D69: 101.349998 | E69: 98.629997 | F69: 99.830002 | G69: 8613500 | H69: 99.830002 | I69: 1 | J69: 1 | K69: 101.06 | L69: 101.35 | M69: 98.63 | N69: 99.83 | O69: 8613500 | U69: 2008-11-12 | V69: 0.242291 | W69: 30.843298 | X69: 200811 | Y69: 200711 | Z69: 2007-11-14 | AA69: 5 | AB69: 1 | AC69: 0.846446 | AD69: 0.02744343358
A70: 55 | B70: 2022-03-02 | C70: 102.199997 | D70: 102.510002 | E70: 99.779999 | F70: 100.739998 | G70: 12834600 | H70: 100.739998 | I70: 1 | J70: 1 | K70: 102.2 | L70: 102.51 | M70: 99.78 | N70: 100.74 | O70: 12834600 | U70: 2008-08-13 | V70: 0.201385 | W70: 41.598492 | X70: 200808 | Y70: 200708 | Z70: 2007-08-15 | AA70: 5 | AB70: 1 | AC70: 0.80554 | AD70: 0.01936464428
A71: 56 | B71: 2022-03-01 | C71: 102.769997 | D71: 104.339996 | E71: 102.18 | F71: 102.730003 | G71: 12340900 | H71: 102.730003 | I71: 1 | J71: 1 | K71: 102.77 | L71: 104.34 | M71: 102.18 | N71: 102.73 | O71: 12340900 | U71: 2008-05-14 | V71: 0.201385 | W71: 47.30019 | X71: 200805 | Y71: 200705 | Z71: 2007-05-16 | AA71: 5 | AB71: 1 | AC71: 0.80554 | AD71: 0.01703037557
A72: 57 | B72: 2022-02-28 | C72: 99.019997 | D72: 102.959999 | E72: 98.400002 | F72: 102.699997 | G72: 16726100 | H72: 102.699997 | I72: 1 | J72: 1 | K72: 99.02 | L72: 102.96 | M72: 98.4 | N72: 102.7 | O72: 16726100 | U72: 2008-02-13 | V72: 0.201385 | W72: 46.268093 | X72: 200802 | Y72: 200702 | Z72: 2007-02-14 | AA72: 5 | AB72: 1 | AC72: 0.770927 | AD72: 0.01666217365
A73: 58 | B73: 2022-02-25 | C73: 94.389999 | D73: 98.269997 | E73: 94.199997 | F73: 98.120003 | G73: 8692300 | H73: 98.120003 | I73: 1 | J73: 1 | K73: 94.39 | L73: 98.27 | M73: 94.2 | N73: 98.12 | O73: 8692300 | U73: 2007-11-14 | V73: 0.201385 | W73: 47.149151 | X73: 200711 | Y73: 200611 | Z73: 2006-11-15 | AA73: 5 | AB73: 1 | AC73: 0.736314 | AD73: 0.01561669689
A74: 59 | B74: 2022-02-24 | C74: 93 | D74: 94.650002 | E74: 89.309998 | F74: 94.25 | G74: 9698500 | H74: 94.25 | I74: 1 | J74: 1 | K74: 93 | L74: 94.65 | M74: 89.31 | N74: 94.25 | O74: 9698500 | U74: 2007-08-15 | V74: 0.201385 | W74: 45.078667 | X74: 200708 | Y74: 200608 | Z74: 2006-08-16 | AA74: 5 | AB74: 1 | AC74: 0.701701 | AD74: 0.01556614352
A75: 60 | B75: 2022-02-23 | C75: 94.300003 | D75: 94.529999 | E75: 92.050003 | F75: 92.239998 | G75: 6903300 | H75: 91.729996 | I75: 0.9944709236 | J75: 1 | K75: 93.78 | L75: 94.01 | M75: 91.54 | N75: 91.73 | O75: 6903300 | U75: 2007-05-16 | V75: 0.166772 | W75: 43.096287 | X75: 200705 | Y75: 200605 | Z75: 2006-05-17 | AA75: 5 | AB75: 1 | AC75: 0.667088 | AD75: 0.01547901331
A76: 61 | B76: 2022-02-22 | C76: 93.620003 | D76: 94.739998 | E76: 92.790001 | F76: 93.540001 | G76: 5862200 | H76: 93.022812 | I76: 0.9944709323 | J76: 1 | K76: 93.1 | L76: 94.22 | M76: 92.28 | N76: 93.02 | O76: 5862200 | U76: 2007-02-14 | V76: 0.166772 | W76: 42.901196 | X76: 200702 | Y76: 200602 | Z76: 2006-02-15 | AA76: 5 | AB76: 1 | AC76: 0.667088 | AD76: 0.01554940333
A77: 62 | B77: 2022-02-18 | C77: 94.139999 | D77: 95.010002 | E77: 92.989998 | F77: 93.370003 | G77: 6544800 | H77: 92.853752 | I77: 0.9944709116 | J77: 1 | K77: 93.62 | L77: 94.48 | M77: 92.48 | N77: 92.85 | O77: 6544800 | U77: 2006-11-15 | V77: 0.166772 | W77: 41.283825 | X77: 200611 | Y77: 200511 | Z77: 2005-11-16 | AA77: 5 | AB77: 1 | AC77: 0.638768 | AD77: 0.01547259732
A78: 63 | B78: 2022-02-17 | C78: 93.970001 | D78: 95.169998 | E78: 93.440002 | F78: 94.360001 | G78: 5753300 | H78: 93.83828 | I78: 0.9944709517 | J78: 1 | K78: 93.45 | L78: 94.64 | M78: 92.92 | N78: 93.84 | O78: 5753300 | U78: 2006-08-16 | V78: 0.166772 | W78: 39.125237 | X78: 200608 | Y78: 200508 | Z78: 2005-08-17 | AA78: 5 | AB78: 1 | AC78: 0.610448 | AD78: 0.01560241028
A79: 64 | B79: 2022-02-16 | C79: 94.010002 | D79: 95.269997 | E79: 93.919998 | F79: 94.75 | G79: 4560900 | H79: 94.22612 | I79: 0.9944709235 | J79: 1 | K79: 93.49 | L79: 94.74 | M79: 93.4 | N79: 94.23 | O79: 4560900 | U79: 2006-05-17 | V79: 0.166772 | W79: 40.119572 | X79: 200605 | Y79: 200505 | Z79: 2005-05-18 | AA79: 5 | AB79: 1 | AC79: 0.582128 | AD79: 0.01450982578
A80: 65 | B80: 2022-02-15 | C80: 93.589996 | D80: 94.900002 | E80: 93.57 | F80: 94.040001 | G80: 4616000 | H80: 93.52005 | I80: 0.9944709592 | J80: 1 | K80: 93.07 | L80: 94.38 | M80: 93.05 | N80: 93.52 | O80: 4616000 | U80: 2006-02-15 | V80: 0.138452 | W80: 36.582756 | X80: 200602 | Y80: 200502 | Z80: 2005-02-16 | AA80: 5 | AB80: 1 | AC80: 0.553808 | AD80: 0.01513849859
A81: 66 | B81: 2022-02-14 | C81: 95.510002 | D81: 95.599998 | E81: 92.889999 | F81: 93.57 | G81: 6419200 | H81: 93.05265 | I81: =IF(F81=0,1,H81/F81) -> 0.9944709843 | J81: =INDEX(OFFSET($T$15,0,0,$S$13+1,1),MATCH(B81,OFFSET($Q$15,0,0,$S$13+1,1),-1)) -> 1 | K81: =ROUND($I81*C81,2) -> 94.98 | L81: =ROUND($I81*D81,2) -> 95.07 | M81: =ROUND($I81*E81,2) -> 92.38 | N81: =ROUND($I81*F81,2) -> 93.05 | O81: =G81*J81 -> 6419200 | U81: 2005-11-16 | V81: 0.138452 | W81: =(INDEX(OFFSET($F$15,1,0,$B$10,1),MATCH(U81,OFFSET($B$15,1,0,$B$10,1),-1))) -> 33.713028 | X81: =YEAR(U81)&RIGHT("0"&MONTH(U81),2) -> 200511 | Y81: =YEAR(U81)-1&RIGHT("0"&MONTH(U81),2) -> 200411 | Z81: =OFFSET(U80,AA81,0,1,1) -> 2004-11-17 | AA81: =MATCH(Y81,OFFSET($X$15,A81,0,$V$14+1-A81,1),-1) -> 5 | AB81: =IF(OR(AND(YEAR(U81)=YEAR(Z81),MONTH(U81)=MONTH(Z81)),MONTH(U81)=MONTH(Z81)),1,0) -> 1 | AC81: =(V81+IF(AA81-AB81=0,0,IFERROR(SUM(OFFSET(V81,1,0,AA81-AB81-1,1)),0))) -> 0.553808 | AD81: =AC81/(INDEX(OFFSET($F$15,1,0,$B$10,1),MATCH(U81,OFFSET($B$15,1,0,$B$10,1),-1))) -> 0.01642712129
A82: 67 | B82: 2022-02-11 | C82: 95.25 | D82: 96.050003 | E82: 94.080002 | F82: 95.269997 | G82: 6532900 | H82: 94.743248 | I82: 0.9944709875 | J82: 1 | K82: 94.72 | L82: 95.52 | M82: 93.56 | N82: 94.74 | O82: 6532900 | U82: 2005-08-17 | V82: 0.138452 | W82: 32.48584 | X82: 200508 | Y82: 200408 | Z82: 2004-08-18 | AA82: 5 | AB82: 1 | AC82: 0.525488 | AD82: 0.01617590926
A83: 68 | B83: 2022-02-10 | C83: 95.32 | D83: 96.959999 | E83: 94.550003 | F83: 95.059998 | G83: 6534300 | H83: 94.534409 | I83: 0.9944709761 | J83: 1 | K83: 94.79 | L83: 96.42 | M83: 94.03 | N83: 94.53 | O83: 6534300 | U83: 2005-05-18 | V83: 0.138452 | W83: 33.275646 | X83: 200505 | Y83: 200405 | Z83: 2004-05-19 | AA83: 5 | AB83: 1 | AC83: 0.497168 | AD83: 0.01494089702
A84: 69 | B84: 2022-02-09 | C84: 96.029999 | D84: 96.32 | E84: 95.480003 | F84: 96 | G84: 5394900 | H84: 95.469208 | I84: 0.9944709167 | J84: 1 | K84: 95.5 | L84: 95.79 | M84: 94.95 | N84: 95.47 | O84: 5394900 | U84: 2005-02-16 | V84: 0.138452 | W84: 32.363121 | X84: 200502 | Y84: 200402 | Z84: 2004-02-18 | AA84: 5 | AB84: 1 | AC84: 0.468848 | AD84: 0.0144871071
A85: 70 | B85: 2022-02-08 | C85: 93.830002 | D85: 95.32 | E85: 92.870003 | F85: 95.07 | G85: 8173200 | H85: 94.54435 | I85: 0.9944709162 | J85: 1 | K85: 93.31 | L85: 94.79 | M85: 92.36 | N85: 94.54 | O85: 8173200 | U85: 2004-11-17 | V85: 0.110132 | W85: 30.63562 | X85: 200411 | Y85: 200311 | Z85: 2003-11-12 | AA85: 5 | AB85: 1 | AC85: 0.440528 | AD85: 0.01437960126
A86: 71 | B86: 2022-02-07 | C86: 93.459999 | D86: 94.730003 | E86: 93.010002 | F86: 94.029999 | G86: 4932700 | H86: 93.510101 | I86: 0.9944709347 | J86: 1 | K86: 92.94 | L86: 94.21 | M86: 92.5 | N86: 93.51 | O86: 4932700 | U86: 2004-08-18 | V86: 0.110132 | W86: 29.232222 | X86: 200408 | Y86: 200308 | Z86: 2003-08-20 | AA86: 5 | AB86: 1 | AC86: 0.440528 | AD86: 0.01506994576
A87: 72 | B87: 2022-02-04 | C87: 92.360001 | D87: 93.900002 | E87: 92.110001 | F87: 93.010002 | G87: 6321400 | H87: 92.495743 | I87: 0.994470928 | J87: 1 | K87: 91.85 | L87: 93.38 | M87: 91.6 | N87: 92.5 | O87: 6321400 | U87: 2004-05-19 | V87: 0.110132 | W87: 25.786657 | X87: 200405 | Y87: 200305 | Z87: 2003-05-14 | AA87: 5 | AB87: 1 | AC87: 0.415355 | AD87: 0.01610736126
A88: 73 | B88: 2022-02-03 | C88: 92.150002 | D88: 92.989998 | E88: 91.620003 | F88: 92.809998 | G88: 7171700 | H88: 92.296844 | I88: 0.994470919 | J88: 1 | K88: 91.64 | L88: 92.48 | M88: 91.11 | N88: 92.3 | O88: 7171700 | U88: 2004-02-18 | V88: 0.110132 | W88: 30.63562 | X88: 200402 | Y88: 200302 | Z88: 2003-02-12 | AA88: 5 | AB88: 1 | AC88: 0.390182 | AD88: 0.01273622013
A89: 74 | B89: 2022-02-02 | C89: 90.300003 | D89: 92.690002 | E89: 90.25 | F89: 92.540001 | G89: 5978600 | H89: 92.028343 | I89: 0.9944709532 | J89: 1 | K89: 89.8 | L89: 92.18 | M89: 89.75 | N89: 92.03 | O89: 5978600 | U89: 2003-11-12 | V89: 0.110132 | W89: 27.123978 | X89: 200311 | Y89: 200211 | Z89: 2002-11-13 | AA89: 5 | AB89: 1 | AC89: 0.357143 | AD89: 0.01316705831
A90: 75 | B90: 2022-02-01 | C90: 90.099998 | D90: 90.940002 | E90: 89.269997 | F90: 90.730003 | G90: 6558400 | H90: 90.228355 | I90: 0.99447098 | J90: 1 | K90: 89.6 | L90: 90.44 | M90: 88.78 | N90: 90.23 | O90: 6558400 | U90: 2003-08-20 | V90: 0.084959 | W90: 24.424166 | X90: 200308 | Y90: 200208 | Z90: 2002-08-21 | AA90: 5 | AB90: 1 | AC90: 0.324104 | AD90: 0.01326980827
A91: 76 | B91: 2022-01-31 | C91: 89.610001 | D91: 90.410004 | E91: 89.010002 | F91: 90.190002 | G91: 6419700 | H91: 89.691338 | I91: 0.9944709614 | J91: 1 | K91: 89.11 | L91: 89.91 | M91: 88.52 | N91: 89.69 | O91: 6419700 | U91: 2003-05-14 | V91: 0.084959 | W91: 21.211454 | X91: 200305 | Y91: 200205 | Z91: 2002-05-15 | AA91: 5 | AB91: 1 | AC91: 0.316238 | AD91: 0.0149088318
A92: 77 | B92: 2022-01-28 | C92: 88.970001 | D92: 90.370003 | E92: 87.480003 | F92: 90.330002 | G92: 5877600 | H92: 89.830566 | I92: 0.9944709843 | J92: 1 | K92: 88.48 | L92: 89.87 | M92: 87 | N92: 89.83 | O92: 5877600 | U92: 2003-02-12 | V92: 0.077093 | W92: 19.03713 | X92: 200302 | Y92: 200202 | Z92: 2002-02-13 | AA92: 5 | AB92: 1 | AC92: 0.308372 | AD92: 0.01619845008
A93: 78 | B93: 2022-01-27 | C93: 89.919998 | D93: 91.480003 | E93: 88.400002 | F93: 89.279999 | G93: 6998700 | H93: 88.786369 | I93: 0.9944709901 | J93: 1 | K93: 89.42 | L93: 90.97 | M93: 87.91 | N93: 88.79 | O93: 6998700 | U93: 2002-11-13 | V93: 0.077093 | W93: 19.524858 | X93: 200211 | Y93: 200111 | Z93: 2001-11-14 | AA93: 5 | AB93: 1 | AC93: 0.308372 | AD93: 0.01579381525
A94: 79 | B94: 2022-01-26 | C94: 89.980003 | D94: 91.519997 | E94: 87.470001 | F94: 88.980003 | G94: 9829100 | H94: 88.488029 | I94: 0.99447096 | J94: 1 | K94: 89.48 | L94: 91.01 | M94: 86.99 | N94: 88.49 | O94: 9829100 | U94: 2002-08-21 | V94: 0.077093 | W94: 19.276274 | X94: 200208 | Y94: 200108 | Z94: 2001-08-22 | AA94: 5 | AB94: 1 | AC94: 0.302078 | AD94: 0.01567097459
A95: 80 | B95: 2022-01-25 | C95: 85 | D95: 91.290001 | E95: 85 | F95: 90.309998 | G95: 10377400 | H95: 89.810669 | I95: 0.9944709444 | J95: 1 | K95: 84.53 | L95: 90.79 | M95: 84.53 | N95: 89.81 | O95: 10377400 | U95: 2002-05-15 | V95: 0.077093 | W95: 22.16803 | X95: 200205 | Y95: 200105 | Z95: 2001-05-16 | AA95: 5 | AB95: 1 | AC95: 0.295784 | AD95: 0.01334281846
A96: 81 | B96: 2022-01-24 | C96: 85.769997 | D96: 88.300003 | E96: 84.800003 | F96: 88.120003 | G96: 8849700 | H96: 87.632782 | I96: 0.9944709375 | J96: 1 | K96: 85.3 | L96: 87.81 | M96: 84.33 | N96: 87.63 | O96: 8849700 | U96: 2002-02-13 | V96: 0.077093 | W96: 21.998112 | X96: 200202 | Y96: 200102 | Z96: 2001-02-14 | AA96: 5 | AB96: 1 | AC96: 0.28949 | AD96: 0.01315976571
A97: 82 | B97: 2022-01-21 | C97: 88.519997 | D97: 88.809998 | E97: 86.82 | F97: 87.209999 | G97: 5846500 | H97: 86.727814 | I97: 0.9944709895 | J97: 1 | K97: 88.03 | L97: 88.32 | M97: 86.34 | N97: 86.73 | O97: 5846500 | U97: 2001-11-14 | V97: 0.070799 | W97: 18.307112 | X97: 200111 | Y97: 200011 | Z97: 2000-11-15 | AA97: 5 | AB97: 1 | AC97: 0.283196 | AD97: 0.01546917941
A98: 83 | B98: 2022-01-20 | C98: 89.959999 | D98: 90.830002 | E98: 88.25 | F98: 88.360001 | G98: 5354700 | H98: 87.871452 | I98: 0.9944709258 | J98: 1 | K98: 89.46 | L98: 90.33 | M98: 87.76 | N98: 87.87 | O98: 5354700 | U98: 2001-08-22 | V98: 0.070799 | W98: 22.923222 | X98: 200108 | Y98: 200008 | Z98: 2000-08-23 | AA98: 5 | AB98: 1 | AC98: 0.283196 | AD98: 0.01235410973
A99: 84 | B99: 2022-01-19 | C99: 90.730003 | D99: 91.339996 | E99: 89.580002 | F99: 89.699997 | G99: 4887800 | H99: 89.204041 | I99: 0.9944709474 | J99: 1 | K99: 90.23 | L99: 90.83 | M99: 89.08 | N99: 89.2 | O99: 4887800 | U99: 2001-05-16 | V99: 0.070799 | W99: 26.085588 | X99: 200105 | Y99: 200005 | Z99: 2000-05-17 | AA99: 5 | AB99: 1 | AC99: 0.27533 | AD99: 0.01055487038
A100: 85 | B100: 2022-01-18 | C100: 91.330002 | D100: 91.900002 | E100: 90.279999 | F100: 90.75 | G100: 6010200 | H100: 90.248238 | I100: 0.9944709421 | J100: 1 | K100: 90.83 | L100: 91.39 | M100: 89.78 | N100: 90.25 | O100: 6010200 | U100: 2001-02-14 | V100: 0.070799 | W100: 24.229074 | X100: 200102 | Y100: 200002 | Z100: 2000-02-16 | AA100: 5 | AB100: 1 | AC100: 0.267464 | AD100: 0.01103896913
A101: 86 | B101: 2022-01-14 | C101: 91.050003 | D101: 92.480003 | E101: 90.720001 | F101: 92.330002 | G101: 4987400 | H101: 91.819504 | I101: 0.9944709413 | J101: 1 | K101: 90.55 | L101: 91.97 | M101: 90.22 | N101: 91.82 | O101: 4987400 | U101: 2000-11-15 | V101: 0.070799 | W101: 21.102108 | X101: 200011 | Y101: 199911 | Z101: 1999-11-17 | AA101: 5 | AB101: 1 | AC101: 0.259598 | AD101: 0.01230199372
A102: 87 | B102: 2022-01-13 | C102: 91.379997 | D102: 92.459999 | E102: 90.959999 | F102: 91.559998 | G102: 5026300 | H102: 91.053757 | I102: 0.994470937 | J102: 1 | K102: 90.87 | L102: 91.95 | M102: 90.46 | N102: 91.05 | O102: 5026300 | U102: 2000-08-23 | V102: 0.062933 | W102: 20.167952 | X102: 200008 | Y102: 199908 | Z102: 1999-08-25 | AA102: 5 | AB102: 1 | AC102: 0.251732 | AD102: 0.01248178298
A103: 88 | B103: 2022-01-12 | C103: 91 | D103: 91.550003 | E103: 90.839996 | F103: 91.07 | G103: 4613100 | H103: 90.566467 | I103: 0.9944709235 | J103: 1 | K103: 90.5 | L103: 91.04 | M103: 90.34 | N103: 90.57 | O103: 4613100 | U103: 2000-05-17 | V103: 0.062933 | W103: 20.512115 | X103: 200005 | Y103: 199905 | Z103: 1999-05-05 | AA103: 5 | AB103: 1 | AC103: 0.245438 | AD103: 0.01196551404
A104: 89 | B104: 2022-01-11 | C104: 89.739998 | D104: 90.839996 | E104: 89.269997 | F104: 90.720001 | G104: 4529800 | H104: 90.218407 | I104: 0.9944709657 | J104: 1 | K104: 89.24 | L104: 90.34 | M104: 88.78 | N104: 90.22 | O104: 4529800 | U104: 2000-02-16 | V104: 0.062933 | W104: 16.401825 | X104: 200002 | Y104: 199902 | Z104: 1999-02-17 | AA104: 5 | AB104: 1 | AC104: 0.239144 | AD104: 0.01458032871
A105: 90 | B105: 2022-01-10 | C105: 90.68 | D105: 90.790001 | E105: 89.239998 | F105: 89.730003 | G105: 4884200 | H105: 89.233879 | I105: 0.9944709241 | J105: 1 | K105: 90.18 | L105: 90.29 | M105: 88.75 | N105: 89.23 | O105: 4884200 | U105: 1999-11-17 | V105: 0.062933 | W105: 17.739143 | X105: 199911 | Y105: 199811 | Z105: 1998-11-18 | AA105: 5 | AB105: 1 | AC105: 0.23285 | AD105: 0.01312633874
A106: 91 | B106: 2022-01-07 | C106: 90.260002 | D106: 91.370003 | E106: 90.089996 | F106: 90.440002 | G106: 4835300 | H106: 89.939957 | I106: 0.9944709754 | J106: 1 | K106: 89.76 | L106: 90.86 | M106: 89.59 | N106: 89.94 | O106: 4835300 | U106: 1999-08-25 | V106: 0.056639 | W106: 22.026432 | X106: 199908 | Y106: 199808 | Z106: 1998-08-19 | AA106: 5 | AB106: 1 | AC106: 0.226556 | AD106: 0.01028564227
A107: 92 | B107: 2022-01-06 | C107: 90.400002 | D107: 90.93 | E107: 89.610001 | F107: 90.059998 | G107: 5559000 | H107: 89.56205 | I107: 0.9944709304 | J107: 1 | K107: 89.9 | L107: 90.43 | M107: 89.11 | N107: 89.56 | O107: 5559000 | U107: 1999-05-05 | V107: 0.056639 | W107: 22.931089 | X107: 199905 | Y107: 199805 | Z107: 1998-05-20 | AA107: 5 | AB107: 1 | AC107: 0.226556 | AD107: 0.009879862225
A108: 93 | B108: 2022-01-05 | C108: 90.199997 | D108: 91.529999 | E108: 89.400002 | F108: 89.57 | G108: 6833600 | H108: 89.07476 | I108: 0.9944709166 | J108: 1 | K108: 89.7 | L108: 91.02 | M108: 88.91 | N108: 89.07 | O108: 6833600 | U108: 1999-02-17 | V108: 0.056639 | W108: 19.155128 | X108: 199902 | Y108: 199802 | Z108: 1998-02-18 | AA108: 5 | AB108: 1 | AC108: 0.226556 | AD108: 0.01182743336
A109: 94 | B109: 2022-01-04 | C109: 87.870003 | D109: 90.07 | E109: 87.699997 | F109: 90.019997 | G109: 6044200 | H109: 89.52227 | I109: 0.9944709285 | J109: 1 | K109: 87.38 | L109: 89.57 | M109: 87.22 | N109: 89.52 | O109: 6044200 | U109: 1998-11-18 | V109: 0.056639 | W109: 15.683999 | X109: 199811 | Y109: 199711 | Z109: 1997-11-19 | AA109: 5 | AB109: 1 | AC109: 0.21869 | AD109: 0.0139435102
A110: 95 | B110: 2022-01-03 | C110: 86.080002 | D110: 87.139999 | E110: 86.07 | F110: 86.970001 | G110: 5169200 | H110: 86.489143 | I110: 0.9944709901 | J110: 1 | K110: 85.6 | L110: 86.66 | M110: 85.59 | N110: 86.49 | O110: 5169200 | U110: 1998-08-19 | V110: 0.056639 | W110: 13.953351 | X110: 199808 | Y110: 199708 | Z110: 1997-08-20 | AA110: 5 | AB110: 1 | AC110: 0.210824 | AD110: 0.01510920208
A111: 96 | B111: 2021-12-31 | C111: 85.730003 | D111: 86.330002 | E111: 85.5 | F111: 86.059998 | G111: 2667700 | H111: 85.584167 | I111: 0.9944709388 | J111: 1 | K111: 85.26 | L111: 85.85 | M111: 85.03 | N111: 85.58 | O111: 2667700 | U111: 1998-05-20 | V111: 0.056639 | W111: 15.182505 | X111: 199805 | Y111: 199705 | Z111: 1997-05-21 | AA111: 5 | AB111: 1 | AC111: 0.202958 | AD111: 0.01336788626
A112: 97 | B112: 2021-12-30 | C112: 86.040001 | D112: 86.5 | E112: 85.699997 | F112: 85.800003 | G112: 2459400 | H112: 85.325607 | I112: 0.9944709093 | J112: 1 | K112: 85.56 | L112: 86.02 | M112: 85.23 | N112: 85.33 | O112: 2459400 | U112: 1998-02-18 | V112: 0.048773 | W112: 13.569855 | X112: 199802 | Y112: 199702 | Z112: 1997-02-19 | AA112: 5 | AB112: 1 | AC112: 0.195092 | AD112: 0.01437686696
A113: 98 | B113: 2021-12-29 | C113: 85.580002 | D113: 86.07 | E113: 85.220001 | F113: 85.889999 | G113: 2085300 | H113: 85.415108 | I113: 0.9944709395 | J113: 1 | K113: 85.11 | L113: 85.59 | M113: 84.75 | N113: 85.42 | O113: 2085300 | U113: 1997-11-19 | V113: 0.048773 | W113: 11.524544 | X113: 199711 | Y113: 199611 | Z113: 1996-11-20 | AA113: 5 | AB113: 1 | AC113: 0.195092 | AD113: 0.01692839213
A114: 99 | B114: 2021-12-28 | C114: 85.07 | D114: 86.349998 | E114: 84.779999 | F114: 86.019997 | G114: 3220100 | H114: 85.544388 | I114: 0.9944709484 | J114: 1 | K114: 84.6 | L114: 85.87 | M114: 84.31 | N114: 85.54 | O114: 3220100 | U114: 1997-08-20 | V114: 0.048773 | W114: 12.82253 | X114: 199708 | Y114: 199608 | Z114: 1996-08-21 | AA114: 5 | AB114: 1 | AC114: 0.189585 | AD114: 0.01478530368
A115: 100 | B115: 2021-12-27 | C115: 84.720001 | D115: 85.400002 | E115: 84.239998 | F115: 85.239998 | G115: 2743700 | H115: 84.7687 | I115: 0.994470929 | J115: 1 | K115: 84.25 | L115: 84.93 | M115: 83.77 | N115: 84.77 | O115: 2743700 | U115: 1997-05-21 | V115: 0.048773 | W115: 12.114537 | X115: 199705 | Y115: 199605 | Z115: 1996-05-22 | AA115: 5 | AB115: 1 | AC115: 0.184078 | AD115: 0.01519480274
A116: 101 | B116: 2021-12-23 | C116: 84.559998 | D116: 85.199997 | E116: 84.519997 | F116: 84.900002 | G116: 2650000 | H116: 84.430588 | I116: 0.9944709778 | J116: 1 | K116: 84.09 | L116: 84.73 | M116: 84.05 | N116: 84.43 | O116: 2650000 | U116: 1997-02-19 | V116: 0.048773 | W116: 12.075205 | X116: 199702 | Y116: 199602 | Z116: 1996-02-21 | AA116: 5 | AB116: 1 | AC116: 0.178571 | AD116: 0.01478823755
A117: 102 | B117: 2021-12-22 | C117: 83.480003 | D117: 84.75 | E117: 83.43 | F117: 84.07 | G117: 3852800 | H117: 83.605171 | I117: 0.994470929 | J117: 1 | K117: 83.02 | L117: 84.28 | M117: 82.97 | N117: 83.61 | O117: 3852800 | U117: 1996-11-20 | V117: 0.043266 | W117: 10.492055 | X117: 199611 | Y117: 199511 | Z117: 1995-11-15 | AA117: 5 | AB117: 1 | AC117: 0.173064 | AD117: 0.01649476675
A118: 103 | B118: 2021-12-21 | C118: 81.669998 | D118: 83.919998 | E118: 81.669998 | F118: 83.68 | G118: 7301900 | H118: 83.217331 | I118: 0.9944709728 | J118: 1 | K118: 81.22 | L118: 83.46 | M118: 81.22 | N118: 83.22 | O118: 7301900 | U118: 1996-08-21 | V118: 0.043266 | W118: 8.899072 | X118: 199608 | Y118: 199508 | Z118: 1995-08-16 | AA118: 5 | AB118: 1 | AC118: 0.173064 | AD118: 0.01944742103
A119: 104 | B119: 2021-12-20 | C119: 81.029999 | D119: 81.349998 | E119: 79.690002 | F119: 81.029999 | G119: 5828400 | H119: 80.581978 | I119: 0.9944709243 | J119: 1 | K119: 80.58 | L119: 80.9 | M119: 79.25 | N119: 80.58 | O119: 5828400 | U119: 1996-05-22 | V119: 0.043266 | W119: 8.77124 | X119: 199605 | Y119: 199505 | Z119: 1995-05-15 | AA119: 5 | AB119: 1 | AC119: 0.169131 | AD119: 0.01928245037
A120: 105 | B120: 2021-12-17 | C120: 82.699997 | D120: 83.019997 | E120: 81.169998 | F120: 82.279999 | G120: 8892600 | H120: 81.825066 | I120: 0.9944709163 | J120: 1 | K120: 82.24 | L120: 82.56 | M120: 80.72 | N120: 81.83 | O120: 8892600 | U120: 1996-02-21 | V120: 0.043266 | W120: 8.269745 | X120: 199602 | Y120: 199502 | Z120: 1995-02-17 | AA120: 5 | AB120: 1 | AC120: 0.165198 | AD120: 0.01997619032
A121: 106 | B121: 2021-12-16 | C121: 84.260002 | D121: 84.519997 | E121: 82.459999 | F121: 82.699997 | G121: 4546300 | H121: 82.242744 | I121: 0.994470943 | J121: 1 | K121: 83.79 | L121: 84.05 | M121: 82 | N121: 82.24 | O121: 4546300 | U121: 1995-11-15 | V121: 0.043266 | W121: 6.961926 | X121: 199511 | Y121: 199411 | Z121: 1994-11-14 | AA121: 5 | AB121: 1 | AC121: 0.161265 | AD121: 0.02316384862
A122: 107 | B122: 2021-12-15 | C122: 83.459999 | D122: 83.720001 | E122: 82.07 | F122: 83.43 | G122: 5388300 | H122: 82.968712 | I122: 0.9944709577 | J122: 1 | K122: 83 | L122: 83.26 | M122: 81.62 | N122: 82.97 | O122: 5388300 | U122: 1995-08-16 | V122: 0.039333 | W122: 6.450598 | X122: 199508 | Y122: 199408 | Z122: 1994-08-15 | AA122: 5 | AB122: 1 | AC122: 0.157332 | AD122: 0.02439029684
A123: 108 | B123: 2021-12-14 | C123: 83.629997 | D123: 84.739998 | E123: 83.230003 | F123: 83.5 | G123: 6144700 | H123: 83.038322 | I123: 0.9944709222 | J123: 1 | K123: 83.17 | L123: 84.27 | M123: 82.77 | N123: 83.04 | O123: 6144700 | U123: 1995-05-15 | V123: 0.039333 | W123: 5.899937 | X123: 199505 | Y123: 199405 | Z123: 1994-05-16 | AA123: 5 | AB123: 1 | AC123: 0.157332 | AD123: 0.02666672542
A124: 109 | B124: 2021-12-13 | C124: 85.449997 | D124: 85.940002 | E124: 84.040001 | F124: 84.330002 | G124: 4173900 | H124: 83.863739 | I124: 0.9944709713 | J124: 1 | K124: 84.98 | L124: 85.46 | M124: 83.58 | N124: 83.86 | O124: 4173900 | U124: 1995-02-17 | V124: 0.039333 | W124: 5.123112 | X124: 199502 | Y124: 199402 | Z124: 1994-02-23 | AA124: 5 | AB124: 1 | AC124: 0.153399 | AD124: 0.02994254274
A125: 110 | B125: 2021-12-10 | C125: 86.910004 | D125: 86.980003 | E125: 85.699997 | F125: 86.160004 | G125: 3294400 | H125: 85.683624 | I125: 0.9944709845 | J125: 1 | K125: 86.43 | L125: 86.5 | M125: 85.23 | N125: 85.68 | O125: 3294400 | U125: 1994-11-14 | V125: 0.039333 | W125: 4.641284 | X125: 199411 | Y125: 199311 | Z125: 1993-11-15 | AA125: 5 | AB125: 1 | AC125: 0.149466 | AD125: 0.03220358849
A126: 111 | B126: 2021-12-09 | C126: 86 | D126: 86.57 | E126: 85.519997 | F126: 86.160004 | G126: 4241900 | H126: 85.683624 | I126: 0.9944709845 | J126: 1 | K126: 85.52 | L126: 86.09 | M126: 85.05 | N126: 85.68 | O126: 4241900 | U126: 1994-08-15 | V126: 0.039333 | W126: 4.896948 | X126: 199408 | Y126: 199308 | Z126: 1993-08-16 | AA126: 5 | AB126: 1 | AC126: 0.145533 | AD126: 0.02971912301
A127: 112 | B127: 2021-12-08 | C127: 85.839996 | D127: 87.650002 | E127: 85.800003 | F127: 86.5 | G127: 6749500 | H127: 86.021736 | I127: 0.9944709364 | J127: 1 | K127: 85.37 | L127: 87.17 | M127: 85.33 | N127: 86.02 | O127: 6749500 | U127: 1994-05-16 | V127: 0.0354 | W127: 5.02478 | X127: 199405 | Y127: 199305 | Z127: 1993-05-17 | AA127: 5 | AB127: 1 | AC127: 0.1416 | AD127: 0.02818033824
A128: 113 | B128: 2021-12-07 | C128: 84.43 | D128: 85.800003 | E128: 84.050003 | F128: 85.010002 | G128: 5102900 | H128: 84.539978 | I128: 0.9944709565 | J128: 1 | K128: 83.96 | L128: 85.33 | M128: 83.59 | N128: 84.54 | O128: 5102900 | U128: 1994-02-23 | V128: 0.0354 | W128: 5.309943 | X128: 199402 | Y128: 199302 | Z128: 1993-02-22 | AA128: 5 | AB128: 1 | AC128: 0.1416 | AD128: 0.02666695292
A129: 114 | B129: 2021-12-06 | C129: 82.25 | D129: 84.389999 | E129: 81.669998 | F129: 83.760002 | G129: 4964200 | H129: 83.29689 | I129: 0.9944709648 | J129: 1 | K129: 81.8 | L129: 83.92 | M129: 81.22 | N129: 83.3 | O129: 4964200 | U129: 1993-11-15 | V129: 0.0354 | W129: 5.02478 | X129: 199311 | Y129: 199211 | Z129: 1992-11-16 | AA129: 5 | AB129: 1 | AC129: 0.1416 | AD129: 0.02818033824
A130: 115 | B130: 2021-12-03 | C130: 81.610001 | D130: 82.120003 | E130: 80.120003 | F130: 81.110001 | G130: 6038900 | H130: 80.661537 | I130: 0.9944709161 | J130: 1 | K130: 81.16 | L130: 81.67 | M130: 79.68 | N130: 80.66 | O130: 6038900 | U130: 1993-08-16 | V130: 0.0354 | W130: 4.621617 | X130: 199308 | Y130: 199208 | Z130: 1992-08-17 | AA130: 5 | AB130: 1 | AC130: 0.1416 | AD130: 0.03063862713
A131: 116 | B131: 2021-12-02 | C131: 80.050003 | D131: 82.230003 | E131: 79.510002 | F131: 81.660004 | G131: 6409100 | H131: 81.208504 | I131: 0.9944709775 | J131: 1 | K131: 79.61 | L131: 81.78 | M131: 79.07 | N131: 81.21 | O131: 6409100 | U131: 1993-05-17 | V131: 0.0354 | W131: 4.08079 | X131: 199305 | Y131: 199205 | Z131: 1992-05-18 | AA131: 5 | AB131: 1 | AC131: 0.1416 | AD131: 0.03469916364
A132: 117 | B132: 2021-12-01 | C132: 82.139999 | D132: 82.139999 | E132: 79 | F132: 79.050003 | G132: 8499000 | H132: 78.61293 | I132: 0.99447093 | J132: 1 | K132: 81.69 | L132: 81.69 | M132: 78.56 | N132: 78.61 | O132: 8499000 | U132: 1993-02-22 | V132: 0.0354 | W132: 3.559629 | X132: 199302 | Y132: 199202 | Z132: 1992-02-24 | AA132: 5 | AB132: 1 | AC132: 0.1416 | AD132: 0.03977942645
A133: 118 | B133: 2021-11-30 | C133: 82.120003 | D133: 82.5 | E133: 80.279999 | F133: 80.919998 | G133: 7966000 | H133: 80.472588 | I133: 0.9944709588 | J133: 1 | K133: 81.67 | L133: 82.04 | M133: 79.84 | N133: 80.47 | O133: 7966000 | U133: 1992-11-16 | V133: 0.0354 | W133: 3.343298 | X133: 199211 | Y133: 199111 | Z133: 1991-11-18 | AA133: 5 | AB133: 1 | AC133: 0.108245 | AD133: 0.03237671305
A134: 119 | B134: 2021-11-29 | C134: 84.089996 | D134: 84.449997 | E134: 82.519997 | F134: 82.940002 | G134: 5835000 | H134: 82.481422 | I134: 0.994470943 | J134: 1 | K134: 83.63 | L134: 83.98 | M134: 82.06 | N134: 82.48 | O134: 5835000 | U134: 1992-08-17 | V134: 0.0354 | W134: 4.395453 | X134: 199208 | Y134: 199108 | Z134: 1991-08-19 | AA134: 5 | AB134: 1 | AC134: 0.108245 | AD134: 0.0246265857
A135: 120 | B135: 2021-11-26 | C135: 83.559998 | D135: 83.589996 | E135: 81.419998 | F135: 83 | G135: 7113600 | H135: 82.541092 | I135: 0.994470988 | J135: 1 | K135: 83.1 | L135: 83.13 | M135: 80.97 | N135: 82.54 | O135: 7113600 | U135: 1992-05-18 | V135: 0.0354 | W135: 4.159456 | X135: 199205 | Y135: 199105 | Z135: 1991-05-20 | AA135: 5 | AB135: 1 | AC135: 0.108245 | AD135: 0.02602383581
A136: 121 | B136: 2021-11-24 | C136: 86.93 | D136: 87.480003 | E136: 86.68 | F136: 87.190002 | G136: 3464500 | H136: 86.707924 | I136: 0.9944709486 | J136: 1 | K136: 86.45 | L136: 87 | M136: 86.2 | N136: 86.71 | O136: 3464500 | U136: 1992-02-24 | V136: 0.002045 | W136: 3.952958 | X136: 199202 | Y136: 199102 | Z136: 1991-02-19 | AA136: 5 | AB136: 1 | AC136: 0.108245 | AD136: 0.0273832912
A137: 122 | B137: 2021-11-23 | C137: 87.32 | D137: 87.739998 | E137: 86.739998 | F137: 87.309998 | G137: 5950700 | H137: 86.827255 | I137: 0.994470931 | J137: 1 | K137: 86.84 | L137: 87.25 | M137: 86.26 | N137: 86.83 | O137: 5950700 | U137: 1991-11-18 | V137: 0.0354 | W137: 3.815293 | X137: 199111 | Y137: 199011 | Z137: 1990-11-15 | AA137: 5 | AB137: 1 | AC137: 0.1416 | AD137: 0.03711379441
A138: 123 | B138: 2021-11-22 | C138: 85.809998 | D138: 87.639999 | E138: 85.68 | F138: 86.800003 | G138: 6819800 | H138: 86.320084 | I138: 0.9944709795 | J138: 1 | K138: 85.34 | L138: 87.16 | M138: 85.21 | N138: 86.32 | O138: 6819800 | U138: 1991-08-19 | V138: 0.0354 | W138: 3.451463 | X138: 199108 | Y138: 199008 | Z138: 1990-08-20 | AA138: 5 | AB138: 1 | AC138: 0.1416 | AD138: 0.04102608082
A139: 124 | B139: 2021-11-19 | C139: 86.25 | D139: 86.25 | E139: 85.059998 | F139: 85.43 | G139: 5478200 | H139: 84.957657 | I139: 0.9944709938 | J139: 1 | K139: 85.77 | L139: 85.77 | M139: 84.59 | N139: 84.96 | O139: 5478200 | U139: 1991-05-20 | V139: 0.0354 | W139: 3.431797 | X139: 199105 | Y139: 199005 | Z139: 1990-05-21 | AA139: 5 | AB139: 1 | AC139: 0.1416 | AD139: 0.04126118182
A140: 125 | B140: 2021-11-18 | C140: 87.190002 | D140: 87.790001 | E140: 86.339996 | F140: 86.910004 | G140: 4376300 | H140: 86.429474 | I140: 0.9944709472 | J140: 1 | K140: 86.71 | L140: 87.3 | M140: 85.86 | N140: 86.43 | O140: 4376300 | U140: 1991-02-19 | V140: 0.0354 | W140: 3.736627 | X140: 199102 | Y140: 199002 | Z140: 1990-02-16 | AA140: 5 | AB140: 1 | AC140: 0.1416 | AD140: 0.03789513912
A141: 126 | B141: 2021-11-17 | C141: 88.760002 | D141: 89.050003 | E141: 87.190002 | F141: 87.449997 | G141: 3910600 | H141: 86.459297 | I141: 0.9886712403 | J141: 1 | K141: 87.75 | L141: 88.04 | M141: 86.2 | N141: 86.46 | O141: 3910600 | U141: 1990-11-15 | V141: 0.0354 | W141: 3.490796 | X141: 199011 | Y141: 198911 | Z141: 1989-11-16 | AA141: 5 | AB141: 1 | AC141: 0.1416 | AD141: 0.0405638141
A142: 127 | B142: 2021-11-16 | C142: 89.269997 | D142: 89.82 | E142: 88.809998 | F142: 88.900002 | G142: 4746200 | H142: 87.892883 | I142: 0.9886713276 | J142: 1 | K142: 88.26 | L142: 88.8 | M142: 87.8 | N142: 87.89 | O142: 4746200 | U142: 1990-08-20 | V142: 0.0354 | W142: 3.903792 | X142: 199008 | Y142: 198908 | Z142: 1989-08-21 | AA142: 5 | AB142: 1 | AC142: 0.137666 | AD142: 0.03526468623
A143: 128 | B143: 2021-11-15 | C143: 89.629997 | D143: 89.629997 | E143: 88.839996 | F143: 89.349998 | G143: 3423100 | H143: 88.337776 | I143: 0.98867127 | J143: 1 | K143: 88.61 | L143: 88.61 | M143: 87.83 | N143: 88.34 | O143: 3423100 | U143: 1990-05-21 | V143: 0.0354 | W143: 4.552785 | X143: 199005 | Y143: 198905 | Z143: 1989-05-22 | AA143: 5 | AB143: 1 | AC143: 0.133732 | AD143: 0.02937366908
A144: 129 | B144: 2021-11-12 | C144: 89.18 | D144: 89.25 | E144: 88.620003 | F144: 88.860001 | G144: 3273100 | H144: 87.853333 | I144: 0.9886713033 | J144: 1 | K144: 88.17 | L144: 88.24 | M144: 87.62 | N144: 87.85 | O144: 3273100 | U144: 1990-02-16 | V144: 0.0354 | W144: 4.02179 | X144: 199002 | Y144: 198902 | Z144: 1989-02-13 | AA144: 5 | AB144: 1 | AC144: 0.129798 | AD144: 0.03227368908
A145: 130 | B145: 2021-11-11 | C145: 90.080002 | D145: 90.419998 | E145: 88.690002 | F145: 89.050003 | G145: 4993600 | H145: 88.041183 | I145: =IF(F145=0,1,H145/F145) -> 0.9886713086 | J145: =INDEX(OFFSET($T$15,0,0,$S$13+1,1),MATCH(B145,OFFSET($Q$15,0,0,$S$13+1,1),-1)) -> 1 | K145: =ROUND($I145*C145,2) -> 89.06 | L145: =ROUND($I145*D145,2) -> 89.4 | M145: =ROUND($I145*E145,2) -> 87.69 | N145: =ROUND($I145*F145,2) -> 88.04 | O145: =G145*J145 -> 4993600 | U145: 1989-11-16 | V145: 0.031466 | W145: =(INDEX(OFFSET($F$15,1,0,$B$10,1),MATCH(U145,OFFSET($B$15,1,0,$B$10,1),-1))) -> 4.257788 | X145: =YEAR(U145)&RIGHT("0"&MONTH(U145),2) -> 198911 | Y145: =YEAR(U145)-1&RIGHT("0"&MONTH(U145),2) -> 198811 | Z145: =OFFSET(U144,AA145,0,1,1) -> 1988-11-14 | AA145: =MATCH(Y145,OFFSET($X$15,A145,0,$V$14+1-A145,1),-1) -> 5 | AB145: =IF(OR(AND(YEAR(U145)=YEAR(Z145),MONTH(U145)=MONTH(Z145)),MONTH(U145)=MONTH(Z145)),1,0) -> 1 | AC145: =(V145+IF(AA145-AB145=0,0,IFERROR(SUM(OFFSET(V145,1,0,AA145-AB145-1,1)),0))) -> 0.125864 | AD145: =AC145/(INDEX(OFFSET($F$15,1,0,$B$10,1),MATCH(U145,OFFSET($B$15,1,0,$B$10,1),-1))) -> 0.02956088936
A146: 131 | B146: 2021-11-10 | C146: 91.019997 | D146: 91.440002 | E146: 90.139999 | F146: 90.18 | G146: 3503200 | H146: 89.158379 | I146: 0.9886713129 | J146: 1 | K146: 89.99 | L146: 90.4 | M146: 89.12 | N146: 89.16 | O146: 3503200 | U146: 1989-08-21 | V146: 0.031466 | W146: 4.218455 | X146: 198908 | Y146: 198808 | Z146: 1988-08-22 | AA146: 5 | AB146: 1 | AC146: 0.125864 | AD146: 0.02983651598
A147: 132 | B147: 2021-11-09 | C147: 90.709999 | D147: 91.07 | E147: 89.970001 | F147: 90.989998 | G147: 3372900 | H147: 89.959198 | I147: 0.9886712823 | J147: 1 | K147: 89.68 | L147: 90.04 | M147: 88.95 | N147: 89.96 | O147: 3372900 | U147: 1989-05-22 | V147: 0.031466 | W147: 4.061123 | X147: 198905 | Y147: 198805 | Z147: 1988-05-16 | AA147: 5 | AB147: 1 | AC147: 0.125864 | AD147: 0.03099241269
A148: 133 | B148: 2021-11-08 | C148: 91.309998 | D148: 91.669998 | E148: 90.309998 | F148: 90.709999 | G148: 4469100 | H148: 89.682373 | I148: 0.988671304 | J148: 1 | K148: 90.28 | L148: 90.63 | M148: 89.29 | N148: 89.68 | O148: 4469100 | U148: 1989-02-13 | V148: 0.031466 | W148: 3.421963 | X148: 198902 | Y148: 198802 | Z148: 1988-02-12 | AA148: 5 | AB148: 1 | AC148: 0.125864 | AD148: 0.03678122762
A149: 134 | B149: 2021-11-05 | C149: 89.769997 | D149: 91.230003 | E149: 89.059998 | F149: 91.18 | G149: 4330400 | H149: 90.147049 | I149: 0.9886712985 | J149: 1 | K149: 88.75 | L149: 90.2 | M149: 88.05 | N149: 90.15 | O149: 4330400 | U149: 1988-11-14 | V149: 0.031466 | W149: 3.028634 | X149: 198811 | Y149: 198711 | Z149: 1987-11-16 | AA149: 5 | AB149: 1 | AC149: 0.121931 | AD149: 0.04025940407
A150: 135 | B150: 2021-11-04 | C150: 88.339996 | D150: 89.089996 | E150: 87.760002 | F150: 88.059998 | G150: 3711700 | H150: 87.062393 | I150: 0.9886713034 | J150: 1 | K150: 87.34 | L150: 88.08 | M150: 86.77 | N150: 87.06 | O150: 3711700 | U150: 1988-08-22 | V150: 0.031466 | W150: 2.763137 | X150: 198808 | Y150: 198708 | Z150: 1987-08-17 | AA150: 5 | AB150: 1 | AC150: 0.117998 | AD150: 0.04270436102
A151: 136 | B151: 2021-11-03 | C151: 87.019997 | D151: 88.790001 | E151: 86.949997 | F151: 88.669998 | G151: 4148500 | H151: 87.665482 | I151: 0.9886712978 | J151: 1 | K151: 86.03 | L151: 87.78 | M151: 85.96 | N151: 87.67 | O151: 4148500 | U151: 1988-05-16 | V151: 0.031466 | W151: 2.959802 | X151: 198805 | Y151: 198705 | Z151: 1987-05-18 | AA151: 5 | AB151: 1 | AC151: 0.114065 | AD151: 0.03853805086
A152: 137 | B152: 2021-11-02 | C152: 88.529999 | D152: 88.809998 | E152: 87.199997 | F152: 87.800003 | G152: 4554100 | H152: 86.805344 | I152: 0.9886713102 | J152: 1 | K152: 87.53 | L152: 87.8 | M152: 86.21 | N152: 86.81 | O152: 4554100 | U152: 1988-02-12 | V152: 0.027533 | W152: 2.940135 | X152: 198802 | Y152: 198702 | Z152: 1987-02-13 | AA152: 5 | AB152: 1 | AC152: 0.110132 | AD152: 0.03745814393
A153: 138 | B153: 2021-11-01 | C153: 88.910004 | D153: 89.190002 | E153: 87.959999 | F153: 88.550003 | G153: 4588800 | H153: 87.546852 | I153: 0.9886713612 | J153: 1 | K153: 87.9 | L153: 88.18 | M153: 86.96 | N153: 87.55 | O153: 4588800 | U153: 1987-11-16 | V153: 0.027533 | W153: 2.694305 | X153: 198711 | Y153: 198611 | Z153: 1986-11-17 | AA153: 5 | AB153: 1 | AC153: 0.110132 | AD153: 0.04087584739
A154: 139 | B154: 2021-10-29 | C154: 89.059998 | D154: 89.760002 | E154: 88.510002 | F154: 88.860001 | G154: 5202300 | H154: 87.853333 | I154: 0.9886713033 | J154: 1 | K154: 88.05 | L154: 88.74 | M154: 87.51 | N154: 87.85 | O154: 5202300 | U154: 1987-08-17 | V154: 0.027533 | W154: 4.66095 | X154: 198708 | Y154: 198608 | Z154: 1986-08-18 | AA154: 5 | AB154: 1 | AC154: 0.110132 | AD154: 0.02362865939
A155: 140 | B155: 2021-10-28 | C155: 89.360001 | D155: 89.809998 | E155: 88.739998 | F155: 89.190002 | G155: 4179900 | H155: 88.179596 | I155: 0.9886713087 | J155: 1 | K155: 88.35 | L155: 88.79 | M155: 87.73 | N155: 88.18 | O155: 4179900 | U155: 1987-05-18 | V155: 0.027533 | W155: 3.638295 | X155: 198705 | Y155: 198605 | Z155: 1986-05-19 | AA155: 5 | AB155: 1 | AC155: 0.110132 | AD155: 0.03027022273
A156: 141 | B156: 2021-10-27 | C156: 89.150002 | D156: 90.559998 | E156: 88.690002 | F156: 89.160004 | G156: 4273200 | H156: 88.149933 | I156: 0.9886712544 | J156: 1 | K156: 88.14 | L156: 89.53 | M156: 87.69 | N156: 88.15 | O156: 4273200 | U156: 1987-02-13 | V156: 0.027533 | W156: 4.031624 | X156: 198702 | Y156: 198602 | Z156: 1986-02-14 | AA156: 5 | AB156: 1 | AC156: 0.110132 | AD156: 0.02731703155
A157: 142 | B157: 2021-10-26 | C157: 88.290001 | D157: 91.190002 | E157: 87 | F157: 89.160004 | G157: 9122500 | H157: 88.149933 | I157: 0.9886712544 | J157: 1 | K157: 87.29 | L157: 90.16 | M157: 86.01 | N157: 88.15 | O157: 9122500 | U157: 1986-11-17 | V157: 0.027533 | W157: 3.569462 | X157: 198611 | Y157: 198511 | Z157: 1985-11-18 | AA157: 5 | AB157: 1 | AC157: 0.110132 | AD157: 0.03085394942
A158: 143 | B158: 2021-10-25 | C158: 91.669998 | D158: 91.980003 | E158: 90.699997 | F158: 91.300003 | G158: 5953900 | H158: 90.265686 | I158: 0.9886712271 | J158: 1 | K158: 90.63 | L158: 90.94 | M158: 89.67 | N158: 90.27 | O158: 5953900 | U158: 1986-08-18 | V158: 0.027533 | W158: 3.618628 | X158: 198608 | Y158: 198508 | Z158: 1985-08-19 | AA158: 5 | AB158: 1 | AC158: 0.110132 | AD158: 0.03043473935
A159: 144 | B159: 2021-10-22 | C159: 91.669998 | D159: 92.32 | E159: 91.18 | F159: 91.860001 | G159: 4160800 | H159: 90.819344 | I159: 0.9886712716 | J159: 1 | K159: 90.63 | L159: 91.27 | M159: 90.15 | N159: 90.82 | O159: 4160800 | U159: 1986-05-19 | V159: 0.027533 | W159: 3.71696 | X159: 198605 | Y159: 198505 | Z159: 1985-08-19 | AA159: 4 | AB159: 0 | AC159: 0.110132 | AD159: 0.02962958977
A160: 145 | B160: 2021-10-21 | C160: 91.330002 | D160: 91.669998 | E160: 90.580002 | F160: 91.610001 | G160: 4274900 | H160: 90.572174 | I160: 0.9886712478 | J160: 1 | K160: 90.3 | L160: 90.63 | M160: 89.55 | N160: 90.57 | O160: 4274900 | U160: 1986-02-14 | V160: 0.027533 | W160: 4.169289 | X160: 198602 | Y160: 198502 | Z160: 1985-02-15 | AA160: 4 | AB160: 1 | AC160: 0.082599 | AD160: 0.01981129157
A161: 146 | B161: 2021-10-20 | C161: 90.690002 | D161: 91.910004 | E161: 90.080002 | F161: 91.68 | G161: 3916600 | H161: 90.641388 | I161: 0.9886713351 | J161: 1 | K161: 89.66 | L161: 90.87 | M161: 89.06 | N161: 90.64 | O161: 3916600 | U161: 1985-11-18 | V161: 0.027533 | W161: 3.244965 | X161: 198511 | Y161: 198411 | Z161: 1984-11-16 | AA161: 4 | AB161: 1 | AC161: 0.082599 | AD161: 0.02545451184
A162: 147 | B162: 2021-10-19 | C162: 90.980003 | D162: 91.489998 | E162: 90.449997 | F162: 91.230003 | G162: 4195100 | H162: 90.196487 | I162: 0.9886713146 | J162: 1 | K162: 89.95 | L162: 90.45 | M162: 89.43 | N162: 90.2 | O162: 4195100 | U162: 1985-08-19 | V162: 0.027533 | W162: 3.254799 | X162: 198508 | Y162: 198408 | Z162: 1984-08-20 | AA162: 4 | AB162: 1 | AC162: 0.082599 | AD162: 0.02537760396
A163: 148 | B163: 2021-10-18 | C163: 90.099998 | D163: 91.120003 | E163: 89.32 | F163: 90.800003 | G163: 3898700 | H163: 89.771362 | I163: 0.988671355 | J163: 1 | K163: 89.08 | L163: 90.09 | M163: 88.31 | N163: 89.77 | O163: 3898700 | U163: 1985-02-15 | V163: 0.027533 | W163: 3.461296 | X163: 198502 | Y163: 198402 | Z163: 1984-02-17 | AA163: 5 | AB163: 1 | AC163: 0.110132 | AD163: 0.0318181398
A164: 149 | B164: 2021-10-15 | C164: 89.849998 | D164: 91.290001 | E164: 89.669998 | F164: 90.919998 | G164: 4581600 | H164: 89.889992 | I164: 0.9886712932 | J164: 1 | K164: 88.83 | L164: 90.26 | M164: 88.65 | N164: 89.89 | O164: 4581600 | U164: 1984-11-16 | V164: 0.027533 | W164: 2.80247 | X164: 198411 | Y164: 198311 | Z164: 1983-11-14 | AA164: 5 | AB164: 1 | AC164: 0.108165 | AD164: 0.03859630968
A165: 150 | B165: 2021-10-14 | C165: 90.32 | D165: 90.470001 | E165: 89.110001 | F165: 89.169998 | G165: 4225300 | H165: 88.159821 | I165: 0.9886713354 | J165: 1 | K165: 89.3 | L165: 89.45 | M165: 88.1 | N165: 88.16 | O165: 4225300 | U165: 1984-08-20 | V165: 0.027533 | W165: 3.097467 | X165: 198408 | Y165: 198308 | Z165: 1983-08-15 | AA165: 5 | AB165: 1 | AC165: 0.106198 | AD165: 0.03428543387
A166: 151 | B166: 2021-10-13 | C166: 89.809998 | D166: 90 | E166: 88.32 | F166: 89.68 | G166: 3285500 | H166: 88.664047 | I166: 0.9886713537 | J166: 1 | K166: 88.79 | L166: 88.98 | M166: 87.32 | N166: 88.66 | O166: 3285500 | U166: 1984-05-21 | V166: 0.027533 | W166: 2.561556 | X166: 198405 | Y166: 198305 | Z166: 1983-05-16 | AA166: 5 | AB166: 1 | AC166: 0.104231 | AD166: 0.04069050218
A167: 152 | B167: 2021-10-12 | C167: 89.610001 | D167: 90.559998 | E167: 89.160004 | F167: 89.720001 | G167: 3404100 | H167: 88.70359 | I167: 0.9886712997 | J167: 1 | K167: 88.59 | L167: 89.53 | M167: 88.15 | N167: 88.7 | O167: 3404100 | U167: 1984-02-17 | V167: 0.025566 | W167: 2.409141 | X167: 198402 | Y167: 198302 | Z167: 1983-02-18 | AA167: 5 | AB167: 1 | AC167: 0.102264 | AD167: 0.04244832494
A168: 153 | B168: 2021-10-11 | C168: 90.720001 | D168: 91.379997 | E168: 89.839996 | F168: 89.889999 | G168: 3048000 | H168: 88.871658 | I168: 0.9886712536 | J168: 1 | K168: 89.69 | L168: 90.34 | M168: 88.82 | N168: 88.87 | O168: 3048000 | U168: 1983-11-14 | V168: 0.025566 | W168: 2.630389 | X168: 198311 | Y168: 198211 | Z168: 1982-11-15 | AA168: 5 | AB168: 1 | AC168: 0.100298 | AD168: 0.03813048184
A169: 154 | B169: 2021-10-08 | C169: 90.300003 | D169: 90.830002 | E169: 89.739998 | F169: 90.620003 | G169: 3342700 | H169: 89.593391 | I169: 0.9886712429 | J169: 1 | K169: 89.28 | L169: 89.8 | M169: 88.72 | N169: 89.59 | O169: 3342700 | U169: 1983-08-15 | V169: 0.025566 | W169: 2.694305 | X169: 198308 | Y169: 198208 | Z169: 1982-08-23 | AA169: 5 | AB169: 1 | AC169: 0.098332 | AD169: 0.03649623929
A170: 155 | B170: 2021-10-07 | C170: 89.889999 | D170: 90.629997 | E170: 89.75 | F170: 90.150002 | G170: 3750900 | H170: 89.128716 | I170: 0.9886712593 | J170: 1 | K170: 88.87 | L170: 89.6 | M170: 88.73 | N170: 89.13 | O170: 3750900 | U170: 1983-05-16 | V170: 0.025566 | W170: 2.78772 | X170: 198305 | Y170: 198205 | Z170: 1982-05-17 | AA170: 5 | AB170: 1 | AC170: 0.096366 | AD170: 0.03456803409
A171: 156 | B171: 2021-10-06 | C171: 88.199997 | D171: 89.400002 | E171: 87.449997 | F171: 89.269997 | G171: 4354100 | H171: 88.258682 | I171: 0.9886712778 | J171: 1 | K171: 87.2 | L171: 88.39 | M171: 86.46 | N171: 88.26 | O171: 4354100 | U171: 1983-02-18 | V171: 0.0236 | W171: 2.551723 | X171: 198302 | Y171: 198202 | Z171: 1982-02-11 | AA171: 5 | AB171: 1 | AC171: 0.0944 | AD171: 0.03699461109
A172: 157 | B172: 2021-10-05 | C172: 88 | D172: 89.489998 | E172: 87.730003 | F172: 88.720001 | G172: 4820500 | H172: 87.71492 | I172: 0.9886713144 | J172: 1 | K172: 87 | L172: 88.48 | M172: 86.74 | N172: 87.71 | O172: 4820500 | U172: 1982-11-15 | V172: 0.0236 | W172: 2.217393 | X172: 198211 | Y172: 198111 | Z172: 1981-11-16 | AA172: 5 | AB172: 1 | AC172: 0.0944 | AD172: 0.04257251646
A173: 158 | B173: 2021-10-04 | C173: 87 | D173: 88 | E173: 86.43 | F173: 87.690002 | G173: 5490600 | H173: 86.696587 | I173: 0.9886712855 | J173: 1 | K173: 86.01 | L173: 87 | M173: 85.45 | N173: 86.7 | O173: 5490600 | U173: 1982-08-23 | V173: 0.0236 | W173: 1.82898 | X173: 198208 | Y173: 198108 | Z173: 1981-08-24 | AA173: 5 | AB173: 1 | AC173: 0.0944 | AD173: 0.05161346762
A174: 159 | B174: 2021-10-01 | C174: 86.800003 | D174: 87.93 | E174: 86.139999 | F174: 87.480003 | G174: 5499500 | H174: 86.488968 | I174: 0.9886712967 | J174: 1 | K174: 85.82 | L174: 86.93 | M174: 85.16 | N174: 86.49 | O174: 5499500 | U174: 1982-05-17 | V174: 0.0236 | W174: 1.5684 | X174: 198205 | Y174: 198105 | Z174: 1981-05-18 | AA174: 5 | AB174: 1 | AC174: 0.0944 | AD174: 0.06018872737
A175: 160 | B175: 2021-09-30 | C175: 87.489998 | D175: 87.5 | E175: 85.860001 | F175: 85.959999 | G175: 5642900 | H175: 84.986183 | I175: 0.9886712888 | J175: 1 | K175: 86.5 | L175: 86.51 | M175: 84.89 | N175: 84.99 | O175: 5642900 | U175: 1982-02-11 | V175: 0.0236 | W175: 1.391402 | X175: 198202 | Y175: 198102 | Z175: 1981-02-13 | AA175: 5 | AB175: 1 | AC175: 0.0944 | AD175: 0.06784523811
A176: 161 | B176: 2021-09-29 | C176: 87.169998 | D176: 87.82 | E176: 86.690002 | F176: 86.989998 | G176: 3612600 | H176: 86.004517 | I176: 0.9886713298 | J176: 1 | K176: 86.18 | L176: 86.83 | M176: 85.71 | N176: 86 | O176: 3612600 | U176: 1981-11-16 | V176: 0.0236 | W176: 1.642149 | X176: 198111 | Y176: 198011 | Z176: 1980-11-17 | AA176: 5 | AB176: 1 | AC176: 0.0944 | AD176: 0.05748564838
A177: 162 | B177: 2021-09-28 | C177: 87.099998 | D177: 87.730003 | E177: 86.470001 | F177: 86.839996 | G177: 5781200 | H177: 85.856216 | I177: 0.9886713491 | J177: 1 | K177: 86.11 | L177: 86.74 | M177: 85.49 | N177: 85.86 | O177: 5781200 | U177: 1981-08-24 | V177: 0.0236 | W177: 1.922396 | X177: 198108 | Y177: 198008 | Z177: 1980-08-25 | AA177: 5 | AB177: 1 | AC177: 0.092433 | AD177: 0.04808218494
A178: 163 | B178: 2021-09-27 | C178: 87.730003 | D178: 88.470001 | E178: 87.230003 | F178: 87.339996 | G178: 4162100 | H178: 86.350548 | I178: 0.988671307 | J178: 1 | K178: 86.74 | L178: 87.47 | M178: 86.24 | N178: 86.35 | O178: 4162100 | U178: 1981-05-18 | V178: 0.0236 | W178: 2.310809 | X178: 198105 | Y178: 198005 | Z178: 1980-05-19 | AA178: 5 | AB178: 1 | AC178: 0.090466 | AD178: 0.03914905992
A179: 164 | B179: 2021-09-24 | C179: 86.57 | D179: 87.669998 | E179: 86.360001 | F179: 87.160004 | G179: 4665900 | H179: 86.172592 | I179: 0.9886712717 | J179: 1 | K179: 85.59 | L179: 86.68 | M179: 85.38 | N179: 86.17 | O179: 4665900 | U179: 1981-02-13 | V179: 0.0236 | W179: 2.069895 | X179: 198102 | Y179: 198002 | Z179: 1980-02-15 | AA179: 5 | AB179: 1 | AC179: 0.088499 | AD179: 0.04275530884
A180: 165 | B180: 2021-09-23 | C180: 85.580002 | D180: 87 | E180: 85.510002 | F180: 86.75 | G180: 5906800 | H180: 85.767235 | I180: 0.9886712968 | J180: 1 | K180: 84.61 | L180: 86.01 | M180: 84.54 | N180: 85.77 | O180: 5906800 | U180: 1980-11-17 | V180: 0.021633 | W180: 2.423891 | X180: 198011 | Y180: 197911 | Z180: 1979-11-16 | AA180: 5 | AB180: 1 | AC180: 0.086532 | AD180: 0.03569962511
A181: 166 | B181: 2021-09-22 | C181: 83.970001 | D181: 85.959999 | E181: 83.610001 | F181: 85.269997 | G181: 6233700 | H181: 84.304001 | I181: 0.988671326 | J181: 1 | K181: 83.02 | L181: 84.99 | M181: 82.66 | N181: 84.3 | O181: 6233700 | U181: 1980-08-25 | V181: 0.021633 | W181: 2.005979 | X181: 198008 | Y181: 197908 | Z181: 1979-08-20 | AA181: 5 | AB181: 1 | AC181: 0.086532 | AD181: 0.04313704181
A182: 167 | B182: 2021-09-21 | C182: 83.68 | D182: 84.150002 | E182: 82.669998 | F182: 83.110001 | G182: 5900300 | H182: 82.168472 | I182: 0.9886712912 | J182: 1 | K182: 82.73 | L182: 83.2 | M182: 81.73 | N182: 82.17 | O182: 5900300 | U182: 1980-05-19 | V182: 0.021633 | W182: 1.607733 | X182: 198005 | Y182: 197905 | Z182: 1979-05-21 | AA182: 5 | AB182: 1 | AC182: 0.086532 | AD182: 0.05382236976
A183: 168 | B183: 2021-09-20 | C183: 81.900002 | D183: 83.599998 | E183: 81.519997 | F183: 83.449997 | G183: 8217100 | H183: 82.504616 | I183: 0.9886712878 | J183: 1 | K183: 80.97 | L183: 82.65 | M183: 80.6 | N183: 82.5 | O183: 8217100 | U183: 1980-02-15 | V183: 0.021633 | W183: 1.907646 | X183: 198002 | Y183: 197902 | Z183: 1979-02-16 | AA183: 5 | AB183: 1 | AC183: 0.086532 | AD183: 0.04536061722
A184: 169 | B184: 2021-09-17 | C184: 83.589996 | D184: 84.010002 | E184: 82.370003 | F184: 83.389999 | G184: 23128700 | H184: 82.445297 | I184: 0.9886712794 | J184: 1 | K184: 82.64 | L184: 83.06 | M184: 81.44 | N184: 82.45 | O184: 23128700 | U184: 1979-11-16 | V184: 0.021633 | W184: 1.450401 | X184: 197911 | Y184: 197811 | Z184: 1978-11-17 | AA184: 5 | AB184: 1 | AC184: 0.086532 | AD184: 0.0596607421
A185: 170 | B185: 2021-09-16 | C185: 84.940002 | D185: 85.129997 | E185: 83.879997 | F185: 84.019997 | G185: 5907500 | H185: 83.068161 | I185: 0.9886713159 | J185: 1 | K185: 83.98 | L185: 84.17 | M185: 82.93 | N185: 83.07 | O185: 5907500 | U185: 1979-08-20 | V185: 0.021633 | W185: 1.647066 | X185: 197908 | Y185: 197808 | Z185: 1978-08-21 | AA185: 5 | AB185: 1 | AC185: 0.084565 | AD185: 0.05134281201
A186: 171 | B186: 2021-09-15 | C186: 83.18 | D186: 85.059998 | E186: 82.830002 | F186: 84.870003 | G186: 5673400 | H186: 83.908539 | I186: 0.988671333 | J186: 1 | K186: 82.24 | L186: 84.1 | M186: 81.89 | N186: 83.91 | O186: 5673400 | U186: 1979-05-21 | V186: 0.021633 | W186: 1.465151 | X186: 197905 | Y186: 197805 | Z186: 1978-05-19 | AA186: 5 | AB186: 1 | AC186: 0.082598 | AD186: 0.0563750767
A187: 172 | B187: 2021-09-14 | C187: 83.800003 | D187: 83.839996 | E187: 82.260002 | F187: 82.739998 | G187: 5253300 | H187: 81.802666 | I187: 0.9886713558 | J187: 1 | K187: 82.85 | L187: 82.89 | M187: 81.33 | N187: 81.8 | O187: 5253300 | U187: 1979-02-16 | V187: 0.021633 | W187: 1.445485 | X187: 197902 | Y187: 197802 | Z187: 1978-02-17 | AA187: 5 | AB187: 1 | AC187: 0.080631 | AD187: 0.05578127756
A188: 173 | B188: 2021-09-13 | C188: 83.779999 | D188: 84.230003 | E188: 82.760002 | F188: 83.639999 | G188: 4768000 | H188: 82.692467 | I188: 0.9886713055 | J188: 1 | K188: 82.83 | L188: 83.28 | M188: 81.82 | N188: 82.69 | O188: 4768000 | U188: 1978-11-17 | V188: 0.019666 | W188: 1.425818 | X188: 197811 | Y188: 197711 | Z188: 1977-11-17 | AA188: 5 | AB188: 1 | AC188: 0.078664 | AD188: 0.05517113685
A189: 174 | B189: 2021-09-10 | C189: 84.18 | D189: 84.459999 | E189: 82.800003 | F189: 83 | G189: 3893400 | H189: 82.059715 | I189: 0.9886712651 | J189: 1 | K189: 83.23 | L189: 83.5 | M189: 81.86 | N189: 82.06 | O189: 3893400 | U189: 1978-08-21 | V189: 0.019666 | W189: 1.946979 | X189: 197808 | Y189: 197708 | Z189: 1977-08-23 | AA189: 5 | AB189: 1 | AC189: 0.076698 | AD189: 0.03939333706
A190: 175 | B190: 2021-09-09 | C190: 82.93 | D190: 84.349998 | E190: 82.730003 | F190: 83.660004 | G190: 4521200 | H190: 82.712242 | I190: 0.9886712652 | J190: 1 | K190: 81.99 | L190: 83.39 | M190: 81.79 | N190: 82.71 | O190: 4521200 | U190: 1978-05-19 | V190: 0.019666 | W190: 1.710982 | X190: 197805 | Y190: 197705 | Z190: 1977-05-25 | AA190: 5 | AB190: 1 | AC190: 0.074732 | AD190: 0.04367784115
A191: 176 | B191: 2021-09-08 | C191: 82.830002 | D191: 83.480003 | E191: 82.199997 | F191: 82.870003 | G191: 3911400 | H191: 81.93119 | I191: 0.9886712566 | J191: 1 | K191: 81.89 | L191: 82.53 | M191: 81.27 | N191: 81.93 | O191: 3911400 | U191: 1978-02-17 | V191: 0.019666 | W191: 1.337319 | X191: 197802 | Y191: 197702 | Z191: 1977-02-17 | AA191: 5 | AB191: 1 | AC191: 0.072766 | AD191: 0.05441184938
A192: 177 | B192: 2021-09-07 | C192: 83.360001 | D192: 83.650002 | E192: 82.360001 | F192: 83 | G192: 5701400 | H192: 82.059715 | I192: 0.9886712651 | J192: 1 | K192: 82.42 | L192: 82.7 | M192: 81.43 | N192: 82.06 | O192: 5701400 | U192: 1977-11-17 | V192: 0.0177 | W192: 1.430735 | X192: 197711 | Y192: 197611 | Z192: 1976-11-05 | AA192: 5 | AB192: 1 | AC192: 0.0649 | AD192: 0.04536130031
A193: 178 | B193: 2021-09-03 | C193: 84.379997 | D193: 84.629997 | E193: 83.5 | F193: 83.650002 | G193: 3300100 | H193: 82.702354 | I193: 0.9886712734 | J193: 1 | K193: 83.42 | L193: 83.67 | M193: 82.55 | N193: 82.7 | O193: 3300100 | U193: 1977-08-23 | V193: 0.0177 | W193: 1.386485 | X193: 197708 | Y193: 197608 | Z193: 1976-08-16 | AA193: 5 | AB193: 1 | AC193: 0.059 | AD193: 0.04255365186
A194: 179 | B194: 2021-09-02 | C194: 84.199997 | D194: 84.949997 | E194: 84.129997 | F194: 84.540001 | G194: 3471600 | H194: 83.582275 | I194: 0.9886713273 | J194: 1 | K194: 83.25 | L194: 83.99 | M194: 83.18 | N194: 83.58 | O194: 3471600 | U194: 1977-05-25 | V194: 0.0177 | W194: 1.494651 | X194: 197705 | Y194: 197605 | Z194: 1976-05-26 | AA194: 5 | AB194: 1 | AC194: 0.0531 | AD194: 0.03552668817
A195: 180 | B195: 2021-09-01 | C195: 85.139999 | D195: 85.139999 | E195: 83.919998 | F195: 84.099998 | G195: 4109000 | H195: 83.147255 | I195: 0.9886713077 | J195: 1 | K195: 84.18 | L195: 84.18 | M195: 82.97 | N195: 83.15 | O195: 4109000 | U195: 1977-02-17 | V195: 0.0118 | W195: 1.391402 | X195: 197702 | Y195: 197602 | Z195: 1976-02-19 | AA195: 5 | AB195: 1 | AC195: 0.0472 | AD195: 0.03392261906
A196: 181 | B196: 2021-08-31 | C196: 84.650002 | D196: 85.419998 | E196: 84.339996 | F196: 84.760002 | G196: 3969600 | H196: 83.799782 | I196: 0.9886713075 | J196: 1 | K196: 83.69 | L196: 84.45 | M196: 83.38 | N196: 83.8 | O196: 3969600 | U196: 1976-11-05 | V196: 0.0118 | W196: 1.347152 | X196: 197611 | Y196: 197511 | Z196: 1975-11-07 | AA196: 5 | AB196: 1 | AC196: 0.046708 | AD196: 0.03467166289
A197: 182 | B197: 2021-08-30 | C197: 85.489998 | D197: 85.519997 | E197: 84.699997 | F197: 84.800003 | G197: 2936800 | H197: 83.839333 | I197: 0.9886713447 | J197: 1 | K197: 84.52 | L197: 84.55 | M197: 83.74 | N197: 83.84 | O197: 2936800 | U197: 1976-08-16 | V197: 0.0118 | W197: 1.391402 | X197: 197608 | Y197: 197508 | Z197: 1975-08-11 | AA197: 5 | AB197: 1 | AC197: 0.044741 | AD197: 0.03215533685
A198: 183 | B198: 2021-08-27 | C198: 85.18 | D198: 86.139999 | E198: 85.150002 | F198: 85.400002 | G198: 3590400 | H198: 84.432526 | I198: 0.9886712415 | J198: 1 | K198: 84.22 | L198: 85.16 | M198: 84.19 | N198: 84.43 | O198: 3590400 | U198: 1976-05-26 | V198: 0.0118 | W198: 1.297986 | X198: 197605 | Y198: 197505 | Z198: 1975-05-19 | AA198: 5 | AB198: 1 | AC198: 0.042774 | AD198: 0.03295413048
A199: 184 | B199: 2021-08-26 | C199: 85.660004 | D199: 85.800003 | E199: 84.519997 | F199: 84.760002 | G199: 2596000 | H199: 83.799782 | I199: 0.9886713075 | J199: 1 | K199: 84.69 | L199: 84.83 | M199: 83.56 | N199: 83.8 | O199: 2596000 | U199: 1976-02-19 | V199: 0.011308 | W199: 1.066905 | X199: 197602 | Y199: 197502 | Z199: 1975-02-18 | AA199: 5 | AB199: 1 | AC199: 0.040807 | AD199: 0.03824801646
A200: 185 | B200: 2021-08-25 | C200: 85.620003 | D200: 86.440002 | E200: 85 | F200: 85.730003 | G200: 3195200 | H200: 84.758797 | I200: 0.9886713407 | J200: 1 | K200: 84.65 | L200: 85.46 | M200: 84.04 | N200: 84.76 | O200: 3195200 | U200: 1975-11-07 | V200: 0.009833 | W200: 0.95874 | X200: 197511 | Y200: 197411 | Z200: 1974-11-18 | AA200: 5 | AB200: 1 | AC200: 0.039332 | AD200: 0.04102467822
... 4300 more rows

Sheet InputPriceData2
A1: SPDR S&P 500 ETF Trust (SPY) -NYSEArca (Daily)
M2: To retrieve data for symbols traded on non US Exchanges, | II2: 241.79
A3: Request Online Yahoo History for: | F3: Market State == > | G3: As of | H3: 11:50:00 | I3: EDT. Market open. | M3: you will need to append the dot-suffix for the exchange to the symbol.
A4: Symbol | B4: SPY | D4: Valid | I4: =OFFSET(I4,-2,0,1,1) -> 0 | M4: The following links provide a description of how to use the exchange suffix
A5: From | B5: 1950-10-01 | D5: Data | M5: along with a list of suffixes for the major world exchanges. | AD5: Trailing 12 Div return (Cur Close)
A6: To | B6: =NOW() -> 2022-05-18T11:51:54.280 | D6: Types | E6: =VLOOKUP(B7,D7:E10,2,FALSE) -> d | M6: https://help.yahoo.com/kb/finance/SLN2310.html
A7: Data Type | B7: Daily | D7: Daily | E7: d | M7: And
A8: Crumb | B8: caBkzkYhnOq | D8: Weekly | E8: w | M8: https://www.stockmarketeye.com/users-guide/ticker-symbols-and-data-providers/data-providers.html
A9: Available Data | D9: Monthly | E9: m
A10: Bar Count: | B10: 7380 | M10: You may search on “exchange suffixes” for additional discussions | AD10: =OFFSET(AC15,1,0,1,1)/OFFSET(N15,1,0,1,1) -> 0.01460131344
A11: From: | B11: =IF(B10<=0,"",OFFSET(B15,B10,IF(HistReqDataType="v",1,0),1,1)) -> 1993-01-29 | W11: Trailing 12 Month Dividend Returns
A12: To: | B12: =IF(B10<=0,"",IF(HistReqDataType="v",OFFSET(B15,2,1,1,1),OFFSET(B15,1,0,1,1))) -> 2022-05-18 | W12: Raw Close price on Dividend date | X12: Div Year and Month | Y12: Looking for year ago Div Year and Month | Z12: Year ago Div Date we found | AA12: row offset to year ago div Date | AB12: Same month flag | AC12: Trailing 12 Div Total | AD12: Trailing 12 Div return
Q13: Split History | S13: 0 | T13: Running | U13: Dividend History
B14: Raw Data Values | H14: Adjusted | I14: Price Adjust | J14: Vol Adjust | K14: Adjusted Values | P14: Last | Q14: Effective | R14: Shares | T14: Vol Adjust | V14: 118
A15: RelRow | B15: Date | C15: Open | D15: High | E15: Low | F15: Close | G15: Volume | H15: Close | I15: Factor | J15: Factor | K15: Open | L15: High | M15: Low | N15: Close | O15: Volume | P15: Trade | Q15: 44700 | R15: New | S15: Old | T15: 1 | U15: Date | V15: $ / Share
A16: 1 | B16: 2022-05-18 | C16: 403.5 | D16: 403.799988 | E16: 396.529999 | F16: 397.429993 | G16: 30358470 | H16: 397.429993 | I16: =IF(F16=0,1,H16/F16) -> 1 | J16: =INDEX(OFFSET($T$15,0,0,$S$13+1,1),MATCH(B16,OFFSET($Q$15,0,0,$S$13+1,1),-1)) -> 1 | K16: =ROUND($I16*C16,2) -> 403.5 | L16: =ROUND($I16*D16,2) -> 403.8 | M16: 396.53 | N16: 397.43 | O16: =G16*J16 -> 30358470 | U16: 2022-03-18 | V16: 1.366 | W16: =(INDEX(OFFSET($F$15,1,0,$B$10,1),MATCH(U16,OFFSET($B$15,1,0,$B$10,1),-1))) -> 444.519989 | X16: =YEAR(U16)&RIGHT("0"&MONTH(U16),2) -> 202203 | Y16: =YEAR(U16)-1&RIGHT("0"&MONTH(U16),2) -> 202103 | Z16: =OFFSET(U15,AA16,0,1,1) -> 2021-03-19 | AA16: =MATCH(Y16,OFFSET($X$15,A16,0,$V$14+1-A16,1),-1) -> 5 | AB16: =IF(OR(AND(YEAR(U16)=YEAR(Z16),MONTH(U16)=MONTH(Z16)),MONTH(U16)=MONTH(Z16)),1,0) -> 1 | AC16: =(V16+IF(AA16-AB16=0,0,IFERROR(SUM(OFFSET(V16,1,0,AA16-AB16-1,1)),0))) -> 5.803 | AD16: =AC16/(INDEX(OFFSET($F$15,1,0,$B$10,1),MATCH(U16,OFFSET($B$15,1,0,$B$10,1),-1))) -> 0.01305453105
A17: 2 | B17: 2022-05-17 | C17: 406.529999 | D17: 408.570007 | E17: 402.579987 | F17: 408.320007 | G17: 82904700 | H17: 408.320007 | I17: =IF(F17=0,1,H17/F17) -> 1 | J17: =INDEX(OFFSET($T$15,0,0,$S$13+1,1),MATCH(B17,OFFSET($Q$15,0,0,$S$13+1,1),-1)) -> 1 | K17: =ROUND($I17*C17,2) -> 406.53 | L17: =ROUND($I17*D17,2) -> 408.57 | M17: =ROUND($I17*E17,2) -> 402.58 | N17: =ROUND($I17*F17,2) -> 408.32 | O17: =G17*J17 -> 82904700 | U17: 2021-12-17 | V17: 1.633 | W17: =(INDEX(OFFSET($F$15,1,0,$B$10,1),MATCH(U17,OFFSET($B$15,1,0,$B$10,1),-1))) -> 459.869995 | X17: =YEAR(U17)&RIGHT("0"&MONTH(U17),2) -> 202112 | Y17: =YEAR(U17)-1&RIGHT("0"&MONTH(U17),2) -> 202012 | Z17: =OFFSET(U16,AA17,0,1,1) -> 2020-12-18 | AA17: =MATCH(Y17,OFFSET($X$15,A17,0,$V$14+1-A17,1),-1) -> 5 | AB17: =IF(OR(AND(YEAR(U17)=YEAR(Z17),MONTH(U17)=MONTH(Z17)),MONTH(U17)=MONTH(Z17)),1,0) -> 1 | AC17: =(V17+IF(AA17-AB17=0,0,IFERROR(SUM(OFFSET(V17,1,0,AA17-AB17-1,1)),0))) -> 5.715 | AD17: =AC17/(INDEX(OFFSET($F$15,1,0,$B$10,1),MATCH(U17,OFFSET($B$15,1,0,$B$10,1),-1))) -> 0.01242742528
A18: 3 | B18: 2022-05-16 | C18: 399.980011 | D18: 403.970001 | E18: 397.600006 | F18: 400.089996 | G18: 78622400 | H18: 400.089996 | I18: 1 | J18: 1 | K18: 399.98 | L18: 403.97 | M18: 397.6 | N18: 400.09 | O18: 78622400 | U18: 2021-09-17 | V18: 1.428 | W18: 441.399994 | X18: 202109 | Y18: 202009 | Z18: 2020-09-18 | AA18: 5 | AB18: 1 | AC18: 5.662 | AD18: 0.01282736764
A19: 4 | B19: 2022-05-13 | C19: 396.709991 | D19: 403.179993 | E19: 395.609985 | F19: 401.720001 | G19: 104029300 | H19: 401.720001 | I19: 1 | J19: 1 | K19: 396.71 | L19: 403.18 | M19: 395.61 | N19: 401.72 | O19: 104029300 | U19: 2021-06-18 | V19: 1.376 | W19: 414.920013 | X19: 202106 | Y19: 202006 | Z19: 2020-06-19 | AA19: 5 | AB19: 1 | AC19: 5.573 | AD19: 0.01343150445
A20: 5 | B20: 2022-05-12 | C20: 389.369995 | D20: 395.799988 | E20: 385.149994 | F20: 392.339996 | G20: 125090800 | H20: 392.339996 | I20: 1 | J20: 1 | K20: 389.37 | L20: 395.8 | M20: 385.15 | N20: 392.34 | O20: 125090800 | U20: 2021-03-19 | V20: 1.278 | W20: 389.480011 | X20: 202103 | Y20: 202003 | Z20: 2020-03-20 | AA20: 5 | AB20: 1 | AC20: 5.563 | AD20: 0.01428314636
A21: 6 | B21: 2022-05-11 | C21: 398.070007 | D21: 404.040009 | E21: 391.959991 | F21: 392.75 | G21: 142361000 | H21: 392.75 | I21: 1 | J21: 1 | K21: 398.07 | L21: 404.04 | M21: 391.96 | N21: 392.75 | O21: 142361000 | U21: 2020-12-18 | V21: 1.58 | W21: 369.179993 | X21: 202012 | Y21: 201912 | Z21: 2019-12-20 | AA21: 5 | AB21: 1 | AC21: 5.691 | AD21: 0.01541524489
A22: 7 | B22: 2022-05-10 | C22: 404.48999 | D22: 406.079987 | E22: 394.820007 | F22: 399.089996 | G22: 132497200 | H22: 399.089996 | I22: 1 | J22: 1 | K22: 404.49 | L22: 406.08 | M22: 394.82 | N22: 399.09 | O22: 132497200 | U22: 2020-09-18 | V22: 1.339 | W22: 330.649994 | X22: 202009 | Y22: 201909 | Z22: 2019-09-20 | AA22: 5 | AB22: 1 | AC22: 5.681 | AD22: 0.01718130985
A23: 8 | B23: 2022-05-09 | C23: 405.100006 | D23: 406.410004 | E23: 396.5 | F23: 398.170013 | G23: 155586100 | H23: 398.170013 | I23: 1 | J23: 1 | K23: 405.1 | L23: 406.41 | M23: 396.5 | N23: 398.17 | O23: 155586100 | U23: 2020-06-19 | V23: 1.366 | W23: 308.640015 | X23: 202006 | Y23: 201906 | Z23: 2019-06-21 | AA23: 5 | AB23: 1 | AC23: 5.726 | AD23: 0.01855235783
A24: 9 | B24: 2022-05-06 | C24: 411.100006 | D24: 414.799988 | E24: 405.730011 | F24: 411.339996 | G24: 151671300 | H24: 411.339996 | I24: 1 | J24: 1 | K24: 411.1 | L24: 414.8 | M24: 405.73 | N24: 411.34 | O24: 151671300 | U24: 2020-03-20 | V24: 1.406 | W24: 228.800003 | X24: 202003 | Y24: 201903 | Z24: 2019-03-15 | AA24: 5 | AB24: 1 | AC24: 5.792 | AD24: 0.02531468498
A25: 10 | B25: 2022-05-05 | C25: 424.549988 | D25: 425 | E25: 409.440002 | F25: 413.809998 | G25: 172929100 | H25: 413.809998 | I25: 1 | J25: 1 | K25: 424.55 | L25: 425 | M25: 409.44 | N25: 413.81 | O25: 172929100 | U25: 2019-12-20 | V25: 1.57 | W25: 320.730011 | X25: 201912 | Y25: 201812 | Z25: 2018-12-21 | AA25: 5 | AB25: 1 | AC25: 5.619 | AD25: 0.01751940825
A26: 11 | B26: 2022-05-04 | C26: 417.079987 | D26: 429.660004 | E26: 413.709991 | F26: 429.059998 | G26: 144247900 | H26: 429.059998 | I26: 1 | J26: 1 | K26: 417.08 | L26: 429.66 | M26: 413.71 | N26: 429.06 | O26: 144247900 | U26: 2019-09-20 | V26: 1.384 | W26: 298.279999 | X26: 201909 | Y26: 201809 | Z26: 2018-09-21 | AA26: 5 | AB26: 1 | AC26: 5.484 | AD26: 0.01838540974
A27: 12 | B27: 2022-05-03 | C27: 415.01001 | D27: 418.929993 | E27: 413.359985 | F27: 416.380005 | G27: 100028200 | H27: 416.380005 | I27: 1 | J27: 1 | K27: 415.01 | L27: 418.93 | M27: 413.36 | N27: 416.38 | O27: 100028200 | U27: 2019-06-21 | V27: 1.432 | W27: 294 | X27: 201906 | Y27: 201806 | Z27: 2018-06-15 | AA27: 5 | AB27: 1 | AC27: 5.423 | AD27: 0.01844557823
A28: 13 | B28: 2022-05-02 | C28: 412.070007 | D28: 415.920013 | E28: 405.019989 | F28: 414.480011 | G28: 158312500 | H28: 414.480011 | I28: 1 | J28: 1 | K28: 412.07 | L28: 415.92 | M28: 405.02 | N28: 414.48 | O28: 158312500 | U28: 2019-03-15 | V28: 1.233 | W28: 281.309998 | X28: 201903 | Y28: 201803 | Z28: 2018-03-16 | AA28: 5 | AB28: 1 | AC28: 5.237 | AD28: 0.01861647306
A29: 14 | B29: 2022-04-29 | C29: 423.589996 | D29: 425.869995 | E29: 411.209991 | F29: 412 | G29: 145187900 | H29: 412 | I29: 1 | J29: 1 | K29: 423.59 | L29: 425.87 | M29: 411.21 | N29: 412 | O29: 145187900 | U29: 2018-12-21 | V29: 1.435 | W29: 240.699997 | X29: 201812 | Y29: 201712 | Z29: 2017-12-15 | AA29: 5 | AB29: 1 | AC29: 5.101 | AD29: 0.02119235589
A30: 15 | B30: 2022-04-28 | C30: 422.290009 | D30: 429.640015 | E30: 417.600006 | F30: 427.809998 | G30: 105449100 | H30: 427.809998 | I30: 1 | J30: 1 | K30: 422.29 | L30: 429.64 | M30: 417.6 | N30: 427.81 | O30: 105449100 | U30: 2018-09-21 | V30: 1.323 | W30: 291.98999 | X30: 201809 | Y30: 201709 | Z30: 2017-09-15 | AA30: 5 | AB30: 1 | AC30: 5.017 | AD30: 0.01718209587
A31: 16 | B31: 2022-04-27 | C31: 417.23999 | D31: 422.920013 | E31: 415.01001 | F31: 417.269989 | G31: 122030000 | H31: 417.269989 | I31: 1 | J31: 1 | K31: 417.24 | L31: 422.92 | M31: 415.01 | N31: 417.27 | O31: 122030000 | U31: 2018-06-15 | V31: 1.246 | W31: 277.130005 | X31: 201806 | Y31: 201706 | Z31: 2017-06-16 | AA31: 5 | AB31: 1 | AC31: 4.929 | AD31: 0.01778587634
A32: 17 | B32: 2022-04-26 | C32: 425.829987 | D32: 426.040009 | E32: 416.070007 | F32: 416.100006 | G32: 103996300 | H32: 416.100006 | I32: 1 | J32: 1 | K32: 425.83 | L32: 426.04 | M32: 416.07 | N32: 416.1 | O32: 103996300 | U32: 2018-03-16 | V32: 1.097 | W32: 274.200012 | X32: 201803 | Y32: 201703 | Z32: 2017-03-17 | AA32: 5 | AB32: 1 | AC32: 4.866 | AD32: 0.0177461699
A33: 18 | B33: 2022-04-25 | C33: 423.670013 | D33: 428.690002 | E33: 418.839996 | F33: 428.51001 | G33: 119647700 | H33: 428.51001 | I33: 1 | J33: 1 | K33: 423.67 | L33: 428.69 | M33: 418.84 | N33: 428.51 | O33: 119647700 | U33: 2017-12-15 | V33: 1.351 | W33: 266.51001 | X33: 201712 | Y33: 201612 | Z33: 2016-12-16 | AA33: 5 | AB33: 1 | AC33: 4.802 | AD33: 0.01801808495
A34: 19 | B34: 2022-04-22 | C34: 436.910004 | D34: 438.079987 | E34: 425.440002 | F34: 426.040009 | G34: 132471800 | H34: 426.040009 | I34: 1 | J34: 1 | K34: 436.91 | L34: 438.08 | M34: 425.44 | N34: 426.04 | O34: 132471800 | U34: 2017-09-15 | V34: 1.235 | W34: 249.190002 | X34: 201709 | Y34: 201609 | Z34: 2016-09-16 | AA34: 5 | AB34: 1 | AC34: 4.78 | AD34: 0.01918215001
A35: 20 | B35: 2022-04-21 | C35: 448.540009 | D35: 450.01001 | E35: 437.100006 | F35: 438.059998 | G35: 85417300 | H35: 438.059998 | I35: 1 | J35: 1 | K35: 448.54 | L35: 450.01 | M35: 437.1 | N35: 438.06 | O35: 85417300 | U35: 2017-06-16 | V35: 1.183 | W35: 242.639999 | X35: 201706 | Y35: 201606 | Z35: 2016-06-17 | AA35: 5 | AB35: 1 | AC35: 4.627 | AD35: 0.01906940331
A36: 21 | B36: 2022-04-20 | C36: 446.920013 | D36: 447.570007 | E36: 443.480011 | F36: 444.709991 | G36: 65224400 | H36: 444.709991 | I36: 1 | J36: 1 | K36: 446.92 | L36: 447.57 | M36: 443.48 | N36: 444.71 | O36: 65224400 | U36: 2017-03-17 | V36: 1.033 | W36: 237.029999 | X36: 201703 | Y36: 201603 | Z36: 2016-03-18 | AA36: 5 | AB36: 1 | AC36: 4.522 | AD36: 0.01907775395
A37: 22 | B37: 2022-04-19 | C37: 437.859985 | D37: 445.799988 | E37: 437.679993 | F37: 445.040009 | G37: 77821000 | H37: 445.040009 | I37: 1 | J37: 1 | K37: 437.86 | L37: 445.8 | M37: 437.68 | N37: 445.04 | O37: 77821000 | U37: 2016-12-16 | V37: 1.329 | W37: 225.039993 | X37: 201612 | Y37: 201512 | Z37: 2015-12-18 | AA37: 5 | AB37: 1 | AC37: 4.539 | AD37: 0.02016974823
A38: 23 | B38: 2022-04-18 | C38: 436.809998 | D38: 439.75 | E38: 435.609985 | F38: 437.970001 | G38: 66002500 | H38: 437.970001 | I38: 1 | J38: 1 | K38: 436.81 | L38: 439.75 | M38: 435.61 | N38: 437.97 | O38: 66002500 | U38: 2016-09-16 | V38: 1.082 | W38: 213.369995 | X38: 201609 | Y38: 201509 | Z38: 2015-09-18 | AA38: 5 | AB38: 1 | AC38: 4.422 | AD38: 0.02072456345
A39: 24 | B39: 2022-04-14 | C39: 443.549988 | D39: 444.730011 | E39: 437.679993 | F39: 437.790009 | G39: 97869500 | H39: 437.790009 | I39: 1 | J39: 1 | K39: 443.55 | L39: 444.73 | M39: 437.68 | N39: 437.79 | O39: 97869500 | U39: 2016-06-17 | V39: 1.078 | W39: 206.520004 | X39: 201606 | Y39: 201506 | Z39: 2015-06-19 | AA39: 5 | AB39: 1 | AC39: 4.373 | AD39: 0.02117470422
A40: 25 | B40: 2022-04-13 | C40: 438.029999 | D40: 444.109985 | E40: 437.839996 | F40: 443.309998 | G40: 74070400 | H40: 443.309998 | I40: 1 | J40: 1 | K40: 438.03 | L40: 444.11 | M40: 437.84 | N40: 443.31 | O40: 74070400 | U40: 2016-03-18 | V40: 1.05 | W40: 204.380005 | X40: 201603 | Y40: 201503 | Z40: 2015-03-20 | AA40: 5 | AB40: 1 | AC40: 4.325 | AD40: 0.02116156128
A41: 26 | B41: 2022-04-12 | C41: 443.079987 | D41: 445.75 | E41: 436.649994 | F41: 438.290009 | G41: 84363600 | H41: 438.290009 | I41: 1 | J41: 1 | K41: 443.08 | L41: 445.75 | M41: 436.65 | N41: 438.29 | O41: 84363600 | U41: 2015-12-18 | V41: 1.212 | W41: 200.020004 | X41: 201512 | Y41: 201412 | Z41: 2014-12-19 | AA41: 5 | AB41: 1 | AC41: 4.206 | AD41: 0.02102789679
A42: 27 | B42: 2022-04-11 | C42: 444.109985 | D42: 445 | E42: 439.390015 | F42: 439.920013 | G42: 89770500 | H42: 439.920013 | I42: 1 | J42: 1 | K42: 444.11 | L42: 445 | M42: 439.39 | N42: 439.92 | O42: 89770500 | U42: 2015-09-18 | V42: 1.033 | W42: 195.449997 | X42: 201509 | Y42: 201409 | Z42: 2014-09-19 | AA42: 5 | AB42: 1 | AC42: 4.129 | AD42: 0.0211256079
A43: 28 | B43: 2022-04-08 | C43: 447.970001 | D43: 450.630005 | E43: 445.940002 | F43: 447.570007 | G43: 79272700 | H43: 447.570007 | I43: 1 | J43: 1 | K43: 447.97 | L43: 450.63 | M43: 445.94 | N43: 447.57 | O43: 79272700 | U43: 2015-06-19 | V43: 1.03 | W43: 210.809998 | X43: 201506 | Y43: 201406 | Z43: 2014-06-20 | AA43: 5 | AB43: 1 | AC43: 4.035 | AD43: 0.01914045841
A44: 29 | B44: 2022-04-07 | C44: 445.589996 | D44: 450.690002 | E44: 443.529999 | F44: 448.769989 | G44: 78097200 | H44: 448.769989 | I44: 1 | J44: 1 | K44: 445.59 | L44: 450.69 | M44: 443.53 | N44: 448.77 | O44: 78097200 | U44: 2015-03-20 | V44: 0.931 | W44: 210.410004 | X44: 201503 | Y44: 201403 | Z44: 2014-03-21 | AA44: 5 | AB44: 1 | AC44: 3.942 | AD44: 0.01873485065
A45: 30 | B45: 2022-04-06 | C45: 446.890015 | D45: 448.929993 | E45: 443.470001 | F45: 446.519989 | G45: 106898000 | H45: 446.519989 | I45: 1 | J45: 1 | K45: 446.89 | L45: 448.93 | M45: 443.47 | N45: 446.52 | O45: 106898000 | U45: 2014-12-19 | V45: 1.135 | W45: 206.520004 | X45: 201412 | Y45: 201312 | Z45: 2013-12-20 | AA45: 5 | AB45: 1 | AC45: 3.836 | AD45: 0.01857447185
A46: 31 | B46: 2022-04-05 | C46: 455.220001 | D46: 457.829987 | E46: 449.820007 | F46: 451.029999 | G46: 74214500 | H46: 451.029999 | I46: 1 | J46: 1 | K46: 455.22 | L46: 457.83 | M46: 449.82 | N46: 451.03 | O46: 74214500 | U46: 2014-09-19 | V46: 0.939 | W46: 200.699997 | X46: 201409 | Y46: 201309 | Z46: 2013-09-20 | AA46: 5 | AB46: 1 | AC46: 3.681 | AD46: 0.01834080745
A47: 32 | B47: 2022-04-04 | C47: 453.130005 | D47: 456.910004 | E47: 452.26001 | F47: 456.799988 | G47: 59601000 | H47: 456.799988 | I47: 1 | J47: 1 | K47: 453.13 | L47: 456.91 | M47: 452.26 | N47: 456.8 | O47: 59601000 | U47: 2014-06-20 | V47: 0.937 | W47: 195.940002 | X47: 201406 | Y47: 201306 | Z47: 2013-06-21 | AA47: 5 | AB47: 1 | AC47: 3.58 | AD47: 0.01827089907
A48: 33 | B48: 2022-04-01 | C48: 453.309998 | D48: 453.459991 | E48: 449.140015 | F48: 452.920013 | G48: 89048800 | H48: 452.920013 | I48: 1 | J48: 1 | K48: 453.31 | L48: 453.46 | M48: 449.14 | N48: 452.92 | O48: 89048800 | U48: 2014-03-21 | V48: 0.825 | W48: 186.199997 | X48: 201403 | Y48: 201303 | Z48: 2013-03-15 | AA48: 5 | AB48: 1 | AC48: 3.482 | AD48: 0.01870032254
A49: 34 | B49: 2022-03-31 | C49: 457.890015 | D49: 458.76001 | E49: 451.160004 | F49: 451.640015 | G49: 121699900 | H49: 451.640015 | I49: 1 | J49: 1 | K49: 457.89 | L49: 458.76 | M49: 451.16 | N49: 451.64 | O49: 121699900 | U49: 2013-12-20 | V49: 0.98 | W49: 181.559998 | X49: 201312 | Y49: 201212 | Z49: 2012-12-21 | AA49: 5 | AB49: 1 | AC49: 3.351 | AD49: 0.01845670873
A50: 35 | B50: 2022-03-30 | C50: 460.339996 | D50: 461.200012 | E50: 456.470001 | F50: 458.700012 | G50: 79666900 | H50: 458.700012 | I50: 1 | J50: 1 | K50: 460.34 | L50: 461.2 | M50: 456.47 | N50: 458.7 | O50: 79666900 | U50: 2013-09-20 | V50: 0.838 | W50: 170.720001 | X50: 201309 | Y50: 201209 | Z50: 2012-09-21 | AA50: 5 | AB50: 1 | AC50: 3.393 | AD50: 0.01987464843
A51: 36 | B51: 2022-03-29 | C51: 460.019989 | D51: 462.070007 | E51: 457.179993 | F51: 461.549988 | G51: 86581500 | H51: 461.549988 | I51: 1 | J51: 1 | K51: 460.02 | L51: 462.07 | M51: 457.18 | N51: 461.55 | O51: 86581500 | U51: 2013-06-21 | V51: 0.839 | W51: 159.070007 | X51: 201306 | Y51: 201206 | Z51: 2012-06-15 | AA51: 5 | AB51: 1 | AC51: 3.334 | AD51: 0.02095932516
A52: 37 | B52: 2022-03-28 | C52: 452.059998 | D52: 455.910004 | E52: 450.059998 | F52: 455.910004 | G52: 68529800 | H52: 455.910004 | I52: 1 | J52: 1 | K52: 452.06 | L52: 455.91 | M52: 450.06 | N52: 455.91 | O52: 68529800 | U52: 2013-03-15 | V52: 0.694 | W52: 155.830002 | X52: 201303 | Y52: 201203 | Z52: 2012-03-16 | AA52: 5 | AB52: 1 | AC52: 3.183 | AD52: 0.02042610511
A53: 38 | B53: 2022-03-25 | C53: 451.160004 | D53: 452.980011 | E53: 448.429993 | F53: 452.690002 | G53: 77101300 | H53: 452.690002 | I53: 1 | J53: 1 | K53: 451.16 | L53: 452.98 | M53: 448.43 | N53: 452.69 | O53: 77101300 | U53: 2012-12-21 | V53: 1.022 | W53: 142.789993 | X53: 201212 | Y53: 201112 | Z53: 2011-12-16 | AA53: 5 | AB53: 1 | AC53: 3.103 | AD53: 0.02173121474
A54: 39 | B54: 2022-03-24 | C54: 445.940002 | D54: 450.5 | E54: 444.76001 | F54: 450.48999 | G54: 64736900 | H54: 450.48999 | I54: 1 | J54: 1 | K54: 445.94 | L54: 450.5 | M54: 444.76 | N54: 450.49 | O54: 64736900 | U54: 2012-09-21 | V54: 0.779 | W54: 145.869995 | X54: 201209 | Y54: 201109 | Z54: 2011-09-16 | AA54: 5 | AB54: 1 | AC54: 2.851 | AD54: 0.01954480083
A55: 40 | B55: 2022-03-23 | C55: 446.910004 | D55: 448.48999 | E55: 443.709991 | F55: 443.799988 | G55: 79426100 | H55: 443.799988 | I55: 1 | J55: 1 | K55: 446.91 | L55: 448.49 | M55: 443.71 | N55: 443.8 | O55: 79426100 | U55: 2012-06-15 | V55: 0.688 | W55: 134.139999 | X55: 201206 | Y55: 201106 | Z55: 2011-06-17 | AA55: 5 | AB55: 1 | AC55: 2.697 | AD55: 0.0201058597
A56: 41 | B56: 2022-03-22 | C56: 445.859985 | D56: 450.579987 | E56: 445.859985 | F56: 449.589996 | G56: 74650400 | H56: 449.589996 | I56: 1 | J56: 1 | K56: 445.86 | L56: 450.58 | M56: 445.86 | N56: 449.59 | O56: 74650400 | U56: 2012-03-16 | V56: 0.614 | W56: 140.300003 | X56: 201203 | Y56: 201103 | Z56: 2011-03-18 | AA56: 5 | AB56: 1 | AC56: 2.637 | AD56: 0.01879543794
A57: 42 | B57: 2022-03-21 | C57: 444.339996 | D57: 446.459991 | E57: 440.679993 | F57: 444.390015 | G57: 88349800 | H57: 444.390015 | I57: 1 | J57: 1 | K57: 444.34 | L57: 446.46 | M57: 440.68 | N57: 444.39 | O57: 88349800 | U57: 2011-12-16 | V57: 0.77 | W57: 121.589996 | X57: 201112 | Y57: 201012 | Z57: 2010-12-17 | AA57: 5 | AB57: 1 | AC57: 2.576 | AD57: 0.02118595349
A58: 43 | B58: 2022-03-18 | C58: 438 | D58: 444.859985 | E58: 437.220001 | F58: 444.519989 | G58: 106345500 | H58: 444.519989 | I58: 1 | J58: 1 | K58: 438 | L58: 444.86 | M58: 437.22 | N58: 444.52 | O58: 106345500 | U58: 2011-09-16 | V58: 0.625 | W58: 121.519997 | X58: 201109 | Y58: 201009 | Z58: 2010-09-17 | AA58: 5 | AB58: 1 | AC58: 2.459 | AD58: 0.0202353527
A59: 44 | B59: 2022-03-17 | C59: 433.589996 | D59: 441.070007 | E59: 433.190002 | F59: 441.070007 | G59: 102676900 | H59: 439.70401 | I59: 0.9969029928 | J59: 1 | K59: 432.25 | L59: 439.7 | M59: 431.85 | N59: 439.7 | O59: 102676900 | U59: 2011-06-17 | V59: 0.628 | W59: 127.050003 | X59: 201106 | Y59: 201006 | Z59: 2010-06-18 | AA59: 5 | AB59: 1 | AC59: 2.436 | AD59: 0.01917355327
A60: 45 | B60: 2022-03-16 | C60: 429.890015 | D60: 435.679993 | E60: 424.799988 | F60: 435.619995 | G60: 144954800 | H60: 434.270874 | I60: 0.9969029865 | J60: 1 | K60: 428.56 | L60: 434.33 | M60: 423.48 | N60: 434.27 | O60: 144954800 | U60: 2011-03-18 | V60: 0.553 | W60: 127.760002 | X60: 201103 | Y60: 201003 | Z60: 2010-03-19 | AA60: 5 | AB60: 1 | AC60: 2.339 | AD60: 0.01830776427
A61: 46 | B61: 2022-03-15 | C61: 419.769989 | D61: 426.839996 | E61: 418.420013 | F61: 426.170013 | G61: 106219100 | H61: 424.850159 | I61: 0.9969029872 | J61: 1 | K61: 418.47 | L61: 425.52 | M61: 417.12 | N61: 424.85 | O61: 106219100 | U61: 2010-12-17 | V61: 0.653 | W61: 124.300003 | X61: 201012 | Y61: 200912 | Z61: 2009-12-18 | AA61: 5 | AB61: 1 | AC61: 2.266 | AD61: 0.01823008806
A62: 47 | B62: 2022-03-14 | C62: 420.890015 | D62: 424.549988 | E62: 415.790009 | F62: 417 | G62: 95729200 | H62: 415.708557 | I62: 0.9969030144 | J62: 1 | K62: 419.59 | L62: 423.24 | M62: 414.5 | N62: 415.71 | O62: 95729200 | U62: 2010-09-17 | V62: 0.602 | W62: 112.489998 | X62: 201009 | Y62: 200909 | Z62: 2009-09-18 | AA62: 5 | AB62: 1 | AC62: 2.203 | AD62: 0.01958396337
A63: 48 | B63: 2022-03-11 | C63: 428.119995 | D63: 428.769989 | E63: 419.529999 | F63: 420.070007 | G63: 95636300 | H63: 418.769043 | I63: 0.9969029829 | J63: 1 | K63: 426.79 | L63: 427.44 | M63: 418.23 | N63: 418.77 | O63: 95636300 | U63: 2010-06-18 | V63: 0.531 | W63: 111.730003 | X63: 201006 | Y63: 200906 | Z63: 2009-06-19 | AA63: 5 | AB63: 1 | AC63: 2.109 | AD63: 0.01887586094
A64: 49 | B64: 2022-03-10 | C64: 422.519989 | D64: 426.429993 | E64: 420.440002 | F64: 425.480011 | G64: 93972700 | H64: 424.162292 | I64: 0.9969029826 | J64: 1 | K64: 421.21 | L64: 425.11 | M64: 419.14 | N64: 424.16 | O64: 93972700 | U64: 2010-03-19 | V64: 0.48 | W64: 115.970001 | X64: 201003 | Y64: 200903 | Z64: 2009-03-20 | AA64: 5 | AB64: 1 | AC64: 2.096 | AD64: 0.01807363958
A65: 50 | B65: 2022-03-09 | C65: 425.140015 | D65: 429.51001 | E65: 422.820007 | F65: 427.410004 | G65: 116990800 | H65: 426.086304 | I65: 0.9969029738 | J65: 1 | K65: 423.82 | L65: 428.18 | M65: 421.51 | N65: 426.09 | O65: 116990800 | U65: 2009-12-18 | V65: 0.59 | W65: 110.209999 | X65: 200912 | Y65: 200812 | Z65: 2008-12-19 | AA65: 5 | AB65: 1 | AC65: 2.177 | AD65: 0.01975319862
A66: 51 | B66: 2022-03-08 | C66: 419.619995 | D66: 427.209991 | E66: 415.119995 | F66: 416.25 | G66: 164772700 | H66: 414.960876 | I66: 0.9969030054 | J66: 1 | K66: 418.32 | L66: 425.89 | M66: 413.83 | N66: 414.96 | O66: 164772700 | U66: 2009-09-18 | V66: 0.508 | W66: 106.720001 | X66: 200909 | Y66: 200809 | Z66: 2008-09-19 | AA66: 5 | AB66: 1 | AC66: 2.306 | AD66: 0.02160794582
A67: 52 | B67: 2022-03-07 | C67: 431.549988 | D67: 432.299988 | E67: 419.359985 | F67: 419.429993 | G67: 137896600 | H67: 418.131012 | I67: 0.996902985 | J67: 1 | K67: 430.21 | L67: 430.96 | M67: 418.06 | N67: 418.13 | O67: 137896600 | U67: 2009-06-19 | V67: 0.518 | W67: 92.040001 | X67: 200906 | Y67: 200806 | Z67: 2008-06-20 | AA67: 5 | AB67: 1 | AC67: 2.489 | AD67: 0.02704258988
A68: 53 | B68: 2022-03-04 | C68: 431.75 | D68: 433.369995 | E68: 427.880005 | F68: 432.170013 | G68: 113978200 | H68: 430.831573 | I68: 0.9969029781 | J68: 1 | K68: 430.41 | L68: 432.03 | M68: 426.55 | N68: 430.83 | O68: 113978200 | U68: 2009-03-20 | V68: 0.561 | W68: 76.709999 | X68: 200903 | Y68: 200803 | Z68: 2008-03-20 | AA68: 5 | AB68: 1 | AC68: 2.64 | AD68: 0.03441533091
A69: 54 | B69: 2022-03-03 | C69: 440.470001 | D69: 441.109985 | E69: 433.799988 | F69: 435.709991 | G69: 105501700 | H69: 434.360596 | I69: 0.9969029973 | J69: 1 | K69: 439.11 | L69: 439.74 | M69: 432.46 | N69: 434.36 | O69: 105501700 | U69: 2008-12-19 | V69: 0.719 | W69: 88.190002 | X69: 200812 | Y69: 200712 | Z69: 2007-12-21 | AA69: 5 | AB69: 1 | AC69: 2.721 | AD69: 0.0308538376
A70: 55 | B70: 2022-03-02 | C70: 432.369995 | D70: 439.720001 | E70: 431.570007 | F70: 437.890015 | G70: 117726500 | H70: 436.533875 | I70: 0.9969030123 | J70: 1 | K70: 431.03 | L70: 438.36 | M70: 430.23 | N70: 436.53 | O70: 117726500 | U70: 2008-09-19 | V70: 0.691 | W70: 124.120003 | X70: 200809 | Y70: 200709 | Z70: 2007-09-21 | AA70: 5 | AB70: 1 | AC70: 2.777 | AD70: 0.02237350897
A71: 56 | B71: 2022-03-01 | C71: 435.040009 | D71: 437.170013 | E71: 427.109985 | F71: 429.980011 | G71: 137785900 | H71: 428.648376 | I71: 0.9969030305 | J71: 1 | K71: 433.69 | L71: 435.82 | M71: 425.79 | N71: 428.65 | O71: 137785900 | U71: 2008-06-20 | V71: 0.669 | W71: 131.580002 | X71: 200806 | Y71: 200706 | Z71: 2007-06-15 | AA71: 5 | AB71: 1 | AC71: 2.805 | AD71: 0.02131782913
A72: 57 | B72: 2022-02-28 | C72: 432.029999 | D72: 438.200012 | E72: 430.700012 | F72: 436.630005 | G72: 145615000 | H72: 435.277771 | I72: 0.9969030209 | J72: 1 | K72: 430.69 | L72: 436.84 | M72: 429.37 | N72: 435.28 | O72: 145615000 | U72: 2008-03-20 | V72: 0.642 | W72: 132.080002 | X72: 200803 | Y72: 200703 | Z72: 2007-03-16 | AA72: 5 | AB72: 1 | AC72: 2.792 | AD72: 0.0211387035
A73: 58 | B73: 2022-02-25 | C73: 429.609985 | D73: 437.839996 | E73: 427.859985 | F73: 437.75 | G73: 121804500 | H73: 436.394287 | I73: 0.9969029971 | J73: 1 | K73: 428.28 | L73: 436.48 | M73: 426.53 | N73: 436.39 | O73: 121804500 | U73: 2007-12-21 | V73: 0.775 | W73: 148.130005 | X73: 200712 | Y73: 200612 | Z73: 2006-12-15 | AA73: 5 | AB73: 1 | AC73: 2.701 | AD73: 0.01823398305
A74: 59 | B74: 2022-02-24 | C74: 411.019989 | D74: 428.76001 | E74: 410.640015 | F74: 428.299988 | G74: 213942900 | H74: 426.973541 | I74: 0.9969029955 | J74: 1 | K74: 409.75 | L74: 427.43 | M74: 409.37 | N74: 426.97 | O74: 213942900 | U74: 2007-09-21 | V74: 0.719 | W74: 151.970001 | X74: 200709 | Y74: 200609 | Z74: 2006-09-15 | AA74: 5 | AB74: 1 | AC74: 2.719 | AD74: 0.01789168903
A75: 60 | B75: 2022-02-23 | C75: 432.660004 | D75: 433.26001 | E75: 421.350006 | F75: 421.950012 | G75: 132578000 | H75: 420.643219 | I75: 0.9969029673 | J75: 1 | K75: 431.32 | L75: 431.92 | M75: 420.05 | N75: 420.64 | O75: 132578000 | U75: 2007-06-15 | V75: 0.656 | W75: 153.070007 | X75: 200706 | Y75: 200606 | Z75: 2006-06-16 | AA75: 5 | AB75: 1 | AC75: 2.579 | AD75: 0.01684849992
A76: 61 | B76: 2022-02-22 | C76: 431.890015 | D76: 435.5 | E76: 425.859985 | F76: 429.570007 | G76: 124391800 | H76: 428.239624 | I76: 0.9969029891 | J76: 1 | K76: 430.55 | L76: 434.15 | M76: 424.54 | N76: 428.24 | O76: 124391800 | U76: 2007-03-16 | V76: 0.551 | W76: 138.529999 | X76: 200703 | Y76: 200603 | Z76: 2006-03-17 | AA76: 5 | AB76: 1 | AC76: 2.478 | AD76: 0.01788782226
A77: 62 | B77: 2022-02-18 | C77: 437.329987 | D77: 438.660004 | E77: 431.820007 | F77: 434.230011 | G77: 132642900 | H77: 432.885193 | I77: 0.9969029824 | J77: 1 | K77: 435.98 | L77: 437.3 | M77: 430.48 | N77: 432.89 | O77: 132642900 | U77: 2006-12-15 | V77: 0.793 | W77: 142.339996 | X77: 200612 | Y77: 200512 | Z77: 2005-12-16 | AA77: 5 | AB77: 1 | AC77: 2.446 | AD77: 0.01718420731
A78: 63 | B78: 2022-02-17 | C78: 443.220001 | D78: 446.570007 | E78: 436.420013 | F78: 437.059998 | G78: 102259100 | H78: 435.706421 | I78: 0.996902995 | J78: 1 | K78: 441.85 | L78: 445.19 | M78: 435.07 | N78: 435.71 | O78: 102259100 | U78: 2006-09-15 | V78: 0.579 | W78: 131.960007 | X78: 200609 | Y78: 200509 | Z78: 2005-09-16 | AA78: 5 | AB78: 1 | AC78: 2.325 | AD78: 0.01761897451
A79: 64 | B79: 2022-02-16 | C79: 443.929993 | D79: 448.059998 | E79: 441.940002 | F79: 446.600006 | G79: 84863600 | H79: 445.216888 | I79: 0.996903005 | J79: 1 | K79: 442.56 | L79: 446.67 | M79: 440.57 | N79: 445.22 | O79: 84863600 | U79: 2006-06-16 | V79: 0.555 | W79: 124.650002 | X79: 200606 | Y79: 200506 | Z79: 2005-06-17 | AA79: 5 | AB79: 1 | AC79: 2.268 | AD79: 0.01819494556
A80: 65 | B80: 2022-02-15 | C80: 443.730011 | D80: 446.279999 | E80: 443.179993 | F80: 446.100006 | G80: 88482700 | H80: 444.718445 | I80: 0.996903024 | J80: 1 | K80: 442.36 | L80: 444.9 | M80: 441.81 | N80: 444.72 | O80: 88482700 | U80: 2006-03-17 | V80: 0.519 | W80: 130.619995 | X80: 200603 | Y80: 200503 | Z80: 2005-03-18 | AA80: 5 | AB80: 1 | AC80: 2.201 | AD80: 0.0168504064
A81: 66 | B81: 2022-02-14 | C81: 439.920013 | D81: 441.600006 | E81: 435.339996 | F81: 439.019989 | G81: 123006300 | H81: 437.660339 | I81: =IF(F81=0,1,H81/F81) -> 0.9969029884 | J81: =INDEX(OFFSET($T$15,0,0,$S$13+1,1),MATCH(B81,OFFSET($Q$15,0,0,$S$13+1,1),-1)) -> 1 | K81: =ROUND($I81*C81,2) -> 438.56 | L81: =ROUND($I81*D81,2) -> 440.23 | M81: =ROUND($I81*E81,2) -> 433.99 | N81: =ROUND($I81*F81,2) -> 437.66 | O81: =G81*J81 -> 123006300 | U81: 2005-12-16 | V81: 0.672 | W81: =(INDEX(OFFSET($F$15,1,0,$B$10,1),MATCH(U81,OFFSET($B$15,1,0,$B$10,1),-1))) -> 126.360001 | X81: =YEAR(U81)&RIGHT("0"&MONTH(U81),2) -> 200512 | Y81: =YEAR(U81)-1&RIGHT("0"&MONTH(U81),2) -> 200412 | Z81: =OFFSET(U80,AA81,0,1,1) -> 2004-12-17 | AA81: =MATCH(Y81,OFFSET($X$15,A81,0,$V$14+1-A81,1),-1) -> 5 | AB81: =IF(OR(AND(YEAR(U81)=YEAR(Z81),MONTH(U81)=MONTH(Z81)),MONTH(U81)=MONTH(Z81)),1,0) -> 1 | AC81: =(V81+IF(AA81-AB81=0,0,IFERROR(SUM(OFFSET(V81,1,0,AA81-AB81-1,1)),0))) -> 2.149 | AD81: =AC81/(INDEX(OFFSET($F$15,1,0,$B$10,1),MATCH(U81,OFFSET($B$15,1,0,$B$10,1),-1))) -> 0.01700696409
A82: 67 | B82: 2022-02-11 | C82: 449.410004 | D82: 451.609985 | E82: 438.940002 | F82: 440.459991 | G82: 153214600 | H82: 439.095886 | I82: 0.9969029991 | J82: 1 | K82: 448.02 | L82: 450.21 | M82: 437.58 | N82: 439.1 | O82: 153214600 | U82: 2005-09-16 | V82: 0.522 | W82: 123.5 | X82: 200509 | Y82: 200409 | Z82: 2004-09-17 | AA82: 6 | AB82: 1 | AC82: 2.396 | AD82: 0.01940080972
A83: 68 | B83: 2022-02-10 | C83: 451.339996 | D83: 457.709991 | E83: 447.200012 | F83: 449.320007 | G83: 140103700 | H83: 447.928467 | I83: 0.996903009 | J83: 1 | K83: 449.94 | L83: 456.29 | M83: 445.82 | N83: 447.93 | O83: 140103700 | U83: 2005-06-17 | V83: 0.488 | W83: 121.360001 | X83: 200506 | Y83: 200406 | Z83: 2004-06-18 | AA83: 6 | AB83: 1 | AC83: 2.343 | AD83: 0.01930619628
A84: 69 | B84: 2022-02-09 | C84: 455.220001 | D84: 457.880005 | E84: 455.01001 | F84: 457.540009 | G84: 92589900 | H84: 456.123016 | I84: 0.9969030184 | J84: 1 | K84: 453.81 | L84: 456.46 | M84: 453.6 | N84: 456.12 | O84: 92589900 | U84: 2005-03-18 | V84: 0.467 | W84: 118.540001 | X84: 200503 | Y84: 200403 | Z84: 2004-03-19 | AA84: 6 | AB84: 1 | AC84: 2.269 | AD84: 0.01914121799
A85: 70 | B85: 2022-02-08 | C85: 446.730011 | D85: 451.920013 | E85: 445.220001 | F85: 450.940002 | G85: 81012000 | H85: 449.543457 | I85: 0.9969030359 | J85: 1 | K85: 445.35 | L85: 450.52 | M85: 443.84 | N85: 449.54 | O85: 81012000 | U85: 2004-12-17 | V85: 0.568 | W85: 119.440002 | X85: 200412 | Y85: 200312 | Z85: 2003-12-19 | AA85: 6 | AB85: 1 | AC85: 2.197 | AD85: 0.0183941725
A86: 71 | B86: 2022-02-07 | C86: 449.51001 | D86: 450.98999 | E86: 445.850006 | F86: 447.26001 | G86: 84472900 | H86: 445.874847 | I86: 0.9969030028 | J86: 1 | K86: 448.12 | L86: 449.59 | M86: 444.47 | N86: 445.87 | O86: 84472900 | U86: 2004-11-15 | V86: 0.351 | W86: 118.730003 | X86: 200411 | Y86: 200311 | Z86: 2003-12-19 | AA86: 5 | AB86: 0 | AC86: 2.145 | AD86: 0.01806620017
A87: 72 | B87: 2022-02-04 | C87: 446.350006 | D87: 452.779999 | E87: 443.829987 | F87: 448.700012 | G87: 118454400 | H87: 447.310394 | I87: 0.9969030132 | J87: 1 | K87: 444.97 | L87: 451.38 | M87: 442.46 | N87: 447.31 | O87: 118454400 | U87: 2004-09-17 | V87: 0.469 | W87: 113.150002 | X87: 200409 | Y87: 200309 | Z87: 2003-09-19 | AA87: 5 | AB87: 1 | AC87: 1.794 | AD87: 0.01585505938
A88: 73 | B88: 2022-02-03 | C88: 450.950012 | D88: 452.970001 | E88: 445.709991 | F88: 446.600006 | G88: 118024400 | H88: 445.216888 | I88: 0.996903005 | J88: 1 | K88: 449.55 | L88: 451.57 | M88: 444.33 | N88: 445.22 | O88: 118024400 | U88: 2004-06-18 | V88: 0.414 | W88: 113.629997 | X88: 200406 | Y88: 200306 | Z88: 2003-06-20 | AA88: 5 | AB88: 1 | AC88: 1.725 | AD88: 0.01518085053
A89: 74 | B89: 2022-02-02 | C89: 455.5 | D89: 458.119995 | E89: 453.049988 | F89: 457.350006 | G89: 117361000 | H89: 455.933594 | I89: 0.9969030021 | J89: 1 | K89: 454.09 | L89: 456.7 | M89: 451.65 | N89: 455.93 | O89: 117361000 | U89: 2004-03-19 | V89: 0.395 | W89: 111.059998 | X89: 200403 | Y89: 200303 | Z89: 2003-03-21 | AA89: 5 | AB89: 1 | AC89: 1.671 | AD89: 0.01504592139
A90: 75 | B90: 2022-02-01 | C90: 450.679993 | D90: 453.630005 | E90: 446.940002 | F90: 452.950012 | G90: 123155400 | H90: 451.547241 | I90: 0.9969030335 | J90: 1 | K90: 449.28 | L90: 452.23 | M90: 445.56 | N90: 451.55 | O90: 123155400 | U90: 2003-12-19 | V90: 0.516 | W90: 108.900002 | X90: 200312 | Y90: 200212 | Z90: 2002-12-20 | AA90: 5 | AB90: 1 | AC90: 1.63 | AD90: 0.01496786015
A91: 76 | B91: 2022-01-31 | C91: 441.23999 | D91: 450.279999 | E91: 439.809998 | F91: 449.910004 | G91: 152251400 | H91: 448.516632 | I91: 0.9969029984 | J91: 1 | K91: 439.87 | L91: 448.89 | M91: 438.45 | N91: 448.52 | O91: 152251400 | U91: 2003-09-19 | V91: 0.4 | W91: 103.669998 | X91: 200309 | Y91: 200209 | Z91: 2002-09-20 | AA91: 5 | AB91: 1 | AC91: 1.55 | AD91: 0.01495128803
A92: 77 | B92: 2022-01-28 | C92: 432.679993 | D92: 442 | E92: 427.820007 | F92: 441.950012 | G92: 164457400 | H92: 440.581299 | I92: 0.996903014 | J92: 1 | K92: 431.34 | L92: 440.63 | M92: 426.5 | N92: 440.58 | O92: 164457400 | U92: 2003-06-20 | V92: 0.36 | W92: 99.440002 | X92: 200306 | Y92: 200206 | Z92: 2002-06-21 | AA92: 5 | AB92: 1 | AC92: 1.528 | AD92: 0.01536604957
A93: 78 | B93: 2022-01-27 | C93: 438.26001 | D93: 441.589996 | E93: 429.450012 | F93: 431.23999 | G93: 149878300 | H93: 429.904449 | I93: 0.9969030214 | J93: 1 | K93: 436.9 | L93: 440.22 | M93: 428.12 | N93: 429.9 | O93: 149878300 | U93: 2003-03-21 | V93: 0.354 | W93: 89.669998 | X93: 200303 | Y93: 200203 | Z93: 2002-03-15 | AA93: 5 | AB93: 1 | AC93: 1.521 | AD93: 0.01696219509
A94: 79 | B94: 2022-01-26 | C94: 440.720001 | D94: 444.040009 | E94: 428.859985 | F94: 433.380005 | G94: 186391100 | H94: 432.037842 | I94: 0.9969030343 | J94: 1 | K94: 439.36 | L94: 442.66 | M94: 427.53 | N94: 432.04 | O94: 186391100 | U94: 2002-12-20 | V94: 0.436 | W94: 89.989998 | X94: 200212 | Y94: 200112 | Z94: 2001-12-21 | AA94: 5 | AB94: 1 | AC94: 1.498 | AD94: 0.0166462944
A95: 80 | B95: 2022-01-25 | C95: 433.059998 | D95: 439.720001 | E95: 427.149994 | F95: 434.470001 | G95: 167997300 | H95: 433.124451 | I95: 0.9969030083 | J95: 1 | K95: 431.72 | L95: 438.36 | M95: 425.83 | N95: 433.12 | O95: 167997300 | U95: 2002-09-20 | V95: 0.378 | W95: 84.349998 | X95: 200209 | Y95: 200109 | Z95: 2001-09-21 | AA95: 5 | AB95: 1 | AC95: 1.455 | AD95: 0.01724955583
A96: 81 | B96: 2022-01-24 | C96: 432.029999 | D96: 440.380005 | E96: 420.76001 | F96: 439.839996 | G96: 251783900 | H96: 438.477814 | I96: 0.9969030056 | J96: 1 | K96: 430.69 | L96: 439.02 | M96: 419.46 | N96: 438.48 | O96: 251783900 | U96: 2002-06-21 | V96: 0.353 | W96: 99.279999 | X96: 200206 | Y96: 200106 | Z96: 2001-06-15 | AA96: 5 | AB96: 1 | AC96: 1.446 | AD96: 0.01456486719
A97: 82 | B97: 2022-01-21 | C97: 445.559998 | D97: 448.059998 | E97: 437.950012 | F97: 437.980011 | G97: 202271200 | H97: 436.623596 | I97: 0.9969030208 | J97: 1 | K97: 444.18 | L97: 446.67 | M97: 436.59 | N97: 436.62 | O97: 202271200 | U97: 2002-03-15 | V97: 0.331 | W97: 116.650002 | X97: 200203 | Y97: 200103 | Z97: 2001-03-16 | AA97: 5 | AB97: 1 | AC97: 1.439 | AD97: 0.0123360478
A98: 83 | B98: 2022-01-20 | C98: 453.75 | D98: 458.73999 | E98: 444.5 | F98: 446.75 | G98: 122379700 | H98: 445.366425 | I98: 0.9969030218 | J98: 1 | K98: 452.34 | L98: 457.32 | M98: 443.12 | N98: 445.37 | O98: 122379700 | U98: 2001-12-21 | V98: 0.393 | W98: 114.949997 | X98: 200112 | Y98: 200012 | Z98: 2000-12-15 | AA98: 5 | AB98: 1 | AC98: 1.424 | AD98: 0.0123879951
A99: 84 | B99: 2022-01-19 | C99: 458.130005 | D99: 459.609985 | E99: 451.459991 | F99: 451.75 | G99: 109357600 | H99: 450.350922 | I99: 0.9969029817 | J99: 1 | K99: 456.71 | L99: 458.19 | M99: 450.06 | N99: 450.35 | O99: 109357600 | U99: 2001-09-21 | V99: 0.369 | W99: 97.279999 | X99: 200109 | Y99: 200009 | Z99: 2000-09-15 | AA99: 5 | AB99: 1 | AC99: 1.442 | AD99: 0.01482319094
A100: 85 | B100: 2022-01-18 | C100: 459.73999 | D100: 459.959991 | E100: 455.309998 | F100: 456.48999 | G100: 109709100 | H100: 455.076233 | I100: 0.9969029836 | J100: 1 | K100: 458.32 | L100: 458.54 | M100: 453.9 | N100: 455.08 | O100: 109709100 | U100: 2001-06-15 | V100: 0.346 | W100: 121.849998 | X100: 200106 | Y100: 200006 | Z100: 2000-06-16 | AA100: 5 | AB100: 1 | AC100: 1.448 | AD100: 0.01188346347
A101: 86 | B101: 2022-01-14 | C101: 461.190002 | D101: 465.089996 | E101: 459.899994 | F101: 464.720001 | G101: 95890900 | H101: 463.280762 | I101: 0.9969029975 | J101: 1 | K101: 459.76 | L101: 463.65 | M101: 458.48 | N101: 463.28 | O101: 95890900 | U101: 2001-03-16 | V101: 0.316 | W101: 115.010002 | X101: 200103 | Y101: 200003 | Z101: 2000-03-17 | AA101: 5 | AB101: 1 | AC101: 1.45 | AD101: 0.01260759912
A102: 87 | B102: 2022-01-13 | C102: 472.190002 | D102: 472.880005 | E102: 463.440002 | F102: 464.529999 | G102: 91173100 | H102: 463.091339 | I102: 0.9969029772 | J102: 1 | K102: 470.73 | L102: 471.42 | M102: 462 | N102: 463.09 | O102: 91173100 | U102: 2000-12-15 | V102: 0.411 | W102: 130.96875 | X102: 200012 | Y102: 199912 | Z102: 1999-12-17 | AA102: 5 | AB102: 1 | AC102: 1.505 | AD102: 0.01149129086
A103: 88 | B103: 2022-01-12 | C103: 471.589996 | D103: 473.200012 | E103: 468.940002 | F103: 471.019989 | G103: 67605400 | H103: 469.561249 | I103: 0.9969030189 | J103: 1 | K103: 470.13 | L103: 471.73 | M103: 467.49 | N103: 469.56 | O103: 67605400 | U103: 2000-09-15 | V103: 0.375 | W103: 146 | X103: 200009 | Y103: 199909 | Z103: 1999-09-17 | AA103: 5 | AB103: 1 | AC103: 1.442 | AD103: 0.009876712329
A104: 89 | B104: 2022-01-11 | C104: 465.230011 | D104: 469.850006 | E104: 462.049988 | F104: 469.75 | G104: 74303100 | H104: 468.295197 | I104: 0.9969030271 | J104: 1 | K104: 463.79 | L104: 468.39 | M104: 460.62 | N104: 468.3 | O104: 74303100 | U104: 2000-06-16 | V104: 0.348 | W104: 146.59375 | X104: 200006 | Y104: 199906 | Z104: 1999-06-18 | AA104: 5 | AB104: 1 | AC104: 1.439 | AD104: 0.009816243871
A105: 90 | B105: 2022-01-10 | C105: 462.700012 | D105: 465.73999 | E105: 456.600006 | F105: 465.51001 | G105: 119362000 | H105: 464.068329 | I105: 0.9969030075 | J105: 1 | K105: 461.27 | L105: 464.3 | M105: 455.19 | N105: 464.07 | O105: 119362000 | U105: 2000-03-17 | V105: 0.371 | W105: 146.9375 | X105: 200003 | Y105: 199903 | Z105: 1999-03-19 | AA105: 5 | AB105: 1 | AC105: 1.496 | AD105: 0.01018119949
A106: 91 | B106: 2022-01-07 | C106: 467.950012 | D106: 469.200012 | E106: 464.649994 | F106: 466.089996 | G106: 85111600 | H106: 464.646515 | I106: 0.9969029994 | J106: 1 | K106: 466.5 | L106: 467.75 | M106: 463.21 | N106: 464.65 | O106: 85111600 | U106: 1999-12-17 | V106: 0.348 | W106: 142.6875 | X106: 199912 | Y106: 199812 | Z106: 1998-12-18 | AA106: 5 | AB106: 1 | AC106: 1.445 | AD106: 0.01012702584
A107: 92 | B107: 2022-01-06 | C107: 467.890015 | D107: 470.820007 | E107: 465.429993 | F107: 467.940002 | G107: 86858900 | H107: 466.490784 | I107: 0.9969029833 | J107: 1 | K107: 466.44 | L107: 469.36 | M107: 463.99 | N107: 466.49 | O107: 86858900 | U107: 1999-09-17 | V107: 0.372 | W107: 133.75 | X107: 199909 | Y107: 199809 | Z107: 1998-09-18 | AA107: 5 | AB107: 1 | AC107: 1.489 | AD107: 0.01113271028
A108: 93 | B108: 2022-01-05 | C108: 477.160004 | D108: 477.980011 | E108: 468.279999 | F108: 468.380005 | G108: 104538900 | H108: 466.929443 | I108: 0.9969030232 | J108: 1 | K108: 475.68 | L108: 476.5 | M108: 466.83 | N108: 466.93 | O108: 104538900 | U108: 1999-06-18 | V108: 0.405 | W108: 134.3125 | X108: 199906 | Y108: 199806 | Z108: 1998-06-19 | AA108: 5 | AB108: 1 | AC108: 1.476 | AD108: 0.01098929735
A109: 94 | B109: 2022-01-04 | C109: 479.220001 | D109: 479.980011 | E109: 475.579987 | F109: 477.549988 | G109: 71178700 | H109: 476.071014 | I109: 0.9969029965 | J109: 1 | K109: 477.74 | L109: 478.49 | M109: 474.11 | N109: 476.07 | O109: 71178700 | U109: 1999-03-19 | V109: 0.32 | W109: 129.6875 | X109: 199903 | Y109: 199803 | Z109: 1998-03-20 | AA109: 5 | AB109: 1 | AC109: 1.423 | AD109: 0.01097253012
A110: 95 | B110: 2022-01-03 | C110: 476.299988 | D110: 477.850006 | E110: 473.850006 | F110: 477.709991 | G110: 72668200 | H110: 476.23053 | I110: 0.9969030143 | J110: 1 | K110: 474.82 | L110: 476.37 | M110: 472.38 | N110: 476.23 | O110: 72668200 | U110: 1998-12-18 | V110: 0.392 | W110: 118.5 | X110: 199812 | Y110: 199712 | Z110: 1997-12-19 | AA110: 5 | AB110: 1 | AC110: 1.416 | AD110: 0.01194936709
A111: 96 | B111: 2021-12-31 | C111: 475.640015 | D111: 476.859985 | E111: 474.670013 | F111: 474.959991 | G111: 65237400 | H111: 473.489044 | I111: 0.9969030086 | J111: 1 | K111: 474.17 | L111: 475.38 | M111: 473.2 | N111: 473.49 | O111: 65237400 | U111: 1998-09-18 | V111: 0.359 | W111: 102.09375 | X111: 199809 | Y111: 199709 | Z111: 1997-09-19 | AA111: 5 | AB111: 1 | AC111: 1.404 | AD111: 0.01375206612
A112: 97 | B112: 2021-12-30 | C112: 477.929993 | D112: 479 | E112: 475.670013 | F112: 476.160004 | G112: 55329000 | H112: 474.685333 | I112: 0.9969029927 | J112: 1 | K112: 476.45 | L112: 477.52 | M112: 474.2 | N112: 474.69 | O112: 55329000 | U112: 1998-06-19 | V112: 0.352 | W112: 110.0625 | X112: 199806 | Y112: 199706 | Z112: 1997-06-20 | AA112: 5 | AB112: 1 | AC112: 1.393 | AD112: 0.0126564452
A113: 98 | B113: 2021-12-29 | C113: 476.980011 | D113: 478.559998 | E113: 475.920013 | F113: 477.480011 | G113: 54503000 | H113: 476.001251 | I113: 0.9969029908 | J113: 1 | K113: 475.5 | L113: 477.08 | M113: 474.45 | N113: 476 | O113: 54503000 | U113: 1998-03-20 | V113: 0.313 | W113: 109.875 | X113: 199803 | Y113: 199703 | Z113: 1997-03-21 | AA113: 5 | AB113: 1 | AC113: 1.391 | AD113: 0.01265984073
A114: 99 | B114: 2021-12-28 | C114: 477.720001 | D114: 478.809998 | E114: 476.059998 | F114: 476.869995 | G114: 47274600 | H114: 475.393127 | I114: 0.9969029966 | J114: 1 | K114: 476.24 | L114: 477.33 | M114: 474.59 | N114: 475.39 | O114: 47274600 | U114: 1997-12-19 | V114: 0.38 | W114: 94.78125 | X114: 199712 | Y114: 199612 | Z114: 1996-12-20 | AA114: 5 | AB114: 1 | AC114: 1.377 | AD114: 0.01452818991
A115: 100 | B115: 2021-12-27 | C115: 472.059998 | D115: 477.309998 | E115: 472.01001 | F115: 477.26001 | G115: 56808600 | H115: 475.781921 | I115: 0.9969029691 | J115: 1 | K115: 470.6 | L115: 475.83 | M115: 470.55 | N115: 475.78 | O115: 56808600 | U115: 1997-09-19 | V115: 0.348 | W115: 95.03125 | X115: 199709 | Y115: 199609 | Z115: 1996-09-20 | AA115: 5 | AB115: 1 | AC115: 1.364 | AD115: 0.0143531733
A116: 101 | B116: 2021-12-23 | C116: 468.75 | D116: 472.190002 | E116: 468.640015 | F116: 470.600006 | G116: 56439700 | H116: 469.142548 | I116: 0.9969029792 | J116: 1 | K116: 467.3 | L116: 470.73 | M116: 467.19 | N116: 469.14 | O116: 56439700 | U116: 1997-06-20 | V116: 0.35 | W116: 89.578125 | X116: 199706 | Y116: 199606 | Z116: 1996-06-21 | AA116: 5 | AB116: 1 | AC116: 1.368 | AD116: 0.01527158556
A117: 102 | B117: 2021-12-22 | C117: 462.790009 | D117: 467.809998 | E117: 462.579987 | F117: 467.690002 | G117: 58890200 | H117: 466.241577 | I117: 0.9969030234 | J117: 1 | K117: 461.36 | L117: 466.36 | M117: 461.15 | N117: 466.24 | O117: 58890200 | U117: 1997-03-21 | V117: 0.299 | W117: 78.4375 | X117: 199703 | Y117: 199603 | Z117: 1996-03-15 | AA117: 5 | AB117: 1 | AC117: 1.369 | AD117: 0.01745338645
A118: 103 | B118: 2021-12-21 | C118: 458.609985 | D118: 463.209991 | E118: 456.309998 | F118: 463.059998 | G118: 69806300 | H118: 461.625916 | I118: 0.996903032 | J118: 1 | K118: 457.19 | L118: 461.78 | M118: 454.9 | N118: 461.63 | O118: 69806300 | U118: 1996-12-20 | V118: 0.367 | W118: 74.84375 | X118: 199612 | Y118: 199512 | Z118: 1995-12-15 | AA118: 5 | AB118: 1 | AC118: 1.355 | AD118: 0.01810438413
A119: 104 | B119: 2021-12-20 | C119: 454.480011 | D119: 455.399994 | E119: 451.140015 | F119: 454.980011 | G119: 107134800 | H119: 453.570953 | I119: 0.9969030332 | J119: 1 | K119: 453.07 | L119: 453.99 | M119: 449.74 | N119: 453.57 | O119: 107134800 | U119: 1996-09-20 | V119: 0.352 | W119: 68.640625 | X119: 199609 | Y119: 199509 | Z119: 1995-09-15 | AA119: 5 | AB119: 1 | AC119: 1.37 | AD119: 0.01995902572
A120: 105 | B120: 2021-12-17 | C120: 461.549988 | D120: 464.73999 | E120: 458.059998 | F120: 459.869995 | G120: 135511600 | H120: 458.44577 | I120: 0.9969029834 | J120: 1 | K120: 460.12 | L120: 463.3 | M120: 456.64 | N120: 458.45 | O120: 135511600 | U120: 1996-06-21 | V120: 0.351 | W120: 66.8125 | X120: 199606 | Y120: 199506 | Z120: 1995-06-16 | AA120: 5 | AB120: 1 | AC120: 1.33 | AD120: 0.01990645463
A121: 106 | B121: 2021-12-16 | C121: 472.570007 | D121: 472.869995 | E121: 464.799988 | F121: 466.450012 | G121: 116568600 | H121: 463.377441 | I121: 0.9934128611 | J121: 1 | K121: 469.46 | L121: 469.76 | M121: 461.74 | N121: 463.38 | O121: 116568600 | U121: 1996-03-15 | V121: 0.285 | W121: 64.125 | X121: 199603 | Y121: 199503 | Z121: 1995-03-17 | AA121: 5 | AB121: 1 | AC121: 1.295 | AD121: 0.02019493177
A122: 107 | B122: 2021-12-15 | C122: 463.420013 | D122: 470.859985 | E122: 460.73999 | F122: 470.600006 | G122: 116899300 | H122: 467.500122 | I122: 0.9934129113 | J122: 1 | K122: 460.37 | L122: 467.76 | M122: 457.71 | N122: 467.5 | O122: 116899300 | U122: 1995-12-15 | V122: 0.382 | W122: 61.8125 | X122: 199512 | Y122: 199412 | Z122: 1994-12-16 | AA122: 5 | AB122: 1 | AC122: 1.278 | AD122: 0.02067542973
A123: 108 | B123: 2021-12-14 | C123: 463.089996 | D123: 465.73999 | E123: 460.25 | F123: 463.359985 | G123: 97264100 | H123: 460.3078 | I123: 0.9934129293 | J123: 1 | K123: 460.04 | L123: 462.67 | M123: 457.22 | N123: 460.31 | O123: 97264100 | U123: 1995-09-15 | V123: 0.312 | W123: 58.4375 | X123: 199509 | Y123: 199409 | Z123: 1994-09-16 | AA123: 5 | AB123: 1 | AC123: 1.259 | AD123: 0.02154438503
A124: 109 | B124: 2021-12-13 | C124: 470.190002 | D124: 470.559998 | E124: 466.269989 | F124: 466.570007 | G124: 87724700 | H124: 463.496674 | I124: 0.9934129221 | J124: 1 | K124: 467.09 | L124: 467.46 | M124: 463.2 | N124: 463.5 | O124: 87724700 | U124: 1995-06-16 | V124: 0.316 | W124: 53.96875 | X124: 199506 | Y124: 199406 | Z124: 1994-06-17 | AA124: 5 | AB124: 1 | AC124: 1.235 | AD124: 0.0228836132
A125: 110 | B125: 2021-12-10 | C125: 469.230011 | D125: 470.899994 | E125: 466.51001 | F125: 470.73999 | G125: 77159800 | H125: 467.63916 | I125: 0.9934128605 | J125: 1 | K125: 466.14 | L125: 467.8 | M125: 463.44 | N125: 467.64 | O125: 77159800 | U125: 1995-03-17 | V125: 0.268 | W125: 49.5625 | X125: 199503 | Y125: 199403 | Z125: 1994-03-18 | AA125: 5 | AB125: 1 | AC125: 1.224 | AD125: 0.02469609079
A126: 111 | B126: 2021-12-09 | C126: 468.149994 | D126: 469.630005 | E126: 466.140015 | F126: 466.350006 | G126: 61272600 | H126: 463.278107 | I126: 0.9934128895 | J126: 1 | K126: 465.07 | L126: 466.54 | M126: 463.07 | N126: 463.28 | O126: 61272600 | U126: 1994-12-16 | V126: 0.363 | W126: 45.75 | X126: 199412 | Y126: 199312 | Z126: 1993-12-17 | AA126: 5 | AB126: 1 | AC126: 1.227 | AD126: 0.02681967213
A127: 112 | B127: 2021-12-08 | C127: 468.700012 | D127: 470 | E127: 466.829987 | F127: 469.519989 | G127: 72238800 | H127: 466.427216 | I127: 0.9934129045 | J127: 1 | K127: 465.61 | L127: 466.9 | M127: 463.75 | N127: 466.43 | O127: 72238800 | U127: 1994-09-16 | V127: 0.288 | W127: 47.015625 | X127: 199409 | Y127: 199309 | Z127: 1993-09-17 | AA127: 5 | AB127: 1 | AC127: 1.181 | AD127: 0.02511930874
A128: 113 | B128: 2021-12-07 | C128: 464.410004 | D128: 468.880005 | E128: 458.649994 | F128: 468.279999 | G128: 95484700 | H128: 465.195404 | I128: 0.993412926 | J128: 1 | K128: 461.35 | L128: 465.79 | M128: 455.63 | N128: 465.2 | O128: 95484700 | U128: 1994-06-17 | V128: 0.305 | W128: 45.875 | X128: 199406 | Y128: 199306 | Z128: 1993-06-18 | AA128: 5 | AB128: 1 | AC128: 1.179 | AD128: 0.02570027248
A129: 114 | B129: 2021-12-06 | C129: 456.130005 | D129: 460.790009 | E129: 453.559998 | F129: 458.790009 | G129: 98977500 | H129: 455.767914 | I129: 0.9934129015 | J129: 1 | K129: 453.13 | L129: 457.75 | M129: 450.57 | N129: 455.77 | O129: 98977500 | U129: 1994-03-18 | V129: 0.271 | W129: 46.96875 | X129: 199403 | Y129: 199303 | Z129: 1993-03-19 | AA129: 5 | AB129: 1 | AC129: 1.192 | AD129: 0.02537857618
A130: 115 | B130: 2021-12-03 | C130: 459.170013 | D130: 460.299988 | E130: 448.920013 | F130: 453.420013 | G130: 137331600 | H130: 450.433289 | I130: 0.9934128977 | J130: 1 | K130: 456.15 | L130: 457.27 | M130: 445.96 | N130: 450.43 | O130: 137331600 | U130: 1993-12-17 | V130: 0.317 | W130: 46.5625 | X130: 199312 | Y130: 199212 | Z130: 1993-03-19 | AA130: 4 | AB130: 0 | AC130: 1.134 | AD130: 0.02435436242
A131: 116 | B131: 2021-12-02 | C131: 450.730011 | D131: 459.070007 | E131: 450.309998 | F131: 457.399994 | G131: 127637800 | H131: 454.387054 | I131: 0.9934128989 | J131: 1 | K131: 447.76 | L131: 456.05 | M131: 447.34 | N131: 454.39 | O131: 127637800 | U131: 1993-09-17 | V131: 0.286 | W131: 45.8125 | X131: 199309 | Y131: 199209 | Z131: 1993-03-19 | AA131: 3 | AB131: 0 | AC131: 0.817 | AD131: 0.01783356071
A132: 117 | B132: 2021-12-01 | C132: 461.640015 | D132: 464.670013 | E132: 450.290009 | F132: 450.5 | G132: 131939200 | H132: 447.532501 | I132: 0.9934128768 | J132: 1 | K132: 458.6 | L132: 461.61 | M132: 447.32 | N132: 447.53 | O132: 131939200 | U132: 1993-06-18 | V132: 0.318 | W132: 44.5 | X132: 199306 | Y132: 199206 | Z132: 1993-03-19 | AA132: 2 | AB132: 0 | AC132: 0.531 | AD132: 0.01193258427
A133: 118 | B133: 2021-11-30 | C133: 462 | D133: 464.029999 | E133: 455.299988 | F133: 455.559998 | G133: 148559600 | H133: 452.559204 | I133: 0.9934129555 | J133: 1 | K133: 458.96 | L133: 460.97 | M133: 452.3 | N133: 452.56 | O133: 148559600 | U133: 1993-03-19 | V133: 0.213 | W133: 45.03125 | X133: 199303 | Y133: 199203 | Z133: 1993-03-19 | AA133: 1 | AB133: 1 | AC133: 0.213 | AD133: 0.004730048577
A134: 119 | B134: 2021-11-29 | C134: 464.070007 | D134: 466.559998 | E134: 461.730011 | F134: 464.600006 | G134: 86268800 | H134: 461.539642 | I134: 0.9934129058 | J134: 1 | K134: 461.01 | L134: 463.49 | M134: 458.69 | N134: 461.54 | O134: 86268800
A135: 120 | B135: 2021-11-26 | C135: 462.339996 | D135: 463.899994 | E135: 457.769989 | F135: 458.970001 | G135: 112669600 | H135: 455.946747 | I135: 0.9934129595 | J135: 1 | K135: 459.29 | L135: 460.84 | M135: 454.75 | N135: 455.95 | O135: 112669600
A136: 121 | B136: 2021-11-24 | C136: 466.059998 | D136: 469.570007 | E136: 465.190002 | F136: 469.440002 | G136: 61858800 | H136: 466.347748 | I136: 0.9934128877 | J136: 1 | K136: 462.99 | L136: 466.48 | M136: 462.13 | N136: 466.35 | O136: 61858800
A137: 122 | B137: 2021-11-23 | C137: 467.220001 | D137: 469.100006 | E137: 464.450012 | F137: 468.190002 | G137: 73206500 | H137: 465.105988 | I137: 0.9934129008 | J137: 1 | K137: 464.14 | L137: 466.01 | M137: 461.39 | N137: 465.11 | O137: 73206500
A138: 123 | B138: 2021-11-22 | C138: 470.890015 | D138: 473.540009 | E138: 467.350006 | F138: 467.570007 | G138: 72762000 | H138: 464.490082 | I138: 0.9934129115 | J138: 1 | K138: 467.79 | L138: 470.42 | M138: 464.27 | N138: 464.49 | O138: 72762000
A139: 124 | B139: 2021-11-19 | C139: 469.609985 | D139: 470.940002 | E139: 468.5 | F139: 468.890015 | G139: 57315600 | H139: 465.801392 | I139: 0.9934129052 | J139: 1 | K139: 466.52 | L139: 467.84 | M139: 465.41 | N139: 465.8 | O139: 57315600
A140: 125 | B140: 2021-11-18 | C140: 469.23999 | D140: 470.01001 | E140: 466.339996 | F140: 469.730011 | G140: 50625600 | H140: 466.635864 | I140: 0.9934129246 | J140: 1 | K140: 466.15 | L140: 466.91 | M140: 463.27 | N140: 466.64 | O140: 50625600
A141: 126 | B141: 2021-11-17 | C141: 469 | D141: 469.190002 | E141: 467.480011 | F141: 468.140015 | G141: 47858300 | H141: 465.056335 | I141: 0.9934129109 | J141: 1 | K141: 465.91 | L141: 466.1 | M141: 464.4 | N141: 465.06 | O141: 47858300
A142: 127 | B142: 2021-11-16 | C142: 467.149994 | D142: 470.48999 | E142: 467.070007 | F142: 469.279999 | G142: 48857500 | H142: 466.188812 | I142: 0.9934129155 | J142: 1 | K142: 464.07 | L142: 467.39 | M142: 463.99 | N142: 466.19 | O142: 48857500
A143: 128 | B143: 2021-11-15 | C143: 468.640015 | D143: 468.809998 | E143: 466.230011 | F143: 467.429993 | G143: 46980500 | H143: 464.350983 | I143: 0.9934128959 | J143: 1 | K143: 465.55 | L143: 465.72 | M143: 463.16 | N143: 464.35 | O143: 46980500
A144: 129 | B144: 2021-11-12 | C144: 465.119995 | D144: 467.859985 | E144: 464.109985 | F144: 467.269989 | G144: 53466700 | H144: 464.192017 | I144: 0.9934128618 | J144: 1 | K144: 462.06 | L144: 464.78 | M144: 461.05 | N144: 464.19 | O144: 53466700
A145: 130 | B145: 2021-11-11 | C145: 465.209991 | D145: 465.290009 | E145: 463.75 | F145: 463.769989 | G145: 34848500 | H145: 460.715088 | I145: =IF(F145=0,1,H145/F145) -> 0.9934128963 | J145: =INDEX(OFFSET($T$15,0,0,$S$13+1,1),MATCH(B145,OFFSET($Q$15,0,0,$S$13+1,1),-1)) -> 1 | K145: =ROUND($I145*C145,2) -> 462.15 | L145: =ROUND($I145*D145,2) -> 462.23 | M145: =ROUND($I145*E145,2) -> 460.7 | N145: =ROUND($I145*F145,2) -> 460.72 | O145: =G145*J145 -> 34848500
A146: 131 | B146: 2021-11-10 | C146: 465.579987 | D146: 467.380005 | E146: 462.040009 | F146: 463.619995 | G146: 69429700 | H146: 460.566071 | I146: 0.9934128725 | J146: 1 | K146: 462.51 | L146: 464.3 | M146: 459 | N146: 460.57 | O146: 69429700
A147: 132 | B147: 2021-11-09 | C147: 469.320007 | D147: 469.570007 | E147: 465.880005 | F147: 467.380005 | G147: 51149100 | H147: 464.301331 | I147: 0.9934129103 | J147: 1 | K147: 466.23 | L147: 466.48 | M147: 462.81 | N147: 464.3 | O147: 51149100
A148: 133 | B148: 2021-11-08 | C148: 469.700012 | D148: 470.230011 | E148: 468.200012 | F148: 468.929993 | G148: 50405200 | H148: 465.841095 | I148: 0.9934128803 | J148: 1 | K148: 466.61 | L148: 467.13 | M148: 465.12 | N148: 465.84 | O148: 50405200
A149: 134 | B149: 2021-11-05 | C149: 469.279999 | D149: 470.649994 | E149: 466.920013 | F149: 468.529999 | G149: 66390600 | H149: 465.443756 | I149: 0.9934129234 | J149: 1 | K149: 466.19 | L149: 467.55 | M149: 463.84 | N149: 465.44 | O149: 66390600
A150: 135 | B150: 2021-11-04 | C150: 465.359985 | D150: 467 | E150: 464.98999 | F150: 466.910004 | G150: 52847100 | H150: 463.834442 | I150: 0.9934129447 | J150: 1 | K150: 462.29 | L150: 463.92 | M150: 461.93 | N150: 463.83 | O150: 52847100
A151: 136 | B151: 2021-11-03 | C151: 461.299988 | D151: 465.149994 | E151: 460.829987 | F151: 464.720001 | G151: 52509800 | H151: 461.658844 | I151: 0.9934129003 | J151: 1 | K151: 458.26 | L151: 462.09 | M151: 457.79 | N151: 461.66 | O151: 52509800
A152: 137 | B152: 2021-11-02 | C152: 460.220001 | D152: 462.230011 | E152: 460.079987 | F152: 461.899994 | G152: 48908400 | H152: 458.857391 | I152: 0.9934128533 | J152: 1 | K152: 457.19 | L152: 459.19 | M152: 457.05 | N152: 458.86 | O152: 48908400
A153: 138 | B153: 2021-11-01 | C153: 460.299988 | D153: 460.700012 | E153: 458.200012 | F153: 460.040009 | G153: 48433600 | H153: 457.009674 | I153: 0.9934128881 | J153: 1 | K153: 457.27 | L153: 457.67 | M153: 455.18 | N153: 457.01 | O153: 48433600
A154: 139 | B154: 2021-10-29 | C154: 455.869995 | D154: 459.559998 | E154: 455.559998 | F154: 459.25 | G154: 70162400 | H154: 456.224854 | I154: 0.9934128557 | J154: 1 | K154: 452.87 | L154: 456.53 | M154: 452.56 | N154: 456.22 | O154: 70162400
A155: 140 | B155: 2021-10-28 | C155: 455.459991 | D155: 458.399994 | E155: 455.450012 | F155: 458.320007 | G155: 51437900 | H155: 455.300995 | I155: 0.9934128732 | J155: 1 | K155: 452.46 | L155: 455.38 | M155: 452.45 | N155: 455.3 | O155: 51437900
A156: 141 | B156: 2021-10-27 | C156: 456.450012 | D156: 457.160004 | E156: 453.859985 | F156: 453.940002 | G156: 72438000 | H156: 450.94986 | I156: 0.9934129136 | J156: 1 | K156: 453.44 | L156: 454.15 | M156: 450.87 | N156: 450.95 | O156: 72438000
A157: 142 | B157: 2021-10-26 | C157: 457.200012 | D157: 458.48999 | E157: 455.559998 | F157: 455.959991 | G157: 56075100 | H157: 452.956543 | I157: 0.9934129133 | J157: 1 | K157: 454.19 | L157: 455.47 | M157: 452.56 | N157: 452.96 | O157: 56075100
A158: 143 | B158: 2021-10-25 | C158: 454.279999 | D158: 455.899994 | E158: 452.390015 | F158: 455.549988 | G158: 45214500 | H158: 452.549255 | I158: 0.9934129446 | J158: 1 | K158: 451.29 | L158: 452.9 | M158: 449.41 | N158: 452.55 | O158: 45214500
A159: 144 | B159: 2021-10-22 | C159: 453.130005 | D159: 454.670013 | E159: 451.049988 | F159: 453.119995 | G159: 58845100 | H159: 450.135254 | I159: 0.9934129126 | J159: 1 | K159: 450.15 | L159: 451.68 | M159: 448.08 | N159: 450.14 | O159: 58845100
A160: 145 | B160: 2021-10-21 | C160: 451.769989 | D160: 453.829987 | E160: 451.309998 | F160: 453.589996 | G160: 41305400 | H160: 450.602173 | I160: 0.9934129433 | J160: 1 | K160: 448.79 | L160: 450.84 | M160: 448.34 | N160: 450.6 | O160: 41305400
A161: 146 | B161: 2021-10-20 | C161: 451.130005 | D161: 452.730011 | E161: 451.01001 | F161: 452.410004 | G161: 49571600 | H161: 449.429932 | I161: 0.9934128954 | J161: 1 | K161: 448.16 | L161: 449.75 | M161: 448.04 | N161: 449.43 | O161: 49571600
A162: 147 | B162: 2021-10-19 | C162: 448.920013 | D162: 450.709991 | E162: 448.269989 | F162: 450.640015 | G162: 46996800 | H162: 447.6716 | I162: 0.9934128908 | J162: 1 | K162: 445.96 | L162: 447.74 | M162: 445.32 | N162: 447.67 | O162: 46996800
A163: 148 | B163: 2021-10-18 | C163: 443.970001 | D163: 447.549988 | E163: 443.269989 | F163: 447.190002 | G163: 62213200 | H163: 444.244324 | I163: 0.9934129162 | J163: 1 | K163: 441.05 | L163: 444.6 | M163: 440.35 | N163: 444.24 | O163: 62213200
A164: 149 | B164: 2021-10-15 | C164: 444.75 | D164: 446.26001 | E164: 444.089996 | F164: 445.869995 | G164: 66260200 | H164: 442.932983 | I164: 0.9934128512 | J164: 1 | K164: 441.82 | L164: 443.32 | M164: 441.16 | N164: 442.93 | O164: 66260200
A165: 150 | B165: 2021-10-14 | C165: 439.079987 | D165: 442.660004 | E165: 438.579987 | F165: 442.5 | G165: 70236800 | H165: 439.585205 | I165: 0.9934128927 | J165: 1 | K165: 436.19 | L165: 439.74 | M165: 435.69 | N165: 439.59 | O165: 70236800
A166: 151 | B166: 2021-10-13 | C166: 434.709991 | D166: 436.049988 | E166: 431.540009 | F166: 435.179993 | G166: 72974000 | H166: 432.313416 | I166: 0.9934128934 | J166: 1 | K166: 431.85 | L166: 433.18 | M166: 428.7 | N166: 432.31 | O166: 72974000
A167: 152 | B167: 2021-10-12 | C167: 435.670013 | D167: 436.100006 | E167: 432.779999 | F167: 433.619995 | G167: 71181200 | H167: 430.763702 | I167: 0.9934129122 | J167: 1 | K167: 432.8 | L167: 433.23 | M167: 429.93 | N167: 430.76 | O167: 71181200
A168: 153 | B168: 2021-10-11 | C168: 437.160004 | D168: 440.26001 | E168: 434.619995 | F168: 434.690002 | G168: 65233300 | H168: 431.82666 | I168: 0.9934129104 | J168: 1 | K168: 434.28 | L168: 437.36 | M168: 431.76 | N168: 431.83 | O168: 65233300
A169: 154 | B169: 2021-10-08 | C169: 439.480011 | D169: 439.890015 | E169: 437.190002 | F169: 437.859985 | G169: 74557400 | H169: 434.975739 | I169: 0.9934128578 | J169: 1 | K169: 436.59 | L169: 436.99 | M169: 434.31 | N169: 434.98 | O169: 74557400
A170: 155 | B170: 2021-10-07 | C170: 438.390015 | D170: 441.679993 | E170: 438.200012 | F170: 438.660004 | G170: 72437500 | H170: 435.770508 | I170: 0.993412903 | J170: 1 | K170: 435.5 | L170: 438.77 | M170: 435.31 | N170: 435.77 | O170: 72437500
A171: 156 | B171: 2021-10-06 | C171: 429.269989 | D171: 435.119995 | E171: 427.540009 | F171: 434.899994 | G171: 113032200 | H171: 432.035278 | I171: 0.9934129316 | J171: 1 | K171: 426.44 | L171: 432.25 | M171: 424.72 | N171: 432.04 | O171: 113032200
A172: 157 | B172: 2021-10-05 | C172: 430.23999 | D172: 435.48999 | E172: 429.390015 | F172: 433.100006 | G172: 90682500 | H172: 430.247131 | I172: 0.9934128955 | J172: 1 | K172: 427.41 | L172: 432.62 | M172: 426.56 | N172: 430.25 | O172: 90682500
A173: 158 | B173: 2021-10-04 | C173: 433 | D173: 433.959991 | E173: 426.359985 | F173: 428.640015 | G173: 128570000 | H173: 425.816528 | I173: 0.9934129178 | J173: 1 | K173: 430.15 | L173: 431.1 | M173: 423.55 | N173: 425.82 | O173: 128570000
A174: 159 | B174: 2021-10-01 | C174: 430.980011 | D174: 436.029999 | E174: 427.230011 | F174: 434.23999 | G174: 129240100 | H174: 431.379639 | I174: 0.9934129719 | J174: 1 | K174: 428.14 | L174: 433.16 | M174: 424.42 | N174: 431.38 | O174: 129240100
A175: 160 | B175: 2021-09-30 | C175: 436.019989 | D175: 436.769989 | E175: 428.779999 | F175: 429.140015 | G175: 140506000 | H175: 426.313232 | I175: 0.9934129121 | J175: 1 | K175: 433.15 | L175: 433.89 | M175: 425.96 | N175: 426.31 | O175: 140506000
A176: 161 | B176: 2021-09-29 | C176: 435.190002 | D176: 437.040009 | E176: 433.850006 | F176: 434.450012 | G176: 82329200 | H176: 431.588226 | I176: 0.9934128532 | J176: 1 | K176: 432.32 | L176: 434.16 | M176: 430.99 | N176: 431.59 | O176: 82329200
A177: 162 | B177: 2021-09-28 | C177: 439.690002 | D177: 440.040009 | E177: 432.940002 | F177: 433.720001 | G177: 130436300 | H177: 430.863037 | I177: 0.9934128839 | J177: 1 | K177: 436.79 | L177: 437.14 | M177: 430.09 | N177: 430.86 | O177: 130436300
A178: 163 | B178: 2021-09-27 | C178: 442.809998 | D178: 444.049988 | E178: 441.899994 | F178: 442.640015 | G178: 61371100 | H178: 439.724304 | I178: 0.9934129069 | J178: 1 | K178: 439.89 | L178: 441.12 | M178: 438.99 | N178: 439.72 | O178: 61371100
A179: 164 | B179: 2021-09-24 | C179: 441.440002 | D179: 444.670013 | E179: 441.209991 | F179: 443.910004 | G179: 62094800 | H179: 440.985931 | I179: 0.9934129148 | J179: 1 | K179: 438.53 | L179: 441.74 | M179: 438.3 | N179: 440.99 | O179: 62094800
A180: 165 | B180: 2021-09-23 | C180: 439.850006 | D180: 444.890015 | E180: 439.600006 | F180: 443.179993 | G180: 76396000 | H180: 440.260712 | I180: 0.9934128773 | J180: 1 | K180: 436.95 | L180: 441.96 | M180: 436.7 | N180: 440.26 | O180: 76396000
A181: 166 | B181: 2021-09-22 | C181: 436.049988 | D181: 440.029999 | E181: 433.75 | F181: 437.859985 | G181: 102350100 | H181: 434.975739 | I181: 0.9934128578 | J181: 1 | K181: 433.18 | L181: 437.13 | M181: 430.89 | N181: 434.98 | O181: 102350100
A182: 167 | B182: 2021-09-21 | C182: 436.529999 | D182: 437.910004 | E182: 433.070007 | F182: 433.630005 | G182: 92526100 | H182: 430.773651 | I182: 0.9934129235 | J182: 1 | K182: 433.65 | L182: 435.03 | M182: 430.22 | N182: 430.77 | O182: 92526100
A183: 168 | B183: 2021-09-20 | C183: 434.880005 | D183: 436.559998 | E183: 428.859985 | F183: 434.040009 | G183: 166445500 | H183: 431.180939 | I183: 0.9934128883 | J183: 1 | K183: 432.02 | L183: 433.68 | M183: 426.04 | N183: 431.18 | O183: 166445500
A184: 169 | B184: 2021-09-17 | C184: 444.920013 | D184: 445.369995 | E184: 441.019989 | F184: 441.399994 | G184: 118425000 | H184: 438.492432 | I184: 0.9934128635 | J184: 1 | K184: 441.99 | L184: 442.44 | M184: 438.11 | N184: 438.49 | O184: 118425000
A185: 170 | B185: 2021-09-16 | C185: 447.320007 | D185: 448.359985 | E185: 444.019989 | F185: 447.170013 | G185: 77786700 | H185: 442.805847 | I185: 0.9902404771 | J185: 1 | K185: 442.95 | L185: 443.98 | M185: 439.69 | N185: 442.81 | O185: 77786700
A186: 171 | B186: 2021-09-15 | C186: 444.619995 | D186: 448.410004 | E186: 443.440002 | F186: 447.880005 | G186: 78792200 | H186: 443.508942 | I186: 0.9902405489 | J186: 1 | K186: 440.28 | L186: 444.03 | M186: 439.11 | N186: 443.51 | O186: 78792200
A187: 172 | B187: 2021-09-14 | C187: 448.119995 | D187: 448.339996 | E187: 443.220001 | F187: 444.170013 | G187: 78197100 | H187: 439.835144 | I187: 0.9902405186 | J187: 1 | K187: 443.75 | L187: 443.96 | M187: 438.89 | N187: 439.84 | O187: 78197100
A188: 173 | B188: 2021-09-13 | C188: 448.640015 | D188: 448.920013 | E188: 444.109985 | F188: 446.579987 | G188: 83738600 | H188: 442.221588 | I188: 0.9902404964 | J188: 1 | K188: 444.26 | L188: 444.54 | M188: 439.78 | N188: 442.22 | O188: 83738600
A189: 174 | B189: 2021-09-10 | C189: 451.040009 | D189: 451.48999 | E189: 445.309998 | F189: 445.440002 | G189: 89948200 | H189: 441.092743 | I189: 0.9902405285 | J189: 1 | K189: 446.64 | L189: 447.08 | M189: 440.96 | N189: 441.09 | O189: 89948200
A190: 175 | B190: 2021-09-09 | C190: 450.700012 | D190: 452.570007 | E190: 448.720001 | F190: 448.980011 | G190: 57970400 | H190: 444.598206 | I190: 0.9902405343 | J190: 1 | K190: 446.3 | L190: 448.15 | M190: 444.34 | N190: 444.6 | O190: 57970400
A191: 176 | B191: 2021-09-08 | C191: 450.890015 | D191: 451.670013 | E191: 448.859985 | F191: 450.910004 | G191: 56181900 | H191: 446.509338 | I191: 0.9902404782 | J191: 1 | K191: 446.49 | L191: 447.26 | M191: 444.48 | N191: 446.51 | O191: 56181900
A192: 177 | B192: 2021-09-07 | C192: 452.709991 | D192: 452.809998 | E192: 450.73999 | F192: 451.459991 | G192: 51671500 | H192: 447.053955 | I192: 0.9902404729 | J192: 1 | K192: 448.29 | L192: 448.39 | M192: 446.34 | N192: 447.05 | O192: 51671500
A193: 178 | B193: 2021-09-03 | C193: 451.980011 | D193: 453.630005 | E193: 451.549988 | F193: 453.079987 | G193: 47170500 | H193: 448.658173 | I193: 0.9902405444 | J193: 1 | K193: 447.57 | L193: 449.2 | M193: 447.14 | N193: 448.66 | O193: 47170500
A194: 179 | B194: 2021-09-02 | C194: 453.320007 | D194: 454.049988 | E194: 451.910004 | F194: 453.190002 | G194: 42501000 | H194: 448.76712 | I194: 0.990240557 | J194: 1 | K194: 448.9 | L194: 449.62 | M194: 447.5 | N194: 448.77 | O194: 42501000
A195: 180 | B195: 2021-09-01 | C195: 452.559998 | D195: 453.109985 | E195: 451.549988 | F195: 451.799988 | G195: 48721400 | H195: 447.390656 | I195: 0.9902405221 | J195: 1 | K195: 448.14 | L195: 448.69 | M195: 447.14 | N195: 447.39 | O195: 48721400
A196: 181 | B196: 2021-08-31 | C196: 452.130005 | D196: 452.48999 | E196: 450.920013 | F196: 451.559998 | G196: 59300200 | H196: 447.153015 | I196: 0.9902405372 | J196: 1 | K196: 447.72 | L196: 448.07 | M196: 446.52 | N196: 447.15 | O196: 59300200
A197: 182 | B197: 2021-08-30 | C197: 450.970001 | D197: 453.070007 | E197: 450.709991 | F197: 452.230011 | G197: 48357400 | H197: 447.816467 | I197: 0.9902404885 | J197: 1 | K197: 446.57 | L197: 448.65 | M197: 446.31 | N197: 447.82 | O197: 48357400
A198: 183 | B198: 2021-08-27 | C198: 447.119995 | D198: 450.649994 | E198: 447.059998 | F198: 450.25 | G198: 77235100 | H198: 445.855804 | I198: 0.9902405419 | J198: 1 | K198: 442.76 | L198: 446.25 | M198: 442.7 | N198: 445.86 | O198: 77235100
A199: 184 | B199: 2021-08-26 | C199: 448.609985 | D199: 448.859985 | E199: 446.160004 | F199: 446.26001 | G199: 57829600 | H199: 441.904755 | I199: 0.9902405438 | J199: 1 | K199: 444.23 | L199: 444.48 | M199: 441.81 | N199: 441.9 | O199: 57829600
A200: 185 | B200: 2021-08-25 | C200: 448.170013 | D200: 449.459991 | E200: 447.769989 | F200: 448.910004 | G200: 40529700 | H200: 444.52887 | I200: 0.9902405071 | J200: 1 | K200: 443.8 | L200: 445.07 | M200: 443.4 | N200: 444.53 | O200: 40529700
... 4300 more rows

Sheet CalculationsAndCharts
A1: EhlersPairsRotation.xlsm
A2: =" " & InputPriceData!A1 -> Raytheon Technologies Corporation (RTX) -NYSE (Daily) | G2: ="Pairs Rotation(" &A16 &", " &A21 & "), " & $A$2 & " :: " & InputPriceData2!A1 -> Pairs Rotation(125, 20), Raytheon Technologies Corporation (RTX) -NYSE (Daily) :: SPDR S&P 500 ETF Trust (SPY) -NYSEArca (Daily)
A3: ="vs " & InputPriceData2!A1 -> vs SPDR S&P 500 ETF Trust (SPY) -NYSEArca (Daily)
A4: User Charting Controls | E4: Click to Shift Chart One Bar:
A5: Data Control | C5: TRUE
A6: =MIN(InputPriceData!$B$10,InputPriceData2!$B$10) -> 7380 | B6: Available Input Data Rows | E6: Earliest: | F6: =OFFSET(InputPriceData!B15,CalculationsAndCharts!A6,0,1,1) -> 1993-01-29
A7: =MAX(A33:A56896) -> 2700 | B7: Available Calculation Rows | E7: Latest: | F7: =OFFSET(InputPriceData!B15,1,0,1,1) -> 2022-05-18
A8: =MIN(AvailableInputRows-DataPanRows,A7) -> 2700 | B8: Logically Available for Calc / Plot | E8: $ Change: | F8: =G33-G34 -> -2.01
A10: Historical Price Windowing Specifications | F10: Click to Shift
A11: 117 | B11: Input Data Offset (Pan) | F11: Points to Plot
A12: 85 | B12: Data Points to Plot (Zoom)
B13: First: | C13: =OFFSET(B32,A12,0,1,1) -> 2021-08-02
B14: ="Last: " & IF(OFFSET(InputPriceData!P15,1+A11,0,1,1)="","",TEXT(OFFSET(InputPriceData!P15,1+A11,0,1,1),"H:MM AM/PM")) -> Last: | C14: =B33 -> 2021-11-30
A15: User Controls | C15: Coefs
A16: 125 | B16: HP Period | C16: HP a1 | D16: HP b1 | V16: =U16/5 -> 0
C17: =EXP(-1.414*3.14159/A16) -> 0.9650863825 | D17: =2*C17*COS(RADIANS(1.414*180/A16)) -> 1.928954059
C18: HP c1 | D18: HP c2 | E18: HP c3
C19: =(1+D19-E19)/4 -> 0.9650864461 | D19: =D17 -> 1.928954059 | E19: =-C17*C17 -> -0.9313917257
A21: 20 | B21: LP Period | C21: SS a1 | D21: SS b1
C22: =EXP(-1.414*3.14159/A21) -> 0.8008269377 | D22: =2*C22*COS(RADIANS(1.414*180/A21)) -> 1.562308736
C23: SS c1 | D23: SS c2 | E23: SS c3
C24: =1-D24-E24 -> 0.07901504796 | D24: =D22 -> 1.562308736 | E24: =-C22*C22 -> -0.6413237842
A25: Help! I would like to plot data
A26: From | B26: 2021-08-02 | C26: =OFFSET(InputPriceData!$A$15,MATCH(B26,OFFSET(InputPriceData!B15,1,0,InputPriceData!$B$10,1),0),0,1,1)-C27 -> 85 | E26: 85
A27: To | B27: 2021-11-30 | C27: =OFFSET(InputPriceData!$A$15,MATCH(B27,OFFSET(InputPriceData!$B$15,1,0,InputPriceData!$B$10,1),0),0,1,1)-1 -> 117 | E27: =$A$12-$E$26+1 -> 1
H28: Value @ Cursor => | I28: =OFFSET(A32,$E$27,0,1,1)&"(RR)" -> 1(RR) | J28: =OFFSET($B$32,$E$27,0,1,1) -> 2021-11-30 | K28: =TEXT(OFFSET(D32,$E$27,0,1,1),"#,##0.00")&"(o)" -> 81.67(o) | L28: =TEXT(OFFSET(E32,$E$27,0,1,1),"#,##0.00")&"(h)" -> 82.04(h) | M28: =TEXT(OFFSET(F32,$E$27,0,1,1),"#,##0.00")&"(l)" -> 79.84(l) | N28: =TEXT(OFFSET(G32,$E$27,0,1,1),"#,##0.00")&"(c)" -> 80.47(c) | O28: =TEXT(OFFSET(C32,$E$27,0,1,1),"#,##0.00,,""M""")&"(v)" -> 7.97M(v)
E29: Cursor ==> | AY29: Work Area For Chart Cursors
B30: =LogicallyAvailableRows -> 2700 | C30: <== Calculation Rel Row Limits ==> | H30: =B30-3+1 -> 2698 | S30: =B30-3+1 -> 2698
A31: Rel Row | B31: =InputPriceData!$A$1 -> Raytheon Technologies Corporation (RTX) -NYSE (Daily) | H31: ="Smooth "&HistReqSymbol&" Price and Scale to Std Dev" -> Smooth RTX Price and Scale to Std Dev | L31: =HistReqSymbol & " RMS(" &A16 & ", " &A21 &") ==>Y-Axis" -> RTX RMS(125, 20) ==>Y-Axis | M31: =InputPriceData2!$A$1 -> SPDR S&P 500 ETF Trust (SPY) -NYSEArca (Daily) | S31: ="Smooth "& InputPriceData2!HistReqSymbol &" Price and Scale to Std Dev" -> Smooth SPY Price and Scale to Std Dev | W31: =+InputPriceData2!HistReqSymbol &" RMS("&A16&","&A21&") ==>X-Axis" -> SPY RMS(125,20) ==>X-Axis | AW31: Used To Color Vol Bars | BM31: LoopChart Cursor
B32: Date | C32: Volume | D32: Open | E32: High | F32: Low | G32: Close | H32: HP | I32: Price | J32: PriceMS | K32: Sqrt(PrMS) | M32: Date | N32: Volume | O32: Open | P32: High | Q32: Low | R32: Close | S32: HP | T32: Price | U32: PriceMS | V32: Sqrt(PrMS) | AW32: Up Vol | AX32: Dn Vol | AY32: Volume Cursor | AZ32: =MAX(OFFSET(C33,0,0,A12,1)) -> 23128700 | BA32: Price Chart Cursor | BC32: Indicator 01 Cursor | BE32: Indicator 02 Cursor | BG32: Indicator 03 Cursor | BI32: Indicator 04 Cursor | BK32: Price Chart2 Cursor | BM32: =OFFSET($B$32,$E$27,0,1,1) -> 2021-11-30
A33: 1 | B33: =IF($A33>$B$30,NA(),IF($A33>$A$8,"",OFFSET(InputPriceData!$B$15,$A33+$A$11,0,1,1))) -> 2021-11-30 | C33: =IF($A33>$B$30,NA(),IF($A33>$A$8,"",OFFSET(InputPriceData!$G$15,CalculationsAndCharts!$A33+$A$11,IF($C$5,8,0),1,1))) -> 7966000 | D33: =IF($A33>$B$30,NA(),IF($A33>$A$8,"",OFFSET(InputPriceData!$C$15,CalculationsAndCharts!$A33+$A$11,IF($C$5,8,0),1,1))) -> 81.67 | E33: =IF($A33>$B$30,NA(),IF($A33>$A$8,"",OFFSET(InputPriceData!$D$15,CalculationsAndCharts!$A33+$A$11,IF($C$5,8,0),1,1))) -> 82.04 | F33: =IF($A33>$B$30,NA(),IF($A33>$A$8,"",OFFSET(InputPriceData!$E$15,CalculationsAndCharts!$A33+$A$11,IF($C$5,8,0),1,1))) -> 79.84 | G33: =IF($A33>$B$30,NA(),IF($A33>$A$8,"",OFFSET(InputPriceData!$F$15,CalculationsAndCharts!$A33+$A$11,IF($C$5,8,0),1,1))) -> 80.47 | H33: =IF($A33>$H$30+2,NA(),IF($A33>$H$30,0,$C$19*($G33-2*$G34+$G35)+$D$19*H34+$E$19*H35)) -> -7.097401458 | I33: =IF($A33>$H$30+2,NA(),IF($A33>$H$30,0,$C$24*(H33+H34)/2+$D$24*I34+$E$24*I35)) -> -3.371941119 | J33: =IF($A33>$H$30,NA(),IF($A33=$H$30,I33*I33,0.0242*I33*I33+0.9758*J34)) -> 4.075004013 | K33: =IF($A33>$H$30,NA(),IF(J33=0,0,SQRT(J33))) -> 2.018663918 | L33: =IF($A33>$H$30,NA(),IF(J33=0,0,I33/K33)) -> -1.670382617 | M33: =IF($A33>$B$30,NA(),IF($A33>$A$8,"",OFFSET(InputPriceData2!$B$15,$A33+$A$11,0,1,1))) -> 2021-11-30 | N33: =IF($A33>$B$30,NA(),IF($A33>$A$8,"",OFFSET(InputPriceData2!$G$15,CalculationsAndCharts!$A33+$A$11,IF($C$5,8,0),1,1))) -> 148559600 | O33: =IF($A33>$B$30,NA(),IF($A33>$A$8,"",OFFSET(InputPriceData2!$C$15,CalculationsAndCharts!$A33+$A$11,IF($C$5,8,0),1,1))) -> 458.96 | P33: =IF($A33>$B$30,NA(),IF($A33>$A$8,"",OFFSET(InputPriceData2!$D$15,CalculationsAndCharts!$A33+$A$11,IF($C$5,8,0),1,1))) -> 460.97 | Q33: =IF($A33>$B$30,NA(),IF($A33>$A$8,"",OFFSET(InputPriceData2!$E$15,CalculationsAndCharts!$A33+$A$11,IF($C$5,8,0),1,1))) -> 452.3 | R33: =IF($A33>$B$30,NA(),IF($A33>$A$8,"",OFFSET(InputPriceData2!$F$15,CalculationsAndCharts!$A33+$A$11,IF($C$5,8,0),1,1))) -> 452.56 | S33: =IF($A33>$H$30+2,NA(),IF($A33>$H$30,0,$C$19*($R33-2*$R34+$R35)+$D$19*S34+$E$19*S35)) -> -11.45956399 | T33: =IF($A33>$H$30+2,NA(),IF($A33>$H$30,0,$C$24*(S33+S34)/2+$D$24*T34+$E$24*T35)) -> 1.026115759 | U33: =IF($A33>$H$30,NA(),IF($A33=$H$30,T33*T33,0.0242*T33*T33+0.9758*U34)) -> 60.17669233 | V33: =IF($A33>$H$30,NA(),IF(U33=0,0,SQRT(U33))) -> 7.757363748 | W33: =IF($A33>$H$30,NA(),IF(U33=0,0,T33/V33)) -> 0.1322763496 | AW33: =IF(G33>=D33,C33,NA()) ->  | AX33: =IF(G33<D33,C33,NA()) -> 7966000 | AY33: =$E$27 -> 1 | AZ33: 0 | BA33: =$E$27 -> 1 | BB33: 79.84 | BC33: =$E$27 -> 1 | BE33: =$E$27 -> 1 | BG33: =$E$27 -> 1 | BH33: -1.670382617 | BI33: =$E$27 -> 1 | BJ33: -2.718783406 | BK33: =$E$27 -> 1 | BL33: 423.55 | BM33: =OFFSET($W$32,$E$27,0,1,1) -> 0.1322763496 | BN33: =OFFSET($L$32,$E$27,0,1,1) -> -1.670382617
A34: 2 | B34: =IF(A34>$B$30,NA(),IF($A34>$A$8,"",OFFSET(InputPriceData!$B$15,$A34+$A$11,0,1,1))) -> 2021-11-29 | C34: =IF(A34>$B$30,NA(),IF($A34>$A$8,"",OFFSET(InputPriceData!$G$15,CalculationsAndCharts!$A34+$A$11,IF($C$5,8,0),1,1))) -> 5835000 | D34: =IF(A34>$B$30,NA(),IF(A34>$A$8,"",OFFSET(InputPriceData!$C$15,CalculationsAndCharts!$A34+$A$11,IF($C$5,8,0),1,1))) -> 83.63 | E34: =IF(A34>$B$30,NA(),IF(A34>$A$8,"",OFFSET(InputPriceData!$D$15,CalculationsAndCharts!$A34+$A$11,IF($C$5,8,0),1,1))) -> 83.98 | F34: =IF(A34>$B$30,NA(),IF(A34>$A$8,"",OFFSET(InputPriceData!$E$15,CalculationsAndCharts!$A34+$A$11,IF($C$5,8,0),1,1))) -> 82.06 | G34: =IF(A34>$B$30,NA(),IF(A34>$A$8,"",OFFSET(InputPriceData!$F$15,CalculationsAndCharts!$A34+$A$11,IF($C$5,8,0),1,1))) -> 82.48 | H34: =IF(A34>$H$30+2,NA(),IF(A34>$H$30,0,$C$19*(G34-2*G35+G36)+$D$19*H35+$E$19*H36)) -> -5.518714076 | I34: =IF(A34>$H$30+2,NA(),IF(A34>$H$30,0,$C$24*(H34+H35)/2+$D$24*I35+$E$24*I36)) -> -2.836705117 | J34: =IF($A34>$H$30,NA(),IF($A34=$H$30,I34*I34,0.0242*I34*I34+0.9758*J35)) -> 3.894087241 | K34: =IF(A34>$H$30,NA(),IF(J34=0,0,SQRT(J34))) -> 1.973344177 | L34: =IF(A34>$H$30,NA(),IF(J34=0,0,I34/K34)) -> -1.437511586 | M34: =IF($A34>$B$30,NA(),IF($A34>$A$8,"",OFFSET(InputPriceData2!$B$15,$A34+$A$11,0,1,1))) -> 2021-11-29 | N34: =IF($A34>$B$30,NA(),IF($A34>$A$8,"",OFFSET(InputPriceData2!$G$15,CalculationsAndCharts!$A34+$A$11,IF($C$5,8,0),1,1))) -> 86268800 | O34: =IF($A34>$B$30,NA(),IF($A34>$A$8,"",OFFSET(InputPriceData2!$C$15,CalculationsAndCharts!$A34+$A$11,IF($C$5,8,0),1,1))) -> 461.01 | P34: =IF($A34>$B$30,NA(),IF($A34>$A$8,"",OFFSET(InputPriceData2!$D$15,CalculationsAndCharts!$A34+$A$11,IF($C$5,8,0),1,1))) -> 463.49 | Q34: =IF($A34>$B$30,NA(),IF($A34>$A$8,"",OFFSET(InputPriceData2!$E$15,CalculationsAndCharts!$A34+$A$11,IF($C$5,8,0),1,1))) -> 458.69 | R34: =IF($A34>$B$30,NA(),IF($A34>$A$8,"",OFFSET(InputPriceData2!$F$15,CalculationsAndCharts!$A34+$A$11,IF($C$5,8,0),1,1))) -> 461.54 | S34: =IF($A34>$H$30+2,NA(),IF($A34>$H$30,0,$C$19*($R34-2*$R35+$R36)+$D$19*S35+$E$19*S36)) -> -2.436521762 | T34: =IF($A34>$S$30+2,NA(),IF($A34>$S$30,0,$C$24*(S34+S35)/2+$D$24*T35+$E$24*T36)) -> 2.722296598 | U34: =IF($A34>$S$30,NA(),IF($A34=$S$30,T34*T34,0.0242*T34*T34+0.9758*U35)) -> 61.64297173 | V34: =IF($A34>$S$30,NA(),IF(U34=0,0,SQRT(U34))) -> 7.851303824 | W34: =IF($A34>$S$30,NA(),IF(U34=0,0,T34/V34)) -> 0.3467317861 | AX34: 5835000 | AY34: =$E$27 -> 1 | AZ34: =CEILING(AZ32,10^INT(LOG10(AZ32))/8) -> 23750000 | BA34: =$E$27 -> 1 | BB34: 91.27 | BC34: =$E$27 -> 1 | BD34: 0 | BE34: =$E$27 -> 1 | BF34: 0 | BG34: =$E$27 -> 1 | BH34: 1.771547191 | BI34: =$E$27 -> 1 | BJ34: 1.71830228 | BK34: =$E$27 -> 1 | BL34: 470.42
A35: 3 | B35: =IF(A35>$B$30,NA(),IF($A35>$A$8,"",OFFSET(InputPriceData!$B$15,$A35+$A$11,0,1,1))) -> 2021-11-26 | C35: =IF(A35>$B$30,NA(),IF($A35>$A$8,"",OFFSET(InputPriceData!$G$15,CalculationsAndCharts!$A35+$A$11,IF($C$5,8,0),1,1))) -> 7113600 | D35: =IF(A35>$B$30,NA(),IF(A35>$A$8,"",OFFSET(InputPriceData!$C$15,CalculationsAndCharts!$A35+$A$11,IF($C$5,8,0),1,1))) -> 83.1 | E35: =IF(A35>$B$30,NA(),IF(A35>$A$8,"",OFFSET(InputPriceData!$D$15,CalculationsAndCharts!$A35+$A$11,IF($C$5,8,0),1,1))) -> 83.13 | F35: =IF(A35>$B$30,NA(),IF(A35>$A$8,"",OFFSET(InputPriceData!$E$15,CalculationsAndCharts!$A35+$A$11,IF($C$5,8,0),1,1))) -> 80.97 | G35: =IF(A35>$B$30,NA(),IF(A35>$A$8,"",OFFSET(InputPriceData!$F$15,CalculationsAndCharts!$A35+$A$11,IF($C$5,8,0),1,1))) -> 82.54 | H35: -5.829838165 | I35: -2.429817189 | J35: 3.791096904 | K35: 1.947073934 | L35: -1.247932678 | M35: =IF($A35>$B$30,NA(),IF($A35>$A$8,"",OFFSET(InputPriceData2!$B$15,$A35+$A$11,0,1,1))) -> 2021-11-26 | N35: =IF($A35>$B$30,NA(),IF($A35>$A$8,"",OFFSET(InputPriceData2!$G$15,CalculationsAndCharts!$A35+$A$11,IF($C$5,8,0),1,1))) -> 112669600 | O35: =IF($A35>$B$30,NA(),IF($A35>$A$8,"",OFFSET(InputPriceData2!$C$15,CalculationsAndCharts!$A35+$A$11,IF($C$5,8,0),1,1))) -> 459.29 | P35: =IF($A35>$B$30,NA(),IF($A35>$A$8,"",OFFSET(InputPriceData2!$D$15,CalculationsAndCharts!$A35+$A$11,IF($C$5,8,0),1,1))) -> 460.84 | Q35: =IF($A35>$B$30,NA(),IF($A35>$A$8,"",OFFSET(InputPriceData2!$E$15,CalculationsAndCharts!$A35+$A$11,IF($C$5,8,0),1,1))) -> 454.75 | R35: =IF($A35>$B$30,NA(),IF($A35>$A$8,"",OFFSET(InputPriceData2!$F$15,CalculationsAndCharts!$A35+$A$11,IF($C$5,8,0),1,1))) -> 455.95 | S35: -7.839541482 | T35: 4.175663095 | U35: 62.98793604 | V35: 7.936493938 | W35: 0.5261344779 | AX35: 7113600
A36: 4 | B36: =IF(A36>$B$30,NA(),IF($A36>$A$8,"",OFFSET(InputPriceData!$B$15,$A36+$A$11,0,1,1))) -> 2021-11-24 | C36: =IF(A36>$B$30,NA(),IF($A36>$A$8,"",OFFSET(InputPriceData!$G$15,CalculationsAndCharts!$A36+$A$11,IF($C$5,8,0),1,1))) -> 3464500 | D36: =IF(A36>$B$30,NA(),IF(A36>$A$8,"",OFFSET(InputPriceData!$C$15,CalculationsAndCharts!$A36+$A$11,IF($C$5,8,0),1,1))) -> 86.45 | E36: =IF(A36>$B$30,NA(),IF(A36>$A$8,"",OFFSET(InputPriceData!$D$15,CalculationsAndCharts!$A36+$A$11,IF($C$5,8,0),1,1))) -> 87 | F36: =IF(A36>$B$30,NA(),IF(A36>$A$8,"",OFFSET(InputPriceData!$E$15,CalculationsAndCharts!$A36+$A$11,IF($C$5,8,0),1,1))) -> 86.2 | G36: =IF(A36>$B$30,NA(),IF(A36>$A$8,"",OFFSET(InputPriceData!$F$15,CalculationsAndCharts!$A36+$A$11,IF($C$5,8,0),1,1))) -> 86.71 | H36: -1.889935858 | I36: -2.195104468 | J36: 3.738696274 | K36: 1.933570861 | L36: -1.135259386 | M36: =IF($A36>$B$30,NA(),IF($A36>$A$8,"",OFFSET(InputPriceData2!$B$15,$A36+$A$11,0,1,1))) -> 2021-11-24 | N36: =IF($A36>$B$30,NA(),IF($A36>$A$8,"",OFFSET(InputPriceData2!$G$15,CalculationsAndCharts!$A36+$A$11,IF($C$5,8,0),1,1))) -> 61858800 | O36: =IF($A36>$B$30,NA(),IF($A36>$A$8,"",OFFSET(InputPriceData2!$C$15,CalculationsAndCharts!$A36+$A$11,IF($C$5,8,0),1,1))) -> 462.99 | P36: =IF($A36>$B$30,NA(),IF($A36>$A$8,"",OFFSET(InputPriceData2!$D$15,CalculationsAndCharts!$A36+$A$11,IF($C$5,8,0),1,1))) -> 466.48 | Q36: =IF($A36>$B$30,NA(),IF($A36>$A$8,"",OFFSET(InputPriceData2!$E$15,CalculationsAndCharts!$A36+$A$11,IF($C$5,8,0),1,1))) -> 462.13 | R36: =IF($A36>$B$30,NA(),IF($A36>$A$8,"",OFFSET(InputPriceData2!$F$15,CalculationsAndCharts!$A36+$A$11,IF($C$5,8,0),1,1))) -> 466.35 | S36: 2.948425027 | T36: 5.294356147 | U36: 64.11762749 | V36: 8.007348343 | W36: 0.6611871896 | AW36: 3464500
A37: 5 | B37: =IF(A37>$B$30,NA(),IF($A37>$A$8,"",OFFSET(InputPriceData!$B$15,$A37+$A$11,0,1,1))) -> 2021-11-23 | C37: =IF(A37>$B$30,NA(),IF($A37>$A$8,"",OFFSET(InputPriceData!$G$15,CalculationsAndCharts!$A37+$A$11,IF($C$5,8,0),1,1))) -> 5950700 | D37: =IF(A37>$B$30,NA(),IF(A37>$A$8,"",OFFSET(InputPriceData!$C$15,CalculationsAndCharts!$A37+$A$11,IF($C$5,8,0),1,1))) -> 86.84 | E37: =IF(A37>$B$30,NA(),IF(A37>$A$8,"",OFFSET(InputPriceData!$D$15,CalculationsAndCharts!$A37+$A$11,IF($C$5,8,0),1,1))) -> 87.25 | F37: =IF(A37>$B$30,NA(),IF(A37>$A$8,"",OFFSET(InputPriceData!$E$15,CalculationsAndCharts!$A37+$A$11,IF($C$5,8,0),1,1))) -> 86.26 | G37: =IF(A37>$B$30,NA(),IF(A37>$A$8,"",OFFSET(InputPriceData!$F$15,CalculationsAndCharts!$A37+$A$11,IF($C$5,8,0),1,1))) -> 86.83 | H37: -1.851381475 | I37: -2.034234327 | J37: 3.711917371 | K37: 1.926633689 | L37: -1.055849038 | M37: =IF($A37>$B$30,NA(),IF($A37>$A$8,"",OFFSET(InputPriceData2!$B$15,$A37+$A$11,0,1,1))) -> 2021-11-23 | N37: =IF($A37>$B$30,NA(),IF($A37>$A$8,"",OFFSET(InputPriceData2!$G$15,CalculationsAndCharts!$A37+$A$11,IF($C$5,8,0),1,1))) -> 73206500 | O37: =IF($A37>$B$30,NA(),IF($A37>$A$8,"",OFFSET(InputPriceData2!$C$15,CalculationsAndCharts!$A37+$A$11,IF($C$5,8,0),1,1))) -> 464.14 | P37: =IF($A37>$B$30,NA(),IF($A37>$A$8,"",OFFSET(InputPriceData2!$D$15,CalculationsAndCharts!$A37+$A$11,IF($C$5,8,0),1,1))) -> 466.01 | Q37: =IF($A37>$B$30,NA(),IF($A37>$A$8,"",OFFSET(InputPriceData2!$E$15,CalculationsAndCharts!$A37+$A$11,IF($C$5,8,0),1,1))) -> 461.39 | R37: =IF($A37>$B$30,NA(),IF($A37>$A$8,"",OFFSET(InputPriceData2!$F$15,CalculationsAndCharts!$A37+$A$11,IF($C$5,8,0),1,1))) -> 465.11 | S37: 2.462241836 | T37: 6.085100791 | U37: 65.01260144 | V37: 8.063039218 | W37: 0.7546907098 | AX37: 5950700
A38: 6 | B38: =IF(A38>$B$30,NA(),IF($A38>$A$8,"",OFFSET(InputPriceData!$B$15,$A38+$A$11,0,1,1))) -> 2021-11-22 | C38: =IF(A38>$B$30,NA(),IF($A38>$A$8,"",OFFSET(InputPriceData!$G$15,CalculationsAndCharts!$A38+$A$11,IF($C$5,8,0),1,1))) -> 6819800 | D38: =IF(A38>$B$30,NA(),IF(A38>$A$8,"",OFFSET(InputPriceData!$C$15,CalculationsAndCharts!$A38+$A$11,IF($C$5,8,0),1,1))) -> 85.34 | E38: =IF(A38>$B$30,NA(),IF(A38>$A$8,"",OFFSET(InputPriceData!$D$15,CalculationsAndCharts!$A38+$A$11,IF($C$5,8,0),1,1))) -> 87.16 | F38: =IF(A38>$B$30,NA(),IF(A38>$A$8,"",OFFSET(InputPriceData!$E$15,CalculationsAndCharts!$A38+$A$11,IF($C$5,8,0),1,1))) -> 85.21 | G38: =IF(A38>$B$30,NA(),IF(A38>$A$8,"",OFFSET(InputPriceData!$F$15,CalculationsAndCharts!$A38+$A$11,IF($C$5,8,0),1,1))) -> 86.32 | H38: -2.457932951 | I38: -1.763240043 | J38: 3.701347741 | K38: 1.923888703 | L38: -0.9164979452 | M38: =IF($A38>$B$30,NA(),IF($A38>$A$8,"",OFFSET(InputPriceData2!$B$15,$A38+$A$11,0,1,1))) -> 2021-11-22 | N38: =IF($A38>$B$30,NA(),IF($A38>$A$8,"",OFFSET(InputPriceData2!$G$15,CalculationsAndCharts!$A38+$A$11,IF($C$5,8,0),1,1))) -> 72762000 | O38: =IF($A38>$B$30,NA(),IF($A38>$A$8,"",OFFSET(InputPriceData2!$C$15,CalculationsAndCharts!$A38+$A$11,IF($C$5,8,0),1,1))) -> 467.79 | P38: =IF($A38>$B$30,NA(),IF($A38>$A$8,"",OFFSET(InputPriceData2!$D$15,CalculationsAndCharts!$A38+$A$11,IF($C$5,8,0),1,1))) -> 470.42 | Q38: =IF($A38>$B$30,NA(),IF($A38>$A$8,"",OFFSET(InputPriceData2!$E$15,CalculationsAndCharts!$A38+$A$11,IF($C$5,8,0),1,1))) -> 464.27 | R38: =IF($A38>$B$30,NA(),IF($A38>$A$8,"",OFFSET(InputPriceData2!$F$15,CalculationsAndCharts!$A38+$A$11,IF($C$5,8,0),1,1))) -> 464.49 | S38: 2.576230695 | T38: 6.901680772 | U38: 65.70661294 | V38: 8.105961568 | W38: 0.8514327035 | AW38: 6819800
A39: 7 | B39: =IF(A39>$B$30,NA(),IF($A39>$A$8,"",OFFSET(InputPriceData!$B$15,$A39+$A$11,0,1,1))) -> 2021-11-19 | C39: =IF(A39>$B$30,NA(),IF($A39>$A$8,"",OFFSET(InputPriceData!$G$15,CalculationsAndCharts!$A39+$A$11,IF($C$5,8,0),1,1))) -> 5478200 | D39: =IF(A39>$B$30,NA(),IF(A39>$A$8,"",OFFSET(InputPriceData!$C$15,CalculationsAndCharts!$A39+$A$11,IF($C$5,8,0),1,1))) -> 85.77 | E39: =IF(A39>$B$30,NA(),IF(A39>$A$8,"",OFFSET(InputPriceData!$D$15,CalculationsAndCharts!$A39+$A$11,IF($C$5,8,0),1,1))) -> 85.77 | F39: =IF(A39>$B$30,NA(),IF(A39>$A$8,"",OFFSET(InputPriceData!$E$15,CalculationsAndCharts!$A39+$A$11,IF($C$5,8,0),1,1))) -> 84.59 | G39: =IF(A39>$B$30,NA(),IF(A39>$A$8,"",OFFSET(InputPriceData!$F$15,CalculationsAndCharts!$A39+$A$11,IF($C$5,8,0),1,1))) -> 84.96 | H39: -3.983481541 | I39: -1.388910502 | J39: 3.716037679 | K39: 1.927702695 | L39: -0.7205003686 | M39: =IF($A39>$B$30,NA(),IF($A39>$A$8,"",OFFSET(InputPriceData2!$B$15,$A39+$A$11,0,1,1))) -> 2021-11-19 | N39: =IF($A39>$B$30,NA(),IF($A39>$A$8,"",OFFSET(InputPriceData2!$G$15,CalculationsAndCharts!$A39+$A$11,IF($C$5,8,0),1,1))) -> 57315600 | O39: =IF($A39>$B$30,NA(),IF($A39>$A$8,"",OFFSET(InputPriceData2!$C$15,CalculationsAndCharts!$A39+$A$11,IF($C$5,8,0),1,1))) -> 466.52 | P39: =IF($A39>$B$30,NA(),IF($A39>$A$8,"",OFFSET(InputPriceData2!$D$15,CalculationsAndCharts!$A39+$A$11,IF($C$5,8,0),1,1))) -> 467.84 | Q39: =IF($A39>$B$30,NA(),IF($A39>$A$8,"",OFFSET(InputPriceData2!$E$15,CalculationsAndCharts!$A39+$A$11,IF($C$5,8,0),1,1))) -> 465.41 | R39: =IF($A39>$B$30,NA(),IF($A39>$A$8,"",OFFSET(InputPriceData2!$F$15,CalculationsAndCharts!$A39+$A$11,IF($C$5,8,0),1,1))) -> 465.8 | S39: 4.69169474 | T39: 7.635009131 | U39: 66.15483661 | V39: 8.133562357 | W39: 0.9387041982 | AX39: 5478200
A40: 8 | B40: =IF(A40>$B$30,NA(),IF($A40>$A$8,"",OFFSET(InputPriceData!$B$15,$A40+$A$11,0,1,1))) -> 2021-11-18 | C40: =IF(A40>$B$30,NA(),IF($A40>$A$8,"",OFFSET(InputPriceData!$G$15,CalculationsAndCharts!$A40+$A$11,IF($C$5,8,0),1,1))) -> 4376300 | D40: =IF(A40>$B$30,NA(),IF(A40>$A$8,"",OFFSET(InputPriceData!$C$15,CalculationsAndCharts!$A40+$A$11,IF($C$5,8,0),1,1))) -> 86.71 | E40: =IF(A40>$B$30,NA(),IF(A40>$A$8,"",OFFSET(InputPriceData!$D$15,CalculationsAndCharts!$A40+$A$11,IF($C$5,8,0),1,1))) -> 87.3 | F40: =IF(A40>$B$30,NA(),IF(A40>$A$8,"",OFFSET(InputPriceData!$E$15,CalculationsAndCharts!$A40+$A$11,IF($C$5,8,0),1,1))) -> 85.86 | G40: =IF(A40>$B$30,NA(),IF(A40>$A$8,"",OFFSET(InputPriceData!$F$15,CalculationsAndCharts!$A40+$A$11,IF($C$5,8,0),1,1))) -> 86.43 | H40: -2.678599373 | I40: -1.030916554 | J40: 3.760354712 | K40: 1.939163405 | L40: -0.5316295427 | M40: =IF($A40>$B$30,NA(),IF($A40>$A$8,"",OFFSET(InputPriceData2!$B$15,$A40+$A$11,0,1,1))) -> 2021-11-18 | N40: =IF($A40>$B$30,NA(),IF($A40>$A$8,"",OFFSET(InputPriceData2!$G$15,CalculationsAndCharts!$A40+$A$11,IF($C$5,8,0),1,1))) -> 50625600 | O40: =IF($A40>$B$30,NA(),IF($A40>$A$8,"",OFFSET(InputPriceData2!$C$15,CalculationsAndCharts!$A40+$A$11,IF($C$5,8,0),1,1))) -> 466.15 | P40: =IF($A40>$B$30,NA(),IF($A40>$A$8,"",OFFSET(InputPriceData2!$D$15,CalculationsAndCharts!$A40+$A$11,IF($C$5,8,0),1,1))) -> 466.91 | Q40: =IF($A40>$B$30,NA(),IF($A40>$A$8,"",OFFSET(InputPriceData2!$E$15,CalculationsAndCharts!$A40+$A$11,IF($C$5,8,0),1,1))) -> 463.27 | R40: =IF($A40>$B$30,NA(),IF($A40>$A$8,"",OFFSET(InputPriceData2!$F$15,CalculationsAndCharts!$A40+$A$11,IF($C$5,8,0),1,1))) -> 466.64 | S40: 6.463706002 | T40: 8.285515934 | U40: 66.34980241 | V40: 8.145538804 | W40: 1.017184515 | AX40: 4376300
A41: 9 | B41: =IF(A41>$B$30,NA(),IF($A41>$A$8,"",OFFSET(InputPriceData!$B$15,$A41+$A$11,0,1,1))) -> 2021-11-17 | C41: =IF(A41>$B$30,NA(),IF($A41>$A$8,"",OFFSET(InputPriceData!$G$15,CalculationsAndCharts!$A41+$A$11,IF($C$5,8,0),1,1))) -> 3910600 | D41: =IF(A41>$B$30,NA(),IF(A41>$A$8,"",OFFSET(InputPriceData!$C$15,CalculationsAndCharts!$A41+$A$11,IF($C$5,8,0),1,1))) -> 87.75 | E41: =IF(A41>$B$30,NA(),IF(A41>$A$8,"",OFFSET(InputPriceData!$D$15,CalculationsAndCharts!$A41+$A$11,IF($C$5,8,0),1,1))) -> 88.04 | F41: =IF(A41>$B$30,NA(),IF(A41>$A$8,"",OFFSET(InputPriceData!$E$15,CalculationsAndCharts!$A41+$A$11,IF($C$5,8,0),1,1))) -> 86.2 | G41: =IF(A41>$B$30,NA(),IF(A41>$A$8,"",OFFSET(InputPriceData!$F$15,CalculationsAndCharts!$A41+$A$11,IF($C$5,8,0),1,1))) -> 86.46 | H41: -2.76268084 | I41: -0.7560950808 | J41: 3.827254785 | K41: 1.956337084 | L41: -0.3864850731 | M41: =IF($A41>$B$30,NA(),IF($A41>$A$8,"",OFFSET(InputPriceData2!$B$15,$A41+$A$11,0,1,1))) -> 2021-11-17 | N41: =IF($A41>$B$30,NA(),IF($A41>$A$8,"",OFFSET(InputPriceData2!$G$15,CalculationsAndCharts!$A41+$A$11,IF($C$5,8,0),1,1))) -> 47858300 | O41: =IF($A41>$B$30,NA(),IF($A41>$A$8,"",OFFSET(InputPriceData2!$C$15,CalculationsAndCharts!$A41+$A$11,IF($C$5,8,0),1,1))) -> 465.91 | P41: =IF($A41>$B$30,NA(),IF($A41>$A$8,"",OFFSET(InputPriceData2!$D$15,CalculationsAndCharts!$A41+$A$11,IF($C$5,8,0),1,1))) -> 466.1 | Q41: =IF($A41>$B$30,NA(),IF($A41>$A$8,"",OFFSET(InputPriceData2!$E$15,CalculationsAndCharts!$A41+$A$11,IF($C$5,8,0),1,1))) -> 464.4 | R41: =IF($A41>$B$30,NA(),IF($A41>$A$8,"",OFFSET(InputPriceData2!$F$15,CalculationsAndCharts!$A41+$A$11,IF($C$5,8,0),1,1))) -> 465.06 | S41: 5.84178261 | T41: 8.966215196 | U41: 66.29276273 | V41: 8.142036768 | W41: 1.101225093 | AX41: 3910600
A42: 10 | B42: =IF(A42>$B$30,NA(),IF($A42>$A$8,"",OFFSET(InputPriceData!$B$15,$A42+$A$11,0,1,1))) -> 2021-11-16 | C42: =IF(A42>$B$30,NA(),IF($A42>$A$8,"",OFFSET(InputPriceData!$G$15,CalculationsAndCharts!$A42+$A$11,IF($C$5,8,0),1,1))) -> 4746200 | D42: =IF(A42>$B$30,NA(),IF(A42>$A$8,"",OFFSET(InputPriceData!$C$15,CalculationsAndCharts!$A42+$A$11,IF($C$5,8,0),1,1))) -> 88.26 | E42: =IF(A42>$B$30,NA(),IF(A42>$A$8,"",OFFSET(InputPriceData!$D$15,CalculationsAndCharts!$A42+$A$11,IF($C$5,8,0),1,1))) -> 88.8 | F42: =IF(A42>$B$30,NA(),IF(A42>$A$8,"",OFFSET(InputPriceData!$E$15,CalculationsAndCharts!$A42+$A$11,IF($C$5,8,0),1,1))) -> 87.8 | G42: =IF(A42>$B$30,NA(),IF(A42>$A$8,"",OFFSET(InputPriceData!$F$15,CalculationsAndCharts!$A42+$A$11,IF($C$5,8,0),1,1))) -> 87.89 | H42: -1.395077909 | I42: -0.5696169602 | J42: 3.907993579 | K42: 1.976864583 | L42: -0.2881416184 | M42: =IF($A42>$B$30,NA(),IF($A42>$A$8,"",OFFSET(InputPriceData2!$B$15,$A42+$A$11,0,1,1))) -> 2021-11-16 | N42: =IF($A42>$B$30,NA(),IF($A42>$A$8,"",OFFSET(InputPriceData2!$G$15,CalculationsAndCharts!$A42+$A$11,IF($C$5,8,0),1,1))) -> 48857500 | O42: =IF($A42>$B$30,NA(),IF($A42>$A$8,"",OFFSET(InputPriceData2!$C$15,CalculationsAndCharts!$A42+$A$11,IF($C$5,8,0),1,1))) -> 464.07 | P42: =IF($A42>$B$30,NA(),IF($A42>$A$8,"",OFFSET(InputPriceData2!$D$15,CalculationsAndCharts!$A42+$A$11,IF($C$5,8,0),1,1))) -> 467.39 | Q42: =IF($A42>$B$30,NA(),IF($A42>$A$8,"",OFFSET(InputPriceData2!$E$15,CalculationsAndCharts!$A42+$A$11,IF($C$5,8,0),1,1))) -> 463.99 | R42: =IF($A42>$B$30,NA(),IF($A42>$A$8,"",OFFSET(InputPriceData2!$F$15,CalculationsAndCharts!$A42+$A$11,IF($C$5,8,0),1,1))) -> 466.19 | S42: 7.966796719 | T42: 9.680975408 | U42: 65.94307416 | V42: 8.120534106 | W42: 1.192159935 | AX42: 4746200
A43: 11 | B43: =IF(A43>$B$30,NA(),IF($A43>$A$8,"",OFFSET(InputPriceData!$B$15,$A43+$A$11,0,1,1))) -> 2021-11-15 | C43: =IF(A43>$B$30,NA(),IF($A43>$A$8,"",OFFSET(InputPriceData!$G$15,CalculationsAndCharts!$A43+$A$11,IF($C$5,8,0),1,1))) -> 3423100 | D43: =IF(A43>$B$30,NA(),IF(A43>$A$8,"",OFFSET(InputPriceData!$C$15,CalculationsAndCharts!$A43+$A$11,IF($C$5,8,0),1,1))) -> 88.61 | E43: =IF(A43>$B$30,NA(),IF(A43>$A$8,"",OFFSET(InputPriceData!$D$15,CalculationsAndCharts!$A43+$A$11,IF($C$5,8,0),1,1))) -> 88.61 | F43: =IF(A43>$B$30,NA(),IF(A43>$A$8,"",OFFSET(InputPriceData!$E$15,CalculationsAndCharts!$A43+$A$11,IF($C$5,8,0),1,1))) -> 87.83 | G43: =IF(A43>$B$30,NA(),IF(A43>$A$8,"",OFFSET(InputPriceData!$F$15,CalculationsAndCharts!$A43+$A$11,IF($C$5,8,0),1,1))) -> 88.34 | H43: -0.9385364378 | I43: -0.4647967738 | J43: 3.996865713 | K43: 1.999216275 | L43: -0.2324894909 | M43: =IF($A43>$B$30,NA(),IF($A43>$A$8,"",OFFSET(InputPriceData2!$B$15,$A43+$A$11,0,1,1))) -> 2021-11-15 | N43: =IF($A43>$B$30,NA(),IF($A43>$A$8,"",OFFSET(InputPriceData2!$G$15,CalculationsAndCharts!$A43+$A$11,IF($C$5,8,0),1,1))) -> 46980500 | O43: =IF($A43>$B$30,NA(),IF($A43>$A$8,"",OFFSET(InputPriceData2!$C$15,CalculationsAndCharts!$A43+$A$11,IF($C$5,8,0),1,1))) -> 465.55 | P43: =IF($A43>$B$30,NA(),IF($A43>$A$8,"",OFFSET(InputPriceData2!$D$15,CalculationsAndCharts!$A43+$A$11,IF($C$5,8,0),1,1))) -> 465.72 | Q43: =IF($A43>$B$30,NA(),IF($A43>$A$8,"",OFFSET(InputPriceData2!$E$15,CalculationsAndCharts!$A43+$A$11,IF($C$5,8,0),1,1))) -> 463.16 | R43: =IF($A43>$B$30,NA(),IF($A43>$A$8,"",OFFSET(InputPriceData2!$F$15,CalculationsAndCharts!$A43+$A$11,IF($C$5,8,0),1,1))) -> 464.35 | S43: 7.150047964 | T43: 10.45337816 | U43: 65.25416998 | V43: 8.078005322 | W43: 1.294054379 | AX43: 3423100
A44: 12 | B44: =IF(A44>$B$30,NA(),IF($A44>$A$8,"",OFFSET(InputPriceData!$B$15,$A44+$A$11,0,1,1))) -> 2021-11-12 | C44: =IF(A44>$B$30,NA(),IF($A44>$A$8,"",OFFSET(InputPriceData!$G$15,CalculationsAndCharts!$A44+$A$11,IF($C$5,8,0),1,1))) -> 3273100 | D44: =IF(A44>$B$30,NA(),IF(A44>$A$8,"",OFFSET(InputPriceData!$C$15,CalculationsAndCharts!$A44+$A$11,IF($C$5,8,0),1,1))) -> 88.17 | E44: =IF(A44>$B$30,NA(),IF(A44>$A$8,"",OFFSET(InputPriceData!$D$15,CalculationsAndCharts!$A44+$A$11,IF($C$5,8,0),1,1))) -> 88.24 | F44: =IF(A44>$B$30,NA(),IF(A44>$A$8,"",OFFSET(InputPriceData!$E$15,CalculationsAndCharts!$A44+$A$11,IF($C$5,8,0),1,1))) -> 87.62 | G44: =IF(A44>$B$30,NA(),IF(A44>$A$8,"",OFFSET(InputPriceData!$F$15,CalculationsAndCharts!$A44+$A$11,IF($C$5,8,0),1,1))) -> 87.85 | H44: -1.419914935 | I44: -0.3878453147 | J44: 4.090630909 | K44: 2.022530818 | L44: -0.1917623758 | M44: =IF($A44>$B$30,NA(),IF($A44>$A$8,"",OFFSET(InputPriceData2!$B$15,$A44+$A$11,0,1,1))) -> 2021-11-12 | N44: =IF($A44>$B$30,NA(),IF($A44>$A$8,"",OFFSET(InputPriceData2!$G$15,CalculationsAndCharts!$A44+$A$11,IF($C$5,8,0),1,1))) -> 53466700 | O44: =IF($A44>$B$30,NA(),IF($A44>$A$8,"",OFFSET(InputPriceData2!$C$15,CalculationsAndCharts!$A44+$A$11,IF($C$5,8,0),1,1))) -> 462.06 | P44: =IF($A44>$B$30,NA(),IF($A44>$A$8,"",OFFSET(InputPriceData2!$D$15,CalculationsAndCharts!$A44+$A$11,IF($C$5,8,0),1,1))) -> 464.78 | Q44: =IF($A44>$B$30,NA(),IF($A44>$A$8,"",OFFSET(InputPriceData2!$E$15,CalculationsAndCharts!$A44+$A$11,IF($C$5,8,0),1,1))) -> 461.05 | R44: =IF($A44>$B$30,NA(),IF($A44>$A$8,"",OFFSET(InputPriceData2!$F$15,CalculationsAndCharts!$A44+$A$11,IF($C$5,8,0),1,1))) -> 464.19 | S44: 7.995199383 | T44: 11.30108986 | U44: 64.16249293 | V44: 8.01014937 | W44: 1.410846333 | AX44: 3273100
A45: 13 | B45: =IF(A45>$B$30,NA(),IF($A45>$A$8,"",OFFSET(InputPriceData!$B$15,$A45+$A$11,0,1,1))) -> 2021-11-11 | C45: =IF(A45>$B$30,NA(),IF($A45>$A$8,"",OFFSET(InputPriceData!$G$15,CalculationsAndCharts!$A45+$A$11,IF($C$5,8,0),1,1))) -> 4993600 | D45: =IF(A45>$B$30,NA(),IF(A45>$A$8,"",OFFSET(InputPriceData!$C$15,CalculationsAndCharts!$A45+$A$11,IF($C$5,8,0),1,1))) -> 89.06 | E45: =IF(A45>$B$30,NA(),IF(A45>$A$8,"",OFFSET(InputPriceData!$D$15,CalculationsAndCharts!$A45+$A$11,IF($C$5,8,0),1,1))) -> 89.4 | F45: =IF(A45>$B$30,NA(),IF(A45>$A$8,"",OFFSET(InputPriceData!$E$15,CalculationsAndCharts!$A45+$A$11,IF($C$5,8,0),1,1))) -> 87.69 | G45: =IF(A45>$B$30,NA(),IF(A45>$A$8,"",OFFSET(InputPriceData!$F$15,CalculationsAndCharts!$A45+$A$11,IF($C$5,8,0),1,1))) -> 88.04 | H45: -1.228436354 | I45: -0.365359791 | J45: 4.188348687 | K45: 2.04654555 | L45: -0.1785251206 | M45: =IF($A45>$B$30,NA(),IF($A45>$A$8,"",OFFSET(InputPriceData2!$B$15,$A45+$A$11,0,1,1))) -> 2021-11-11 | N45: =IF($A45>$B$30,NA(),IF($A45>$A$8,"",OFFSET(InputPriceData2!$G$15,CalculationsAndCharts!$A45+$A$11,IF($C$5,8,0),1,1))) -> 34848500 | O45: =IF($A45>$B$30,NA(),IF($A45>$A$8,"",OFFSET(InputPriceData2!$C$15,CalculationsAndCharts!$A45+$A$11,IF($C$5,8,0),1,1))) -> 462.15 | P45: =IF($A45>$B$30,NA(),IF($A45>$A$8,"",OFFSET(InputPriceData2!$D$15,CalculationsAndCharts!$A45+$A$11,IF($C$5,8,0),1,1))) -> 462.23 | Q45: =IF($A45>$B$30,NA(),IF($A45>$A$8,"",OFFSET(InputPriceData2!$E$15,CalculationsAndCharts!$A45+$A$11,IF($C$5,8,0),1,1))) -> 460.7 | R45: =IF($A45>$B$30,NA(),IF($A45>$A$8,"",OFFSET(InputPriceData2!$F$15,CalculationsAndCharts!$A45+$A$11,IF($C$5,8,0),1,1))) -> 460.72 | S45: 5.45193613 | T45: 12.1635353 | U45: 62.58638946 | V45: 7.911156013 | W45: 1.537516803 | AX45: 4993600
A46: 14 | B46: =IF(A46>$B$30,NA(),IF($A46>$A$8,"",OFFSET(InputPriceData!$B$15,$A46+$A$11,0,1,1))) -> 2021-11-10 | C46: =IF(A46>$B$30,NA(),IF($A46>$A$8,"",OFFSET(InputPriceData!$G$15,CalculationsAndCharts!$A46+$A$11,IF($C$5,8,0),1,1))) -> 3503200 | D46: =IF(A46>$B$30,NA(),IF(A46>$A$8,"",OFFSET(InputPriceData!$C$15,CalculationsAndCharts!$A46+$A$11,IF($C$5,8,0),1,1))) -> 89.99 | E46: =IF(A46>$B$30,NA(),IF(A46>$A$8,"",OFFSET(InputPriceData!$D$15,CalculationsAndCharts!$A46+$A$11,IF($C$5,8,0),1,1))) -> 90.4 | F46: =IF(A46>$B$30,NA(),IF(A46>$A$8,"",OFFSET(InputPriceData!$E$15,CalculationsAndCharts!$A46+$A$11,IF($C$5,8,0),1,1))) -> 89.12 | G46: =IF(A46>$B$30,NA(),IF(A46>$A$8,"",OFFSET(InputPriceData!$F$15,CalculationsAndCharts!$A46+$A$11,IF($C$5,8,0),1,1))) -> 89.16 | H46: -0.05599358377 | I46: -0.4484307112 | J46: 4.288909902 | K46: 2.070968349 | L46: -0.2165318999 | M46: =IF($A46>$B$30,NA(),IF($A46>$A$8,"",OFFSET(InputPriceData2!$B$15,$A46+$A$11,0,1,1))) -> 2021-11-10 | N46: =IF($A46>$B$30,NA(),IF($A46>$A$8,"",OFFSET(InputPriceData2!$G$15,CalculationsAndCharts!$A46+$A$11,IF($C$5,8,0),1,1))) -> 69429700 | O46: =IF($A46>$B$30,NA(),IF($A46>$A$8,"",OFFSET(InputPriceData2!$C$15,CalculationsAndCharts!$A46+$A$11,IF($C$5,8,0),1,1))) -> 462.51 | P46: =IF($A46>$B$30,NA(),IF($A46>$A$8,"",OFFSET(InputPriceData2!$D$15,CalculationsAndCharts!$A46+$A$11,IF($C$5,8,0),1,1))) -> 464.3 | Q46: =IF($A46>$B$30,NA(),IF($A46>$A$8,"",OFFSET(InputPriceData2!$E$15,CalculationsAndCharts!$A46+$A$11,IF($C$5,8,0),1,1))) -> 459 | R46: =IF($A46>$B$30,NA(),IF($A46>$A$8,"",OFFSET(InputPriceData2!$F$15,CalculationsAndCharts!$A46+$A$11,IF($C$5,8,0),1,1))) -> 460.57 | S46: 6.147168572 | T46: 12.83808714 | U46: 60.46931846 | V46: 7.776202059 | W46: 1.650945673 | AX46: 3503200
A47: 15 | B47: =IF(A47>$B$30,NA(),IF($A47>$A$8,"",OFFSET(InputPriceData!$B$15,$A47+$A$11,0,1,1))) -> 2021-11-09 | C47: =IF(A47>$B$30,NA(),IF($A47>$A$8,"",OFFSET(InputPriceData!$G$15,CalculationsAndCharts!$A47+$A$11,IF($C$5,8,0),1,1))) -> 3372900 | D47: =IF(A47>$B$30,NA(),IF(A47>$A$8,"",OFFSET(InputPriceData!$C$15,CalculationsAndCharts!$A47+$A$11,IF($C$5,8,0),1,1))) -> 89.68 | E47: =IF(A47>$B$30,NA(),IF(A47>$A$8,"",OFFSET(InputPriceData!$D$15,CalculationsAndCharts!$A47+$A$11,IF($C$5,8,0),1,1))) -> 90.04 | F47: =IF(A47>$B$30,NA(),IF(A47>$A$8,"",OFFSET(InputPriceData!$E$15,CalculationsAndCharts!$A47+$A$11,IF($C$5,8,0),1,1))) -> 88.95 | G47: =IF(A47>$B$30,NA(),IF(A47>$A$8,"",OFFSET(InputPriceData!$F$15,CalculationsAndCharts!$A47+$A$11,IF($C$5,8,0),1,1))) -> 89.96 | H47: 0.8713837773 | I47: -0.6018365182 | J47: 4.390288503 | K47: 2.09530153 | L47: -0.2872314602 | M47: =IF($A47>$B$30,NA(),IF($A47>$A$8,"",OFFSET(InputPriceData2!$B$15,$A47+$A$11,0,1,1))) -> 2021-11-09 | N47: =IF($A47>$B$30,NA(),IF($A47>$A$8,"",OFFSET(InputPriceData2!$G$15,CalculationsAndCharts!$A47+$A$11,IF($C$5,8,0),1,1))) -> 51149100 | O47: =IF($A47>$B$30,NA(),IF($A47>$A$8,"",OFFSET(InputPriceData2!$C$15,CalculationsAndCharts!$A47+$A$11,IF($C$5,8,0),1,1))) -> 466.23 | P47: =IF($A47>$B$30,NA(),IF($A47>$A$8,"",OFFSET(InputPriceData2!$D$15,CalculationsAndCharts!$A47+$A$11,IF($C$5,8,0),1,1))) -> 466.48 | Q47: =IF($A47>$B$30,NA(),IF($A47>$A$8,"",OFFSET(InputPriceData2!$E$15,CalculationsAndCharts!$A47+$A$11,IF($C$5,8,0),1,1))) -> 462.81 | R47: =IF($A47>$B$30,NA(),IF($A47>$A$8,"",OFFSET(InputPriceData2!$F$15,CalculationsAndCharts!$A47+$A$11,IF($C$5,8,0),1,1))) -> 464.3 | S47: 10.89789051 | T47: 13.02270789 | U47: 57.88149171 | V47: 7.607988677 | W47: 1.711714941 | AW47: 3372900
A48: 16 | B48: =IF(A48>$B$30,NA(),IF($A48>$A$8,"",OFFSET(InputPriceData!$B$15,$A48+$A$11,0,1,1))) -> 2021-11-08 | C48: =IF(A48>$B$30,NA(),IF($A48>$A$8,"",OFFSET(InputPriceData!$G$15,CalculationsAndCharts!$A48+$A$11,IF($C$5,8,0),1,1))) -> 4469100 | D48: =IF(A48>$B$30,NA(),IF(A48>$A$8,"",OFFSET(InputPriceData!$C$15,CalculationsAndCharts!$A48+$A$11,IF($C$5,8,0),1,1))) -> 90.28 | E48: =IF(A48>$B$30,NA(),IF(A48>$A$8,"",OFFSET(InputPriceData!$D$15,CalculationsAndCharts!$A48+$A$11,IF($C$5,8,0),1,1))) -> 90.63 | F48: =IF(A48>$B$30,NA(),IF(A48>$A$8,"",OFFSET(InputPriceData!$E$15,CalculationsAndCharts!$A48+$A$11,IF($C$5,8,0),1,1))) -> 89.29 | G48: =IF(A48>$B$30,NA(),IF(A48>$A$8,"",OFFSET(InputPriceData!$F$15,CalculationsAndCharts!$A48+$A$11,IF($C$5,8,0),1,1))) -> 89.68 | H48: 0.7457222098 | I48: -0.7166577985 | J48: 4.49018558 | K48: 2.1190058 | L48: -0.3382047366 | M48: =IF($A48>$B$30,NA(),IF($A48>$A$8,"",OFFSET(InputPriceData2!$B$15,$A48+$A$11,0,1,1))) -> 2021-11-08 | N48: =IF($A48>$B$30,NA(),IF($A48>$A$8,"",OFFSET(InputPriceData2!$G$15,CalculationsAndCharts!$A48+$A$11,IF($C$5,8,0),1,1))) -> 50405200 | O48: =IF($A48>$B$30,NA(),IF($A48>$A$8,"",OFFSET(InputPriceData2!$C$15,CalculationsAndCharts!$A48+$A$11,IF($C$5,8,0),1,1))) -> 466.61 | P48: =IF($A48>$B$30,NA(),IF($A48>$A$8,"",OFFSET(InputPriceData2!$D$15,CalculationsAndCharts!$A48+$A$11,IF($C$5,8,0),1,1))) -> 467.13 | Q48: =IF($A48>$B$30,NA(),IF($A48>$A$8,"",OFFSET(InputPriceData2!$E$15,CalculationsAndCharts!$A48+$A$11,IF($C$5,8,0),1,1))) -> 465.12 | R48: =IF($A48>$B$30,NA(),IF($A48>$A$8,"",OFFSET(InputPriceData2!$F$15,CalculationsAndCharts!$A48+$A$11,IF($C$5,8,0),1,1))) -> 465.84 | S48: 13.70081126 | T48: 12.75613262 | U48: 55.11107955 | V48: 7.423683692 | W48: 1.71830228 | AX48: 4469100
A49: 17 | B49: =IF(A49>$B$30,NA(),IF($A49>$A$8,"",OFFSET(InputPriceData!$B$15,$A49+$A$11,0,1,1))) -> 2021-11-05 | C49: =IF(A49>$B$30,NA(),IF($A49>$A$8,"",OFFSET(InputPriceData!$G$15,CalculationsAndCharts!$A49+$A$11,IF($C$5,8,0),1,1))) -> 4330400 | D49: =IF(A49>$B$30,NA(),IF(A49>$A$8,"",OFFSET(InputPriceData!$C$15,CalculationsAndCharts!$A49+$A$11,IF($C$5,8,0),1,1))) -> 88.75 | E49: =IF(A49>$B$30,NA(),IF(A49>$A$8,"",OFFSET(InputPriceData!$D$15,CalculationsAndCharts!$A49+$A$11,IF($C$5,8,0),1,1))) -> 90.2 | F49: =IF(A49>$B$30,NA(),IF(A49>$A$8,"",OFFSET(InputPriceData!$E$15,CalculationsAndCharts!$A49+$A$11,IF($C$5,8,0),1,1))) -> 88.05 | G49: =IF(A49>$B$30,NA(),IF(A49>$A$8,"",OFFSET(InputPriceData!$F$15,CalculationsAndCharts!$A49+$A$11,IF($C$5,8,0),1,1))) -> 90.15 | H49: 1.385984978 | I49: -0.7077803427 | J49: 4.588805594 | K49: 2.14214976 | L49: -0.3304065644 | M49: =IF($A49>$B$30,NA(),IF($A49>$A$8,"",OFFSET(InputPriceData2!$B$15,$A49+$A$11,0,1,1))) -> 2021-11-05 | N49: =IF($A49>$B$30,NA(),IF($A49>$A$8,"",OFFSET(InputPriceData2!$G$15,CalculationsAndCharts!$A49+$A$11,IF($C$5,8,0),1,1))) -> 66390600 | O49: =IF($A49>$B$30,NA(),IF($A49>$A$8,"",OFFSET(InputPriceData2!$C$15,CalculationsAndCharts!$A49+$A$11,IF($C$5,8,0),1,1))) -> 466.19 | P49: =IF($A49>$B$30,NA(),IF($A49>$A$8,"",OFFSET(InputPriceData2!$D$15,CalculationsAndCharts!$A49+$A$11,IF($C$5,8,0),1,1))) -> 467.55 | Q49: =IF($A49>$B$30,NA(),IF($A49>$A$8,"",OFFSET(InputPriceData2!$E$15,CalculationsAndCharts!$A49+$A$11,IF($C$5,8,0),1,1))) -> 463.84 | R49: =IF($A49>$B$30,NA(),IF($A49>$A$8,"",OFFSET(InputPriceData2!$F$15,CalculationsAndCharts!$A49+$A$11,IF($C$5,8,0),1,1))) -> 465.44 | S49: 14.66415998 | T49: 12.28419019 | U49: 52.44238748 | V49: 7.24171164 | W49: 1.696310321 | AW49: 4330400
A50: 18 | B50: =IF(A50>$B$30,NA(),IF($A50>$A$8,"",OFFSET(InputPriceData!$B$15,$A50+$A$11,0,1,1))) -> 2021-11-04 | C50: =IF(A50>$B$30,NA(),IF($A50>$A$8,"",OFFSET(InputPriceData!$G$15,CalculationsAndCharts!$A50+$A$11,IF($C$5,8,0),1,1))) -> 3711700 | D50: =IF(A50>$B$30,NA(),IF(A50>$A$8,"",OFFSET(InputPriceData!$C$15,CalculationsAndCharts!$A50+$A$11,IF($C$5,8,0),1,1))) -> 87.34 | E50: =IF(A50>$B$30,NA(),IF(A50>$A$8,"",OFFSET(InputPriceData!$D$15,CalculationsAndCharts!$A50+$A$11,IF($C$5,8,0),1,1))) -> 88.08 | F50: =IF(A50>$B$30,NA(),IF(A50>$A$8,"",OFFSET(InputPriceData!$E$15,CalculationsAndCharts!$A50+$A$11,IF($C$5,8,0),1,1))) -> 86.77 | G50: =IF(A50>$B$30,NA(),IF(A50>$A$8,"",OFFSET(InputPriceData!$F$15,CalculationsAndCharts!$A50+$A$11,IF($C$5,8,0),1,1))) -> 87.06 | H50: -1.619005803 | I50: -0.4754153032 | J50: 4.690185009 | K50: 2.165683497 | L50: -0.2195220603 | M50: =IF($A50>$B$30,NA(),IF($A50>$A$8,"",OFFSET(InputPriceData2!$B$15,$A50+$A$11,0,1,1))) -> 2021-11-04 | N50: =IF($A50>$B$30,NA(),IF($A50>$A$8,"",OFFSET(InputPriceData2!$G$15,CalculationsAndCharts!$A50+$A$11,IF($C$5,8,0),1,1))) -> 52847100 | O50: =IF($A50>$B$30,NA(),IF($A50>$A$8,"",OFFSET(InputPriceData2!$C$15,CalculationsAndCharts!$A50+$A$11,IF($C$5,8,0),1,1))) -> 462.29 | P50: =IF($A50>$B$30,NA(),IF($A50>$A$8,"",OFFSET(InputPriceData2!$D$15,CalculationsAndCharts!$A50+$A$11,IF($C$5,8,0),1,1))) -> 463.92 | Q50: =IF($A50>$B$30,NA(),IF($A50>$A$8,"",OFFSET(InputPriceData2!$E$15,CalculationsAndCharts!$A50+$A$11,IF($C$5,8,0),1,1))) -> 461.93 | R50: =IF($A50>$B$30,NA(),IF($A50>$A$8,"",OFFSET(InputPriceData2!$F$15,CalculationsAndCharts!$A50+$A$11,IF($C$5,8,0),1,1))) -> 463.83 | S50: 14.40631765 | T50: 11.78218399 | U50: 50.0005896 | V50: 7.071109503 | W50: 1.666242615 | AX50: 3711700
A51: 19 | B51: =IF(A51>$B$30,NA(),IF($A51>$A$8,"",OFFSET(InputPriceData!$B$15,$A51+$A$11,0,1,1))) -> 2021-11-03 | C51: =IF(A51>$B$30,NA(),IF($A51>$A$8,"",OFFSET(InputPriceData!$G$15,CalculationsAndCharts!$A51+$A$11,IF($C$5,8,0),1,1))) -> 4148500 | D51: =IF(A51>$B$30,NA(),IF(A51>$A$8,"",OFFSET(InputPriceData!$C$15,CalculationsAndCharts!$A51+$A$11,IF($C$5,8,0),1,1))) -> 86.03 | E51: =IF(A51>$B$30,NA(),IF(A51>$A$8,"",OFFSET(InputPriceData!$D$15,CalculationsAndCharts!$A51+$A$11,IF($C$5,8,0),1,1))) -> 87.78 | F51: =IF(A51>$B$30,NA(),IF(A51>$A$8,"",OFFSET(InputPriceData!$E$15,CalculationsAndCharts!$A51+$A$11,IF($C$5,8,0),1,1))) -> 85.96 | G51: =IF(A51>$B$30,NA(),IF(A51>$A$8,"",OFFSET(InputPriceData!$F$15,CalculationsAndCharts!$A51+$A$11,IF($C$5,8,0),1,1))) -> 87.67 | H51: -1.007259262 | I51: -0.06887506094 | J51: 4.80089704 | K51: 2.191094941 | L51: -0.03143408332 | M51: =IF($A51>$B$30,NA(),IF($A51>$A$8,"",OFFSET(InputPriceData2!$B$15,$A51+$A$11,0,1,1))) -> 2021-11-03 | N51: =IF($A51>$B$30,NA(),IF($A51>$A$8,"",OFFSET(InputPriceData2!$G$15,CalculationsAndCharts!$A51+$A$11,IF($C$5,8,0),1,1))) -> 52509800 | O51: =IF($A51>$B$30,NA(),IF($A51>$A$8,"",OFFSET(InputPriceData2!$C$15,CalculationsAndCharts!$A51+$A$11,IF($C$5,8,0),1,1))) -> 458.26 | P51: =IF($A51>$B$30,NA(),IF($A51>$A$8,"",OFFSET(InputPriceData2!$D$15,CalculationsAndCharts!$A51+$A$11,IF($C$5,8,0),1,1))) -> 462.09 | Q51: =IF($A51>$B$30,NA(),IF($A51>$A$8,"",OFFSET(InputPriceData2!$E$15,CalculationsAndCharts!$A51+$A$11,IF($C$5,8,0),1,1))) -> 457.79 | R51: =IF($A51>$B$30,NA(),IF($A51>$A$8,"",OFFSET(InputPriceData2!$F$15,CalculationsAndCharts!$A51+$A$11,IF($C$5,8,0),1,1))) -> 461.66 | S51: 13.51151848 | T51: 11.33861172 | U51: 47.79785714 | V51: 6.913599434 | W51: 1.640044644 | AW51: 4148500
A52: 20 | B52: =IF(A52>$B$30,NA(),IF($A52>$A$8,"",OFFSET(InputPriceData!$B$15,$A52+$A$11,0,1,1))) -> 2021-11-02 | C52: =IF(A52>$B$30,NA(),IF($A52>$A$8,"",OFFSET(InputPriceData!$G$15,CalculationsAndCharts!$A52+$A$11,IF($C$5,8,0),1,1))) -> 4554100 | D52: =IF(A52>$B$30,NA(),IF(A52>$A$8,"",OFFSET(InputPriceData!$C$15,CalculationsAndCharts!$A52+$A$11,IF($C$5,8,0),1,1))) -> 87.53 | E52: =IF(A52>$B$30,NA(),IF(A52>$A$8,"",OFFSET(InputPriceData!$D$15,CalculationsAndCharts!$A52+$A$11,IF($C$5,8,0),1,1))) -> 87.8 | F52: =IF(A52>$B$30,NA(),IF(A52>$A$8,"",OFFSET(InputPriceData!$E$15,CalculationsAndCharts!$A52+$A$11,IF($C$5,8,0),1,1))) -> 86.21 | G52: =IF(A52>$B$30,NA(),IF(A52>$A$8,"",OFFSET(InputPriceData!$F$15,CalculationsAndCharts!$A52+$A$11,IF($C$5,8,0),1,1))) -> 86.81 | H52: -1.870993769 | I52: 0.4117326852 | J52: 4.919842427 | K52: 2.218071781 | L52: 0.1856264025 | M52: =IF($A52>$B$30,NA(),IF($A52>$A$8,"",OFFSET(InputPriceData2!$B$15,$A52+$A$11,0,1,1))) -> 2021-11-02 | N52: =IF($A52>$B$30,NA(),IF($A52>$A$8,"",OFFSET(InputPriceData2!$G$15,CalculationsAndCharts!$A52+$A$11,IF($C$5,8,0),1,1))) -> 48908400 | O52: =IF($A52>$B$30,NA(),IF($A52>$A$8,"",OFFSET(InputPriceData2!$C$15,CalculationsAndCharts!$A52+$A$11,IF($C$5,8,0),1,1))) -> 457.19 | P52: =IF($A52>$B$30,NA(),IF($A52>$A$8,"",OFFSET(InputPriceData2!$D$15,CalculationsAndCharts!$A52+$A$11,IF($C$5,8,0),1,1))) -> 459.19 | Q52: =IF($A52>$B$30,NA(),IF($A52>$A$8,"",OFFSET(InputPriceData2!$E$15,CalculationsAndCharts!$A52+$A$11,IF($C$5,8,0),1,1))) -> 457.05 | R52: =IF($A52>$B$30,NA(),IF($A52>$A$8,"",OFFSET(InputPriceData2!$F$15,CalculationsAndCharts!$A52+$A$11,IF($C$5,8,0),1,1))) -> 458.86 | S52: 11.86265241 | T52: 10.96979859 | U52: 45.79484068 | V52: 6.767188536 | W52: 1.621027482 | AX52: 4554100
A53: 21 | B53: =IF(A53>$B$30,NA(),IF($A53>$A$8,"",OFFSET(InputPriceData!$B$15,$A53+$A$11,0,1,1))) -> 2021-11-01 | C53: =IF(A53>$B$30,NA(),IF($A53>$A$8,"",OFFSET(InputPriceData!$G$15,CalculationsAndCharts!$A53+$A$11,IF($C$5,8,0),1,1))) -> 4588800 | D53: =IF(A53>$B$30,NA(),IF(A53>$A$8,"",OFFSET(InputPriceData!$C$15,CalculationsAndCharts!$A53+$A$11,IF($C$5,8,0),1,1))) -> 87.9 | E53: =IF(A53>$B$30,NA(),IF(A53>$A$8,"",OFFSET(InputPriceData!$D$15,CalculationsAndCharts!$A53+$A$11,IF($C$5,8,0),1,1))) -> 88.18 | F53: =IF(A53>$B$30,NA(),IF(A53>$A$8,"",OFFSET(InputPriceData!$E$15,CalculationsAndCharts!$A53+$A$11,IF($C$5,8,0),1,1))) -> 86.96 | G53: =IF(A53>$B$30,NA(),IF(A53>$A$8,"",OFFSET(InputPriceData!$F$15,CalculationsAndCharts!$A53+$A$11,IF($C$5,8,0),1,1))) -> 87.55 | H53: -1.135573163 | I53: 0.9330949453 | J53: 5.037651108 | K53: 2.244471231 | L53: 0.41573041 | M53: =IF($A53>$B$30,NA(),IF($A53>$A$8,"",OFFSET(InputPriceData2!$B$15,$A53+$A$11,0,1,1))) -> 2021-11-01 | N53: =IF($A53>$B$30,NA(),IF($A53>$A$8,"",OFFSET(InputPriceData2!$G$15,CalculationsAndCharts!$A53+$A$11,IF($C$5,8,0),1,1))) -> 48433600 | O53: =IF($A53>$B$30,NA(),IF($A53>$A$8,"",OFFSET(InputPriceData2!$C$15,CalculationsAndCharts!$A53+$A$11,IF($C$5,8,0),1,1))) -> 457.27 | P53: =IF($A53>$B$30,NA(),IF($A53>$A$8,"",OFFSET(InputPriceData2!$D$15,CalculationsAndCharts!$A53+$A$11,IF($C$5,8,0),1,1))) -> 457.67 | Q53: =IF($A53>$B$30,NA(),IF($A53>$A$8,"",OFFSET(InputPriceData2!$E$15,CalculationsAndCharts!$A53+$A$11,IF($C$5,8,0),1,1))) -> 455.18 | R53: =IF($A53>$B$30,NA(),IF($A53>$A$8,"",OFFSET(InputPriceData2!$F$15,CalculationsAndCharts!$A53+$A$11,IF($C$5,8,0),1,1))) -> 457.01 | S53: 11.04564801 | T53: 10.60629791 | U53: 43.94619577 | V53: 6.629192694 | W53: 1.599938092 | AX53: 4588800
A54: 22 | B54: =IF(A54>$B$30,NA(),IF($A54>$A$8,"",OFFSET(InputPriceData!$B$15,$A54+$A$11,0,1,1))) -> 2021-10-29 | C54: =IF(A54>$B$30,NA(),IF($A54>$A$8,"",OFFSET(InputPriceData!$G$15,CalculationsAndCharts!$A54+$A$11,IF($C$5,8,0),1,1))) -> 5202300 | D54: =IF(A54>$B$30,NA(),IF(A54>$A$8,"",OFFSET(InputPriceData!$C$15,CalculationsAndCharts!$A54+$A$11,IF($C$5,8,0),1,1))) -> 88.05 | E54: =IF(A54>$B$30,NA(),IF(A54>$A$8,"",OFFSET(InputPriceData!$D$15,CalculationsAndCharts!$A54+$A$11,IF($C$5,8,0),1,1))) -> 88.74 | F54: =IF(A54>$B$30,NA(),IF(A54>$A$8,"",OFFSET(InputPriceData!$E$15,CalculationsAndCharts!$A54+$A$11,IF($C$5,8,0),1,1))) -> 87.51 | G54: =IF(A54>$B$30,NA(),IF(A54>$A$8,"",OFFSET(InputPriceData!$F$15,CalculationsAndCharts!$A54+$A$11,IF($C$5,8,0),1,1))) -> 87.85 | H54: -0.7989256389 | I54: 1.445865111 | J54: 5.140993018 | K54: 2.2673758 | L54: 0.6376821659 | M54: =IF($A54>$B$30,NA(),IF($A54>$A$8,"",OFFSET(InputPriceData2!$B$15,$A54+$A$11,0,1,1))) -> 2021-10-29 | N54: =IF($A54>$B$30,NA(),IF($A54>$A$8,"",OFFSET(InputPriceData2!$G$15,CalculationsAndCharts!$A54+$A$11,IF($C$5,8,0),1,1))) -> 70162400 | O54: =IF($A54>$B$30,NA(),IF($A54>$A$8,"",OFFSET(InputPriceData2!$C$15,CalculationsAndCharts!$A54+$A$11,IF($C$5,8,0),1,1))) -> 452.87 | P54: =IF($A54>$B$30,NA(),IF($A54>$A$8,"",OFFSET(InputPriceData2!$D$15,CalculationsAndCharts!$A54+$A$11,IF($C$5,8,0),1,1))) -> 456.53 | Q54: =IF($A54>$B$30,NA(),IF($A54>$A$8,"",OFFSET(InputPriceData2!$E$15,CalculationsAndCharts!$A54+$A$11,IF($C$5,8,0),1,1))) -> 452.56 | R54: =IF($A54>$B$30,NA(),IF($A54>$A$8,"",OFFSET(InputPriceData2!$F$15,CalculationsAndCharts!$A54+$A$11,IF($C$5,8,0),1,1))) -> 456.22 | S54: 11.23789969 | T54: 10.14396111 | U54: 42.24621002 | V54: 6.499708456 | W54: 1.560679402 | AX54: 5202300
A55: 23 | B55: =IF(A55>$B$30,NA(),IF($A55>$A$8,"",OFFSET(InputPriceData!$B$15,$A55+$A$11,0,1,1))) -> 2021-10-28 | C55: =IF(A55>$B$30,NA(),IF($A55>$A$8,"",OFFSET(InputPriceData!$G$15,CalculationsAndCharts!$A55+$A$11,IF($C$5,8,0),1,1))) -> 4179900 | D55: =IF(A55>$B$30,NA(),IF(A55>$A$8,"",OFFSET(InputPriceData!$C$15,CalculationsAndCharts!$A55+$A$11,IF($C$5,8,0),1,1))) -> 88.35 | E55: =IF(A55>$B$30,NA(),IF(A55>$A$8,"",OFFSET(InputPriceData!$D$15,CalculationsAndCharts!$A55+$A$11,IF($C$5,8,0),1,1))) -> 88.79 | F55: =IF(A55>$B$30,NA(),IF(A55>$A$8,"",OFFSET(InputPriceData!$E$15,CalculationsAndCharts!$A55+$A$11,IF($C$5,8,0),1,1))) -> 87.73 | G55: =IF(A55>$B$30,NA(),IF(A55>$A$8,"",OFFSET(InputPriceData!$F$15,CalculationsAndCharts!$A55+$A$11,IF($C$5,8,0),1,1))) -> 88.18 | H55: -0.404303675 | I55: 1.948104097 | J55: 5.216645102 | K55: 2.283997614 | L55: 0.8529361346 | M55: =IF($A55>$B$30,NA(),IF($A55>$A$8,"",OFFSET(InputPriceData2!$B$15,$A55+$A$11,0,1,1))) -> 2021-10-28 | N55: =IF($A55>$B$30,NA(),IF($A55>$A$8,"",OFFSET(InputPriceData2!$G$15,CalculationsAndCharts!$A55+$A$11,IF($C$5,8,0),1,1))) -> 51437900 | O55: =IF($A55>$B$30,NA(),IF($A55>$A$8,"",OFFSET(InputPriceData2!$C$15,CalculationsAndCharts!$A55+$A$11,IF($C$5,8,0),1,1))) -> 452.46 | P55: =IF($A55>$B$30,NA(),IF($A55>$A$8,"",OFFSET(InputPriceData2!$D$15,CalculationsAndCharts!$A55+$A$11,IF($C$5,8,0),1,1))) -> 455.38 | Q55: =IF($A55>$B$30,NA(),IF($A55>$A$8,"",OFFSET(InputPriceData2!$E$15,CalculationsAndCharts!$A55+$A$11,IF($C$5,8,0),1,1))) -> 452.45 | R55: =IF($A55>$B$30,NA(),IF($A55>$A$8,"",OFFSET(InputPriceData2!$F$15,CalculationsAndCharts!$A55+$A$11,IF($C$5,8,0),1,1))) -> 455.3 | S55: 11.28019788 | T55: 9.545987677 | U55: 40.74198739 | V55: 6.382945041 | W55: 1.495545961 | AX55: 4179900
A56: 24 | B56: =IF(A56>$B$30,NA(),IF($A56>$A$8,"",OFFSET(InputPriceData!$B$15,$A56+$A$11,0,1,1))) -> 2021-10-27 | C56: =IF(A56>$B$30,NA(),IF($A56>$A$8,"",OFFSET(InputPriceData!$G$15,CalculationsAndCharts!$A56+$A$11,IF($C$5,8,0),1,1))) -> 4273200 | D56: =IF(A56>$B$30,NA(),IF(A56>$A$8,"",OFFSET(InputPriceData!$C$15,CalculationsAndCharts!$A56+$A$11,IF($C$5,8,0),1,1))) -> 88.14 | E56: =IF(A56>$B$30,NA(),IF(A56>$A$8,"",OFFSET(InputPriceData!$D$15,CalculationsAndCharts!$A56+$A$11,IF($C$5,8,0),1,1))) -> 89.53 | F56: =IF(A56>$B$30,NA(),IF(A56>$A$8,"",OFFSET(InputPriceData!$E$15,CalculationsAndCharts!$A56+$A$11,IF($C$5,8,0),1,1))) -> 87.69 | G56: =IF(A56>$B$30,NA(),IF(A56>$A$8,"",OFFSET(InputPriceData!$F$15,CalculationsAndCharts!$A56+$A$11,IF($C$5,8,0),1,1))) -> 88.15 | H56: -0.352578499 | I56: 2.417091593 | J56: 5.251899416 | K56: 2.291702297 | L56: 1.054714479 | M56: =IF($A56>$B$30,NA(),IF($A56>$A$8,"",OFFSET(InputPriceData2!$B$15,$A56+$A$11,0,1,1))) -> 2021-10-27 | N56: =IF($A56>$B$30,NA(),IF($A56>$A$8,"",OFFSET(InputPriceData2!$G$15,CalculationsAndCharts!$A56+$A$11,IF($C$5,8,0),1,1))) -> 72438000 | O56: =IF($A56>$B$30,NA(),IF($A56>$A$8,"",OFFSET(InputPriceData2!$C$15,CalculationsAndCharts!$A56+$A$11,IF($C$5,8,0),1,1))) -> 453.44 | P56: =IF($A56>$B$30,NA(),IF($A56>$A$8,"",OFFSET(InputPriceData2!$D$15,CalculationsAndCharts!$A56+$A$11,IF($C$5,8,0),1,1))) -> 454.15 | Q56: =IF($A56>$B$30,NA(),IF($A56>$A$8,"",OFFSET(InputPriceData2!$E$15,CalculationsAndCharts!$A56+$A$11,IF($C$5,8,0),1,1))) -> 450.87 | R56: =IF($A56>$B$30,NA(),IF($A56>$A$8,"",OFFSET(InputPriceData2!$F$15,CalculationsAndCharts!$A56+$A$11,IF($C$5,8,0),1,1))) -> 450.95 | S56: 7.742002726 | T56: 8.824642492 | U56: 39.49245858 | V56: 6.284302553 | W56: 1.404235779 | AW56: 4273200
A57: 25 | B57: =IF(A57>$B$30,NA(),IF($A57>$A$8,"",OFFSET(InputPriceData!$B$15,$A57+$A$11,0,1,1))) -> 2021-10-26 | C57: =IF(A57>$B$30,NA(),IF($A57>$A$8,"",OFFSET(InputPriceData!$G$15,CalculationsAndCharts!$A57+$A$11,IF($C$5,8,0),1,1))) -> 9122500 | D57: =IF(A57>$B$30,NA(),IF(A57>$A$8,"",OFFSET(InputPriceData!$C$15,CalculationsAndCharts!$A57+$A$11,IF($C$5,8,0),1,1))) -> 87.29 | E57: =IF(A57>$B$30,NA(),IF(A57>$A$8,"",OFFSET(InputPriceData!$D$15,CalculationsAndCharts!$A57+$A$11,IF($C$5,8,0),1,1))) -> 90.16 | F57: =IF(A57>$B$30,NA(),IF(A57>$A$8,"",OFFSET(InputPriceData!$E$15,CalculationsAndCharts!$A57+$A$11,IF($C$5,8,0),1,1))) -> 86.01 | G57: =IF(A57>$B$30,NA(),IF(A57>$A$8,"",OFFSET(InputPriceData!$F$15,CalculationsAndCharts!$A57+$A$11,IF($C$5,8,0),1,1))) -> 88.15 | H57: -0.2650350561 | I57: 2.803945089 | J57: 5.237256597 | K57: 2.288505319 | L57: 1.225229876 | M57: =IF($A57>$B$30,NA(),IF($A57>$A$8,"",OFFSET(InputPriceData2!$B$15,$A57+$A$11,0,1,1))) -> 2021-10-26 | N57: =IF($A57>$B$30,NA(),IF($A57>$A$8,"",OFFSET(InputPriceData2!$G$15,CalculationsAndCharts!$A57+$A$11,IF($C$5,8,0),1,1))) -> 56075100 | O57: =IF($A57>$B$30,NA(),IF($A57>$A$8,"",OFFSET(InputPriceData2!$C$15,CalculationsAndCharts!$A57+$A$11,IF($C$5,8,0),1,1))) -> 454.19 | P57: =IF($A57>$B$30,NA(),IF($A57>$A$8,"",OFFSET(InputPriceData2!$D$15,CalculationsAndCharts!$A57+$A$11,IF($C$5,8,0),1,1))) -> 455.47 | Q57: =IF($A57>$B$30,NA(),IF($A57>$A$8,"",OFFSET(InputPriceData2!$E$15,CalculationsAndCharts!$A57+$A$11,IF($C$5,8,0),1,1))) -> 452.56 | R57: =IF($A57>$B$30,NA(),IF($A57>$A$8,"",OFFSET(InputPriceData2!$F$15,CalculationsAndCharts!$A57+$A$11,IF($C$5,8,0),1,1))) -> 452.96 | S57: 10.51299817 | T57: 7.784442977 | U57: 38.54058224 | V57: 6.208106172 | W57: 1.25391589 | AW57: 9122500
A58: 26 | B58: =IF(A58>$B$30,NA(),IF($A58>$A$8,"",OFFSET(InputPriceData!$B$15,$A58+$A$11,0,1,1))) -> 2021-10-25 | C58: =IF(A58>$B$30,NA(),IF($A58>$A$8,"",OFFSET(InputPriceData!$G$15,CalculationsAndCharts!$A58+$A$11,IF($C$5,8,0),1,1))) -> 5953900 | D58: =IF(A58>$B$30,NA(),IF(A58>$A$8,"",OFFSET(InputPriceData!$C$15,CalculationsAndCharts!$A58+$A$11,IF($C$5,8,0),1,1))) -> 90.63 | E58: =IF(A58>$B$30,NA(),IF(A58>$A$8,"",OFFSET(InputPriceData!$D$15,CalculationsAndCharts!$A58+$A$11,IF($C$5,8,0),1,1))) -> 90.94 | F58: =IF(A58>$B$30,NA(),IF(A58>$A$8,"",OFFSET(InputPriceData!$E$15,CalculationsAndCharts!$A58+$A$11,IF($C$5,8,0),1,1))) -> 89.67 | G58: =IF(A58>$B$30,NA(),IF(A58>$A$8,"",OFFSET(InputPriceData!$F$15,CalculationsAndCharts!$A58+$A$11,IF($C$5,8,0),1,1))) -> 90.27 | H58: 2.026345377 | I58: 3.023645747 | J58: 5.17215985 | K58: 2.274238301 | L58: 1.329520194 | M58: =IF($A58>$B$30,NA(),IF($A58>$A$8,"",OFFSET(InputPriceData2!$B$15,$A58+$A$11,0,1,1))) -> 2021-10-25 | N58: =IF($A58>$B$30,NA(),IF($A58>$A$8,"",OFFSET(InputPriceData2!$G$15,CalculationsAndCharts!$A58+$A$11,IF($C$5,8,0),1,1))) -> 45214500 | O58: =IF($A58>$B$30,NA(),IF($A58>$A$8,"",OFFSET(InputPriceData2!$C$15,CalculationsAndCharts!$A58+$A$11,IF($C$5,8,0),1,1))) -> 451.29 | P58: =IF($A58>$B$30,NA(),IF($A58>$A$8,"",OFFSET(InputPriceData2!$D$15,CalculationsAndCharts!$A58+$A$11,IF($C$5,8,0),1,1))) -> 452.9 | Q58: =IF($A58>$B$30,NA(),IF($A58>$A$8,"",OFFSET(InputPriceData2!$E$15,CalculationsAndCharts!$A58+$A$11,IF($C$5,8,0),1,1))) -> 449.41 | R58: =IF($A58>$B$30,NA(),IF($A58>$A$8,"",OFFSET(InputPriceData2!$F$15,CalculationsAndCharts!$A58+$A$11,IF($C$5,8,0),1,1))) -> 452.55 | S58: 10.9530483 | T58: 6.327959081 | U58: 37.99356577 | V58: 6.163892096 | W58: 1.026617433 | AX58: 5953900
A59: 27 | B59: =IF(A59>$B$30,NA(),IF($A59>$A$8,"",OFFSET(InputPriceData!$B$15,$A59+$A$11,0,1,1))) -> 2021-10-22 | C59: =IF(A59>$B$30,NA(),IF($A59>$A$8,"",OFFSET(InputPriceData!$G$15,CalculationsAndCharts!$A59+$A$11,IF($C$5,8,0),1,1))) -> 4160800 | D59: =IF(A59>$B$30,NA(),IF(A59>$A$8,"",OFFSET(InputPriceData!$C$15,CalculationsAndCharts!$A59+$A$11,IF($C$5,8,0),1,1))) -> 90.63 | E59: =IF(A59>$B$30,NA(),IF(A59>$A$8,"",OFFSET(InputPriceData!$D$15,CalculationsAndCharts!$A59+$A$11,IF($C$5,8,0),1,1))) -> 91.27 | F59: =IF(A59>$B$30,NA(),IF(A59>$A$8,"",OFFSET(InputPriceData!$E$15,CalculationsAndCharts!$A59+$A$11,IF($C$5,8,0),1,1))) -> 90.15 | G59: =IF(A59>$B$30,NA(),IF(A59>$A$8,"",OFFSET(InputPriceData!$F$15,CalculationsAndCharts!$A59+$A$11,IF($C$5,8,0),1,1))) -> 90.82 | H59: 2.854412812 | I59: 3.102189776 | J59: 5.07369641 | K59: 2.252486717 | L59: 1.377228888 | M59: =IF($A59>$B$30,NA(),IF($A59>$A$8,"",OFFSET(InputPriceData2!$B$15,$A59+$A$11,0,1,1))) -> 2021-10-22 | N59: =IF($A59>$B$30,NA(),IF($A59>$A$8,"",OFFSET(InputPriceData2!$G$15,CalculationsAndCharts!$A59+$A$11,IF($C$5,8,0),1,1))) -> 58845100 | O59: =IF($A59>$B$30,NA(),IF($A59>$A$8,"",OFFSET(InputPriceData2!$C$15,CalculationsAndCharts!$A59+$A$11,IF($C$5,8,0),1,1))) -> 450.15 | P59: =IF($A59>$B$30,NA(),IF($A59>$A$8,"",OFFSET(InputPriceData2!$D$15,CalculationsAndCharts!$A59+$A$11,IF($C$5,8,0),1,1))) -> 451.68 | Q59: =IF($A59>$B$30,NA(),IF($A59>$A$8,"",OFFSET(InputPriceData2!$E$15,CalculationsAndCharts!$A59+$A$11,IF($C$5,8,0),1,1))) -> 448.08 | R59: =IF($A59>$B$30,NA(),IF($A59>$A$8,"",OFFSET(InputPriceData2!$F$15,CalculationsAndCharts!$A59+$A$11,IF($C$5,8,0),1,1))) -> 450.14 | S59: 9.324493307 | T59: 4.599631568 | U59: 37.94273782 | V59: 6.159767676 | W59: 0.746721599 | AW59: 4160800
A60: 28 | B60: =IF(A60>$B$30,NA(),IF($A60>$A$8,"",OFFSET(InputPriceData!$B$15,$A60+$A$11,0,1,1))) -> 2021-10-21 | C60: =IF(A60>$B$30,NA(),IF($A60>$A$8,"",OFFSET(InputPriceData!$G$15,CalculationsAndCharts!$A60+$A$11,IF($C$5,8,0),1,1))) -> 4274900 | D60: =IF(A60>$B$30,NA(),IF(A60>$A$8,"",OFFSET(InputPriceData!$C$15,CalculationsAndCharts!$A60+$A$11,IF($C$5,8,0),1,1))) -> 90.3 | E60: =IF(A60>$B$30,NA(),IF(A60>$A$8,"",OFFSET(InputPriceData!$D$15,CalculationsAndCharts!$A60+$A$11,IF($C$5,8,0),1,1))) -> 90.63 | F60: =IF(A60>$B$30,NA(),IF(A60>$A$8,"",OFFSET(InputPriceData!$E$15,CalculationsAndCharts!$A60+$A$11,IF($C$5,8,0),1,1))) -> 89.55 | G60: =IF(A60>$B$30,NA(),IF(A60>$A$8,"",OFFSET(InputPriceData!$F$15,CalculationsAndCharts!$A60+$A$11,IF($C$5,8,0),1,1))) -> 90.57 | H60: 2.907065385 | I60: 3.14312234 | J60: 4.960858516 | K60: 2.227298479 | L60: 1.411181469 | M60: =IF($A60>$B$30,NA(),IF($A60>$A$8,"",OFFSET(InputPriceData2!$B$15,$A60+$A$11,0,1,1))) -> 2021-10-21 | N60: =IF($A60>$B$30,NA(),IF($A60>$A$8,"",OFFSET(InputPriceData2!$G$15,CalculationsAndCharts!$A60+$A$11,IF($C$5,8,0),1,1))) -> 41305400 | O60: =IF($A60>$B$30,NA(),IF($A60>$A$8,"",OFFSET(InputPriceData2!$C$15,CalculationsAndCharts!$A60+$A$11,IF($C$5,8,0),1,1))) -> 448.79 | P60: =IF($A60>$B$30,NA(),IF($A60>$A$8,"",OFFSET(InputPriceData2!$D$15,CalculationsAndCharts!$A60+$A$11,IF($C$5,8,0),1,1))) -> 450.84 | Q60: =IF($A60>$B$30,NA(),IF($A60>$A$8,"",OFFSET(InputPriceData2!$E$15,CalculationsAndCharts!$A60+$A$11,IF($C$5,8,0),1,1))) -> 448.34 | R60: =IF($A60>$B$30,NA(),IF($A60>$A$8,"",OFFSET(InputPriceData2!$F$15,CalculationsAndCharts!$A60+$A$11,IF($C$5,8,0),1,1))) -> 450.6 | S60: 10.52539844 | T60: 2.587150209 | U60: 38.35903653 | V60: 6.193467246 | W60: 0.4177224334 | AW60: 4274900
A61: 29 | B61: =IF(A61>$B$30,NA(),IF($A61>$A$8,"",OFFSET(InputPriceData!$B$15,$A61+$A$11,0,1,1))) -> 2021-10-20 | C61: =IF(A61>$B$30,NA(),IF($A61>$A$8,"",OFFSET(InputPriceData!$G$15,CalculationsAndCharts!$A61+$A$11,IF($C$5,8,0),1,1))) -> 3916600 | D61: =IF(A61>$B$30,NA(),IF(A61>$A$8,"",OFFSET(InputPriceData!$C$15,CalculationsAndCharts!$A61+$A$11,IF($C$5,8,0),1,1))) -> 89.66 | E61: =IF(A61>$B$30,NA(),IF(A61>$A$8,"",OFFSET(InputPriceData!$D$15,CalculationsAndCharts!$A61+$A$11,IF($C$5,8,0),1,1))) -> 90.87 | F61: =IF(A61>$B$30,NA(),IF(A61>$A$8,"",OFFSET(InputPriceData!$E$15,CalculationsAndCharts!$A61+$A$11,IF($C$5,8,0),1,1))) -> 89.06 | G61: =IF(A61>$B$30,NA(),IF(A61>$A$8,"",OFFSET(InputPriceData!$F$15,CalculationsAndCharts!$A61+$A$11,IF($C$5,8,0),1,1))) -> 90.64 | H61: 3.287564556 | I61: 3.17462022 | J61: 4.838882394 | K61: 2.199745984 | L61: 1.443175823 | M61: =IF($A61>$B$30,NA(),IF($A61>$A$8,"",OFFSET(InputPriceData2!$B$15,$A61+$A$11,0,1,1))) -> 2021-10-20 | N61: =IF($A61>$B$30,NA(),IF($A61>$A$8,"",OFFSET(InputPriceData2!$G$15,CalculationsAndCharts!$A61+$A$11,IF($C$5,8,0),1,1))) -> 49571600 | O61: =IF($A61>$B$30,NA(),IF($A61>$A$8,"",OFFSET(InputPriceData2!$C$15,CalculationsAndCharts!$A61+$A$11,IF($C$5,8,0),1,1))) -> 448.16 | P61: =IF($A61>$B$30,NA(),IF($A61>$A$8,"",OFFSET(InputPriceData2!$D$15,CalculationsAndCharts!$A61+$A$11,IF($C$5,8,0),1,1))) -> 449.75 | Q61: =IF($A61>$B$30,NA(),IF($A61>$A$8,"",OFFSET(InputPriceData2!$E$15,CalculationsAndCharts!$A61+$A$11,IF($C$5,8,0),1,1))) -> 448.04 | R61: =IF($A61>$B$30,NA(),IF($A61>$A$8,"",OFFSET(InputPriceData2!$F$15,CalculationsAndCharts!$A61+$A$11,IF($C$5,8,0),1,1))) -> 449.43 | S61: 10.09824928 | T61: 0.3532004979 | U61: 39.14435084 | V61: 6.256544641 | W61: 0.05645296536 | AW61: 3916600
A62: 30 | B62: =IF(A62>$B$30,NA(),IF($A62>$A$8,"",OFFSET(InputPriceData!$B$15,$A62+$A$11,0,1,1))) -> 2021-10-19 | C62: =IF(A62>$B$30,NA(),IF($A62>$A$8,"",OFFSET(InputPriceData!$G$15,CalculationsAndCharts!$A62+$A$11,IF($C$5,8,0),1,1))) -> 4195100 | D62: =IF(A62>$B$30,NA(),IF(A62>$A$8,"",OFFSET(InputPriceData!$C$15,CalculationsAndCharts!$A62+$A$11,IF($C$5,8,0),1,1))) -> 89.95 | E62: =IF(A62>$B$30,NA(),IF(A62>$A$8,"",OFFSET(InputPriceData!$D$15,CalculationsAndCharts!$A62+$A$11,IF($C$5,8,0),1,1))) -> 90.45 | F62: =IF(A62>$B$30,NA(),IF(A62>$A$8,"",OFFSET(InputPriceData!$E$15,CalculationsAndCharts!$A62+$A$11,IF($C$5,8,0),1,1))) -> 89.43 | G62: =IF(A62>$B$30,NA(),IF(A62>$A$8,"",OFFSET(InputPriceData!$F$15,CalculationsAndCharts!$A62+$A$11,IF($C$5,8,0),1,1))) -> 90.2 | H62: 3.159037641 | I62: 3.214209585 | J62: 4.708946122 | K62: 2.170010627 | L62: 1.48119532 | M62: =IF($A62>$B$30,NA(),IF($A62>$A$8,"",OFFSET(InputPriceData2!$B$15,$A62+$A$11,0,1,1))) -> 2021-10-19 | N62: =IF($A62>$B$30,NA(),IF($A62>$A$8,"",OFFSET(InputPriceData2!$G$15,CalculationsAndCharts!$A62+$A$11,IF($C$5,8,0),1,1))) -> 46996800 | O62: =IF($A62>$B$30,NA(),IF($A62>$A$8,"",OFFSET(InputPriceData2!$C$15,CalculationsAndCharts!$A62+$A$11,IF($C$5,8,0),1,1))) -> 445.96 | P62: =IF($A62>$B$30,NA(),IF($A62>$A$8,"",OFFSET(InputPriceData2!$D$15,CalculationsAndCharts!$A62+$A$11,IF($C$5,8,0),1,1))) -> 447.74 | Q62: =IF($A62>$B$30,NA(),IF($A62>$A$8,"",OFFSET(InputPriceData2!$E$15,CalculationsAndCharts!$A62+$A$11,IF($C$5,8,0),1,1))) -> 445.32 | R62: =IF($A62>$B$30,NA(),IF($A62>$A$8,"",OFFSET(InputPriceData2!$F$15,CalculationsAndCharts!$A62+$A$11,IF($C$5,8,0),1,1))) -> 447.67 | S62: 9.001861686 | T62: -1.903177083 | U62: 40.11204332 | V62: 6.333406929 | W62: -0.3004981529 | AW62: 4195100
A63: 31 | B63: =IF(A63>$B$30,NA(),IF($A63>$A$8,"",OFFSET(InputPriceData!$B$15,$A63+$A$11,0,1,1))) -> 2021-10-18 | C63: =IF(A63>$B$30,NA(),IF($A63>$A$8,"",OFFSET(InputPriceData!$G$15,CalculationsAndCharts!$A63+$A$11,IF($C$5,8,0),1,1))) -> 3898700 | D63: =IF(A63>$B$30,NA(),IF(A63>$A$8,"",OFFSET(InputPriceData!$C$15,CalculationsAndCharts!$A63+$A$11,IF($C$5,8,0),1,1))) -> 89.08 | E63: =IF(A63>$B$30,NA(),IF(A63>$A$8,"",OFFSET(InputPriceData!$D$15,CalculationsAndCharts!$A63+$A$11,IF($C$5,8,0),1,1))) -> 90.09 | F63: =IF(A63>$B$30,NA(),IF(A63>$A$8,"",OFFSET(InputPriceData!$E$15,CalculationsAndCharts!$A63+$A$11,IF($C$5,8,0),1,1))) -> 88.31 | G63: =IF(A63>$B$30,NA(),IF(A63>$A$8,"",OFFSET(InputPriceData!$F$15,CalculationsAndCharts!$A63+$A$11,IF($C$5,8,0),1,1))) -> 89.77 | H63: 3.023137002 | I63: 3.277060415 | J63: 4.569514711 | K63: 2.137642325 | L63: 1.533025603 | M63: =IF($A63>$B$30,NA(),IF($A63>$A$8,"",OFFSET(InputPriceData2!$B$15,$A63+$A$11,0,1,1))) -> 2021-10-18 | N63: =IF($A63>$B$30,NA(),IF($A63>$A$8,"",OFFSET(InputPriceData2!$G$15,CalculationsAndCharts!$A63+$A$11,IF($C$5,8,0),1,1))) -> 62213200 | O63: =IF($A63>$B$30,NA(),IF($A63>$A$8,"",OFFSET(InputPriceData2!$C$15,CalculationsAndCharts!$A63+$A$11,IF($C$5,8,0),1,1))) -> 441.05 | P63: =IF($A63>$B$30,NA(),IF($A63>$A$8,"",OFFSET(InputPriceData2!$D$15,CalculationsAndCharts!$A63+$A$11,IF($C$5,8,0),1,1))) -> 444.6 | Q63: =IF($A63>$B$30,NA(),IF($A63>$A$8,"",OFFSET(InputPriceData2!$E$15,CalculationsAndCharts!$A63+$A$11,IF($C$5,8,0),1,1))) -> 440.35 | R63: =IF($A63>$B$30,NA(),IF($A63>$A$8,"",OFFSET(InputPriceData2!$F$15,CalculationsAndCharts!$A63+$A$11,IF($C$5,8,0),1,1))) -> 444.24 | S63: 6.070736768 | T63: -4.010380799 | U63: 41.01700032 | V63: 6.404451602 | W63: -0.6261864478 | AW63: 3898700
A64: 32 | B64: =IF(A64>$B$30,NA(),IF($A64>$A$8,"",OFFSET(InputPriceData!$B$15,$A64+$A$11,0,1,1))) -> 2021-10-15 | C64: =IF(A64>$B$30,NA(),IF($A64>$A$8,"",OFFSET(InputPriceData!$G$15,CalculationsAndCharts!$A64+$A$11,IF($C$5,8,0),1,1))) -> 4581600 | D64: =IF(A64>$B$30,NA(),IF(A64>$A$8,"",OFFSET(InputPriceData!$C$15,CalculationsAndCharts!$A64+$A$11,IF($C$5,8,0),1,1))) -> 88.83 | E64: =IF(A64>$B$30,NA(),IF(A64>$A$8,"",OFFSET(InputPriceData!$D$15,CalculationsAndCharts!$A64+$A$11,IF($C$5,8,0),1,1))) -> 90.26 | F64: =IF(A64>$B$30,NA(),IF(A64>$A$8,"",OFFSET(InputPriceData!$E$15,CalculationsAndCharts!$A64+$A$11,IF($C$5,8,0),1,1))) -> 88.65 | G64: =IF(A64>$B$30,NA(),IF(A64>$A$8,"",OFFSET(InputPriceData!$F$15,CalculationsAndCharts!$A64+$A$11,IF($C$5,8,0),1,1))) -> 89.89 | H64: 3.439210598 | I64: 3.352149096 | J64: 4.416507365 | K64: 2.101548802 | L64: 1.59508506 | M64: =IF($A64>$B$30,NA(),IF($A64>$A$8,"",OFFSET(InputPriceData2!$B$15,$A64+$A$11,0,1,1))) -> 2021-10-15 | N64: =IF($A64>$B$30,NA(),IF($A64>$A$8,"",OFFSET(InputPriceData2!$G$15,CalculationsAndCharts!$A64+$A$11,IF($C$5,8,0),1,1))) -> 66260200 | O64: =IF($A64>$B$30,NA(),IF($A64>$A$8,"",OFFSET(InputPriceData2!$C$15,CalculationsAndCharts!$A64+$A$11,IF($C$5,8,0),1,1))) -> 441.82 | P64: =IF($A64>$B$30,NA(),IF($A64>$A$8,"",OFFSET(InputPriceData2!$D$15,CalculationsAndCharts!$A64+$A$11,IF($C$5,8,0),1,1))) -> 443.32 | Q64: =IF($A64>$B$30,NA(),IF($A64>$A$8,"",OFFSET(InputPriceData2!$E$15,CalculationsAndCharts!$A64+$A$11,IF($C$5,8,0),1,1))) -> 441.16 | R64: =IF($A64>$B$30,NA(),IF($A64>$A$8,"",OFFSET(InputPriceData2!$F$15,CalculationsAndCharts!$A64+$A$11,IF($C$5,8,0),1,1))) -> 442.93 | S64: 5.104505201 | T64: -5.873468164 | U64: 41.6353638 | V64: 6.452547078 | W64: -0.910255763 | AW64: 4581600
A65: 33 | B65: =IF(A65>$B$30,NA(),IF($A65>$A$8,"",OFFSET(InputPriceData!$B$15,$A65+$A$11,0,1,1))) -> 2021-10-14 | C65: =IF(A65>$B$30,NA(),IF($A65>$A$8,"",OFFSET(InputPriceData!$G$15,CalculationsAndCharts!$A65+$A$11,IF($C$5,8,0),1,1))) -> 4225300 | D65: =IF(A65>$B$30,NA(),IF(A65>$A$8,"",OFFSET(InputPriceData!$C$15,CalculationsAndCharts!$A65+$A$11,IF($C$5,8,0),1,1))) -> 89.3 | E65: =IF(A65>$B$30,NA(),IF(A65>$A$8,"",OFFSET(InputPriceData!$D$15,CalculationsAndCharts!$A65+$A$11,IF($C$5,8,0),1,1))) -> 89.45 | F65: =IF(A65>$B$30,NA(),IF(A65>$A$8,"",OFFSET(InputPriceData!$E$15,CalculationsAndCharts!$A65+$A$11,IF($C$5,8,0),1,1))) -> 88.1 | G65: =IF(A65>$B$30,NA(),IF(A65>$A$8,"",OFFSET(InputPriceData!$F$15,CalculationsAndCharts!$A65+$A$11,IF($C$5,8,0),1,1))) -> 88.16 | H65: 1.960004867 | I65: 3.454328078 | J65: 4.247360422 | K65: 2.060912522 | L65: 1.676115819 | M65: =IF($A65>$B$30,NA(),IF($A65>$A$8,"",OFFSET(InputPriceData2!$B$15,$A65+$A$11,0,1,1))) -> 2021-10-14 | N65: =IF($A65>$B$30,NA(),IF($A65>$A$8,"",OFFSET(InputPriceData2!$G$15,CalculationsAndCharts!$A65+$A$11,IF($C$5,8,0),1,1))) -> 70236800 | O65: =IF($A65>$B$30,NA(),IF($A65>$A$8,"",OFFSET(InputPriceData2!$C$15,CalculationsAndCharts!$A65+$A$11,IF($C$5,8,0),1,1))) -> 436.19 | P65: =IF($A65>$B$30,NA(),IF($A65>$A$8,"",OFFSET(InputPriceData2!$D$15,CalculationsAndCharts!$A65+$A$11,IF($C$5,8,0),1,1))) -> 439.74 | Q65: =IF($A65>$B$30,NA(),IF($A65>$A$8,"",OFFSET(InputPriceData2!$E$15,CalculationsAndCharts!$A65+$A$11,IF($C$5,8,0),1,1))) -> 435.69 | R65: =IF($A65>$B$30,NA(),IF($A65>$A$8,"",OFFSET(InputPriceData2!$F$15,CalculationsAndCharts!$A65+$A$11,IF($C$5,8,0),1,1))) -> 439.59 | S65: 1.950300526 | T65: -7.366456386 | U65: 41.81238081 | V65: 6.466249362 | W65: -1.139216256 | AX65: 4225300
A66: 34 | B66: =IF(A66>$B$30,NA(),IF($A66>$A$8,"",OFFSET(InputPriceData!$B$15,$A66+$A$11,0,1,1))) -> 2021-10-13 | C66: =IF(A66>$B$30,NA(),IF($A66>$A$8,"",OFFSET(InputPriceData!$G$15,CalculationsAndCharts!$A66+$A$11,IF($C$5,8,0),1,1))) -> 3285500 | D66: =IF(A66>$B$30,NA(),IF(A66>$A$8,"",OFFSET(InputPriceData!$C$15,CalculationsAndCharts!$A66+$A$11,IF($C$5,8,0),1,1))) -> 88.79 | E66: =IF(A66>$B$30,NA(),IF(A66>$A$8,"",OFFSET(InputPriceData!$D$15,CalculationsAndCharts!$A66+$A$11,IF($C$5,8,0),1,1))) -> 88.98 | F66: =IF(A66>$B$30,NA(),IF(A66>$A$8,"",OFFSET(InputPriceData!$E$15,CalculationsAndCharts!$A66+$A$11,IF($C$5,8,0),1,1))) -> 87.32 | G66: =IF(A66>$B$30,NA(),IF(A66>$A$8,"",OFFSET(InputPriceData!$F$15,CalculationsAndCharts!$A66+$A$11,IF($C$5,8,0),1,1))) -> 88.66 | H66: 2.677382084 | I66: 3.520666984 | J66: 4.056770615 | K66: 2.01414265 | L66: 1.747973007 | M66: =IF($A66>$B$30,NA(),IF($A66>$A$8,"",OFFSET(InputPriceData2!$B$15,$A66+$A$11,0,1,1))) -> 2021-10-13 | N66: =IF($A66>$B$30,NA(),IF($A66>$A$8,"",OFFSET(InputPriceData2!$G$15,CalculationsAndCharts!$A66+$A$11,IF($C$5,8,0),1,1))) -> 72974000 | O66: =IF($A66>$B$30,NA(),IF($A66>$A$8,"",OFFSET(InputPriceData2!$C$15,CalculationsAndCharts!$A66+$A$11,IF($C$5,8,0),1,1))) -> 431.85 | P66: =IF($A66>$B$30,NA(),IF($A66>$A$8,"",OFFSET(InputPriceData2!$D$15,CalculationsAndCharts!$A66+$A$11,IF($C$5,8,0),1,1))) -> 433.18 | Q66: =IF($A66>$B$30,NA(),IF($A66>$A$8,"",OFFSET(InputPriceData2!$E$15,CalculationsAndCharts!$A66+$A$11,IF($C$5,8,0),1,1))) -> 428.7 | R66: =IF($A66>$B$30,NA(),IF($A66>$A$8,"",OFFSET(InputPriceData2!$F$15,CalculationsAndCharts!$A66+$A$11,IF($C$5,8,0),1,1))) -> 432.31 | S66: -5.523890262 | T66: -8.352244574 | U66: 41.50356175 | V66: 6.442325803 | W66: -1.29646417 | AX66: 3285500
A67: 35 | B67: =IF(A67>$B$30,NA(),IF($A67>$A$8,"",OFFSET(InputPriceData!$B$15,$A67+$A$11,0,1,1))) -> 2021-10-12 | C67: =IF(A67>$B$30,NA(),IF($A67>$A$8,"",OFFSET(InputPriceData!$G$15,CalculationsAndCharts!$A67+$A$11,IF($C$5,8,0),1,1))) -> 3404100 | D67: =IF(A67>$B$30,NA(),IF(A67>$A$8,"",OFFSET(InputPriceData!$C$15,CalculationsAndCharts!$A67+$A$11,IF($C$5,8,0),1,1))) -> 88.59 | E67: =IF(A67>$B$30,NA(),IF(A67>$A$8,"",OFFSET(InputPriceData!$D$15,CalculationsAndCharts!$A67+$A$11,IF($C$5,8,0),1,1))) -> 89.53 | F67: =IF(A67>$B$30,NA(),IF(A67>$A$8,"",OFFSET(InputPriceData!$E$15,CalculationsAndCharts!$A67+$A$11,IF($C$5,8,0),1,1))) -> 88.15 | G67: =IF(A67>$B$30,NA(),IF(A67>$A$8,"",OFFSET(InputPriceData!$F$15,CalculationsAndCharts!$A67+$A$11,IF($C$5,8,0),1,1))) -> 88.7 | H67: 2.963954188 | I67: 3.476017014 | J67: 3.849978777 | K67: 1.962136279 | L67: 1.771547191 | M67: =IF($A67>$B$30,NA(),IF($A67>$A$8,"",OFFSET(InputPriceData2!$B$15,$A67+$A$11,0,1,1))) -> 2021-10-12 | N67: =IF($A67>$B$30,NA(),IF($A67>$A$8,"",OFFSET(InputPriceData2!$G$15,CalculationsAndCharts!$A67+$A$11,IF($C$5,8,0),1,1))) -> 71181200 | O67: =IF($A67>$B$30,NA(),IF($A67>$A$8,"",OFFSET(InputPriceData2!$C$15,CalculationsAndCharts!$A67+$A$11,IF($C$5,8,0),1,1))) -> 432.8 | P67: =IF($A67>$B$30,NA(),IF($A67>$A$8,"",OFFSET(InputPriceData2!$D$15,CalculationsAndCharts!$A67+$A$11,IF($C$5,8,0),1,1))) -> 433.23 | Q67: =IF($A67>$B$30,NA(),IF($A67>$A$8,"",OFFSET(InputPriceData2!$E$15,CalculationsAndCharts!$A67+$A$11,IF($C$5,8,0),1,1))) -> 429.93 | R67: =IF($A67>$B$30,NA(),IF($A67>$A$8,"",OFFSET(InputPriceData2!$F$15,CalculationsAndCharts!$A67+$A$11,IF($C$5,8,0),1,1))) -> 430.76 | S67: -7.596895629 | T67: -9.080455309 | U67: 40.80279772 | V67: 6.387706765 | W67: -1.421551684 | AW67: 3404100
A68: 36 | B68: =IF(A68>$B$30,NA(),IF($A68>$A$8,"",OFFSET(InputPriceData!$B$15,$A68+$A$11,0,1,1))) -> 2021-10-11 | C68: =IF(A68>$B$30,NA(),IF($A68>$A$8,"",OFFSET(InputPriceData!$G$15,CalculationsAndCharts!$A68+$A$11,IF($C$5,8,0),1,1))) -> 3048000 | D68: =IF(A68>$B$30,NA(),IF(A68>$A$8,"",OFFSET(InputPriceData!$C$15,CalculationsAndCharts!$A68+$A$11,IF($C$5,8,0),1,1))) -> 89.69 | E68: =IF(A68>$B$30,NA(),IF(A68>$A$8,"",OFFSET(InputPriceData!$D$15,CalculationsAndCharts!$A68+$A$11,IF($C$5,8,0),1,1))) -> 90.34 | F68: =IF(A68>$B$30,NA(),IF(A68>$A$8,"",OFFSET(InputPriceData!$E$15,CalculationsAndCharts!$A68+$A$11,IF($C$5,8,0),1,1))) -> 88.82 | G68: =IF(A68>$B$30,NA(),IF(A68>$A$8,"",OFFSET(InputPriceData!$F$15,CalculationsAndCharts!$A68+$A$11,IF($C$5,8,0),1,1))) -> 88.87 | H68: 3.398581421 | I68: 3.325652414 | J68: 3.645806083 | K68: 1.909399404 | L68: 1.741726958 | M68: =IF($A68>$B$30,NA(),IF($A68>$A$8,"",OFFSET(InputPriceData2!$B$15,$A68+$A$11,0,1,1))) -> 2021-10-11 | N68: =IF($A68>$B$30,NA(),IF($A68>$A$8,"",OFFSET(InputPriceData2!$G$15,CalculationsAndCharts!$A68+$A$11,IF($C$5,8,0),1,1))) -> 65233300 | O68: =IF($A68>$B$30,NA(),IF($A68>$A$8,"",OFFSET(InputPriceData2!$C$15,CalculationsAndCharts!$A68+$A$11,IF($C$5,8,0),1,1))) -> 434.28 | P68: =IF($A68>$B$30,NA(),IF($A68>$A$8,"",OFFSET(InputPriceData2!$D$15,CalculationsAndCharts!$A68+$A$11,IF($C$5,8,0),1,1))) -> 437.36 | Q68: =IF($A68>$B$30,NA(),IF($A68>$A$8,"",OFFSET(InputPriceData2!$E$15,CalculationsAndCharts!$A68+$A$11,IF($C$5,8,0),1,1))) -> 431.76 | R68: =IF($A68>$B$30,NA(),IF($A68>$A$8,"",OFFSET(InputPriceData2!$F$15,CalculationsAndCharts!$A68+$A$11,IF($C$5,8,0),1,1))) -> 431.83 | S68: -7.087937036 | T68: -9.905448705 | U68: 39.76982449 | V68: 6.306332095 | W68: -1.570714729 | AX68: 3048000
A69: 37 | B69: =IF(A69>$B$30,NA(),IF($A69>$A$8,"",OFFSET(InputPriceData!$B$15,$A69+$A$11,0,1,1))) -> 2021-10-08 | C69: =IF(A69>$B$30,NA(),IF($A69>$A$8,"",OFFSET(InputPriceData!$G$15,CalculationsAndCharts!$A69+$A$11,IF($C$5,8,0),1,1))) -> 3342700 | D69: =IF(A69>$B$30,NA(),IF(A69>$A$8,"",OFFSET(InputPriceData!$C$15,CalculationsAndCharts!$A69+$A$11,IF($C$5,8,0),1,1))) -> 89.28 | E69: =IF(A69>$B$30,NA(),IF(A69>$A$8,"",OFFSET(InputPriceData!$D$15,CalculationsAndCharts!$A69+$A$11,IF($C$5,8,0),1,1))) -> 89.8 | F69: =IF(A69>$B$30,NA(),IF(A69>$A$8,"",OFFSET(InputPriceData!$E$15,CalculationsAndCharts!$A69+$A$11,IF($C$5,8,0),1,1))) -> 88.72 | G69: =IF(A69>$B$30,NA(),IF(A69>$A$8,"",OFFSET(InputPriceData!$F$15,CalculationsAndCharts!$A69+$A$11,IF($C$5,8,0),1,1))) -> 89.59 | H69: 4.42622655 | I69: 3.073403612 | J69: 3.461933752 | K69: 1.860627247 | L69: 1.651810494 | M69: =IF($A69>$B$30,NA(),IF($A69>$A$8,"",OFFSET(InputPriceData2!$B$15,$A69+$A$11,0,1,1))) -> 2021-10-08 | N69: =IF($A69>$B$30,NA(),IF($A69>$A$8,"",OFFSET(InputPriceData2!$G$15,CalculationsAndCharts!$A69+$A$11,IF($C$5,8,0),1,1))) -> 74557400 | O69: =IF($A69>$B$30,NA(),IF($A69>$A$8,"",OFFSET(InputPriceData2!$C$15,CalculationsAndCharts!$A69+$A$11,IF($C$5,8,0),1,1))) -> 436.59 | P69: =IF($A69>$B$30,NA(),IF($A69>$A$8,"",OFFSET(InputPriceData2!$D$15,CalculationsAndCharts!$A69+$A$11,IF($C$5,8,0),1,1))) -> 436.99 | Q69: =IF($A69>$B$30,NA(),IF($A69>$A$8,"",OFFSET(InputPriceData2!$E$15,CalculationsAndCharts!$A69+$A$11,IF($C$5,8,0),1,1))) -> 434.31 | R69: =IF($A69>$B$30,NA(),IF($A69>$A$8,"",OFFSET(InputPriceData2!$F$15,CalculationsAndCharts!$A69+$A$11,IF($C$5,8,0),1,1))) -> 434.98 | S69: -4.367689088 | T69: -10.87605869 | U69: 38.3227823 | V69: 6.190539742 | W69: -1.756883752 | AW69: 3342700
A70: 38 | B70: =IF(A70>$B$30,NA(),IF($A70>$A$8,"",OFFSET(InputPriceData!$B$15,$A70+$A$11,0,1,1))) -> 2021-10-07 | C70: =IF(A70>$B$30,NA(),IF($A70>$A$8,"",OFFSET(InputPriceData!$G$15,CalculationsAndCharts!$A70+$A$11,IF($C$5,8,0),1,1))) -> 3750900 | D70: =IF(A70>$B$30,NA(),IF(A70>$A$8,"",OFFSET(InputPriceData!$C$15,CalculationsAndCharts!$A70+$A$11,IF($C$5,8,0),1,1))) -> 88.87 | E70: =IF(A70>$B$30,NA(),IF(A70>$A$8,"",OFFSET(InputPriceData!$D$15,CalculationsAndCharts!$A70+$A$11,IF($C$5,8,0),1,1))) -> 89.6 | F70: =IF(A70>$B$30,NA(),IF(A70>$A$8,"",OFFSET(InputPriceData!$E$15,CalculationsAndCharts!$A70+$A$11,IF($C$5,8,0),1,1))) -> 88.73 | G70: =IF(A70>$B$30,NA(),IF(A70>$A$8,"",OFFSET(InputPriceData!$F$15,CalculationsAndCharts!$A70+$A$11,IF($C$5,8,0),1,1))) -> 89.13 | H70: 4.295297167 | I70: 2.783448442 | J70: 3.313532645 | K70: 1.82031114 | L70: 1.529105866 | M70: =IF($A70>$B$30,NA(),IF($A70>$A$8,"",OFFSET(InputPriceData2!$B$15,$A70+$A$11,0,1,1))) -> 2021-10-07 | N70: =IF($A70>$B$30,NA(),IF($A70>$A$8,"",OFFSET(InputPriceData2!$G$15,CalculationsAndCharts!$A70+$A$11,IF($C$5,8,0),1,1))) -> 72437500 | O70: =IF($A70>$B$30,NA(),IF($A70>$A$8,"",OFFSET(InputPriceData2!$C$15,CalculationsAndCharts!$A70+$A$11,IF($C$5,8,0),1,1))) -> 435.5 | P70: =IF($A70>$B$30,NA(),IF($A70>$A$8,"",OFFSET(InputPriceData2!$D$15,CalculationsAndCharts!$A70+$A$11,IF($C$5,8,0),1,1))) -> 438.77 | Q70: =IF($A70>$B$30,NA(),IF($A70>$A$8,"",OFFSET(InputPriceData2!$E$15,CalculationsAndCharts!$A70+$A$11,IF($C$5,8,0),1,1))) -> 435.31 | R70: =IF($A70>$B$30,NA(),IF($A70>$A$8,"",OFFSET(InputPriceData2!$F$15,CalculationsAndCharts!$A70+$A$11,IF($C$5,8,0),1,1))) -> 435.77 | S70: -3.881007821 | T70: -11.75521073 | U70: 36.3396156 | V70: 6.028234866 | W70: -1.950025337 | AW70: 3750900
A71: 39 | B71: =IF(A71>$B$30,NA(),IF($A71>$A$8,"",OFFSET(InputPriceData!$B$15,$A71+$A$11,0,1,1))) -> 2021-10-06 | C71: =IF(A71>$B$30,NA(),IF($A71>$A$8,"",OFFSET(InputPriceData!$G$15,CalculationsAndCharts!$A71+$A$11,IF($C$5,8,0),1,1))) -> 4354100 | D71: =IF(A71>$B$30,NA(),IF(A71>$A$8,"",OFFSET(InputPriceData!$C$15,CalculationsAndCharts!$A71+$A$11,IF($C$5,8,0),1,1))) -> 87.2 | E71: =IF(A71>$B$30,NA(),IF(A71>$A$8,"",OFFSET(InputPriceData!$D$15,CalculationsAndCharts!$A71+$A$11,IF($C$5,8,0),1,1))) -> 88.39 | F71: =IF(A71>$B$30,NA(),IF(A71>$A$8,"",OFFSET(InputPriceData!$E$15,CalculationsAndCharts!$A71+$A$11,IF($C$5,8,0),1,1))) -> 86.46 | G71: =IF(A71>$B$30,NA(),IF(A71>$A$8,"",OFFSET(InputPriceData!$F$15,CalculationsAndCharts!$A71+$A$11,IF($C$5,8,0),1,1))) -> 88.26 | H71: 3.718649002 | I71: 2.525663405 | J71: 3.203567414 | K71: 1.789851227 | L71: 1.411102424 | M71: =IF($A71>$B$30,NA(),IF($A71>$A$8,"",OFFSET(InputPriceData2!$B$15,$A71+$A$11,0,1,1))) -> 2021-10-06 | N71: =IF($A71>$B$30,NA(),IF($A71>$A$8,"",OFFSET(InputPriceData2!$G$15,CalculationsAndCharts!$A71+$A$11,IF($C$5,8,0),1,1))) -> 113032200 | O71: =IF($A71>$B$30,NA(),IF($A71>$A$8,"",OFFSET(InputPriceData2!$C$15,CalculationsAndCharts!$A71+$A$11,IF($C$5,8,0),1,1))) -> 426.44 | P71: =IF($A71>$B$30,NA(),IF($A71>$A$8,"",OFFSET(InputPriceData2!$D$15,CalculationsAndCharts!$A71+$A$11,IF($C$5,8,0),1,1))) -> 432.25 | Q71: =IF($A71>$B$30,NA(),IF($A71>$A$8,"",OFFSET(InputPriceData2!$E$15,CalculationsAndCharts!$A71+$A$11,IF($C$5,8,0),1,1))) -> 424.72 | R71: =IF($A71>$B$30,NA(),IF($A71>$A$8,"",OFFSET(InputPriceData2!$F$15,CalculationsAndCharts!$A71+$A$11,IF($C$5,8,0),1,1))) -> 432.04 | S71: -8.031837979 | T71: -12.185881 | U71: 33.81383388 | V71: 5.81496637 | W71: -2.095606445 | AW71: 4354100
A72: 40 | B72: =IF(A72>$B$30,NA(),IF($A72>$A$8,"",OFFSET(InputPriceData!$B$15,$A72+$A$11,0,1,1))) -> 2021-10-05 | C72: =IF(A72>$B$30,NA(),IF($A72>$A$8,"",OFFSET(InputPriceData!$G$15,CalculationsAndCharts!$A72+$A$11,IF($C$5,8,0),1,1))) -> 4820500 | D72: =IF(A72>$B$30,NA(),IF(A72>$A$8,"",OFFSET(InputPriceData!$C$15,CalculationsAndCharts!$A72+$A$11,IF($C$5,8,0),1,1))) -> 87 | E72: =IF(A72>$B$30,NA(),IF(A72>$A$8,"",OFFSET(InputPriceData!$D$15,CalculationsAndCharts!$A72+$A$11,IF($C$5,8,0),1,1))) -> 88.48 | F72: =IF(A72>$B$30,NA(),IF(A72>$A$8,"",OFFSET(InputPriceData!$E$15,CalculationsAndCharts!$A72+$A$11,IF($C$5,8,0),1,1))) -> 86.74 | G72: =IF(A72>$B$30,NA(),IF(A72>$A$8,"",OFFSET(InputPriceData!$F$15,CalculationsAndCharts!$A72+$A$11,IF($C$5,8,0),1,1))) -> 87.71 | H72: 3.421367716 | I72: 2.306212194 | J72: 3.12481677 | K72: 1.767715127 | L72: 1.304628873 | M72: =IF($A72>$B$30,NA(),IF($A72>$A$8,"",OFFSET(InputPriceData2!$B$15,$A72+$A$11,0,1,1))) -> 2021-10-05 | N72: =IF($A72>$B$30,NA(),IF($A72>$A$8,"",OFFSET(InputPriceData2!$G$15,CalculationsAndCharts!$A72+$A$11,IF($C$5,8,0),1,1))) -> 90682500 | O72: =IF($A72>$B$30,NA(),IF($A72>$A$8,"",OFFSET(InputPriceData2!$C$15,CalculationsAndCharts!$A72+$A$11,IF($C$5,8,0),1,1))) -> 427.41 | P72: =IF($A72>$B$30,NA(),IF($A72>$A$8,"",OFFSET(InputPriceData2!$D$15,CalculationsAndCharts!$A72+$A$11,IF($C$5,8,0),1,1))) -> 432.62 | Q72: =IF($A72>$B$30,NA(),IF($A72>$A$8,"",OFFSET(InputPriceData2!$E$15,CalculationsAndCharts!$A72+$A$11,IF($C$5,8,0),1,1))) -> 426.56 | R72: =IF($A72>$B$30,NA(),IF($A72>$A$8,"",OFFSET(InputPriceData2!$F$15,CalculationsAndCharts!$A72+$A$11,IF($C$5,8,0),1,1))) -> 430.25 | S72: -10.45722297 | T72: -12.08990661 | U72: 30.9697049 | V72: 5.565043118 | W72: -2.172473125 | AW72: 4820500
A73: 41 | B73: =IF(A73>$B$30,NA(),IF($A73>$A$8,"",OFFSET(InputPriceData!$B$15,$A73+$A$11,0,1,1))) -> 2021-10-04 | C73: =IF(A73>$B$30,NA(),IF($A73>$A$8,"",OFFSET(InputPriceData!$G$15,CalculationsAndCharts!$A73+$A$11,IF($C$5,8,0),1,1))) -> 5490600 | D73: =IF(A73>$B$30,NA(),IF(A73>$A$8,"",OFFSET(InputPriceData!$C$15,CalculationsAndCharts!$A73+$A$11,IF($C$5,8,0),1,1))) -> 86.01 | E73: =IF(A73>$B$30,NA(),IF(A73>$A$8,"",OFFSET(InputPriceData!$D$15,CalculationsAndCharts!$A73+$A$11,IF($C$5,8,0),1,1))) -> 87 | F73: =IF(A73>$B$30,NA(),IF(A73>$A$8,"",OFFSET(InputPriceData!$E$15,CalculationsAndCharts!$A73+$A$11,IF($C$5,8,0),1,1))) -> 85.45 | G73: =IF(A73>$B$30,NA(),IF(A73>$A$8,"",OFFSET(InputPriceData!$F$15,CalculationsAndCharts!$A73+$A$11,IF($C$5,8,0),1,1))) -> 86.7 | H73: 2.616592255 | I73: 2.119734942 | J73: 3.070410222 | K73: 1.752258606 | L73: 1.209715812 | M73: =IF($A73>$B$30,NA(),IF($A73>$A$8,"",OFFSET(InputPriceData2!$B$15,$A73+$A$11,0,1,1))) -> 2021-10-04 | N73: =IF($A73>$B$30,NA(),IF($A73>$A$8,"",OFFSET(InputPriceData2!$G$15,CalculationsAndCharts!$A73+$A$11,IF($C$5,8,0),1,1))) -> 128570000 | O73: =IF($A73>$B$30,NA(),IF($A73>$A$8,"",OFFSET(InputPriceData2!$C$15,CalculationsAndCharts!$A73+$A$11,IF($C$5,8,0),1,1))) -> 430.15 | P73: =IF($A73>$B$30,NA(),IF($A73>$A$8,"",OFFSET(InputPriceData2!$D$15,CalculationsAndCharts!$A73+$A$11,IF($C$5,8,0),1,1))) -> 431.1 | Q73: =IF($A73>$B$30,NA(),IF($A73>$A$8,"",OFFSET(InputPriceData2!$E$15,CalculationsAndCharts!$A73+$A$11,IF($C$5,8,0),1,1))) -> 423.55 | R73: =IF($A73>$B$30,NA(),IF($A73>$A$8,"",OFFSET(InputPriceData2!$F$15,CalculationsAndCharts!$A73+$A$11,IF($C$5,8,0),1,1))) -> 425.82 | S73: -15.76940455 | T73: -11.58968827 | U73: 28.11282182 | V73: 5.302152565 | W73: -2.185845867 | AW73: 5490600
A74: 42 | B74: =IF(A74>$B$30,NA(),IF($A74>$A$8,"",OFFSET(InputPriceData!$B$15,$A74+$A$11,0,1,1))) -> 2021-10-01 | C74: =IF(A74>$B$30,NA(),IF($A74>$A$8,"",OFFSET(InputPriceData!$G$15,CalculationsAndCharts!$A74+$A$11,IF($C$5,8,0),1,1))) -> 5499500 | D74: =IF(A74>$B$30,NA(),IF(A74>$A$8,"",OFFSET(InputPriceData!$C$15,CalculationsAndCharts!$A74+$A$11,IF($C$5,8,0),1,1))) -> 85.82 | E74: =IF(A74>$B$30,NA(),IF(A74>$A$8,"",OFFSET(InputPriceData!$D$15,CalculationsAndCharts!$A74+$A$11,IF($C$5,8,0),1,1))) -> 86.93 | F74: =IF(A74>$B$30,NA(),IF(A74>$A$8,"",OFFSET(InputPriceData!$E$15,CalculationsAndCharts!$A74+$A$11,IF($C$5,8,0),1,1))) -> 85.16 | G74: =IF(A74>$B$30,NA(),IF(A74>$A$8,"",OFFSET(InputPriceData!$F$15,CalculationsAndCharts!$A74+$A$11,IF($C$5,8,0),1,1))) -> 86.49 | H74: 2.57462851 | I74: 1.939758206 | J74: 3.035122911 | K74: 1.742160415 | L74: 1.113421123 | M74: =IF($A74>$B$30,NA(),IF($A74>$A$8,"",OFFSET(InputPriceData2!$B$15,$A74+$A$11,0,1,1))) -> 2021-10-01 | N74: =IF($A74>$B$30,NA(),IF($A74>$A$8,"",OFFSET(InputPriceData2!$G$15,CalculationsAndCharts!$A74+$A$11,IF($C$5,8,0),1,1))) -> 129240100 | O74: =IF($A74>$B$30,NA(),IF($A74>$A$8,"",OFFSET(InputPriceData2!$C$15,CalculationsAndCharts!$A74+$A$11,IF($C$5,8,0),1,1))) -> 428.14 | P74: =IF($A74>$B$30,NA(),IF($A74>$A$8,"",OFFSET(InputPriceData2!$D$15,CalculationsAndCharts!$A74+$A$11,IF($C$5,8,0),1,1))) -> 433.16 | Q74: =IF($A74>$B$30,NA(),IF($A74>$A$8,"",OFFSET(InputPriceData2!$E$15,CalculationsAndCharts!$A74+$A$11,IF($C$5,8,0),1,1))) -> 424.42 | R74: =IF($A74>$B$30,NA(),IF($A74>$A$8,"",OFFSET(InputPriceData2!$F$15,CalculationsAndCharts!$A74+$A$11,IF($C$5,8,0),1,1))) -> 431.38 | S74: -11.08021477 | T74: -10.99743049 | U74: 25.4788447 | V74: 5.047657348 | W74: -2.178719697 | AW74: 5499500
A75: 43 | B75: =IF(A75>$B$30,NA(),IF($A75>$A$8,"",OFFSET(InputPriceData!$B$15,$A75+$A$11,0,1,1))) -> 2021-09-30 | C75: =IF(A75>$B$30,NA(),IF($A75>$A$8,"",OFFSET(InputPriceData!$G$15,CalculationsAndCharts!$A75+$A$11,IF($C$5,8,0),1,1))) -> 5642900 | D75: =IF(A75>$B$30,NA(),IF(A75>$A$8,"",OFFSET(InputPriceData!$C$15,CalculationsAndCharts!$A75+$A$11,IF($C$5,8,0),1,1))) -> 86.5 | E75: =IF(A75>$B$30,NA(),IF(A75>$A$8,"",OFFSET(InputPriceData!$D$15,CalculationsAndCharts!$A75+$A$11,IF($C$5,8,0),1,1))) -> 86.51 | F75: =IF(A75>$B$30,NA(),IF(A75>$A$8,"",OFFSET(InputPriceData!$E$15,CalculationsAndCharts!$A75+$A$11,IF($C$5,8,0),1,1))) -> 84.89 | G75: =IF(A75>$B$30,NA(),IF(A75>$A$8,"",OFFSET(InputPriceData!$F$15,CalculationsAndCharts!$A75+$A$11,IF($C$5,8,0),1,1))) -> 84.99 | H75: 1.186167231 | I75: 1.739930057 | J75: 3.017079825 | K75: 1.736974331 | L75: 1.001701653 | M75: =IF($A75>$B$30,NA(),IF($A75>$A$8,"",OFFSET(InputPriceData2!$B$15,$A75+$A$11,0,1,1))) -> 2021-09-30 | N75: =IF($A75>$B$30,NA(),IF($A75>$A$8,"",OFFSET(InputPriceData2!$G$15,CalculationsAndCharts!$A75+$A$11,IF($C$5,8,0),1,1))) -> 140506000 | O75: =IF($A75>$B$30,NA(),IF($A75>$A$8,"",OFFSET(InputPriceData2!$C$15,CalculationsAndCharts!$A75+$A$11,IF($C$5,8,0),1,1))) -> 433.15 | P75: =IF($A75>$B$30,NA(),IF($A75>$A$8,"",OFFSET(InputPriceData2!$D$15,CalculationsAndCharts!$A75+$A$11,IF($C$5,8,0),1,1))) -> 433.89 | Q75: =IF($A75>$B$30,NA(),IF($A75>$A$8,"",OFFSET(InputPriceData2!$E$15,CalculationsAndCharts!$A75+$A$11,IF($C$5,8,0),1,1))) -> 425.96 | R75: =IF($A75>$B$30,NA(),IF($A75>$A$8,"",OFFSET(InputPriceData2!$F$15,CalculationsAndCharts!$A75+$A$11,IF($C$5,8,0),1,1))) -> 426.31 | S75: -17.03116872 | T75: -10.37300596 | U75: 23.11130616 | V75: 4.807421987 | W75: -2.157706561 | AX75: 5642900
A76: 44 | B76: =IF(A76>$B$30,NA(),IF($A76>$A$8,"",OFFSET(InputPriceData!$B$15,$A76+$A$11,0,1,1))) -> 2021-09-29 | C76: =IF(A76>$B$30,NA(),IF($A76>$A$8,"",OFFSET(InputPriceData!$G$15,CalculationsAndCharts!$A76+$A$11,IF($C$5,8,0),1,1))) -> 3612600 | D76: =IF(A76>$B$30,NA(),IF(A76>$A$8,"",OFFSET(InputPriceData!$C$15,CalculationsAndCharts!$A76+$A$11,IF($C$5,8,0),1,1))) -> 86.18 | E76: =IF(A76>$B$30,NA(),IF(A76>$A$8,"",OFFSET(InputPriceData!$D$15,CalculationsAndCharts!$A76+$A$11,IF($C$5,8,0),1,1))) -> 86.83 | F76: =IF(A76>$B$30,NA(),IF(A76>$A$8,"",OFFSET(InputPriceData!$E$15,CalculationsAndCharts!$A76+$A$11,IF($C$5,8,0),1,1))) -> 85.71 | G76: =IF(A76>$B$30,NA(),IF(A76>$A$8,"",OFFSET(InputPriceData!$F$15,CalculationsAndCharts!$A76+$A$11,IF($C$5,8,0),1,1))) -> 86 | H76: 2.293128128 | I76: 1.445649566 | J76: 3.016824959 | K76: 1.736900964 | L76: 0.8323154838 | M76: =IF($A76>$B$30,NA(),IF($A76>$A$8,"",OFFSET(InputPriceData2!$B$15,$A76+$A$11,0,1,1))) -> 2021-09-29 | N76: =IF($A76>$B$30,NA(),IF($A76>$A$8,"",OFFSET(InputPriceData2!$G$15,CalculationsAndCharts!$A76+$A$11,IF($C$5,8,0),1,1))) -> 82329200 | O76: =IF($A76>$B$30,NA(),IF($A76>$A$8,"",OFFSET(InputPriceData2!$C$15,CalculationsAndCharts!$A76+$A$11,IF($C$5,8,0),1,1))) -> 432.32 | P76: =IF($A76>$B$30,NA(),IF($A76>$A$8,"",OFFSET(InputPriceData2!$D$15,CalculationsAndCharts!$A76+$A$11,IF($C$5,8,0),1,1))) -> 434.16 | Q76: =IF($A76>$B$30,NA(),IF($A76>$A$8,"",OFFSET(InputPriceData2!$E$15,CalculationsAndCharts!$A76+$A$11,IF($C$5,8,0),1,1))) -> 430.99 | R76: =IF($A76>$B$30,NA(),IF($A76>$A$8,"",OFFSET(InputPriceData2!$F$15,CalculationsAndCharts!$A76+$A$11,IF($C$5,8,0),1,1))) -> 431.59 | S76: -12.65147866 | T76: -9.853086163 | U76: 21.01599124 | V76: 4.58432015 | W76: -2.149301498 | AX76: 3612600
A77: 45 | B77: =IF(A77>$B$30,NA(),IF($A77>$A$8,"",OFFSET(InputPriceData!$B$15,$A77+$A$11,0,1,1))) -> 2021-09-28 | C77: =IF(A77>$B$30,NA(),IF($A77>$A$8,"",OFFSET(InputPriceData!$G$15,CalculationsAndCharts!$A77+$A$11,IF($C$5,8,0),1,1))) -> 5781200 | D77: =IF(A77>$B$30,NA(),IF(A77>$A$8,"",OFFSET(InputPriceData!$C$15,CalculationsAndCharts!$A77+$A$11,IF($C$5,8,0),1,1))) -> 86.11 | E77: =IF(A77>$B$30,NA(),IF(A77>$A$8,"",OFFSET(InputPriceData!$D$15,CalculationsAndCharts!$A77+$A$11,IF($C$5,8,0),1,1))) -> 86.74 | F77: =IF(A77>$B$30,NA(),IF(A77>$A$8,"",OFFSET(InputPriceData!$E$15,CalculationsAndCharts!$A77+$A$11,IF($C$5,8,0),1,1))) -> 85.49 | G77: =IF(A77>$B$30,NA(),IF(A77>$A$8,"",OFFSET(InputPriceData!$F$15,CalculationsAndCharts!$A77+$A$11,IF($C$5,8,0),1,1))) -> 85.86 | H77: 2.284025192 | I77: 1.023007801 | J77: 3.039812784 | K77: 1.743505889 | L77: 0.5867532814 | M77: =IF($A77>$B$30,NA(),IF($A77>$A$8,"",OFFSET(InputPriceData2!$B$15,$A77+$A$11,0,1,1))) -> 2021-09-28 | N77: =IF($A77>$B$30,NA(),IF($A77>$A$8,"",OFFSET(InputPriceData2!$G$15,CalculationsAndCharts!$A77+$A$11,IF($C$5,8,0),1,1))) -> 130436300 | O77: =IF($A77>$B$30,NA(),IF($A77>$A$8,"",OFFSET(InputPriceData2!$C$15,CalculationsAndCharts!$A77+$A$11,IF($C$5,8,0),1,1))) -> 436.79 | P77: =IF($A77>$B$30,NA(),IF($A77>$A$8,"",OFFSET(InputPriceData2!$D$15,CalculationsAndCharts!$A77+$A$11,IF($C$5,8,0),1,1))) -> 437.14 | Q77: =IF($A77>$B$30,NA(),IF($A77>$A$8,"",OFFSET(InputPriceData2!$E$15,CalculationsAndCharts!$A77+$A$11,IF($C$5,8,0),1,1))) -> 430.09 | R77: =IF($A77>$B$30,NA(),IF($A77>$A$8,"",OFFSET(InputPriceData2!$F$15,CalculationsAndCharts!$A77+$A$11,IF($C$5,8,0),1,1))) -> 430.86 | S77: -14.14348181 | T77: -9.656969984 | U77: 19.12950933 | V77: 4.373729454 | W77: -2.207948637 | AX77: 5781200
A78: 46 | B78: =IF(A78>$B$30,NA(),IF($A78>$A$8,"",OFFSET(InputPriceData!$B$15,$A78+$A$11,0,1,1))) -> 2021-09-27 | C78: =IF(A78>$B$30,NA(),IF($A78>$A$8,"",OFFSET(InputPriceData!$G$15,CalculationsAndCharts!$A78+$A$11,IF($C$5,8,0),1,1))) -> 4162100 | D78: =IF(A78>$B$30,NA(),IF(A78>$A$8,"",OFFSET(InputPriceData!$C$15,CalculationsAndCharts!$A78+$A$11,IF($C$5,8,0),1,1))) -> 86.74 | E78: =IF(A78>$B$30,NA(),IF(A78>$A$8,"",OFFSET(InputPriceData!$D$15,CalculationsAndCharts!$A78+$A$11,IF($C$5,8,0),1,1))) -> 87.47 | F78: =IF(A78>$B$30,NA(),IF(A78>$A$8,"",OFFSET(InputPriceData!$E$15,CalculationsAndCharts!$A78+$A$11,IF($C$5,8,0),1,1))) -> 86.24 | G78: =IF(A78>$B$30,NA(),IF(A78>$A$8,"",OFFSET(InputPriceData!$F$15,CalculationsAndCharts!$A78+$A$11,IF($C$5,8,0),1,1))) -> 86.35 | H78: 2.921065244 | I78: 0.5199190515 | J78: 3.089246153 | K78: 1.757625146 | L78: 0.2958076998 | M78: =IF($A78>$B$30,NA(),IF($A78>$A$8,"",OFFSET(InputPriceData2!$B$15,$A78+$A$11,0,1,1))) -> 2021-09-27 | N78: =IF($A78>$B$30,NA(),IF($A78>$A$8,"",OFFSET(InputPriceData2!$G$15,CalculationsAndCharts!$A78+$A$11,IF($C$5,8,0),1,1))) -> 61371100 | O78: =IF($A78>$B$30,NA(),IF($A78>$A$8,"",OFFSET(InputPriceData2!$C$15,CalculationsAndCharts!$A78+$A$11,IF($C$5,8,0),1,1))) -> 439.89 | P78: =IF($A78>$B$30,NA(),IF($A78>$A$8,"",OFFSET(InputPriceData2!$D$15,CalculationsAndCharts!$A78+$A$11,IF($C$5,8,0),1,1))) -> 441.12 | Q78: =IF($A78>$B$30,NA(),IF($A78>$A$8,"",OFFSET(InputPriceData2!$E$15,CalculationsAndCharts!$A78+$A$11,IF($C$5,8,0),1,1))) -> 438.99 | R78: =IF($A78>$B$30,NA(),IF($A78>$A$8,"",OFFSET(InputPriceData2!$F$15,CalculationsAndCharts!$A78+$A$11,IF($C$5,8,0),1,1))) -> 439.72 | S78: -5.771437322 | T78: -9.812024919 | U78: 17.29113369 | V78: 4.158260898 | W78: -2.359646295 | AX78: 4162100
A79: 47 | B79: =IF(A79>$B$30,NA(),IF($A79>$A$8,"",OFFSET(InputPriceData!$B$15,$A79+$A$11,0,1,1))) -> 2021-09-24 | C79: =IF(A79>$B$30,NA(),IF($A79>$A$8,"",OFFSET(InputPriceData!$G$15,CalculationsAndCharts!$A79+$A$11,IF($C$5,8,0),1,1))) -> 4665900 | D79: =IF(A79>$B$30,NA(),IF(A79>$A$8,"",OFFSET(InputPriceData!$C$15,CalculationsAndCharts!$A79+$A$11,IF($C$5,8,0),1,1))) -> 85.59 | E79: =IF(A79>$B$30,NA(),IF(A79>$A$8,"",OFFSET(InputPriceData!$D$15,CalculationsAndCharts!$A79+$A$11,IF($C$5,8,0),1,1))) -> 86.68 | F79: =IF(A79>$B$30,NA(),IF(A79>$A$8,"",OFFSET(InputPriceData!$E$15,CalculationsAndCharts!$A79+$A$11,IF($C$5,8,0),1,1))) -> 85.38 | G79: =IF(A79>$B$30,NA(),IF(A79>$A$8,"",OFFSET(InputPriceData!$F$15,CalculationsAndCharts!$A79+$A$11,IF($C$5,8,0),1,1))) -> 86.17 | H79: 2.903147486 | I79: -0.007942150125 | J79: 3.159156088 | K79: 1.777401499 | L79: -0.004468405214 | M79: =IF($A79>$B$30,NA(),IF($A79>$A$8,"",OFFSET(InputPriceData2!$B$15,$A79+$A$11,0,1,1))) -> 2021-09-24 | N79: =IF($A79>$B$30,NA(),IF($A79>$A$8,"",OFFSET(InputPriceData2!$G$15,CalculationsAndCharts!$A79+$A$11,IF($C$5,8,0),1,1))) -> 62094800 | O79: =IF($A79>$B$30,NA(),IF($A79>$A$8,"",OFFSET(InputPriceData2!$C$15,CalculationsAndCharts!$A79+$A$11,IF($C$5,8,0),1,1))) -> 438.53 | P79: =IF($A79>$B$30,NA(),IF($A79>$A$8,"",OFFSET(InputPriceData2!$D$15,CalculationsAndCharts!$A79+$A$11,IF($C$5,8,0),1,1))) -> 441.74 | Q79: =IF($A79>$B$30,NA(),IF($A79>$A$8,"",OFFSET(InputPriceData2!$E$15,CalculationsAndCharts!$A79+$A$11,IF($C$5,8,0),1,1))) -> 438.3 | R79: =IF($A79>$B$30,NA(),IF($A79>$A$8,"",OFFSET(InputPriceData2!$F$15,CalculationsAndCharts!$A79+$A$11,IF($C$5,8,0),1,1))) -> 440.99 | S79: -4.632166728 | T79: -10.07171661 | U79: 15.3323002 | V79: 3.91564812 | W79: -2.572171019 | AW79: 4665900
A80: 48 | B80: =IF(A80>$B$30,NA(),IF($A80>$A$8,"",OFFSET(InputPriceData!$B$15,$A80+$A$11,0,1,1))) -> 2021-09-23 | C80: =IF(A80>$B$30,NA(),IF($A80>$A$8,"",OFFSET(InputPriceData!$G$15,CalculationsAndCharts!$A80+$A$11,IF($C$5,8,0),1,1))) -> 5906800 | D80: =IF(A80>$B$30,NA(),IF(A80>$A$8,"",OFFSET(InputPriceData!$C$15,CalculationsAndCharts!$A80+$A$11,IF($C$5,8,0),1,1))) -> 84.61 | E80: =IF(A80>$B$30,NA(),IF(A80>$A$8,"",OFFSET(InputPriceData!$D$15,CalculationsAndCharts!$A80+$A$11,IF($C$5,8,0),1,1))) -> 86.01 | F80: =IF(A80>$B$30,NA(),IF(A80>$A$8,"",OFFSET(InputPriceData!$E$15,CalculationsAndCharts!$A80+$A$11,IF($C$5,8,0),1,1))) -> 84.54 | G80: =IF(A80>$B$30,NA(),IF(A80>$A$8,"",OFFSET(InputPriceData!$F$15,CalculationsAndCharts!$A80+$A$11,IF($C$5,8,0),1,1))) -> 85.77 | H80: 2.648352779 | I80: -0.4712548098 | J80: 3.237502112 | K80: 1.799306008 | L80: -0.261909207 | M80: =IF($A80>$B$30,NA(),IF($A80>$A$8,"",OFFSET(InputPriceData2!$B$15,$A80+$A$11,0,1,1))) -> 2021-09-23 | N80: =IF($A80>$B$30,NA(),IF($A80>$A$8,"",OFFSET(InputPriceData2!$G$15,CalculationsAndCharts!$A80+$A$11,IF($C$5,8,0),1,1))) -> 76396000 | O80: =IF($A80>$B$30,NA(),IF($A80>$A$8,"",OFFSET(InputPriceData2!$C$15,CalculationsAndCharts!$A80+$A$11,IF($C$5,8,0),1,1))) -> 436.95 | P80: =IF($A80>$B$30,NA(),IF($A80>$A$8,"",OFFSET(InputPriceData2!$D$15,CalculationsAndCharts!$A80+$A$11,IF($C$5,8,0),1,1))) -> 441.96 | Q80: =IF($A80>$B$30,NA(),IF($A80>$A$8,"",OFFSET(InputPriceData2!$E$15,CalculationsAndCharts!$A80+$A$11,IF($C$5,8,0),1,1))) -> 436.7 | R80: =IF($A80>$B$30,NA(),IF($A80>$A$8,"",OFFSET(InputPriceData2!$F$15,CalculationsAndCharts!$A80+$A$11,IF($C$5,8,0),1,1))) -> 440.26 | S80: -5.469205105 | T80: -9.876643793 | U80: 13.19682813 | V80: 3.632743885 | W80: -2.718783406 | AW80: 5906800
A81: 49 | B81: =IF(A81>$B$30,NA(),IF($A81>$A$8,"",OFFSET(InputPriceData!$B$15,$A81+$A$11,0,1,1))) -> 2021-09-22 | C81: =IF(A81>$B$30,NA(),IF($A81>$A$8,"",OFFSET(InputPriceData!$G$15,CalculationsAndCharts!$A81+$A$11,IF($C$5,8,0),1,1))) -> 6233700 | D81: =IF(A81>$B$30,NA(),IF(A81>$A$8,"",OFFSET(InputPriceData!$C$15,CalculationsAndCharts!$A81+$A$11,IF($C$5,8,0),1,1))) -> 83.02 | E81: =IF(A81>$B$30,NA(),IF(A81>$A$8,"",OFFSET(InputPriceData!$D$15,CalculationsAndCharts!$A81+$A$11,IF($C$5,8,0),1,1))) -> 84.99 | F81: =IF(A81>$B$30,NA(),IF(A81>$A$8,"",OFFSET(InputPriceData!$E$15,CalculationsAndCharts!$A81+$A$11,IF($C$5,8,0),1,1))) -> 82.66 | G81: =IF(A81>$B$30,NA(),IF(A81>$A$8,"",OFFSET(InputPriceData!$F$15,CalculationsAndCharts!$A81+$A$11,IF($C$5,8,0),1,1))) -> 84.3 | H81: 1.259148891 | I81: -0.7936355065 | J81: 3.312285048 | K81: 1.819968419 | L81: -0.4360710318 | M81: =IF($A81>$B$30,NA(),IF($A81>$A$8,"",OFFSET(InputPriceData2!$B$15,$A81+$A$11,0,1,1))) -> 2021-09-22 | N81: =IF($A81>$B$30,NA(),IF($A81>$A$8,"",OFFSET(InputPriceData2!$G$15,CalculationsAndCharts!$A81+$A$11,IF($C$5,8,0),1,1))) -> 102350100 | O81: =IF($A81>$B$30,NA(),IF($A81>$A$8,"",OFFSET(InputPriceData2!$C$15,CalculationsAndCharts!$A81+$A$11,IF($C$5,8,0),1,1))) -> 433.18 | P81: =IF($A81>$B$30,NA(),IF($A81>$A$8,"",OFFSET(InputPriceData2!$D$15,CalculationsAndCharts!$A81+$A$11,IF($C$5,8,0),1,1))) -> 437.13 | Q81: =IF($A81>$B$30,NA(),IF($A81>$A$8,"",OFFSET(InputPriceData2!$E$15,CalculationsAndCharts!$A81+$A$11,IF($C$5,8,0),1,1))) -> 430.89 | R81: =IF($A81>$B$30,NA(),IF($A81>$A$8,"",OFFSET(InputPriceData2!$F$15,CalculationsAndCharts!$A81+$A$11,IF($C$5,8,0),1,1))) -> 434.98 | S81: -11.06819151 | T81: -8.977883872 | U81: 11.10490294 | V81: 3.332401978 | W81: -2.694117916 | AW81: 6233700
A82: 50 | B82: =IF(A82>$B$30,NA(),IF($A82>$A$8,"",OFFSET(InputPriceData!$B$15,$A82+$A$11,0,1,1))) -> 2021-09-21 | C82: =IF(A82>$B$30,NA(),IF($A82>$A$8,"",OFFSET(InputPriceData!$G$15,CalculationsAndCharts!$A82+$A$11,IF($C$5,8,0),1,1))) -> 5900300 | D82: =IF(A82>$B$30,NA(),IF(A82>$A$8,"",OFFSET(InputPriceData!$C$15,CalculationsAndCharts!$A82+$A$11,IF($C$5,8,0),1,1))) -> 82.73 | E82: =IF(A82>$B$30,NA(),IF(A82>$A$8,"",OFFSET(InputPriceData!$D$15,CalculationsAndCharts!$A82+$A$11,IF($C$5,8,0),1,1))) -> 83.2 | F82: =IF(A82>$B$30,NA(),IF(A82>$A$8,"",OFFSET(InputPriceData!$E$15,CalculationsAndCharts!$A82+$A$11,IF($C$5,8,0),1,1))) -> 81.73 | G82: =IF(A82>$B$30,NA(),IF(A82>$A$8,"",OFFSET(InputPriceData!$F$15,CalculationsAndCharts!$A82+$A$11,IF($C$5,8,0),1,1))) -> 82.17 | H82: -0.9195588127 | I82: -0.9578206432 | J82: 3.378809695 | K82: 1.838153882 | L82: -0.5210775074 | M82: =IF($A82>$B$30,NA(),IF($A82>$A$8,"",OFFSET(InputPriceData2!$B$15,$A82+$A$11,0,1,1))) -> 2021-09-21 | N82: =IF($A82>$B$30,NA(),IF($A82>$A$8,"",OFFSET(InputPriceData2!$G$15,CalculationsAndCharts!$A82+$A$11,IF($C$5,8,0),1,1))) -> 92526100 | O82: =IF($A82>$B$30,NA(),IF($A82>$A$8,"",OFFSET(InputPriceData2!$C$15,CalculationsAndCharts!$A82+$A$11,IF($C$5,8,0),1,1))) -> 433.65 | P82: =IF($A82>$B$30,NA(),IF($A82>$A$8,"",OFFSET(InputPriceData2!$D$15,CalculationsAndCharts!$A82+$A$11,IF($C$5,8,0),1,1))) -> 435.03 | Q82: =IF($A82>$B$30,NA(),IF($A82>$A$8,"",OFFSET(InputPriceData2!$E$15,CalculationsAndCharts!$A82+$A$11,IF($C$5,8,0),1,1))) -> 430.22 | R82: =IF($A82>$B$30,NA(),IF($A82>$A$8,"",OFFSET(InputPriceData2!$F$15,CalculationsAndCharts!$A82+$A$11,IF($C$5,8,0),1,1))) -> 430.77 | S82: -15.9419339 | T82: -7.489094158 | U82: 9.381353648 | V82: 3.062899549 | W82: -2.445099501 | AX82: 5900300
A83: 51 | B83: =IF(A83>$B$30,NA(),IF($A83>$A$8,"",OFFSET(InputPriceData!$B$15,$A83+$A$11,0,1,1))) -> 2021-09-20 | C83: =IF(A83>$B$30,NA(),IF($A83>$A$8,"",OFFSET(InputPriceData!$G$15,CalculationsAndCharts!$A83+$A$11,IF($C$5,8,0),1,1))) -> 8217100 | D83: =IF(A83>$B$30,NA(),IF(A83>$A$8,"",OFFSET(InputPriceData!$C$15,CalculationsAndCharts!$A83+$A$11,IF($C$5,8,0),1,1))) -> 80.97 | E83: =IF(A83>$B$30,NA(),IF(A83>$A$8,"",OFFSET(InputPriceData!$D$15,CalculationsAndCharts!$A83+$A$11,IF($C$5,8,0),1,1))) -> 82.65 | F83: =IF(A83>$B$30,NA(),IF(A83>$A$8,"",OFFSET(InputPriceData!$E$15,CalculationsAndCharts!$A83+$A$11,IF($C$5,8,0),1,1))) -> 80.6 | G83: =IF(A83>$B$30,NA(),IF(A83>$A$8,"",OFFSET(InputPriceData!$F$15,CalculationsAndCharts!$A83+$A$11,IF($C$5,8,0),1,1))) -> 82.5 | H83: -0.7073532214 | I83: -1.074901175 | J83: 3.439852554 | K83: 1.85468395 | L83: -0.5795602937 | M83: =IF($A83>$B$30,NA(),IF($A83>$A$8,"",OFFSET(InputPriceData2!$B$15,$A83+$A$11,0,1,1))) -> 2021-09-20 | N83: =IF($A83>$B$30,NA(),IF($A83>$A$8,"",OFFSET(InputPriceData2!$G$15,CalculationsAndCharts!$A83+$A$11,IF($C$5,8,0),1,1))) -> 166445500 | O83: =IF($A83>$B$30,NA(),IF($A83>$A$8,"",OFFSET(InputPriceData2!$C$15,CalculationsAndCharts!$A83+$A$11,IF($C$5,8,0),1,1))) -> 432.02 | P83: =IF($A83>$B$30,NA(),IF($A83>$A$8,"",OFFSET(InputPriceData2!$D$15,CalculationsAndCharts!$A83+$A$11,IF($C$5,8,0),1,1))) -> 433.68 | Q83: =IF($A83>$B$30,NA(),IF($A83>$A$8,"",OFFSET(InputPriceData2!$E$15,CalculationsAndCharts!$A83+$A$11,IF($C$5,8,0),1,1))) -> 426.04 | R83: =IF($A83>$B$30,NA(),IF($A83>$A$8,"",OFFSET(InputPriceData2!$F$15,CalculationsAndCharts!$A83+$A$11,IF($C$5,8,0),1,1))) -> 431.18 | S83: -16.34582614 | T83: -5.908866362 | U83: 8.223057584 | V83: 2.867587415 | W83: -2.060570614 | AW83: 8217100
A84: 52 | B84: =IF(A84>$B$30,NA(),IF($A84>$A$8,"",OFFSET(InputPriceData!$B$15,$A84+$A$11,0,1,1))) -> 2021-09-17 | C84: =IF(A84>$B$30,NA(),IF($A84>$A$8,"",OFFSET(InputPriceData!$G$15,CalculationsAndCharts!$A84+$A$11,IF($C$5,8,0),1,1))) -> 23128700 | D84: =IF(A84>$B$30,NA(),IF(A84>$A$8,"",OFFSET(InputPriceData!$C$15,CalculationsAndCharts!$A84+$A$11,IF($C$5,8,0),1,1))) -> 82.64 | E84: =IF(A84>$B$30,NA(),IF(A84>$A$8,"",OFFSET(InputPriceData!$D$15,CalculationsAndCharts!$A84+$A$11,IF($C$5,8,0),1,1))) -> 83.06 | F84: =IF(A84>$B$30,NA(),IF(A84>$A$8,"",OFFSET(InputPriceData!$E$15,CalculationsAndCharts!$A84+$A$11,IF($C$5,8,0),1,1))) -> 81.44 | G84: =IF(A84>$B$30,NA(),IF(A84>$A$8,"",OFFSET(InputPriceData!$F$15,CalculationsAndCharts!$A84+$A$11,IF($C$5,8,0),1,1))) -> 82.45 | H84: -0.8714119762 | I84: -1.225250237 | J84: 3.496507041 | K84: 1.869894928 | L84: -0.6552508481 | M84: =IF($A84>$B$30,NA(),IF($A84>$A$8,"",OFFSET(InputPriceData2!$B$15,$A84+$A$11,0,1,1))) -> 2021-09-17 | N84: =IF($A84>$B$30,NA(),IF($A84>$A$8,"",OFFSET(InputPriceData2!$G$15,CalculationsAndCharts!$A84+$A$11,IF($C$5,8,0),1,1))) -> 118425000 | O84: =IF($A84>$B$30,NA(),IF($A84>$A$8,"",OFFSET(InputPriceData2!$C$15,CalculationsAndCharts!$A84+$A$11,IF($C$5,8,0),1,1))) -> 441.99 | P84: =IF($A84>$B$30,NA(),IF($A84>$A$8,"",OFFSET(InputPriceData2!$D$15,CalculationsAndCharts!$A84+$A$11,IF($C$5,8,0),1,1))) -> 442.44 | Q84: =IF($A84>$B$30,NA(),IF($A84>$A$8,"",OFFSET(InputPriceData2!$E$15,CalculationsAndCharts!$A84+$A$11,IF($C$5,8,0),1,1))) -> 438.11 | R84: =IF($A84>$B$30,NA(),IF($A84>$A$8,"",OFFSET(InputPriceData2!$F$15,CalculationsAndCharts!$A84+$A$11,IF($C$5,8,0),1,1))) -> 438.49 | S84: -9.587069601 | T84: -4.705873864 | U84: 7.561100434 | V84: 2.749745522 | W84: -1.711385227 | AX84: 23128700
A85: 53 | B85: =IF(A85>$B$30,NA(),IF($A85>$A$8,"",OFFSET(InputPriceData!$B$15,$A85+$A$11,0,1,1))) -> 2021-09-16 | C85: =IF(A85>$B$30,NA(),IF($A85>$A$8,"",OFFSET(InputPriceData!$G$15,CalculationsAndCharts!$A85+$A$11,IF($C$5,8,0),1,1))) -> 5907500 | D85: =IF(A85>$B$30,NA(),IF(A85>$A$8,"",OFFSET(InputPriceData!$C$15,CalculationsAndCharts!$A85+$A$11,IF($C$5,8,0),1,1))) -> 83.98 | E85: =IF(A85>$B$30,NA(),IF(A85>$A$8,"",OFFSET(InputPriceData!$D$15,CalculationsAndCharts!$A85+$A$11,IF($C$5,8,0),1,1))) -> 84.17 | F85: =IF(A85>$B$30,NA(),IF(A85>$A$8,"",OFFSET(InputPriceData!$E$15,CalculationsAndCharts!$A85+$A$11,IF($C$5,8,0),1,1))) -> 82.93 | G85: =IF(A85>$B$30,NA(),IF(A85>$A$8,"",OFFSET(InputPriceData!$F$15,CalculationsAndCharts!$A85+$A$11,IF($C$5,8,0),1,1))) -> 83.07 | H85: -0.3510365392 | I85: -1.405984155 | J85: 3.545990037 | K85: 1.883079934 | L85: -0.7466407188 | M85: =IF($A85>$B$30,NA(),IF($A85>$A$8,"",OFFSET(InputPriceData2!$B$15,$A85+$A$11,0,1,1))) -> 2021-09-16 | N85: =IF($A85>$B$30,NA(),IF($A85>$A$8,"",OFFSET(InputPriceData2!$G$15,CalculationsAndCharts!$A85+$A$11,IF($C$5,8,0),1,1))) -> 77786700 | O85: =IF($A85>$B$30,NA(),IF($A85>$A$8,"",OFFSET(InputPriceData2!$C$15,CalculationsAndCharts!$A85+$A$11,IF($C$5,8,0),1,1))) -> 442.95 | P85: =IF($A85>$B$30,NA(),IF($A85>$A$8,"",OFFSET(InputPriceData2!$D$15,CalculationsAndCharts!$A85+$A$11,IF($C$5,8,0),1,1))) -> 443.98 | Q85: =IF($A85>$B$30,NA(),IF($A85>$A$8,"",OFFSET(InputPriceData2!$E$15,CalculationsAndCharts!$A85+$A$11,IF($C$5,8,0),1,1))) -> 439.69 | R85: =IF($A85>$B$30,NA(),IF($A85>$A$8,"",OFFSET(InputPriceData2!$F$15,CalculationsAndCharts!$A85+$A$11,IF($C$5,8,0),1,1))) -> 442.81 | S85: -5.403525728 | T85: -3.847831702 | U85: 7.199411163 | V85: 2.683171847 | W85: -1.434060851 | AX85: 5907500
A86: 54 | B86: =IF(A86>$B$30,NA(),IF($A86>$A$8,"",OFFSET(InputPriceData!$B$15,$A86+$A$11,0,1,1))) -> 2021-09-15 | C86: =IF(A86>$B$30,NA(),IF($A86>$A$8,"",OFFSET(InputPriceData!$G$15,CalculationsAndCharts!$A86+$A$11,IF($C$5,8,0),1,1))) -> 5673400 | D86: =IF(A86>$B$30,NA(),IF(A86>$A$8,"",OFFSET(InputPriceData!$C$15,CalculationsAndCharts!$A86+$A$11,IF($C$5,8,0),1,1))) -> 82.24 | E86: =IF(A86>$B$30,NA(),IF(A86>$A$8,"",OFFSET(InputPriceData!$D$15,CalculationsAndCharts!$A86+$A$11,IF($C$5,8,0),1,1))) -> 84.1 | F86: =IF(A86>$B$30,NA(),IF(A86>$A$8,"",OFFSET(InputPriceData!$E$15,CalculationsAndCharts!$A86+$A$11,IF($C$5,8,0),1,1))) -> 81.89 | G86: =IF(A86>$B$30,NA(),IF(A86>$A$8,"",OFFSET(InputPriceData!$F$15,CalculationsAndCharts!$A86+$A$11,IF($C$5,8,0),1,1))) -> 83.91 | H86: 0.4365484747 | I86: -1.589878671 | J86: 3.584906419 | K86: 1.89338491 | L86: -0.8397017754 | M86: =IF($A86>$B$30,NA(),IF($A86>$A$8,"",OFFSET(InputPriceData2!$B$15,$A86+$A$11,0,1,1))) -> 2021-09-15 | N86: =IF($A86>$B$30,NA(),IF($A86>$A$8,"",OFFSET(InputPriceData2!$G$15,CalculationsAndCharts!$A86+$A$11,IF($C$5,8,0),1,1))) -> 78792200 | O86: =IF($A86>$B$30,NA(),IF($A86>$A$8,"",OFFSET(InputPriceData2!$C$15,CalculationsAndCharts!$A86+$A$11,IF($C$5,8,0),1,1))) -> 440.28 | P86: =IF($A86>$B$30,NA(),IF($A86>$A$8,"",OFFSET(InputPriceData2!$D$15,CalculationsAndCharts!$A86+$A$11,IF($C$5,8,0),1,1))) -> 444.03 | Q86: =IF($A86>$B$30,NA(),IF($A86>$A$8,"",OFFSET(InputPriceData2!$E$15,CalculationsAndCharts!$A86+$A$11,IF($C$5,8,0),1,1))) -> 439.11 | R86: =IF($A86>$B$30,NA(),IF($A86>$A$8,"",OFFSET(InputPriceData2!$F$15,CalculationsAndCharts!$A86+$A$11,IF($C$5,8,0),1,1))) -> 443.51 | S86: -4.648630751 | T86: -2.959298517 | U86: 7.010771254 | V86: 2.647786104 | W86: -1.117650143 | AW86: 5673400
A87: 55 | B87: =IF(A87>$B$30,NA(),IF($A87>$A$8,"",OFFSET(InputPriceData!$B$15,$A87+$A$11,0,1,1))) -> 2021-09-14 | C87: =IF(A87>$B$30,NA(),IF($A87>$A$8,"",OFFSET(InputPriceData!$G$15,CalculationsAndCharts!$A87+$A$11,IF($C$5,8,0),1,1))) -> 5253300 | D87: =IF(A87>$B$30,NA(),IF(A87>$A$8,"",OFFSET(InputPriceData!$C$15,CalculationsAndCharts!$A87+$A$11,IF($C$5,8,0),1,1))) -> 82.85 | E87: =IF(A87>$B$30,NA(),IF(A87>$A$8,"",OFFSET(InputPriceData!$D$15,CalculationsAndCharts!$A87+$A$11,IF($C$5,8,0),1,1))) -> 82.89 | F87: =IF(A87>$B$30,NA(),IF(A87>$A$8,"",OFFSET(InputPriceData!$E$15,CalculationsAndCharts!$A87+$A$11,IF($C$5,8,0),1,1))) -> 81.33 | G87: =IF(A87>$B$30,NA(),IF(A87>$A$8,"",OFFSET(InputPriceData!$F$15,CalculationsAndCharts!$A87+$A$11,IF($C$5,8,0),1,1))) -> 81.8 | H87: -1.775715286 | I87: -1.675470087 | J87: 3.61112496 | K87: 1.900296019 | L87: -0.8816889951 | M87: =IF($A87>$B$30,NA(),IF($A87>$A$8,"",OFFSET(InputPriceData2!$B$15,$A87+$A$11,0,1,1))) -> 2021-09-14 | N87: =IF($A87>$B$30,NA(),IF($A87>$A$8,"",OFFSET(InputPriceData2!$G$15,CalculationsAndCharts!$A87+$A$11,IF($C$5,8,0),1,1))) -> 78197100 | O87: =IF($A87>$B$30,NA(),IF($A87>$A$8,"",OFFSET(InputPriceData2!$C$15,CalculationsAndCharts!$A87+$A$11,IF($C$5,8,0),1,1))) -> 443.75 | P87: =IF($A87>$B$30,NA(),IF($A87>$A$8,"",OFFSET(InputPriceData2!$D$15,CalculationsAndCharts!$A87+$A$11,IF($C$5,8,0),1,1))) -> 443.96 | Q87: =IF($A87>$B$30,NA(),IF($A87>$A$8,"",OFFSET(InputPriceData2!$E$15,CalculationsAndCharts!$A87+$A$11,IF($C$5,8,0),1,1))) -> 438.89 | R87: =IF($A87>$B$30,NA(),IF($A87>$A$8,"",OFFSET(InputPriceData2!$F$15,CalculationsAndCharts!$A87+$A$11,IF($C$5,8,0),1,1))) -> 439.84 | S87: -8.354054458 | T87: -1.828471152 | U87: 6.967453391 | V87: 2.639593414 | W87: -0.6927093931 | AX87: 5253300
A88: 56 | B88: =IF(A88>$B$30,NA(),IF($A88>$A$8,"",OFFSET(InputPriceData!$B$15,$A88+$A$11,0,1,1))) -> 2021-09-13 | C88: =IF(A88>$B$30,NA(),IF($A88>$A$8,"",OFFSET(InputPriceData!$G$15,CalculationsAndCharts!$A88+$A$11,IF($C$5,8,0),1,1))) -> 4768000 | D88: =IF(A88>$B$30,NA(),IF(A88>$A$8,"",OFFSET(InputPriceData!$C$15,CalculationsAndCharts!$A88+$A$11,IF($C$5,8,0),1,1))) -> 82.83 | E88: =IF(A88>$B$30,NA(),IF(A88>$A$8,"",OFFSET(InputPriceData!$D$15,CalculationsAndCharts!$A88+$A$11,IF($C$5,8,0),1,1))) -> 83.28 | F88: =IF(A88>$B$30,NA(),IF(A88>$A$8,"",OFFSET(InputPriceData!$E$15,CalculationsAndCharts!$A88+$A$11,IF($C$5,8,0),1,1))) -> 81.82 | G88: =IF(A88>$B$30,NA(),IF(A88>$A$8,"",OFFSET(InputPriceData!$F$15,CalculationsAndCharts!$A88+$A$11,IF($C$5,8,0),1,1))) -> 82.69 | H88: -1.037761361 | I88: -1.684999178 | J88: 3.63106243 | K88: 1.905534684 | L88: -0.8842658138 | M88: =IF($A88>$B$30,NA(),IF($A88>$A$8,"",OFFSET(InputPriceData2!$B$15,$A88+$A$11,0,1,1))) -> 2021-09-13 | N88: =IF($A88>$B$30,NA(),IF($A88>$A$8,"",OFFSET(InputPriceData2!$G$15,CalculationsAndCharts!$A88+$A$11,IF($C$5,8,0),1,1))) -> 83738600 | O88: =IF($A88>$B$30,NA(),IF($A88>$A$8,"",OFFSET(InputPriceData2!$C$15,CalculationsAndCharts!$A88+$A$11,IF($C$5,8,0),1,1))) -> 444.26 | P88: =IF($A88>$B$30,NA(),IF($A88>$A$8,"",OFFSET(InputPriceData2!$D$15,CalculationsAndCharts!$A88+$A$11,IF($C$5,8,0),1,1))) -> 444.54 | Q88: =IF($A88>$B$30,NA(),IF($A88>$A$8,"",OFFSET(InputPriceData2!$E$15,CalculationsAndCharts!$A88+$A$11,IF($C$5,8,0),1,1))) -> 439.78 | R88: =IF($A88>$B$30,NA(),IF($A88>$A$8,"",OFFSET(InputPriceData2!$F$15,CalculationsAndCharts!$A88+$A$11,IF($C$5,8,0),1,1))) -> 442.22 | S88: -6.041693681 | T88: -0.6409271651 | U88: 7.057332822 | V88: 2.656564101 | W88: -0.2412616977 | AX88: 4768000
A89: 57 | B89: =IF(A89>$B$30,NA(),IF($A89>$A$8,"",OFFSET(InputPriceData!$B$15,$A89+$A$11,0,1,1))) -> 2021-09-10 | C89: =IF(A89>$B$30,NA(),IF($A89>$A$8,"",OFFSET(InputPriceData!$G$15,CalculationsAndCharts!$A89+$A$11,IF($C$5,8,0),1,1))) -> 3893400 | D89: =IF(A89>$B$30,NA(),IF(A89>$A$8,"",OFFSET(InputPriceData!$C$15,CalculationsAndCharts!$A89+$A$11,IF($C$5,8,0),1,1))) -> 83.23 | E89: =IF(A89>$B$30,NA(),IF(A89>$A$8,"",OFFSET(InputPriceData!$D$15,CalculationsAndCharts!$A89+$A$11,IF($C$5,8,0),1,1))) -> 83.5 | F89: =IF(A89>$B$30,NA(),IF(A89>$A$8,"",OFFSET(InputPriceData!$E$15,CalculationsAndCharts!$A89+$A$11,IF($C$5,8,0),1,1))) -> 81.86 | G89: =IF(A89>$B$30,NA(),IF(A89>$A$8,"",OFFSET(InputPriceData!$F$15,CalculationsAndCharts!$A89+$A$11,IF($C$5,8,0),1,1))) -> 82.06 | H89: -1.817720788 | I89: -1.665574193 | J89: 3.650700197 | K89: 1.910680559 | L89: -0.8717177688 | M89: =IF($A89>$B$30,NA(),IF($A89>$A$8,"",OFFSET(InputPriceData2!$B$15,$A89+$A$11,0,1,1))) -> 2021-09-10 | N89: =IF($A89>$B$30,NA(),IF($A89>$A$8,"",OFFSET(InputPriceData2!$G$15,CalculationsAndCharts!$A89+$A$11,IF($C$5,8,0),1,1))) -> 89948200 | O89: =IF($A89>$B$30,NA(),IF($A89>$A$8,"",OFFSET(InputPriceData2!$C$15,CalculationsAndCharts!$A89+$A$11,IF($C$5,8,0),1,1))) -> 446.64 | P89: =IF($A89>$B$30,NA(),IF($A89>$A$8,"",OFFSET(InputPriceData2!$D$15,CalculationsAndCharts!$A89+$A$11,IF($C$5,8,0),1,1))) -> 447.08 | Q89: =IF($A89>$B$30,NA(),IF($A89>$A$8,"",OFFSET(InputPriceData2!$E$15,CalculationsAndCharts!$A89+$A$11,IF($C$5,8,0),1,1))) -> 440.96 | R89: =IF($A89>$B$30,NA(),IF($A89>$A$8,"",OFFSET(InputPriceData2!$F$15,CalculationsAndCharts!$A89+$A$11,IF($C$5,8,0),1,1))) -> 441.09 | S89: -7.180167411 | T89: 0.402923896 | U89: 7.222168233 | V89: 2.687409205 | W89: 0.1499302359 | AX89: 3893400
A90: 58 | B90: =IF(A90>$B$30,NA(),IF($A90>$A$8,"",OFFSET(InputPriceData!$B$15,$A90+$A$11,0,1,1))) -> 2021-09-09 | C90: =IF(A90>$B$30,NA(),IF($A90>$A$8,"",OFFSET(InputPriceData!$G$15,CalculationsAndCharts!$A90+$A$11,IF($C$5,8,0),1,1))) -> 4521200 | D90: =IF(A90>$B$30,NA(),IF(A90>$A$8,"",OFFSET(InputPriceData!$C$15,CalculationsAndCharts!$A90+$A$11,IF($C$5,8,0),1,1))) -> 81.99 | E90: =IF(A90>$B$30,NA(),IF(A90>$A$8,"",OFFSET(InputPriceData!$D$15,CalculationsAndCharts!$A90+$A$11,IF($C$5,8,0),1,1))) -> 83.39 | F90: =IF(A90>$B$30,NA(),IF(A90>$A$8,"",OFFSET(InputPriceData!$E$15,CalculationsAndCharts!$A90+$A$11,IF($C$5,8,0),1,1))) -> 81.79 | G90: =IF(A90>$B$30,NA(),IF(A90>$A$8,"",OFFSET(InputPriceData!$F$15,CalculationsAndCharts!$A90+$A$11,IF($C$5,8,0),1,1))) -> 82.71 | H90: -1.32407004 | I90: -1.605982797 | J90: 3.672439098 | K90: 1.9163609 | L90: -0.8380377609 | M90: =IF($A90>$B$30,NA(),IF($A90>$A$8,"",OFFSET(InputPriceData2!$B$15,$A90+$A$11,0,1,1))) -> 2021-09-09 | N90: =IF($A90>$B$30,NA(),IF($A90>$A$8,"",OFFSET(InputPriceData2!$G$15,CalculationsAndCharts!$A90+$A$11,IF($C$5,8,0),1,1))) -> 57970400 | O90: =IF($A90>$B$30,NA(),IF($A90>$A$8,"",OFFSET(InputPriceData2!$C$15,CalculationsAndCharts!$A90+$A$11,IF($C$5,8,0),1,1))) -> 446.3 | P90: =IF($A90>$B$30,NA(),IF($A90>$A$8,"",OFFSET(InputPriceData2!$D$15,CalculationsAndCharts!$A90+$A$11,IF($C$5,8,0),1,1))) -> 448.15 | Q90: =IF($A90>$B$30,NA(),IF($A90>$A$8,"",OFFSET(InputPriceData2!$E$15,CalculationsAndCharts!$A90+$A$11,IF($C$5,8,0),1,1))) -> 444.34 | R90: =IF($A90>$B$30,NA(),IF($A90>$A$8,"",OFFSET(InputPriceData2!$F$15,CalculationsAndCharts!$A90+$A$11,IF($C$5,8,0),1,1))) -> 444.6 | S90: -3.575851264 | T90: 1.166424374 | U90: 7.39725294 | V90: 2.719789135 | W90: 0.4288657378 | AW90: 4521200
A91: 59 | B91: =IF(A91>$B$30,NA(),IF($A91>$A$8,"",OFFSET(InputPriceData!$B$15,$A91+$A$11,0,1,1))) -> 2021-09-08 | C91: =IF(A91>$B$30,NA(),IF($A91>$A$8,"",OFFSET(InputPriceData!$G$15,CalculationsAndCharts!$A91+$A$11,IF($C$5,8,0),1,1))) -> 3911400 | D91: =IF(A91>$B$30,NA(),IF(A91>$A$8,"",OFFSET(InputPriceData!$C$15,CalculationsAndCharts!$A91+$A$11,IF($C$5,8,0),1,1))) -> 81.89 | E91: =IF(A91>$B$30,NA(),IF(A91>$A$8,"",OFFSET(InputPriceData!$D$15,CalculationsAndCharts!$A91+$A$11,IF($C$5,8,0),1,1))) -> 82.53 | F91: =IF(A91>$B$30,NA(),IF(A91>$A$8,"",OFFSET(InputPriceData!$E$15,CalculationsAndCharts!$A91+$A$11,IF($C$5,8,0),1,1))) -> 81.27 | G91: =IF(A91>$B$30,NA(),IF(A91>$A$8,"",OFFSET(InputPriceData!$F$15,CalculationsAndCharts!$A91+$A$11,IF($C$5,8,0),1,1))) -> 81.93 | H91: -2.272323287 | I91: -1.508740455 | J91: 3.699552085 | K91: 1.923421973 | L91: -0.784404294 | M91: =IF($A91>$B$30,NA(),IF($A91>$A$8,"",OFFSET(InputPriceData2!$B$15,$A91+$A$11,0,1,1))) -> 2021-09-08 | N91: =IF($A91>$B$30,NA(),IF($A91>$A$8,"",OFFSET(InputPriceData2!$G$15,CalculationsAndCharts!$A91+$A$11,IF($C$5,8,0),1,1))) -> 56181900 | O91: =IF($A91>$B$30,NA(),IF($A91>$A$8,"",OFFSET(InputPriceData2!$C$15,CalculationsAndCharts!$A91+$A$11,IF($C$5,8,0),1,1))) -> 446.49 | P91: =IF($A91>$B$30,NA(),IF($A91>$A$8,"",OFFSET(InputPriceData2!$D$15,CalculationsAndCharts!$A91+$A$11,IF($C$5,8,0),1,1))) -> 447.26 | Q91: =IF($A91>$B$30,NA(),IF($A91>$A$8,"",OFFSET(InputPriceData2!$E$15,CalculationsAndCharts!$A91+$A$11,IF($C$5,8,0),1,1))) -> 444.48 | R91: =IF($A91>$B$30,NA(),IF($A91>$A$8,"",OFFSET(InputPriceData2!$F$15,CalculationsAndCharts!$A91+$A$11,IF($C$5,8,0),1,1))) -> 446.51 | S91: -1.354557569 | T91: 1.550616791 | U91: 7.546964267 | V91: 2.747173869 | W91: 0.564440718 | AW91: 3911400
A92: 60 | B92: =IF(A92>$B$30,NA(),IF($A92>$A$8,"",OFFSET(InputPriceData!$B$15,$A92+$A$11,0,1,1))) -> 2021-09-07 | C92: =IF(A92>$B$30,NA(),IF($A92>$A$8,"",OFFSET(InputPriceData!$G$15,CalculationsAndCharts!$A92+$A$11,IF($C$5,8,0),1,1))) -> 5701400 | D92: =IF(A92>$B$30,NA(),IF(A92>$A$8,"",OFFSET(InputPriceData!$C$15,CalculationsAndCharts!$A92+$A$11,IF($C$5,8,0),1,1))) -> 82.42 | E92: =IF(A92>$B$30,NA(),IF(A92>$A$8,"",OFFSET(InputPriceData!$D$15,CalculationsAndCharts!$A92+$A$11,IF($C$5,8,0),1,1))) -> 82.7 | F92: =IF(A92>$B$30,NA(),IF(A92>$A$8,"",OFFSET(InputPriceData!$E$15,CalculationsAndCharts!$A92+$A$11,IF($C$5,8,0),1,1))) -> 81.43 | G92: =IF(A92>$B$30,NA(),IF(A92>$A$8,"",OFFSET(InputPriceData!$F$15,CalculationsAndCharts!$A92+$A$11,IF($C$5,8,0),1,1))) -> 82.06 | H92: -2.341558832 | I92: -1.392775713 | J92: 3.734849025 | K92: 1.932575749 | L92: -0.7206836338 | M92: =IF($A92>$B$30,NA(),IF($A92>$A$8,"",OFFSET(InputPriceData2!$B$15,$A92+$A$11,0,1,1))) -> 2021-09-07 | N92: =IF($A92>$B$30,NA(),IF($A92>$A$8,"",OFFSET(InputPriceData2!$G$15,CalculationsAndCharts!$A92+$A$11,IF($C$5,8,0),1,1))) -> 51671500 | O92: =IF($A92>$B$30,NA(),IF($A92>$A$8,"",OFFSET(InputPriceData2!$C$15,CalculationsAndCharts!$A92+$A$11,IF($C$5,8,0),1,1))) -> 448.29 | P92: =IF($A92>$B$30,NA(),IF($A92>$A$8,"",OFFSET(InputPriceData2!$D$15,CalculationsAndCharts!$A92+$A$11,IF($C$5,8,0),1,1))) -> 448.39 | Q92: =IF($A92>$B$30,NA(),IF($A92>$A$8,"",OFFSET(InputPriceData2!$E$15,CalculationsAndCharts!$A92+$A$11,IF($C$5,8,0),1,1))) -> 446.34 | R92: =IF($A92>$B$30,NA(),IF($A92>$A$8,"",OFFSET(InputPriceData2!$F$15,CalculationsAndCharts!$A92+$A$11,IF($C$5,8,0),1,1))) -> 447.05 | S92: -0.3856556578 | T92: 1.654904381 | U92: 7.674500396 | V92: 2.770288865 | W92: 0.5973761082 | AX92: 5701400
A93: 61 | B93: =IF(A93>$B$30,NA(),IF($A93>$A$8,"",OFFSET(InputPriceData!$B$15,$A93+$A$11,0,1,1))) -> 2021-09-03 | C93: =IF(A93>$B$30,NA(),IF($A93>$A$8,"",OFFSET(InputPriceData!$G$15,CalculationsAndCharts!$A93+$A$11,IF($C$5,8,0),1,1))) -> 3300100 | D93: =IF(A93>$B$30,NA(),IF(A93>$A$8,"",OFFSET(InputPriceData!$C$15,CalculationsAndCharts!$A93+$A$11,IF($C$5,8,0),1,1))) -> 83.42 | E93: =IF(A93>$B$30,NA(),IF(A93>$A$8,"",OFFSET(InputPriceData!$D$15,CalculationsAndCharts!$A93+$A$11,IF($C$5,8,0),1,1))) -> 83.67 | F93: =IF(A93>$B$30,NA(),IF(A93>$A$8,"",OFFSET(InputPriceData!$E$15,CalculationsAndCharts!$A93+$A$11,IF($C$5,8,0),1,1))) -> 82.55 | G93: =IF(A93>$B$30,NA(),IF(A93>$A$8,"",OFFSET(InputPriceData!$F$15,CalculationsAndCharts!$A93+$A$11,IF($C$5,8,0),1,1))) -> 82.7 | H93: -1.881315874 | I93: -1.324585629 | J93: 3.779365936 | K93: 1.944059139 | L93: -0.681350481 | M93: =IF($A93>$B$30,NA(),IF($A93>$A$8,"",OFFSET(InputPriceData2!$B$15,$A93+$A$11,0,1,1))) -> 2021-09-03 | N93: =IF($A93>$B$30,NA(),IF($A93>$A$8,"",OFFSET(InputPriceData2!$G$15,CalculationsAndCharts!$A93+$A$11,IF($C$5,8,0),1,1))) -> 47170500 | O93: =IF($A93>$B$30,NA(),IF($A93>$A$8,"",OFFSET(InputPriceData2!$C$15,CalculationsAndCharts!$A93+$A$11,IF($C$5,8,0),1,1))) -> 447.57 | P93: =IF($A93>$B$30,NA(),IF($A93>$A$8,"",OFFSET(InputPriceData2!$D$15,CalculationsAndCharts!$A93+$A$11,IF($C$5,8,0),1,1))) -> 449.2 | Q93: =IF($A93>$B$30,NA(),IF($A93>$A$8,"",OFFSET(InputPriceData2!$E$15,CalculationsAndCharts!$A93+$A$11,IF($C$5,8,0),1,1))) -> 447.14 | R93: =IF($A93>$B$30,NA(),IF($A93>$A$8,"",OFFSET(InputPriceData2!$F$15,CalculationsAndCharts!$A93+$A$11,IF($C$5,8,0),1,1))) -> 448.66 | S93: 1.764336073 | T93: 1.506420452 | U93: 7.796908844 | V93: 2.792294548 | W93: 0.5394919575 | AX93: 3300100
A94: 62 | B94: =IF(A94>$B$30,NA(),IF($A94>$A$8,"",OFFSET(InputPriceData!$B$15,$A94+$A$11,0,1,1))) -> 2021-09-02 | C94: =IF(A94>$B$30,NA(),IF($A94>$A$8,"",OFFSET(InputPriceData!$G$15,CalculationsAndCharts!$A94+$A$11,IF($C$5,8,0),1,1))) -> 3471600 | D94: =IF(A94>$B$30,NA(),IF(A94>$A$8,"",OFFSET(InputPriceData!$C$15,CalculationsAndCharts!$A94+$A$11,IF($C$5,8,0),1,1))) -> 83.25 | E94: =IF(A94>$B$30,NA(),IF(A94>$A$8,"",OFFSET(InputPriceData!$D$15,CalculationsAndCharts!$A94+$A$11,IF($C$5,8,0),1,1))) -> 83.99 | F94: =IF(A94>$B$30,NA(),IF(A94>$A$8,"",OFFSET(InputPriceData!$E$15,CalculationsAndCharts!$A94+$A$11,IF($C$5,8,0),1,1))) -> 83.18 | G94: =IF(A94>$B$30,NA(),IF(A94>$A$8,"",OFFSET(InputPriceData!$F$15,CalculationsAndCharts!$A94+$A$11,IF($C$5,8,0),1,1))) -> 83.58 | H94: -1.133564195 | I94: -1.31520354 | J94: 3.829582271 | K94: 1.956931851 | L94: -0.6720742671 | M94: =IF($A94>$B$30,NA(),IF($A94>$A$8,"",OFFSET(InputPriceData2!$B$15,$A94+$A$11,0,1,1))) -> 2021-09-02 | N94: =IF($A94>$B$30,NA(),IF($A94>$A$8,"",OFFSET(InputPriceData2!$G$15,CalculationsAndCharts!$A94+$A$11,IF($C$5,8,0),1,1))) -> 42501000 | O94: =IF($A94>$B$30,NA(),IF($A94>$A$8,"",OFFSET(InputPriceData2!$C$15,CalculationsAndCharts!$A94+$A$11,IF($C$5,8,0),1,1))) -> 448.9 | P94: =IF($A94>$B$30,NA(),IF($A94>$A$8,"",OFFSET(InputPriceData2!$D$15,CalculationsAndCharts!$A94+$A$11,IF($C$5,8,0),1,1))) -> 449.62 | Q94: =IF($A94>$B$30,NA(),IF($A94>$A$8,"",OFFSET(InputPriceData2!$E$15,CalculationsAndCharts!$A94+$A$11,IF($C$5,8,0),1,1))) -> 447.5 | R94: =IF($A94>$B$30,NA(),IF($A94>$A$8,"",OFFSET(InputPriceData2!$F$15,CalculationsAndCharts!$A94+$A$11,IF($C$5,8,0),1,1))) -> 448.77 | S94: 2.513817928 | T94: 1.174223878 | U94: 7.933994385 | V94: 2.816734703 | W94: 0.4168741475 | AW94: 3471600
A95: 63 | B95: =IF(A95>$B$30,NA(),IF($A95>$A$8,"",OFFSET(InputPriceData!$B$15,$A95+$A$11,0,1,1))) -> 2021-09-01 | C95: =IF(A95>$B$30,NA(),IF($A95>$A$8,"",OFFSET(InputPriceData!$G$15,CalculationsAndCharts!$A95+$A$11,IF($C$5,8,0),1,1))) -> 4109000 | D95: =IF(A95>$B$30,NA(),IF(A95>$A$8,"",OFFSET(InputPriceData!$C$15,CalculationsAndCharts!$A95+$A$11,IF($C$5,8,0),1,1))) -> 84.18 | E95: =IF(A95>$B$30,NA(),IF(A95>$A$8,"",OFFSET(InputPriceData!$D$15,CalculationsAndCharts!$A95+$A$11,IF($C$5,8,0),1,1))) -> 84.18 | F95: =IF(A95>$B$30,NA(),IF(A95>$A$8,"",OFFSET(InputPriceData!$E$15,CalculationsAndCharts!$A95+$A$11,IF($C$5,8,0),1,1))) -> 82.97 | G95: =IF(A95>$B$30,NA(),IF(A95>$A$8,"",OFFSET(InputPriceData!$F$15,CalculationsAndCharts!$A95+$A$11,IF($C$5,8,0),1,1))) -> 83.15 | H95: -1.685156291 | I95: -1.324259007 | J95: 3.881658199 | K95: 1.970192427 | L95: -0.6721470394 | M95: =IF($A95>$B$30,NA(),IF($A95>$A$8,"",OFFSET(InputPriceData2!$B$15,$A95+$A$11,0,1,1))) -> 2021-09-01 | N95: =IF($A95>$B$30,NA(),IF($A95>$A$8,"",OFFSET(InputPriceData2!$G$15,CalculationsAndCharts!$A95+$A$11,IF($C$5,8,0),1,1))) -> 48721400 | O95: =IF($A95>$B$30,NA(),IF($A95>$A$8,"",OFFSET(InputPriceData2!$C$15,CalculationsAndCharts!$A95+$A$11,IF($C$5,8,0),1,1))) -> 448.14 | P95: =IF($A95>$B$30,NA(),IF($A95>$A$8,"",OFFSET(InputPriceData2!$D$15,CalculationsAndCharts!$A95+$A$11,IF($C$5,8,0),1,1))) -> 448.69 | Q95: =IF($A95>$B$30,NA(),IF($A95>$A$8,"",OFFSET(InputPriceData2!$E$15,CalculationsAndCharts!$A95+$A$11,IF($C$5,8,0),1,1))) -> 447.14 | R95: =IF($A95>$B$30,NA(),IF($A95>$A$8,"",OFFSET(InputPriceData2!$F$15,CalculationsAndCharts!$A95+$A$11,IF($C$5,8,0),1,1))) -> 447.39 | S95: 1.768025604 | T95: 0.7751139992 | U95: 8.096564238 | V95: 2.845446228 | W95: 0.2724050771 | AX95: 4109000
A96: 64 | B96: =IF(A96>$B$30,NA(),IF($A96>$A$8,"",OFFSET(InputPriceData!$B$15,$A96+$A$11,0,1,1))) -> 2021-08-31 | C96: =IF(A96>$B$30,NA(),IF($A96>$A$8,"",OFFSET(InputPriceData!$G$15,CalculationsAndCharts!$A96+$A$11,IF($C$5,8,0),1,1))) -> 3969600 | D96: =IF(A96>$B$30,NA(),IF(A96>$A$8,"",OFFSET(InputPriceData!$C$15,CalculationsAndCharts!$A96+$A$11,IF($C$5,8,0),1,1))) -> 83.69 | E96: =IF(A96>$B$30,NA(),IF(A96>$A$8,"",OFFSET(InputPriceData!$D$15,CalculationsAndCharts!$A96+$A$11,IF($C$5,8,0),1,1))) -> 84.45 | F96: =IF(A96>$B$30,NA(),IF(A96>$A$8,"",OFFSET(InputPriceData!$E$15,CalculationsAndCharts!$A96+$A$11,IF($C$5,8,0),1,1))) -> 83.38 | G96: =IF(A96>$B$30,NA(),IF(A96>$A$8,"",OFFSET(InputPriceData!$F$15,CalculationsAndCharts!$A96+$A$11,IF($C$5,8,0),1,1))) -> 83.8 | H96: -1.153898495 | I96: -1.348863965 | J96: 3.934432856 | K96: 1.983540485 | L96: -0.6800284519 | M96: =IF($A96>$B$30,NA(),IF($A96>$A$8,"",OFFSET(InputPriceData2!$B$15,$A96+$A$11,0,1,1))) -> 2021-08-31 | N96: =IF($A96>$B$30,NA(),IF($A96>$A$8,"",OFFSET(InputPriceData2!$G$15,CalculationsAndCharts!$A96+$A$11,IF($C$5,8,0),1,1))) -> 59300200 | O96: =IF($A96>$B$30,NA(),IF($A96>$A$8,"",OFFSET(InputPriceData2!$C$15,CalculationsAndCharts!$A96+$A$11,IF($C$5,8,0),1,1))) -> 447.72 | P96: =IF($A96>$B$30,NA(),IF($A96>$A$8,"",OFFSET(InputPriceData2!$D$15,CalculationsAndCharts!$A96+$A$11,IF($C$5,8,0),1,1))) -> 448.07 | Q96: =IF($A96>$B$30,NA(),IF($A96>$A$8,"",OFFSET(InputPriceData2!$E$15,CalculationsAndCharts!$A96+$A$11,IF($C$5,8,0),1,1))) -> 446.52 | R96: =IF($A96>$B$30,NA(),IF($A96>$A$8,"",OFFSET(InputPriceData2!$F$15,CalculationsAndCharts!$A96+$A$11,IF($C$5,8,0),1,1))) -> 447.15 | S96: 2.143910805 | T96: 0.3210679778 | U96: 8.282460378 | V96: 2.877926402 | W96: 0.1115622615 | AW96: 3969600
A97: 65 | B97: =IF(A97>$B$30,NA(),IF($A97>$A$8,"",OFFSET(InputPriceData!$B$15,$A97+$A$11,0,1,1))) -> 2021-08-30 | C97: =IF(A97>$B$30,NA(),IF($A97>$A$8,"",OFFSET(InputPriceData!$G$15,CalculationsAndCharts!$A97+$A$11,IF($C$5,8,0),1,1))) -> 2936800 | D97: =IF(A97>$B$30,NA(),IF(A97>$A$8,"",OFFSET(InputPriceData!$C$15,CalculationsAndCharts!$A97+$A$11,IF($C$5,8,0),1,1))) -> 84.52 | E97: =IF(A97>$B$30,NA(),IF(A97>$A$8,"",OFFSET(InputPriceData!$D$15,CalculationsAndCharts!$A97+$A$11,IF($C$5,8,0),1,1))) -> 84.55 | F97: =IF(A97>$B$30,NA(),IF(A97>$A$8,"",OFFSET(InputPriceData!$E$15,CalculationsAndCharts!$A97+$A$11,IF($C$5,8,0),1,1))) -> 83.74 | G97: =IF(A97>$B$30,NA(),IF(A97>$A$8,"",OFFSET(InputPriceData!$F$15,CalculationsAndCharts!$A97+$A$11,IF($C$5,8,0),1,1))) -> 83.84 | H97: -1.212554927 | I97: -1.395936027 | J97: 3.986885174 | K97: 1.996718602 | L97: -0.6991150509 | M97: =IF($A97>$B$30,NA(),IF($A97>$A$8,"",OFFSET(InputPriceData2!$B$15,$A97+$A$11,0,1,1))) -> 2021-08-30 | N97: =IF($A97>$B$30,NA(),IF($A97>$A$8,"",OFFSET(InputPriceData2!$G$15,CalculationsAndCharts!$A97+$A$11,IF($C$5,8,0),1,1))) -> 48357400 | O97: =IF($A97>$B$30,NA(),IF($A97>$A$8,"",OFFSET(InputPriceData2!$C$15,CalculationsAndCharts!$A97+$A$11,IF($C$5,8,0),1,1))) -> 446.57 | P97: =IF($A97>$B$30,NA(),IF($A97>$A$8,"",OFFSET(InputPriceData2!$D$15,CalculationsAndCharts!$A97+$A$11,IF($C$5,8,0),1,1))) -> 448.65 | Q97: =IF($A97>$B$30,NA(),IF($A97>$A$8,"",OFFSET(InputPriceData2!$E$15,CalculationsAndCharts!$A97+$A$11,IF($C$5,8,0),1,1))) -> 446.31 | R97: =IF($A97>$B$30,NA(),IF($A97>$A$8,"",OFFSET(InputPriceData2!$F$15,CalculationsAndCharts!$A97+$A$11,IF($C$5,8,0),1,1))) -> 447.82 | S97: 3.484794229 | T97: -0.1854847333 | U97: 8.485310237 | V97: 2.912955585 | W97: -0.06367578494 | AW97: =IF(G97>=D97,C97,NA()) ->  | AX97: =IF(G97<D97,C97,NA()) -> 2936800
A98: 66 | B98: =IF(A98>$B$30,NA(),IF($A98>$A$8,"",OFFSET(InputPriceData!$B$15,$A98+$A$11,0,1,1))) -> 2021-08-27 | C98: =IF(A98>$B$30,NA(),IF($A98>$A$8,"",OFFSET(InputPriceData!$G$15,CalculationsAndCharts!$A98+$A$11,IF($C$5,8,0),1,1))) -> 3590400 | D98: =IF(A98>$B$30,NA(),IF(A98>$A$8,"",OFFSET(InputPriceData!$C$15,CalculationsAndCharts!$A98+$A$11,IF($C$5,8,0),1,1))) -> 84.22 | E98: =IF(A98>$B$30,NA(),IF(A98>$A$8,"",OFFSET(InputPriceData!$D$15,CalculationsAndCharts!$A98+$A$11,IF($C$5,8,0),1,1))) -> 85.16 | F98: =IF(A98>$B$30,NA(),IF(A98>$A$8,"",OFFSET(InputPriceData!$E$15,CalculationsAndCharts!$A98+$A$11,IF($C$5,8,0),1,1))) -> 84.19 | G98: =IF(A98>$B$30,NA(),IF(A98>$A$8,"",OFFSET(InputPriceData!$F$15,CalculationsAndCharts!$A98+$A$11,IF($C$5,8,0),1,1))) -> 84.43 | H98: =IF(A98>$H$30+2,NA(),IF(A98>$H$30,0,$C$19*(G98-2*G99+G100)+$D$19*H99+$E$19*H100)) -> -0.70246137 | I98: =IF(A98>$H$30+2,NA(),IF(A98>$H$30,0,$C$24*(H98+H99)/2+$D$24*I99+$E$24*I100)) -> -1.443127205 | J98: =IF($A98>$H$30,NA(),IF($A98=$H$30,I98*I98,0.0242*I98*I98+0.9758*J99)) -> 4.037434053 | K98: =IF(A98>$H$30,NA(),IF(J98=0,0,SQRT(J98))) -> 2.00933672 | L98: =IF(A98>$H$30,NA(),IF(J98=0,0,I98/K98)) -> -0.7182107361 | M98: =IF($A98>$B$30,NA(),IF($A98>$A$8,"",OFFSET(InputPriceData2!$B$15,$A98+$A$11,0,1,1))) -> 2021-08-27 | N98: =IF($A98>$B$30,NA(),IF($A98>$A$8,"",OFFSET(InputPriceData2!$G$15,CalculationsAndCharts!$A98+$A$11,IF($C$5,8,0),1,1))) -> 77235100 | O98: =IF($A98>$B$30,NA(),IF($A98>$A$8,"",OFFSET(InputPriceData2!$C$15,CalculationsAndCharts!$A98+$A$11,IF($C$5,8,0),1,1))) -> 442.76 | P98: =IF($A98>$B$30,NA(),IF($A98>$A$8,"",OFFSET(InputPriceData2!$D$15,CalculationsAndCharts!$A98+$A$11,IF($C$5,8,0),1,1))) -> 446.25 | Q98: =IF($A98>$B$30,NA(),IF($A98>$A$8,"",OFFSET(InputPriceData2!$E$15,CalculationsAndCharts!$A98+$A$11,IF($C$5,8,0),1,1))) -> 442.7 | R98: =IF($A98>$B$30,NA(),IF($A98>$A$8,"",OFFSET(InputPriceData2!$F$15,CalculationsAndCharts!$A98+$A$11,IF($C$5,8,0),1,1))) -> 445.86 | S98: =IF($A98>$H$30+2,NA(),IF($A98>$H$30,0,$C$19*($R98-2*$R99+$R100)+$D$19*S99+$E$19*S100)) -> 2.190184601 | T98: =IF($A98>$S$30+2,NA(),IF($A98>$S$30,0,$C$24*(S98+S99)/2+$D$24*T99+$E$24*T100)) -> -0.6057411366 | U98: =IF($A98>$S$30,NA(),IF($A98=$S$30,T98*T98,0.0242*T98*T98+0.9758*U99)) -> 8.694894083 | V98: =IF($A98>$S$30,NA(),IF(U98=0,0,SQRT(U98))) -> 2.94871058 | W98: =IF($A98>$S$30,NA(),IF(U98=0,0,T98/V98)) -> -0.2054257684 | AW98: 3590400
A99: 67 | B99: =IF(A99>$B$30,NA(),IF($A99>$A$8,"",OFFSET(InputPriceData!$B$15,$A99+$A$11,0,1,1))) -> 2021-08-26 | C99: =IF(A99>$B$30,NA(),IF($A99>$A$8,"",OFFSET(InputPriceData!$G$15,CalculationsAndCharts!$A99+$A$11,IF($C$5,8,0),1,1))) -> 2596000 | D99: =IF(A99>$B$30,NA(),IF(A99>$A$8,"",OFFSET(InputPriceData!$C$15,CalculationsAndCharts!$A99+$A$11,IF($C$5,8,0),1,1))) -> 84.69 | E99: =IF(A99>$B$30,NA(),IF(A99>$A$8,"",OFFSET(InputPriceData!$D$15,CalculationsAndCharts!$A99+$A$11,IF($C$5,8,0),1,1))) -> 84.83 | F99: =IF(A99>$B$30,NA(),IF(A99>$A$8,"",OFFSET(InputPriceData!$E$15,CalculationsAndCharts!$A99+$A$11,IF($C$5,8,0),1,1))) -> 83.56 | G99: =IF(A99>$B$30,NA(),IF(A99>$A$8,"",OFFSET(InputPriceData!$F$15,CalculationsAndCharts!$A99+$A$11,IF($C$5,8,0),1,1))) -> 83.8 | H99: -1.417090373 | I99: -1.456879953 | J99: 4.085913858 | K99: 2.021364356 | L99: -0.7207408943 | M99: =IF($A99>$B$30,NA(),IF($A99>$A$8,"",OFFSET(InputPriceData2!$B$15,$A99+$A$11,0,1,1))) -> 2021-08-26 | N99: =IF($A99>$B$30,NA(),IF($A99>$A$8,"",OFFSET(InputPriceData2!$G$15,CalculationsAndCharts!$A99+$A$11,IF($C$5,8,0),1,1))) -> 57829600 | O99: =IF($A99>$B$30,NA(),IF($A99>$A$8,"",OFFSET(InputPriceData2!$C$15,CalculationsAndCharts!$A99+$A$11,IF($C$5,8,0),1,1))) -> 444.23 | P99: =IF($A99>$B$30,NA(),IF($A99>$A$8,"",OFFSET(InputPriceData2!$D$15,CalculationsAndCharts!$A99+$A$11,IF($C$5,8,0),1,1))) -> 444.48 | Q99: =IF($A99>$B$30,NA(),IF($A99>$A$8,"",OFFSET(InputPriceData2!$E$15,CalculationsAndCharts!$A99+$A$11,IF($C$5,8,0),1,1))) -> 441.81 | R99: =IF($A99>$B$30,NA(),IF($A99>$A$8,"",OFFSET(InputPriceData2!$F$15,CalculationsAndCharts!$A99+$A$11,IF($C$5,8,0),1,1))) -> 441.9 | S99: -1.277874404 | T99: -0.8368090928 | U99: 8.901429148 | V99: 2.983526294 | W99: -0.2804765269 | AX99: 2596000
A100: 68 | B100: =IF(A100>$B$30,NA(),IF($A100>$A$8,"",OFFSET(InputPriceData!$B$15,$A100+$A$11,0,1,1))) -> 2021-08-25 | C100: =IF(A100>$B$30,NA(),IF($A100>$A$8,"",OFFSET(InputPriceData!$G$15,CalculationsAndCharts!$A100+$A$11,IF($C$5,8,0),1,1))) -> 3195200 | D100: =IF(A100>$B$30,NA(),IF(A100>$A$8,"",OFFSET(InputPriceData!$C$15,CalculationsAndCharts!$A100+$A$11,IF($C$5,8,0),1,1))) -> 84.65 | E100: =IF(A100>$B$30,NA(),IF(A100>$A$8,"",OFFSET(InputPriceData!$D$15,CalculationsAndCharts!$A100+$A$11,IF($C$5,8,0),1,1))) -> 85.46 | F100: =IF(A100>$B$30,NA(),IF(A100>$A$8,"",OFFSET(InputPriceData!$E$15,CalculationsAndCharts!$A100+$A$11,IF($C$5,8,0),1,1))) -> 84.04 | G100: =IF(A100>$B$30,NA(),IF(A100>$A$8,"",OFFSET(InputPriceData!$F$15,CalculationsAndCharts!$A100+$A$11,IF($C$5,8,0),1,1))) -> 84.76 | H100: -0.5331305769 | I100: -1.429398594 | J100: 4.134606864 | K100: 2.033373272 | L100: -0.7029691073 | M100: =IF($A100>$B$30,NA(),IF($A100>$A$8,"",OFFSET(InputPriceData2!$B$15,$A100+$A$11,0,1,1))) -> 2021-08-25 | N100: =IF($A100>$B$30,NA(),IF($A100>$A$8,"",OFFSET(InputPriceData2!$G$15,CalculationsAndCharts!$A100+$A$11,IF($C$5,8,0),1,1))) -> 40529700 | O100: =IF($A100>$B$30,NA(),IF($A100>$A$8,"",OFFSET(InputPriceData2!$C$15,CalculationsAndCharts!$A100+$A$11,IF($C$5,8,0),1,1))) -> 443.8 | P100: =IF($A100>$B$30,NA(),IF($A100>$A$8,"",OFFSET(InputPriceData2!$D$15,CalculationsAndCharts!$A100+$A$11,IF($C$5,8,0),1,1))) -> 445.07 | Q100: =IF($A100>$B$30,NA(),IF($A100>$A$8,"",OFFSET(InputPriceData2!$E$15,CalculationsAndCharts!$A100+$A$11,IF($C$5,8,0),1,1))) -> 443.4 | R100: =IF($A100>$B$30,NA(),IF($A100>$A$8,"",OFFSET(InputPriceData2!$F$15,CalculationsAndCharts!$A100+$A$11,IF($C$5,8,0),1,1))) -> 444.53 | S100: 1.830351306 | T100: -1.037806361 | U100: 9.104819749 | V100: 3.017419386 | W100: -0.3439383885 | AW100: 3195200
A101: 69 | B101: =IF(A101>$B$30,NA(),IF($A101>$A$8,"",OFFSET(InputPriceData!$B$15,$A101+$A$11,0,1,1))) -> 2021-08-24 | C101: =IF(A101>$B$30,NA(),IF($A101>$A$8,"",OFFSET(InputPriceData!$G$15,CalculationsAndCharts!$A101+$A$11,IF($C$5,8,0),1,1))) -> 4751800 | D101: =IF(A101>$B$30,NA(),IF(A101>$A$8,"",OFFSET(InputPriceData!$C$15,CalculationsAndCharts!$A101+$A$11,IF($C$5,8,0),1,1))) -> 84.15 | E101: =IF(A101>$B$30,NA(),IF(A101>$A$8,"",OFFSET(InputPriceData!$D$15,CalculationsAndCharts!$A101+$A$11,IF($C$5,8,0),1,1))) -> 85.1 | F101: =IF(A101>$B$30,NA(),IF(A101>$A$8,"",OFFSET(InputPriceData!$E$15,CalculationsAndCharts!$A101+$A$11,IF($C$5,8,0),1,1))) -> 84.04 | G101: =IF(A101>$B$30,NA(),IF(A101>$A$8,"",OFFSET(InputPriceData!$F$15,CalculationsAndCharts!$A101+$A$11,IF($C$5,8,0),1,1))) -> 84.46 | H101: -0.8882438142 | I101: -1.330576504 | J101: 4.186474585 | K101: 2.046087629 | L101: -0.650302795 | M101: =IF($A101>$B$30,NA(),IF($A101>$A$8,"",OFFSET(InputPriceData2!$B$15,$A101+$A$11,0,1,1))) -> 2021-08-24 | N101: =IF($A101>$B$30,NA(),IF($A101>$A$8,"",OFFSET(InputPriceData2!$G$15,CalculationsAndCharts!$A101+$A$11,IF($C$5,8,0),1,1))) -> 38744700 | O101: =IF($A101>$B$30,NA(),IF($A101>$A$8,"",OFFSET(InputPriceData2!$C$15,CalculationsAndCharts!$A101+$A$11,IF($C$5,8,0),1,1))) -> 443.6 | P101: =IF($A101>$B$30,NA(),IF($A101>$A$8,"",OFFSET(InputPriceData2!$D$15,CalculationsAndCharts!$A101+$A$11,IF($C$5,8,0),1,1))) -> 444.16 | Q101: =IF($A101>$B$30,NA(),IF($A101>$A$8,"",OFFSET(InputPriceData2!$E$15,CalculationsAndCharts!$A101+$A$11,IF($C$5,8,0),1,1))) -> 443.05 | R101: =IF($A101>$B$30,NA(),IF($A101>$A$8,"",OFFSET(InputPriceData2!$F$15,CalculationsAndCharts!$A101+$A$11,IF($C$5,8,0),1,1))) -> 443.6 | S101: 1.473955799 | T101: -1.189317901 | U101: 9.303909953 | V101: 3.050231131 | W101: -0.3899107478 | AW101: 4751800
A102: 70 | B102: =IF(A102>$B$30,NA(),IF($A102>$A$8,"",OFFSET(InputPriceData!$B$15,$A102+$A$11,0,1,1))) -> 2021-08-23 | C102: =IF(A102>$B$30,NA(),IF($A102>$A$8,"",OFFSET(InputPriceData!$G$15,CalculationsAndCharts!$A102+$A$11,IF($C$5,8,0),1,1))) -> 3367700 | D102: =IF(A102>$B$30,NA(),IF(A102>$A$8,"",OFFSET(InputPriceData!$C$15,CalculationsAndCharts!$A102+$A$11,IF($C$5,8,0),1,1))) -> 83.62 | E102: =IF(A102>$B$30,NA(),IF(A102>$A$8,"",OFFSET(InputPriceData!$D$15,CalculationsAndCharts!$A102+$A$11,IF($C$5,8,0),1,1))) -> 84.61 | F102: =IF(A102>$B$30,NA(),IF(A102>$A$8,"",OFFSET(InputPriceData!$E$15,CalculationsAndCharts!$A102+$A$11,IF($C$5,8,0),1,1))) -> 83.55 | G102: =IF(A102>$B$30,NA(),IF(A102>$A$8,"",OFFSET(InputPriceData!$F$15,CalculationsAndCharts!$A102+$A$11,IF($C$5,8,0),1,1))) -> 84 | H102: -1.43297898 | I102: -1.100111523 | J102: 4.246392791 | K102: 2.060677751 | L102: -0.5338590775 | M102: =IF($A102>$B$30,NA(),IF($A102>$A$8,"",OFFSET(InputPriceData2!$B$15,$A102+$A$11,0,1,1))) -> 2021-08-23 | N102: =IF($A102>$B$30,NA(),IF($A102>$A$8,"",OFFSET(InputPriceData2!$G$15,CalculationsAndCharts!$A102+$A$11,IF($C$5,8,0),1,1))) -> 54973000 | O102: =IF($A102>$B$30,NA(),IF($A102>$A$8,"",OFFSET(InputPriceData2!$C$15,CalculationsAndCharts!$A102+$A$11,IF($C$5,8,0),1,1))) -> 440.82 | P102: =IF($A102>$B$30,NA(),IF($A102>$A$8,"",OFFSET(InputPriceData2!$D$15,CalculationsAndCharts!$A102+$A$11,IF($C$5,8,0),1,1))) -> 443.86 | Q102: =IF($A102>$B$30,NA(),IF($A102>$A$8,"",OFFSET(InputPriceData2!$E$15,CalculationsAndCharts!$A102+$A$11,IF($C$5,8,0),1,1))) -> 439.11 | R102: =IF($A102>$B$30,NA(),IF($A102>$A$8,"",OFFSET(InputPriceData2!$F$15,CalculationsAndCharts!$A102+$A$11,IF($C$5,8,0),1,1))) -> 442.89 | S102: 1.315408652 | T102: -1.075479206 | U102: 9.499569182 | V102: 3.082137113 | W102: -0.3489394424 | AW102: 3367700
A103: 71 | B103: =IF(A103>$B$30,NA(),IF($A103>$A$8,"",OFFSET(InputPriceData!$B$15,$A103+$A$11,0,1,1))) -> 2021-08-20 | C103: =IF(A103>$B$30,NA(),IF($A103>$A$8,"",OFFSET(InputPriceData!$G$15,CalculationsAndCharts!$A103+$A$11,IF($C$5,8,0),1,1))) -> 4502400 | D103: =IF(A103>$B$30,NA(),IF(A103>$A$8,"",OFFSET(InputPriceData!$C$15,CalculationsAndCharts!$A103+$A$11,IF($C$5,8,0),1,1))) -> 82.35 | E103: =IF(A103>$B$30,NA(),IF(A103>$A$8,"",OFFSET(InputPriceData!$D$15,CalculationsAndCharts!$A103+$A$11,IF($C$5,8,0),1,1))) -> 83.52 | F103: =IF(A103>$B$30,NA(),IF(A103>$A$8,"",OFFSET(InputPriceData!$E$15,CalculationsAndCharts!$A103+$A$11,IF($C$5,8,0),1,1))) -> 82.06 | G103: =IF(A103>$B$30,NA(),IF(A103>$A$8,"",OFFSET(InputPriceData!$F$15,CalculationsAndCharts!$A103+$A$11,IF($C$5,8,0),1,1))) -> 83.1 | H103: -2.470007816 | I103: -0.7482072493 | J103: 4.321689745 | K103: 2.078867419 | L103: -0.3599109989 | M103: =IF($A103>$B$30,NA(),IF($A103>$A$8,"",OFFSET(InputPriceData2!$B$15,$A103+$A$11,0,1,1))) -> 2021-08-20 | N103: =IF($A103>$B$30,NA(),IF($A103>$A$8,"",OFFSET(InputPriceData2!$G$15,CalculationsAndCharts!$A103+$A$11,IF($C$5,8,0),1,1))) -> 72008700 | O103: =IF($A103>$B$30,NA(),IF($A103>$A$8,"",OFFSET(InputPriceData2!$C$15,CalculationsAndCharts!$A103+$A$11,IF($C$5,8,0),1,1))) -> 435.93 | P103: =IF($A103>$B$30,NA(),IF($A103>$A$8,"",OFFSET(InputPriceData2!$D$15,CalculationsAndCharts!$A103+$A$11,IF($C$5,8,0),1,1))) -> 439.38 | Q103: =IF($A103>$B$30,NA(),IF($A103>$A$8,"",OFFSET(InputPriceData2!$E$15,CalculationsAndCharts!$A103+$A$11,IF($C$5,8,0),1,1))) -> 435.42 | R103: =IF($A103>$B$30,NA(),IF($A103>$A$8,"",OFFSET(InputPriceData2!$F$15,CalculationsAndCharts!$A103+$A$11,IF($C$5,8,0),1,1))) -> 439.03 | S103: -2.122216885 | T103: -0.593634267 | U103: 9.706474809 | V103: 3.115521595 | W103: -0.190540893 | AW103: 4502400
A104: 72 | B104: =IF(A104>$B$30,NA(),IF($A104>$A$8,"",OFFSET(InputPriceData!$B$15,$A104+$A$11,0,1,1))) -> 2021-08-19 | C104: =IF(A104>$B$30,NA(),IF($A104>$A$8,"",OFFSET(InputPriceData!$G$15,CalculationsAndCharts!$A104+$A$11,IF($C$5,8,0),1,1))) -> 5707000 | D104: =IF(A104>$B$30,NA(),IF(A104>$A$8,"",OFFSET(InputPriceData!$C$15,CalculationsAndCharts!$A104+$A$11,IF($C$5,8,0),1,1))) -> 83.37 | E104: =IF(A104>$B$30,NA(),IF(A104>$A$8,"",OFFSET(InputPriceData!$D$15,CalculationsAndCharts!$A104+$A$11,IF($C$5,8,0),1,1))) -> 83.88 | F104: =IF(A104>$B$30,NA(),IF(A104>$A$8,"",OFFSET(InputPriceData!$E$15,CalculationsAndCharts!$A104+$A$11,IF($C$5,8,0),1,1))) -> 82.03 | G104: =IF(A104>$B$30,NA(),IF(A104>$A$8,"",OFFSET(InputPriceData!$F$15,CalculationsAndCharts!$A104+$A$11,IF($C$5,8,0),1,1))) -> 82.41 | H104: -3.359364681 | I104: -0.3477440713 | J104: 4.414984879 | K104: 2.101186541 | L104: -0.1654989048 | M104: =IF($A104>$B$30,NA(),IF($A104>$A$8,"",OFFSET(InputPriceData2!$B$15,$A104+$A$11,0,1,1))) -> 2021-08-19 | N104: =IF($A104>$B$30,NA(),IF($A104>$A$8,"",OFFSET(InputPriceData2!$G$15,CalculationsAndCharts!$A104+$A$11,IF($C$5,8,0),1,1))) -> 92812200 | O104: =IF($A104>$B$30,NA(),IF($A104>$A$8,"",OFFSET(InputPriceData2!$C$15,CalculationsAndCharts!$A104+$A$11,IF($C$5,8,0),1,1))) -> 432.01 | P104: =IF($A104>$B$30,NA(),IF($A104>$A$8,"",OFFSET(InputPriceData2!$D$15,CalculationsAndCharts!$A104+$A$11,IF($C$5,8,0),1,1))) -> 436.83 | Q104: =IF($A104>$B$30,NA(),IF($A104>$A$8,"",OFFSET(InputPriceData2!$E$15,CalculationsAndCharts!$A104+$A$11,IF($C$5,8,0),1,1))) -> 431.86 | R104: =IF($A104>$B$30,NA(),IF($A104>$A$8,"",OFFSET(InputPriceData2!$F$15,CalculationsAndCharts!$A104+$A$11,IF($C$5,8,0),1,1))) -> 435.57 | S104: -5.393040123 | T104: 0.1811319203 | U104: 9.938457357 | V104: 3.152531896 | W104: 0.05745601513 | AX104: 5707000
A105: 73 | B105: =IF(A105>$B$30,NA(),IF($A105>$A$8,"",OFFSET(InputPriceData!$B$15,$A105+$A$11,0,1,1))) -> 2021-08-18 | C105: =IF(A105>$B$30,NA(),IF($A105>$A$8,"",OFFSET(InputPriceData!$G$15,CalculationsAndCharts!$A105+$A$11,IF($C$5,8,0),1,1))) -> 4256200 | D105: =IF(A105>$B$30,NA(),IF(A105>$A$8,"",OFFSET(InputPriceData!$C$15,CalculationsAndCharts!$A105+$A$11,IF($C$5,8,0),1,1))) -> 84.57 | E105: =IF(A105>$B$30,NA(),IF(A105>$A$8,"",OFFSET(InputPriceData!$D$15,CalculationsAndCharts!$A105+$A$11,IF($C$5,8,0),1,1))) -> 85.42 | F105: =IF(A105>$B$30,NA(),IF(A105>$A$8,"",OFFSET(InputPriceData!$E$15,CalculationsAndCharts!$A105+$A$11,IF($C$5,8,0),1,1))) -> 83.94 | G105: =IF(A105>$B$30,NA(),IF(A105>$A$8,"",OFFSET(InputPriceData!$F$15,CalculationsAndCharts!$A105+$A$11,IF($C$5,8,0),1,1))) -> 84.01 | H105: -1.932596468 | I105: -0.03957505632 | J105: 4.521478244 | K105: 2.126376788 | L105: -0.01861149752 | M105: =IF($A105>$B$30,NA(),IF($A105>$A$8,"",OFFSET(InputPriceData2!$B$15,$A105+$A$11,0,1,1))) -> 2021-08-18 | N105: =IF($A105>$B$30,NA(),IF($A105>$A$8,"",OFFSET(InputPriceData2!$G$15,CalculationsAndCharts!$A105+$A$11,IF($C$5,8,0),1,1))) -> 89351900 | O105: =IF($A105>$B$30,NA(),IF($A105>$A$8,"",OFFSET(InputPriceData2!$C$15,CalculationsAndCharts!$A105+$A$11,IF($C$5,8,0),1,1))) -> 438.64 | P105: =IF($A105>$B$30,NA(),IF($A105>$A$8,"",OFFSET(InputPriceData2!$D$15,CalculationsAndCharts!$A105+$A$11,IF($C$5,8,0),1,1))) -> 440.29 | Q105: =IF($A105>$B$30,NA(),IF($A105>$A$8,"",OFFSET(InputPriceData2!$E$15,CalculationsAndCharts!$A105+$A$11,IF($C$5,8,0),1,1))) -> 434.64 | R105: =IF($A105>$B$30,NA(),IF($A105>$A$8,"",OFFSET(InputPriceData2!$F$15,CalculationsAndCharts!$A105+$A$11,IF($C$5,8,0),1,1))) -> 434.89 | S105: -6.010112904 | T105: 0.9039257023 | U105: 10.18411907 | V105: 3.191256659 | W105: 0.2832507062 | AX105: 4256200
